Workbook

Sheet Excel Tools
B3: Short Cuts
B4: Shift CNTL R
B5: Alt E I S
B7: LOOKUP Function
B8: INDEX Function

Sheet Basic Model Exercise
A1: Time Period | J1: 1
A2: Start of Period | F2: =F8 -> 2017-11-01
A3: End of Period
A4: Construction Period | F4: =F8 -> 2017-11-01
A5: Operating Period
A7: Timing | P7: Sensitivity Cases | S7: Index Function
B8: Construction Start | E8: Date | F8: 2017-11-01 | M8: Base | N8: Low | O8: High
B9: Construction Period | E9: Months | F9: 11 | K9: Capacity
B10: Commercial Operation Date | E10: Date | K10: Availability
B11: Operating Life | E11: Years | F11: 15 | K11: Heat Rate
B12: Decomissioning | E12: Date | K12: Construction
K13: O&M Cost
A14: Operations | K14: Interest Rate
B15: Capacity | E15: MW | F15: 40
B16: Availability Percent | E16: % | F16: 0.85
B17: Dispactch Percent | E17: % | F17: 0.8
B18: Heat Rate | E18: BTU/kWh | F18: 7400
A20: Macro Economic
B21: Year | F21: 2016 | G21: 2017 | H21: 2018 | I21: 2019 | J21: 2020 | K21: 2021 | L21: 2022
B22: USD Inflation Rate | F22: 0.01 | G22: 0.012 | H22: 0.015 | I22: 0.015 | J22: 0.015 | K22: 0.015 | L22: 0.015
A24: EPC Contract
B25: Total Cost | E25: USD 000's | F25: 40000
B26: S-Curve | E26: %
A28: PPA Contract
B29: Availability Target | E29: % | F29: 0.85
B30: Tartet Heat Rate | E30: BTU/kWh | F30: 7400
E32: Age | F32: 1 | G32: 9
B33: Capacity Charge - A | E33: USD/MWH | F33: =Assumptions!F105 -> 18.28149243 | G33: =Assumptions!G105 -> 6.906538604
B34: Fixed O&M - B | E34: USD/MWH | F34: =Assumptions!F110*1000 -> 3.209456963
B35: Variable Charge - D | E35: USD/MWH | F35: =Assumptions!F123 -> 0.6782415959
B37: Fuel - C
C38: Target Heat Rate | E38: BTU/kWh | F38: 7400
C39: Year | F39: =Assumptions!F118 -> 2016 | G39: =Assumptions!G118 -> 2017 | H39: =Assumptions!H118 -> 2018
C40: Fuel Price | E40: USD/MMBTU | F40: =Assumptions!F119 -> 7.75 | G40: =Assumptions!G119 -> 7.98 | H40: =Assumptions!H119 -> 8.22
A42: Gas Supply and O&M Contract
C43: Year | F43: =F39 -> 2016 | G43: 2017 | H43: 2018
C44: Fuel Price | E44: USD/MMBTU | F44: 7.75 | G44: 7.98 | H44: 8.22
C46: Fixed O&M Cost | E46: USD
C47: Variable O&M | E47: USD/MWH
A49: Taxes, Depreciation, Working Capital
B50: Accounts Receivable Days | E50: Days | F50: 60
B52: Depreciation Life | E52: Years | F52: 15
B53: Tax Rate | E53: Percent | F53: 0.25
A55: Financing
B56: Term Loan Amount | E56: USD 000's | F56: 40000
B57: Financing Draws | E57: Pro-rata | F57: TRUE
B58: Tenure | E58: Years | F58: 13
B60: Base Rate | E60: Percent | F60: 0.015
B61: Credit Spread | E61: Percent | F61: 0.03
B63: Cash Sweep Percent | E63: Percent | F63: 0.5
A65: Operating Model
B66: Production
C67: Capacity | E67: MW
C68: Available Energy | E68: MWH
C69: Dispatched Energy | E69: MWH
C70: Heat Rate | E70: BTU/kWh
C71: Energy Used | E71: MMBTU
A73: Macro Economic
B74: Annual Inflation | E74: %
B75: Monthly Inflation | E75: %
B76: Inflation Index | E76: Index
A78: Capital Expenditures and EPC Contract
B79: Total Cost | E79: USD 000's
B80: S-Curve | E80: Percent
B81: Capital Expenditures | E81: USD 000's
A83: PPA Contract
B84: Capacity Charge (Lookup)
B85: Target Available Energy
B86: Capacity Payment
B88: Target Heat Rate
B89: Energy Delivered
B90: Target Energy Used
B91: Energy Price
B92: Energy Payment
B94: Fixed O&M without Inflation
B95: Fixed O&M with Inflation
B96: Fixed O&M Charges
B98: Variable O&M without Inflation
B99: Variable O&M with Inflation
B100: Variable O&M Expense
C102: Total Energy Revenues
A104: Operating Expenses
B105: Energy Used
B106: Energy Price
B107: Total Fuel Cost
B109: Fixed O&M Cost
B111: Variable Cost per MWH
B112: Variable Expense
B114: Total Operating Cost
B116: EBITDA
A118: Working Capital
C119: Accounts Receivable - Percent
C120: Accounts Receivable - Level
C121: Accounts Receivable - Change
A123: Pre-tax Cash Flow
B124: EBITDA
B125: Less: WC Changes
B126: Less: Capital Expenditures
C127: Total Pre-tax Cash Flow
C129: Project IRR
A131: Depreciation and Operating Taxes
B132: Plant Balance
C133: Opening Balance
C134: Add: Capital Expenditures
C135: Closing Balance
C137: Deprecation
C138: Accumulated Depreciation
C139: Net Plant
A141: Project Financing
B142: Uses of Funds
C143: EPC Cost
C144: Development Cost
C145: IDC
C146: Fees
C147: DSRA
D148: Total
B150: Sources of Funds
C151: Debt
C152: Equity
D153: Total
A155: Funding
B156: Capital Expenditures
B157: Add: IDC
B158: Add: Fees
B159: Add: DSRA
C160: Total Funding Needs
B162: Debt Funding
B163: Equity Funding
C164: Total Funding
A166: Debt Schedule
B167: Repayment Period
B168: Repayment Schedule
B170: Opening Balance
B171: Add: Draws
B172: Less: Repayments
B173: Closing Balance
B175: Interest Paid to Bank
B176: Intrest Allocated to IDC
B177: Intrest Allocated to Exense
A179: DSRA
B180: Required Balance from Debt Service
B181: Less: Accumulated Amount
B182: Required Top-up or Allowed Withrdrawl
B184: Opening Balance
B185: Add: Top-up
B186: Less: Withdrawl for deficit cash flow
B187: Closing Balance
A189: Profit and Loss
B190: Revenues
B191: Less: Expenses
C192: EBITDA
B193: Less: Depreciation Expense
B194: Less: Depreciation on IDC and Fees
C195: EBIT
B196: Less: Interest Expense
C197: EBT
B198: Less: Taxes
C199: Earnings
A201: Cash Flow
B202: EBITDA
B203: Less: Taxes
B204: Less: WC Changes
C205: CFADS
B206: Less: Interest
B207: Less: Repayment
C208: Net Cash Flow
B209: Less: Sweep
B210: Less: Trap
B211: Less or Plus: DSRA Adjustments
C212: Dividends
A214: Balance Sheet
B215: Assets
C216: DSRA
C217: Net Plant
C218: IDC Net
D219: Total
B221: Liabilities and Capital
C222: Debt Balance
C223: Equity Balance
D224: Total
B226: Equity Balance
C227: Opening Balance
C228: Add: Income
C229: Less: Dividends
C230: Add: Investment
C231: Closing Balance

Sheet Assumptions
A1: Set-up Assumptions by Contract
A2: Enter Dates or Age of Project Above Parameters
A3: For Financing Contract (Loan Agreement) Divided into 5 Clear Parts
A4: Include Operating Paramters of the Plant at the Beginning
A6: Timing
B7: Start Date of Model | E7: Date | F7: 2016-01-01
B8: Start of Construction of NGCC Expansion | E8: Date | F8: 2017-01-01
B9: Construction Period | E9: Months | F9: 9
B10: Commercial Operation for NGCC Expansion | E10: Date | F10: =EDATE(F8,F9) -> 2017-10-01 | H10: =HYPERLINK('Databook Capacity'!O20,"Capacity Databook") -> Capacity Databook
B11: Model Period | E11: Years | F11: 15
B12: End of Model | E12: Date | F12: =EDATE(F10,F11*12) -> 2032-10-01
B13: Total Months | E13: Months | F13: =DAYS360(F7,F12)/30 -> 201
B15: Date of Re-financing | E15: Date | F15: =F8 -> 2017-01-01
A17: Capacity and Production
B18: Simple Cycle Units | E18: Number | F18: 2
B19: Existing Combined Cycle Unit | E19: Number | F19: 1
B21: Gross Capacity of Simple Cycle | E21: MW | F21: 40
B22: Gross Capacity of Steam Generator | E22: MW | F22: 30
B23: Total Gross Capacity | E23: MW | F23: =F21*F18+F19*F22 -> 110
B24: Expansion HSRG and GTG | E24: MW | F24: 40
B25: Total with Expansion | E25: MW | F25: =SUM(F23:F24) -> 150
B27: Capacity by Period | F27: =F7 -> 2016-01-01 | G27: =F10 -> 2017-10-01
B28: Capacity | E28: MW | F28: =F23 -> 110 | G28: =F25 -> 150
B30: Degradation in Capacity and Availability
C31: Age | F31: 0 | G31: 5 | H31: 20 | I31: 30
C32: Degradation | F32: 0 | G32: 0 | H32: 0 | I32: 0
C33: Availability Percent | F33: 0.85 | G33: 0.85 | H33: 0.85 | I33: 0.85
C34: Dispactch Percent | F34: 0.8 | G34: 0.8 | H34: 0.8 | I34: 0.8
C35: Heat Rate Degradation | F35: 0 | G35: 0 | H35: 0 | I35: 0
B37: Achieved Low Heating Value Heat Rate -- Amount of Gas Purchased and LHV relative to Net Production
C38: Simple Cycle - 2 x 40 MW | E38: BTU/kWh | F38: 9250
C39: Existing Combined Cycle - 110 MW | E39: BTU/kWh | F39: 8175
C40: Expansion Plant - 150 MW | E40: BTU/kWh | F40: 7400
E42: =F7 -> 2016-01-01 | F42: =F10 -> 2017-10-01
C43: Weighted Heat Rate After Expansion | E43: =F39 -> 8175 | F43: ='Databook Capacity'!P33 -> 7732.142857
A45: EPC Contract/Financing Need
B46: New Capacity | E46: MW | F46: =F24 -> 40
B47: Cost of Capacity | E47: USD 000's | F47: ='Loan Agreement'!M9 -> 40000
B49: Existing Balance Sheet for Re-financing
C50: Date of Balance Sheet | E50: Date | F50: 2015-01-01 | G50: =EDATE(F50,12) -> 2016-01-01 | H50: =EDATE(G50,12) -> 2017-01-01 | I50: =EDATE(H50,12) -> 2018-01-01 | J50: =EDATE(I50,12) -> 2019-01-01
C52: ='Balance Sheet Given'!C20 -> Cash | E52: USD 000's | F52: ='Balance Sheet Given'!F20 -> 19534 | G52: ='Balance Sheet Given'!G20 -> 6620 | H52: ='Balance Sheet Given'!H20 -> 7140 | I52: ='Balance Sheet Given'!I20 -> 13769 | J52: ='Balance Sheet Given'!J20 -> 18283
C53: ='Balance Sheet Given'!C21 -> Accounts Receivable | E53: USD 000's | F53: ='Balance Sheet Given'!F21 -> 9595 | G53: ='Balance Sheet Given'!G21 -> 7010 | H53: ='Balance Sheet Given'!H21 -> 15191 | I53: ='Balance Sheet Given'!I21 -> 15533 | J53: ='Balance Sheet Given'!J21 -> 21661
C54: ='Balance Sheet Given'!C22 -> Other Current Assets | E54: USD 000's | F54: ='Balance Sheet Given'!F22 -> 1211 | G54: ='Balance Sheet Given'!G22 -> 53 | H54: ='Balance Sheet Given'!H22 -> 53 | I54: ='Balance Sheet Given'!I22 -> 53 | J54: ='Balance Sheet Given'!J22 -> 53
C55: ='Balance Sheet Given'!C23 -> Total Current Assets | E55: USD 000's | F55: ='Balance Sheet Given'!F23 -> 30340 | G55: ='Balance Sheet Given'!G23 -> 13683 | H55: ='Balance Sheet Given'!H23 -> 22384 | I55: ='Balance Sheet Given'!I23 -> 29355 | J55: ='Balance Sheet Given'!J23 -> 39997
C56: ='Balance Sheet Given'!C24 -> Non-Current Assets | E56: USD 000's | F56: ='Balance Sheet Given'!F24 -> 76221 | G56: ='Balance Sheet Given'!G24 -> 71773 | H56: ='Balance Sheet Given'!H24 -> 83333 | I56: ='Balance Sheet Given'!I24 -> 102893 | J56: ='Balance Sheet Given'!J24 -> 98453
C57: ='Balance Sheet Given'!C25 -> Other Assets | E57: USD 000's | F57: ='Balance Sheet Given'!F25 -> 617 | G57: ='Balance Sheet Given'!G25 -> 617 | H57: ='Balance Sheet Given'!H25 -> 617 | I57: ='Balance Sheet Given'!I25 -> 617 | J57: ='Balance Sheet Given'!J25 -> 617
C58: ='Balance Sheet Given'!C26 -> Total Assets | E58: USD 000's | F58: ='Balance Sheet Given'!F26 -> 107178 | G58: ='Balance Sheet Given'!G26 -> 86073 | H58: ='Balance Sheet Given'!H26 -> 106334 | I58: ='Balance Sheet Given'!I26 -> 132865 | J58: ='Balance Sheet Given'!J26 -> 139067
C60: ='Balance Sheet Given'!C28 -> Current Liabilities | E60: USD 000's | F60: ='Balance Sheet Given'!F28 -> 1034 | G60: ='Balance Sheet Given'!G28 -> 1728 | H60: ='Balance Sheet Given'!H28 -> 4615 | I60: ='Balance Sheet Given'!I28 -> 6440 | J60: ='Balance Sheet Given'!J28 -> 9978
C61: ='Balance Sheet Given'!C29 -> Bank Loans | E61: USD 000's | F61: ='Balance Sheet Given'!F29 -> 77924 | G61: ='Balance Sheet Given'!G29 -> 71250 | H61: ='Balance Sheet Given'!H29 -> 79750 | I61: ='Balance Sheet Given'!I29 -> 96250 | J61: ='Balance Sheet Given'!J29 -> 84000
C62: ='Balance Sheet Given'!C30 -> Other Liabilities | E62: USD 000's | F62: ='Balance Sheet Given'!F30 -> 48 | G62: ='Balance Sheet Given'!G30 -> 63 | H62: ='Balance Sheet Given'!H30 -> 78 | I62: ='Balance Sheet Given'!I30 -> 93 | J62: ='Balance Sheet Given'!J30 -> 109
C63: ='Balance Sheet Given'!C31 -> Equity | E63: USD 000's | F63: ='Balance Sheet Given'!F31 -> 28172 | G63: ='Balance Sheet Given'!G31 -> 13032 | H63: ='Balance Sheet Given'!H31 -> 21891 | I63: ='Balance Sheet Given'!I31 -> 30080 | J63: ='Balance Sheet Given'!J31 -> 44978
C64: ='Balance Sheet Given'!C32 -> Total Liab and Equity | E64: USD 000's | F64: ='Balance Sheet Given'!F32 -> 107178 | G64: ='Balance Sheet Given'!G32 -> 86073 | H64: ='Balance Sheet Given'!H32 -> 106334 | I64: ='Balance Sheet Given'!I32 -> 132863 | J64: ='Balance Sheet Given'!J32 -> 139065
C66: Changes
C67: =C52 -> Cash | E67: USD 000's | G67: =G52-F52 -> -12914 | H67: 520 | I67: 6629 | J67: 4514
C68: =C53 -> Accounts Receivable | E68: USD 000's | G68: -2585 | H68: 8181 | I68: 342 | J68: 6128
C69: =C54 -> Other Current Assets | E69: USD 000's | G69: -1158 | H69: 0 | I69: 0 | J69: 0
C70: =C56 -> Non-Current Assets | E70: USD 000's | G70: =G56-F56 -> -4448 | H70: =H56-G56 -> 11560 | I70: =I56-H56 -> 19560 | J70: =J56-I56 -> -4440
C72: =C60 -> Current Liabilities | E72: USD 000's | G72: =G60-F60 -> 694 | H72: 2887 | I72: 1825 | J72: 3538
C73: =C61 -> Bank Loans | E73: USD 000's | G73: -6674 | H73: 8500 | I73: 16500 | J73: -12250
C74: =C62 -> Other Liabilities | E74: USD 000's | G74: 15 | H74: 15 | I74: 15 | J74: 16
A77: Macro Economic | F77: 2016 | G77: 2017 | H77: 2018 | I77: 2019 | J77: 2020 | K77: 2021 | L77: 2022 | M77: 2023 | N77: 2024 | O77: 2025 | P77: 2026
B78: USD Inflation | F78: 0.0075 | G78: 0.0075 | H78: 0.01 | I78: 0.015 | J78: 0.015 | K78: 0.015 | L78: 0.015 | M78: 0.015 | N78: 0.015 | O78: 0.015 | P78: 0.015
B79: IRP Inflation | F79: 0.08 | G79: 0.08 | H79: 0.08 | I79: 0.08 | J79: 0.08 | K79: 0.08 | L79: 0.08 | M79: 0.08 | N79: 0.08 | O79: 0.08 | P79: 0.08
B81: PPP Exchange Rate | F81: 13535 | G81: =F81*(1+G79)/(1+G78) -> 14508.98263 | H81: =G81*(1+H79)/(1+H78) -> 15514.55568 | I81: 16508.09866 | J81: 17565.26754 | K81: 18690.13689 | L81: 19887.04221 | M81: 21160.59663 | N81: 22515.70873 | O81: 23957.60141 | P81: 25491.83204
B82: Added Devaluation | F82: 1 | G82: 1 | H82: 1 | I82: 1 | J82: 1 | K82: 1 | L82: 1 | M82: 1 | N82: 1 | O82: 1 | P82: 1
B83: Applied Exchange Rate | F83: =F81*F82 -> 13535 | G83: =G81*G82 -> 14508.98263 | H83: 15514.55568 | I83: 16508.09866 | J83: 17565.26754 | K83: 18690.13689 | L83: 19887.04221 | M83: 21160.59663 | N83: 22515.70873 | O83: 23957.60141 | P83: 25491.83204
A85: PPA Contract
E86: Capacity | F86: Start | G86: Years | H86: End
B87: First Contract Signed | E87: =F21*2 -> 80 | F87: ='Databook Capacity'!O16 -> 2007-11-01 | G87: 21 | H87: =EDATE(F87,G87*12) -> 2028-11-01
B88: Contract Extension | E88: =F23 -> 110 | F88: ='Databook Capacity'!O18 -> 2013-11-01 | G88: 15 | H88: =EDATE(F88,G88*12) -> 2028-11-01 | J88: =HYPERLINK('Databook Capacity'!O18,"databook") -> databook
B89: Second Extension | E89: =F24 -> 40 | F89: =F10 -> 2017-10-01 | G89: =G88 -> 15 | H89: =EDATE(F89,G89*12) -> 2032-10-01
B91: Dates | F91: =F27 -> 2016-01-01 | G91: =G27 -> 2017-10-01
B92: PPA Capacity | E92: MW | F92: =F28 -> 110 | G92: =G28 -> 150
B93: Target Heat Rate | E93: BTU/kWh | F93: =E43 -> 8175 | G93: =F43 -> 7732.142857
B95: Availability Factor
C96: Target Level | E96: Percent | F96: 0.85
C97: Bonus Factor | E97: Percent | F97: 0.5
C98: Penality Factor | E98: Percent | F98: 1
B100: Charges
C101: Age of Contract Extension at Model Start | E101: Years | F101: 2
C103: ='Databook PPA'!O28 -> Component A - Capital Cost | F103: ='Databook PPA'!R28 -> 1 | G103: ='Databook PPA'!S28 -> 9
D104: ='Databook PPA'!O29 -> Charge/Available kWh - IDR | E104: IDR/kWh | F104: ='Databook PPA'!R29 -> 247.44 | G104: ='Databook PPA'!S29 -> 93.48
D105: Charge/Available kWh - USD | E105: USD/MWH | F105: =F104/F83*1000 -> 18.28149243 | G105: =G104/F83*1000 -> 6.906538604
D106: Indexation
C108: ='Databook PPA'!O31 -> Component B - Fixed O&M
D109: ='Databook PPA'!O32 -> Charge/Available kWh | E109: IDR/kWh | F109: ='Databook PPA'!R32 -> 43.44
D110: =D109 -> Charge/Available kWh | E110: USD/kWH | F110: =F109/F83 -> 0.003209456963
D111: ='Databook PPA'!O34 -> Esclation USD | E111: % | F111: ='Databook PPA'!R34 -> 0.5
D112: ='Databook PPA'!O35 -> Esclation ICPI | E112: % | F112: ='Databook PPA'!R35 -> 0.5
D113: Begining of Escalation | E113: Date | F113: 2017-01-01
C115: ='Databook PPA'!O37 -> Component C - Fuel Cost
E116: Year | F116: ='Databook PPA'!R40 -> 1 | G116: ='Databook PPA'!S40 -> 9
D117: Fuel Price | E117: USD/MMBTU | F117: ='Databook PPA'!R41 -> 2.2 | G117: ='Databook PPA'!S41 -> 2.518
F118: =F157 -> 2016 | G118: 2017 | H118: 2018 | J118: =HYPERLINK('Gas Supply'!N32,"Gas Supply Databook") -> Gas Supply Databook
D119: Fuel Price in Supply Contract | F119: 7.75 | G119: 7.98 | H119: 8.22
C121: ='Databook PPA'!O44 -> Component D - Variable O&M
D122: ='Databook PPA'!O45 -> Charge per kWh Sent | E122: IDR/kWh | F122: ='Databook PPA'!R45 -> 9.18 | J122: =HYPERLINK('Databook PPA'!P26,"PPA Databook") -> PPA Databook
D123: =D122 -> Charge per kWh Sent | E123: USD/MWH | F123: =F122/F83*1000 -> 0.6782415959
D124: Esclation USD | E124: % | F124: ='Databook PPA'!R46 -> 0.25
D125: Esclation ICPI | E125: % | F125: ='Databook PPA'!R47 -> 0.75
C127: ='Databook PPA'!O49 -> Component E - Switchyard Cost | F127: ='Databook PPA'!R49 -> 1 | G127: ='Databook PPA'!S49 -> 6
D128: ='Databook PPA'!O50 -> Charge | E128: IDR/kWh | F128: ='Databook PPA'!R50 -> 3.05 | G128: ='Databook PPA'!S50 -> 0.94
D129: =D128 -> Charge | E129: USD/MWH | F129: =F128/F83*1000 -> 0.2253417067
B131: Month of Escalation | E131: Month | F131: 1
A133: O&M Contract
B134: Contract Tenor | E134: Date | F134: ='O&M Agreement'!P12 -> 2014-01-01 | G134: ='O&M Agreement'!P14 -> 2020-01-01
B136: Charge - Component B | E136: =E109 -> IDR/kWh | F136: =F109 -> 43.44
B137: Charge - Component B | E137: =E110 -> USD/kWH | F137: ='O&M Agreement'!P18 -> 0.512 | G137: =F136/F137 -> 84.84375
B139: Charge - Component D | E139: =E136 -> IDR/kWh | F139: =F122 -> 9.18
B140: =B139 -> Charge - Component D | E140: =E137 -> USD/kWH | F140: ='O&M Agreement'!P19 -> 0.108 | G140: =F139/F140 -> 85
B142: Availability Bonus Percent to O&M Company | E142: % | F142: 0.5
B143: Availability Penalty Percent to O&M Company | E143: % | F143: 1
B145: Maximum Penalty to O&M | E145: USD | F145: ='O&M Agreement'!P25 -> 400000
B147: Heat Rate Bonus Percent to O&M Company | E147: % | F147: 0.5
B148: Heat Rate Penlaty Percent to O&M Company | E148: % | F148: 1
A150: Gas Supply Contract
B151: Contract End | E151: Date | F151: 2028-01-01
F153: ='Gas Supply'!P28 -> 2016 | G153: ='Gas Supply'!Q28 -> 2017 | H153: ='Gas Supply'!R28 -> 2019
B154: Minimum Daily | E154: B BTUD | F154: ='Gas Supply'!P29 -> 3 | G154: ='Gas Supply'!Q29 -> 10 | H154: ='Gas Supply'!R29 -> 23
B155: Maximum Daily | E155: B BTUD | F155: ='Gas Supply'!P30 -> 3.3 | G155: ='Gas Supply'!Q30 -> 11 | H155: ='Gas Supply'!R30 -> 23.5
F157: ='Gas Supply'!P33 -> 2016 | G157: ='Gas Supply'!Q33 -> 2017 | H157: ='Gas Supply'!R33 -> 2018 | I157: ='Gas Supply'!S33 -> 2019
B158: Gas Price | E158: USD/MMBTU | F158: ='Gas Supply'!P34 -> 7.75 | G158: ='Gas Supply'!Q34 -> 7.98 | H158: ='Gas Supply'!R34 -> 8.22 | I158: ='Gas Supply'!S34 -> 8.22
A160: Tax and Depreciation
B161: Tax Rate | E161: % | F161: 0.25
B162: Net Operating Loss | E162: USD | F162: 50000
B164: Tax Life | E164: Years | F164: 15
B165: Existing Depreciation/Year | E165: USD 000's | F165: =F56-G56 -> 4448
B167: Accounts Receivable | E167: Days | F167: 60
B168: Accounts Payable | E168: Days | F168: 0
A170: Financing
B171: Existing Debt
C172: Re-financing Date | E172: Date | F172: =F15 -> 2017-01-01
C173: Existing Amount | E173: USD 000's | F173: =F61 -> 77924
C174: Scheduled Repayment | E174: USD 000's | F174: =-G73 -> 6674 | G174: =F174/F173 -> 0.08564755403
C175: Interest Rate | E175: Percent | F175: ='Income Statement Given'!G32 -> 0.05559950125
C176: Interest Amount | E176: USD 000's | F176: ='Income Statement Given'!G23 -> 4147
B179: Re-financing Date
C180: Financing Date | E180: Date | F180: =F15 -> 2017-01-01
C181: Re-financing Facility | E181: Amount | F181: ='Loan Agreement'!M8 -> 75000 | H181: =HYPERLINK('Loan Agreement'!O8,"LoanAgreementDatabook") -> LoanAgreementDatabook
C183: Tenor | E183: Years | F183: 10
C184: Repayment Date | E184: Date | F184: =EDATE(F180,F183*12) -> 2027-01-01
E186: Loan Age | F186: 1 | G186: 2 | H186: 3 | I186: 4 | J186: 5 | K186: 6 | L186: 7 | M186: 8 | N186: 9 | O186: 10 | P186: 11 | Q186: 12 | R186: 13
C187: Repayment Percent | E187: % | F187: ='Loan Agreement'!N65 -> 0.1 | G187: ='Loan Agreement'!O65 -> 0.1 | H187: ='Loan Agreement'!P65 -> 0.1 | I187: ='Loan Agreement'!Q65 -> 0.1 | J187: ='Loan Agreement'!R65 -> 0.1 | K187: ='Loan Agreement'!S65 -> 0.1 | L187: ='Loan Agreement'!T65 -> 0.1 | M187: ='Loan Agreement'!U65 -> 0.1 | N187: ='Loan Agreement'!V65 -> 0.1 | O187: =N187 -> 0.1
C189: Interest Rate
D190: Base Rate | E190: % | F190: 0.015
D191: Credit Spread | E191: % | F191: 0.035
D192: Total | E192: % | F192: =SUM(F190:F191) -> 0.05
D194: Up-front Fee | E194: % | F194: 0.01
B196: Construction Financing and Term
C197: Repayment Start | E197: Date | F197: =F10 -> 2017-10-01
C199: Financing Amount | E199: Amount | F199: ='Loan Agreement'!M9 -> 40000
C200: Financing Draws | E200: Pro-rata | F200: TRUE
C201: Tenor | E201: Years | F201: 10
C202: Repayment Finished | E202: Date | F202: =EDATE(F197,F201*12) -> 2027-10-01
E204: Loan Age | F204: 0 | G204: =F186 -> 1 | H204: 2 | I204: 3 | J204: 4 | K204: 5 | L204: 6 | M204: 7 | N204: 8 | O204: 9 | P204: 10 | Q204: 11 | R204: 12 | S204: 13
C205: Repayment Percent | E205: % | F205: 0 | G205: 0 | H205: 0 | I205: 0.125 | J205: 0.125 | K205: 0.125 | L205: 0.125 | M205: 0.125 | N205: 0.125 | O205: 0.125 | P205: 0.125
C207: Interest Rate
D208: Base Rate | E208: % | F208: 0.015
D209: Credit Spread | E209: % | F209: 0.035
D210: Total | E210: % | F210: =SUM(F208:F209) -> 0.05
B212: Working Capital
C213: Draw Date | E213: Date | F213: =F180 -> 2017-01-01
C214: Draw | E214: Amount | F214: ='Loan Agreement'!M10 -> 10000
C215: Interest Rate | E215: % | F215: =F210 -> 0.05
C217: Cash Sweep Percent | E217: % | F217: 0

Sheet Scenario
C2: Scenario | D2: 2
D4: Capacity | E4: =D4 -> Capacity | F4: Availability | G4: Availability | H4: Heat Rate | I4: Heat Rate | J4: IDR Infl | K4: IDR Infl | L4: Real Rate | M4: Real Rate | N4: EPC Cost | O4: EPC Amount
D5: Sensitivity | E5: Percent | F5: Sensitivity | G5: Percent | H5: Sensititivy | I5: Amount | J5: Sensititivy | K5: Amount | L5: Sensititivy | M5: Amount | N5: Sensititivy | O5: Amount
D6: =Assumptions!G28 -> 150 | F6: =Assumptions!F33 -> 0.85 | H6: =Assumptions!F40 -> 7400 | J6: =Assumptions!G79 -> 0.08 | L6: =Assumptions!F82 -> 1 | N6: =Assumptions!F47 -> 40000
C7: Base Case | D7: 1 | E7: =D7*D6 -> 150 | F7: 1 | G7: =F7*F6 -> 0.85 | H7: 1 | I7: =H7*H6 -> 7400 | J7: 1 | K7: =J7*J6 -> 0.08 | L7: 1 | M7: =L7*L6 -> 1 | N7: 1 | O7: =N7*N6 -> 40000
C8: Low Case | D8: 0.95 | E8: =D8*D6 -> 142.5 | F8: 0.95 | G8: =F8*F6 -> 0.8075 | H8: 1.1 | I8: =H8*H6 -> 8140 | J8: 1.4 | K8: =J8*J6 -> 0.112 | L8: 1.1 | M8: =L8*L6 -> 1.1 | N8: 1.1 | O8: =N8*N6 -> 44000
C9: High Case | D9: 1.1 | E9: =D9*D6 -> 165 | F9: 1.05 | G9: =F9*F6 -> 0.8925 | H9: 0.9 | I9: =H9*H6 -> 6660 | J9: 0.8 | K9: =J9*J6 -> 0.064 | L9: 0.9 | M9: =L9*L6 -> 0.9 | N9: 0.9 | O9: =N9*N6 -> 36000
C13: =INDEX(C7:C12,$D$2) -> Low Case | D13: 0.95 | E13: 142.5 | F13: 0.95 | G13: 0.8075 | H13: 1.1 | I13: 8140 | J13: 1.4 | K13: 0.112 | L13: 1.1 | M13: 1.1 | N13: =INDEX(N7:N12,$D$2) -> 1.1 | O13: =INDEX(O7:O12,$D$2) -> 44000

Sheet EBITDA and Cap Exp
A1: Work Through Dates Carefully
A2: First Define Operating Parameters for Plant
A3: Next Define Operating Parameters for Contracts -- PPA, Gas and O&M including Penalties
A6: Period | F6: =Assumptions!F15 -> 2017-01-01 | I6: 1 | J6: 2 | K6: 3 | L6: 4 | M6: 5 | N6: 6 | O6: 7 | P6: 8 | Q6: 9 | R6: 10 | S6: 11 | T6: 12 | U6: 13 | V6: 14 | W6: 15 | X6: 16 | Y6: 17 | Z6: 18 | AA6: 19 | AB6: 20 | AC6: 21 | AD6: 22 | AE6: 23 | AF6: 24 | AG6: 25 | AH6: 26 | AI6: 27 | AJ6: 28 | AK6: 29 | AL6: 30 | AM6: 31 | AN6: 32 | AO6: 33 | AP6: 34 | AQ6: 35 | AR6: 36 | AS6: 37 | AT6: 38 | AU6: 39 | AV6: 40 | AW6: 41 | AX6: 42 | AY6: 43 | AZ6: 44 | BA6: 45 | BB6: 46 | BC6: 47 | BD6: 48 | BE6: 49 | BF6: 50 | BG6: 51 | BH6: 52 | BI6: 53 | BJ6: 54 | BK6: 55 | BL6: 56 | BM6: 57 | BN6: 58 | BO6: 59 | BP6: 60 | BQ6: 61 | BR6: 62 | BS6: 63 | BT6: 64 | BU6: 65 | BV6: 66 | BW6: 67 | BX6: 68 | BY6: 69 | BZ6: 70 | CA6: 71 | CB6: 72 | CC6: 73 | CD6: 74 | CE6: 75 | CF6: 76 | CG6: 77 | CH6: 78 | CI6: 79 | CJ6: 80 | CK6: 81 | CL6: 82 | CM6: 83 | CN6: 84 | CO6: 85 | CP6: 86 | CQ6: 87 | CR6: 88 | CS6: 89 | CT6: 90 | CU6: 91 | CV6: 92 | CW6: 93 | CX6: 94 | CY6: 95 | CZ6: 96 | DA6: 97 | DB6: 98 | DC6: 99 | DD6: 100 | DE6: 101 | DF6: 102 | DG6: 103 | DH6: 104 | DI6: 105 | DJ6: 106 | DK6: 107 | DL6: 108 | DM6: 109 | DN6: 110 | DO6: 111 | DP6: 112 | DQ6: 113 | DR6: 114 | DS6: 115 | DT6: 116 | DU6: 117 | DV6: 118 | DW6: 119 | DX6: 120 | DY6: 121 | DZ6: 122 | EA6: 123 | EB6: 124 | EC6: 125 | ED6: 126 | EE6: 127 | EF6: 128 | EG6: 129 | EH6: 130 | EI6: 131 | EJ6: 132 | EK6: 133 | EL6: 134 | EM6: 135 | EN6: 136 | EO6: 137 | EP6: 138 | EQ6: 139 | ER6: 140 | ES6: 141 | ET6: 142 | EU6: 143 | EV6: 144 | EW6: 145 | EX6: 146 | EY6: 147 | EZ6: 148 | FA6: 149 | FB6: 150 | FC6: 151 | FD6: 152 | FE6: 153 | FF6: 154 | FG6: 155 | FH6: 156 | FI6: 157 | FJ6: 158 | FK6: 159 | FL6: 160 | FM6: 161 | FN6: 162 | FO6: 163 | FP6: 164 | FQ6: 165 | FR6: 166 | FS6: 167 | FT6: 168 | FU6: 169 | FV6: 170 | FW6: 171 | FX6: 172 | FY6: 173 | FZ6: 174 | GA6: 175 | GB6: 176 | GC6: 177 | GD6: 178 | GE6: 179 | GF6: 180 | GG6: 181 | GH6: 182 | GI6: 183 | GJ6: 184 | GK6: 185 | GL6: 186 | GM6: 187 | GN6: 188 | GO6: 189 | GP6: 190 | GQ6: 191 | GR6: 192 | GS6: 193 | GT6: 194 | GU6: 195 | GV6: 196 | GW6: 197 | GX6: 198 | GY6: 199 | GZ6: 200 | HA6: 201 | HB6: 202 | HC6: 203 | HD6: 204 | HE6: 205 | HF6: 206 | HG6: 207 | HH6: 208 | HI6: 209 | HJ6: 210 | HK6: 211 | HL6: 212 | HM6: 213 | HN6: 214 | HO6: 215 | HP6: 216 | HQ6: 217 | HR6: 218 | HS6: 219 | HT6: 220 | HU6: 221 | HV6: 222 | HW6: 223 | HX6: 224 | HY6: 225 | HZ6: 226 | IA6: 227 | IB6: 228 | IC6: 229 | ID6: 230 | IE6: 231 | IF6: 232 | IG6: 233 | IH6: 234 | II6: 235 | IJ6: 236 | IK6: 237 | IL6: 238 | IM6: 239 | IN6: 240 | IO6: 241 | IP6: 242 | IQ6: 243 | IR6: 244 | IS6: 245 | IT6: 246 | IU6: 247 | IV6: 248 | IW6: 249 | IX6: 250 | IY6: 251 | IZ6: 252 | JA6: 253 | JB6: 254 | JC6: 255 | JD6: 256 | JE6: 257 | JF6: 258 | JG6: 259 | JH6: 260 | JI6: 261 | JJ6: 262 | JK6: 263 | JL6: 264 | JM6: 265 | JN6: 266 | JO6: 267 | JP6: 268 | JQ6: 269 | JR6: 270 | JS6: 271 | JT6: 272 | JU6: 273 | JV6: 274 | JW6: 275 | JX6: 276 | JY6: 277 | JZ6: 278 | KA6: 279 | KB6: 280 | KC6: 281 | KD6: 282 | KE6: 283 | KF6: 284 | KG6: 285 | KH6: 286 | KI6: 287 | KJ6: 288 | KK6: 289 | KL6: 290 | KM6: 291 | KN6: 292 | KO6: 293 | KP6: 294 | KQ6: 295 | KR6: 296 | KS6: 297 | KT6: 298 | KU6: 299 | KV6: 300
B7: Start of Period | F7: =Assumptions!F7 -> 2016-01-01 | I7: =F7 -> 2016-01-01 | J7: =I8+1 -> 2016-02-01 | K7: =J8+1 -> 2016-03-01 | L7: 2016-04-01 | M7: 2016-05-01 | N7: 2016-06-01 | O7: 2016-07-01 | P7: 2016-08-01 | Q7: 2016-09-01 | R7: 2016-10-01 | S7: 2016-11-01 | T7: 2016-12-01 | U7: 2017-01-01 | V7: 2017-02-01 | W7: 2017-03-01 | X7: 2017-04-01 | Y7: 2017-05-01 | Z7: 2017-06-01 | AA7: 2017-07-01 | AB7: 2017-08-01 | AC7: 2017-09-01 | AD7: 2017-10-01 | AE7: 2017-11-01 | AF7: 2017-12-01 | AG7: 2018-01-01 | AH7: 2018-02-01 | AI7: 2018-03-01 | AJ7: 2018-04-01 | AK7: 2018-05-01 | AL7: 2018-06-01 | AM7: 2018-07-01 | AN7: 2018-08-01 | AO7: 2018-09-01 | AP7: 2018-10-01 | AQ7: 2018-11-01 | AR7: 2018-12-01 | AS7: 2019-01-01 | AT7: 2019-02-01 | AU7: 2019-03-01 | AV7: 2019-04-01 | AW7: 2019-05-01 | AX7: 2019-06-01 | AY7: 2019-07-01 | AZ7: 2019-08-01 | BA7: 2019-09-01 | BB7: 2019-10-01 | BC7: 2019-11-01 | BD7: 2019-12-01 | BE7: 2020-01-01 | BF7: 2020-02-01 | BG7: 2020-03-01 | BH7: 2020-04-01 | BI7: 2020-05-01 | BJ7: 2020-06-01 | BK7: 2020-07-01 | BL7: 2020-08-01 | BM7: 2020-09-01 | BN7: 2020-10-01 | BO7: 2020-11-01 | BP7: 2020-12-01 | BQ7: 2021-01-01 | BR7: 2021-02-01 | BS7: 2021-03-01 | BT7: 2021-04-01 | BU7: 2021-05-01 | BV7: 2021-06-01 | BW7: =BV8+1 -> 2021-07-01 | BX7: 2021-08-01 | BY7: 2021-09-01 | BZ7: 2021-10-01 | CA7: 2021-11-01 | CB7: 2021-12-01 | CC7: 2022-01-01 | CD7: 2022-02-01 | CE7: 2022-03-01 | CF7: 2022-04-01 | CG7: 2022-05-01 | CH7: 2022-06-01 | CI7: 2022-07-01 | CJ7: 2022-08-01 | CK7: 2022-09-01 | CL7: 2022-10-01 | CM7: 2022-11-01 | CN7: 2022-12-01 | CO7: 2023-01-01 | CP7: 2023-02-01 | CQ7: 2023-03-01 | CR7: 2023-04-01 | CS7: 2023-05-01 | CT7: 2023-06-01 | CU7: 2023-07-01 | CV7: 2023-08-01 | CW7: 2023-09-01 | CX7: 2023-10-01 | CY7: 2023-11-01 | CZ7: 2023-12-01 | DA7: 2024-01-01 | DB7: 2024-02-01 | DC7: 2024-03-01 | DD7: 2024-04-01 | DE7: 2024-05-01 | DF7: 2024-06-01 | DG7: 2024-07-01 | DH7: 2024-08-01 | DI7: 2024-09-01 | DJ7: 2024-10-01 | DK7: 2024-11-01 | DL7: 2024-12-01 | DM7: 2025-01-01 | DN7: 2025-02-01 | DO7: 2025-03-01 | DP7: 2025-04-01 | DQ7: 2025-05-01 | DR7: 2025-06-01 | DS7: 2025-07-01 | DT7: 2025-08-01 | DU7: 2025-09-01 | DV7: 2025-10-01 | DW7: 2025-11-01 | DX7: 2025-12-01 | DY7: 2026-01-01 | DZ7: 2026-02-01 | EA7: 2026-03-01 | EB7: 2026-04-01 | EC7: 2026-05-01 | ED7: 2026-06-01 | EE7: 2026-07-01 | EF7: 2026-08-01 | EG7: 2026-09-01 | EH7: 2026-10-01 | EI7: =EH8+1 -> 2026-11-01 | EJ7: 2026-12-01 | EK7: 2027-01-01 | EL7: 2027-02-01 | EM7: 2027-03-01 | EN7: 2027-04-01 | EO7: 2027-05-01 | EP7: 2027-06-01 | EQ7: 2027-07-01 | ER7: 2027-08-01 | ES7: 2027-09-01 | ET7: 2027-10-01 | EU7: 2027-11-01 | EV7: 2027-12-01 | EW7: 2028-01-01 | EX7: 2028-02-01 | EY7: 2028-03-01 | EZ7: 2028-04-01 | FA7: 2028-05-01 | FB7: 2028-06-01 | FC7: 2028-07-01 | FD7: 2028-08-01 | FE7: 2028-09-01 | FF7: 2028-10-01 | FG7: 2028-11-01 | FH7: 2028-12-01 | FI7: 2029-01-01 | FJ7: 2029-02-01 | FK7: 2029-03-01 | FL7: 2029-04-01 | FM7: 2029-05-01 | FN7: 2029-06-01 | FO7: 2029-07-01 | FP7: 2029-08-01 | FQ7: 2029-09-01 | FR7: 2029-10-01 | FS7: 2029-11-01 | FT7: 2029-12-01 | FU7: 2030-01-01 | FV7: 2030-02-01 | FW7: 2030-03-01 | FX7: 2030-04-01 | FY7: 2030-05-01 | FZ7: 2030-06-01 | GA7: 2030-07-01 | GB7: 2030-08-01 | GC7: 2030-09-01 | GD7: 2030-10-01 | GE7: 2030-11-01 | GF7: 2030-12-01 | GG7: 2031-01-01 | GH7: 2031-02-01 | GI7: 2031-03-01 | GJ7: 2031-04-01 | GK7: 2031-05-01 | GL7: 2031-06-01 | GM7: 2031-07-01 | GN7: 2031-08-01 | GO7: 2031-09-01 | GP7: 2031-10-01 | GQ7: 2031-11-01 | GR7: 2031-12-01 | GS7: 2032-01-01 | GT7: 2032-02-01 | GU7: =GT8+1 -> 2032-03-01 | GV7: 2032-04-01 | GW7: 2032-05-01 | GX7: 2032-06-01 | GY7: 2032-07-01 | GZ7: 2032-08-01 | HA7: 2032-09-01 | HB7: 2032-10-01 | HC7: 2032-11-01 | HD7: 2032-12-01 | HE7: 2033-01-01 | HF7: 2033-02-01 | HG7: 2033-03-01 | HH7: 2033-04-01 | HI7: 2033-05-01 | HJ7: 2033-06-01 | HK7: 2033-07-01 | HL7: 2033-08-01 | HM7: 2033-09-01 | HN7: 2033-10-01 | HO7: 2033-11-01 | HP7: 2033-12-01 | HQ7: 2034-01-01 | HR7: 2034-02-01 | HS7: 2034-03-01 | HT7: 2034-04-01 | HU7: 2034-05-01 | HV7: 2034-06-01 | HW7: 2034-07-01 | HX7: 2034-08-01 | HY7: 2034-09-01 | HZ7: 2034-10-01 | IA7: 2034-11-01 | IB7: 2034-12-01 | IC7: 2035-01-01 | ID7: 2035-02-01 | IE7: 2035-03-01 | IF7: 2035-04-01 | IG7: 2035-05-01 | IH7: 2035-06-01 | II7: 2035-07-01 | IJ7: 2035-08-01 | IK7: 2035-09-01 | IL7: 2035-10-01 | IM7: 2035-11-01 | IN7: 2035-12-01 | IO7: 2036-01-01 | IP7: 2036-02-01 | IQ7: 2036-03-01 | IR7: 2036-04-01 | IS7: 2036-05-01 | IT7: 2036-06-01 | IU7: 2036-07-01 | IV7: 2036-08-01 | IW7: 2036-09-01 | IX7: 2036-10-01 | IY7: 2036-11-01 | IZ7: 2036-12-01 | JA7: 2037-01-01 | JB7: 2037-02-01 | JC7: 2037-03-01 | JD7: 2037-04-01 | JE7: 2037-05-01 | JF7: 2037-06-01 | JG7: =JF8+1 -> 2037-07-01 | JH7: 2037-08-01 | JI7: 2037-09-01 | JJ7: 2037-10-01 | JK7: 2037-11-01 | JL7: 2037-12-01 | JM7: 2038-01-01 | JN7: 2038-02-01 | JO7: 2038-03-01 | JP7: 2038-04-01 | JQ7: 2038-05-01 | JR7: 2038-06-01 | JS7: 2038-07-01 | JT7: 2038-08-01 | JU7: 2038-09-01 | JV7: 2038-10-01 | JW7: 2038-11-01 | JX7: 2038-12-01 | JY7: 2039-01-01 | JZ7: 2039-02-01 | KA7: 2039-03-01 | KB7: 2039-04-01 | KC7: 2039-05-01 | KD7: 2039-06-01 | KE7: 2039-07-01 | KF7: 2039-08-01 | KG7: 2039-09-01 | KH7: 2039-10-01 | KI7: 2039-11-01 | KJ7: 2039-12-01 | KK7: 2040-01-01 | KL7: 2040-02-01 | KM7: 2040-03-01 | KN7: 2040-04-01 | KO7: 2040-05-01 | KP7: 2040-06-01 | KQ7: 2040-07-01 | KR7: 2040-08-01 | KS7: 2040-09-01 | KT7: 2040-10-01 | KU7: 2040-11-01 | KV7: 2040-12-01
B8: End of Period | I8: =EOMONTH(I7,0) -> 2016-01-31 | J8: =EOMONTH(J7,0) -> 2016-02-29 | K8: =EOMONTH(K7,0) -> 2016-03-31 | L8: 2016-04-30 | M8: 2016-05-31 | N8: 2016-06-30 | O8: 2016-07-31 | P8: 2016-08-31 | Q8: 2016-09-30 | R8: 2016-10-31 | S8: 2016-11-30 | T8: 2016-12-31 | U8: 2017-01-31 | V8: 2017-02-28 | W8: 2017-03-31 | X8: 2017-04-30 | Y8: 2017-05-31 | Z8: 2017-06-30 | AA8: 2017-07-31 | AB8: 2017-08-31 | AC8: 2017-09-30 | AD8: 2017-10-31 | AE8: 2017-11-30 | AF8: 2017-12-31 | AG8: 2018-01-31 | AH8: 2018-02-28 | AI8: 2018-03-31 | AJ8: 2018-04-30 | AK8: 2018-05-31 | AL8: 2018-06-30 | AM8: 2018-07-31 | AN8: 2018-08-31 | AO8: 2018-09-30 | AP8: 2018-10-31 | AQ8: 2018-11-30 | AR8: 2018-12-31 | AS8: 2019-01-31 | AT8: 2019-02-28 | AU8: 2019-03-31 | AV8: 2019-04-30 | AW8: 2019-05-31 | AX8: 2019-06-30 | AY8: 2019-07-31 | AZ8: 2019-08-31 | BA8: 2019-09-30 | BB8: 2019-10-31 | BC8: 2019-11-30 | BD8: 2019-12-31 | BE8: 2020-01-31 | BF8: 2020-02-29 | BG8: 2020-03-31 | BH8: 2020-04-30 | BI8: 2020-05-31 | BJ8: 2020-06-30 | BK8: 2020-07-31 | BL8: 2020-08-31 | BM8: 2020-09-30 | BN8: 2020-10-31 | BO8: 2020-11-30 | BP8: 2020-12-31 | BQ8: 2021-01-31 | BR8: 2021-02-28 | BS8: 2021-03-31 | BT8: 2021-04-30 | BU8: 2021-05-31 | BV8: 2021-06-30 | BW8: =EOMONTH(BW7,0) -> 2021-07-31 | BX8: 2021-08-31 | BY8: 2021-09-30 | BZ8: 2021-10-31 | CA8: 2021-11-30 | CB8: 2021-12-31 | CC8: 2022-01-31 | CD8: 2022-02-28 | CE8: 2022-03-31 | CF8: 2022-04-30 | CG8: 2022-05-31 | CH8: 2022-06-30 | CI8: 2022-07-31 | CJ8: 2022-08-31 | CK8: 2022-09-30 | CL8: 2022-10-31 | CM8: 2022-11-30 | CN8: 2022-12-31 | CO8: 2023-01-31 | CP8: 2023-02-28 | CQ8: 2023-03-31 | CR8: 2023-04-30 | CS8: 2023-05-31 | CT8: 2023-06-30 | CU8: 2023-07-31 | CV8: 2023-08-31 | CW8: 2023-09-30 | CX8: 2023-10-31 | CY8: 2023-11-30 | CZ8: 2023-12-31 | DA8: 2024-01-31 | DB8: 2024-02-29 | DC8: 2024-03-31 | DD8: 2024-04-30 | DE8: 2024-05-31 | DF8: 2024-06-30 | DG8: 2024-07-31 | DH8: 2024-08-31 | DI8: 2024-09-30 | DJ8: 2024-10-31 | DK8: 2024-11-30 | DL8: 2024-12-31 | DM8: 2025-01-31 | DN8: 2025-02-28 | DO8: 2025-03-31 | DP8: 2025-04-30 | DQ8: 2025-05-31 | DR8: 2025-06-30 | DS8: 2025-07-31 | DT8: 2025-08-31 | DU8: 2025-09-30 | DV8: 2025-10-31 | DW8: 2025-11-30 | DX8: 2025-12-31 | DY8: 2026-01-31 | DZ8: 2026-02-28 | EA8: 2026-03-31 | EB8: 2026-04-30 | EC8: 2026-05-31 | ED8: 2026-06-30 | EE8: 2026-07-31 | EF8: 2026-08-31 | EG8: 2026-09-30 | EH8: 2026-10-31 | EI8: =EOMONTH(EI7,0) -> 2026-11-30 | EJ8: 2026-12-31 | EK8: 2027-01-31 | EL8: 2027-02-28 | EM8: 2027-03-31 | EN8: 2027-04-30 | EO8: 2027-05-31 | EP8: 2027-06-30 | EQ8: 2027-07-31 | ER8: 2027-08-31 | ES8: 2027-09-30 | ET8: 2027-10-31 | EU8: 2027-11-30 | EV8: 2027-12-31 | EW8: 2028-01-31 | EX8: 2028-02-29 | EY8: 2028-03-31 | EZ8: 2028-04-30 | FA8: 2028-05-31 | FB8: 2028-06-30 | FC8: 2028-07-31 | FD8: 2028-08-31 | FE8: 2028-09-30 | FF8: 2028-10-31 | FG8: 2028-11-30 | FH8: 2028-12-31 | FI8: 2029-01-31 | FJ8: 2029-02-28 | FK8: 2029-03-31 | FL8: 2029-04-30 | FM8: 2029-05-31 | FN8: 2029-06-30 | FO8: 2029-07-31 | FP8: 2029-08-31 | FQ8: 2029-09-30 | FR8: 2029-10-31 | FS8: 2029-11-30 | FT8: 2029-12-31 | FU8: 2030-01-31 | FV8: 2030-02-28 | FW8: 2030-03-31 | FX8: 2030-04-30 | FY8: 2030-05-31 | FZ8: 2030-06-30 | GA8: 2030-07-31 | GB8: 2030-08-31 | GC8: 2030-09-30 | GD8: 2030-10-31 | GE8: 2030-11-30 | GF8: 2030-12-31 | GG8: 2031-01-31 | GH8: 2031-02-28 | GI8: 2031-03-31 | GJ8: 2031-04-30 | GK8: 2031-05-31 | GL8: 2031-06-30 | GM8: 2031-07-31 | GN8: 2031-08-31 | GO8: 2031-09-30 | GP8: 2031-10-31 | GQ8: 2031-11-30 | GR8: 2031-12-31 | GS8: 2032-01-31 | GT8: 2032-02-29 | GU8: =EOMONTH(GU7,0) -> 2032-03-31 | GV8: 2032-04-30 | GW8: 2032-05-31 | GX8: 2032-06-30 | GY8: 2032-07-31 | GZ8: 2032-08-31 | HA8: 2032-09-30 | HB8: 2032-10-31 | HC8: 2032-11-30 | HD8: 2032-12-31 | HE8: 2033-01-31 | HF8: 2033-02-28 | HG8: 2033-03-31 | HH8: 2033-04-30 | HI8: 2033-05-31 | HJ8: 2033-06-30 | HK8: 2033-07-31 | HL8: 2033-08-31 | HM8: 2033-09-30 | HN8: 2033-10-31 | HO8: 2033-11-30 | HP8: 2033-12-31 | HQ8: 2034-01-31 | HR8: 2034-02-28 | HS8: 2034-03-31 | HT8: 2034-04-30 | HU8: 2034-05-31 | HV8: 2034-06-30 | HW8: 2034-07-31 | HX8: 2034-08-31 | HY8: 2034-09-30 | HZ8: 2034-10-31 | IA8: 2034-11-30 | IB8: 2034-12-31 | IC8: 2035-01-31 | ID8: 2035-02-28 | IE8: 2035-03-31 | IF8: 2035-04-30 | IG8: 2035-05-31 | IH8: 2035-06-30 | II8: 2035-07-31 | IJ8: 2035-08-31 | IK8: 2035-09-30 | IL8: 2035-10-31 | IM8: 2035-11-30 | IN8: 2035-12-31 | IO8: 2036-01-31 | IP8: 2036-02-29 | IQ8: 2036-03-31 | IR8: 2036-04-30 | IS8: 2036-05-31 | IT8: 2036-06-30 | IU8: 2036-07-31 | IV8: 2036-08-31 | IW8: 2036-09-30 | IX8: 2036-10-31 | IY8: 2036-11-30 | IZ8: 2036-12-31 | JA8: 2037-01-31 | JB8: 2037-02-28 | JC8: 2037-03-31 | JD8: 2037-04-30 | JE8: 2037-05-31 | JF8: 2037-06-30 | JG8: =EOMONTH(JG7,0) -> 2037-07-31 | JH8: 2037-08-31 | JI8: 2037-09-30 | JJ8: 2037-10-31 | JK8: 2037-11-30 | JL8: 2037-12-31 | JM8: 2038-01-31 | JN8: 2038-02-28 | JO8: 2038-03-31 | JP8: 2038-04-30 | JQ8: 2038-05-31 | JR8: 2038-06-30 | JS8: 2038-07-31 | JT8: 2038-08-31 | JU8: 2038-09-30 | JV8: 2038-10-31 | JW8: 2038-11-30 | JX8: 2038-12-31 | JY8: 2039-01-31 | JZ8: 2039-02-28 | KA8: 2039-03-31 | KB8: 2039-04-30 | KC8: 2039-05-31 | KD8: 2039-06-30 | KE8: 2039-07-31 | KF8: 2039-08-31 | KG8: 2039-09-30 | KH8: 2039-10-31 | KI8: 2039-11-30 | KJ8: 2039-12-31 | KK8: 2040-01-31 | KL8: 2040-02-29 | KM8: 2040-03-31 | KN8: 2040-04-30 | KO8: 2040-05-31 | KP8: 2040-06-30 | KQ8: 2040-07-31 | KR8: 2040-08-31 | KS8: 2040-09-30 | KT8: 2040-10-31 | KU8: 2040-11-30 | KV8: 2040-12-31
B9: Operating Period of NGCC | F9: =Assumptions!F10 -> 2017-10-01 | G9: =Assumptions!F12 -> 2032-10-01 | I9: =AND(I$7>=$F9,I$7<$G9) -> FALSE | J9: =AND(J$7>=$F9,J$7<$G9) -> FALSE | K9: FALSE | L9: FALSE | M9: FALSE | N9: FALSE | O9: FALSE | P9: FALSE | Q9: FALSE | R9: FALSE | S9: FALSE | T9: FALSE | U9: FALSE | V9: FALSE | W9: FALSE | X9: FALSE | Y9: FALSE | Z9: FALSE | AA9: FALSE | AB9: FALSE | AC9: FALSE | AD9: TRUE | AE9: TRUE | AF9: TRUE | AG9: TRUE | AH9: TRUE | AI9: TRUE | AJ9: TRUE | AK9: TRUE | AL9: TRUE | AM9: TRUE | AN9: TRUE | AO9: TRUE | AP9: TRUE | AQ9: TRUE | AR9: TRUE | AS9: TRUE | AT9: TRUE | AU9: TRUE | AV9: TRUE | AW9: TRUE | AX9: TRUE | AY9: TRUE | AZ9: TRUE | BA9: TRUE | BB9: TRUE | BC9: TRUE | BD9: TRUE | BE9: TRUE | BF9: TRUE | BG9: TRUE | BH9: TRUE | BI9: TRUE | BJ9: TRUE | BK9: TRUE | BL9: TRUE | BM9: TRUE | BN9: TRUE | BO9: TRUE | BP9: TRUE | BQ9: TRUE | BR9: TRUE | BS9: TRUE | BT9: TRUE | BU9: TRUE | BV9: =AND(BV$7>=$F9,BV$7<$G9) -> TRUE | BW9: TRUE | BX9: TRUE | BY9: TRUE | BZ9: TRUE | CA9: TRUE | CB9: TRUE | CC9: TRUE | CD9: TRUE | CE9: TRUE | CF9: TRUE | CG9: TRUE | CH9: TRUE | CI9: TRUE | CJ9: TRUE | CK9: TRUE | CL9: TRUE | CM9: TRUE | CN9: TRUE | CO9: TRUE | CP9: TRUE | CQ9: TRUE | CR9: TRUE | CS9: TRUE | CT9: TRUE | CU9: TRUE | CV9: TRUE | CW9: TRUE | CX9: TRUE | CY9: TRUE | CZ9: TRUE | DA9: TRUE | DB9: TRUE | DC9: TRUE | DD9: TRUE | DE9: TRUE | DF9: TRUE | DG9: TRUE | DH9: TRUE | DI9: TRUE | DJ9: TRUE | DK9: TRUE | DL9: TRUE | DM9: TRUE | DN9: TRUE | DO9: TRUE | DP9: TRUE | DQ9: TRUE | DR9: TRUE | DS9: TRUE | DT9: TRUE | DU9: TRUE | DV9: TRUE | DW9: TRUE | DX9: TRUE | DY9: TRUE | DZ9: TRUE | EA9: TRUE | EB9: TRUE | EC9: TRUE | ED9: TRUE | EE9: TRUE | EF9: TRUE | EG9: TRUE | EH9: =AND(EH$7>=$F9,EH$7<$G9) -> TRUE | EI9: TRUE | EJ9: TRUE | EK9: TRUE | EL9: TRUE | EM9: TRUE | EN9: TRUE | EO9: TRUE | EP9: TRUE | EQ9: TRUE | ER9: TRUE | ES9: TRUE | ET9: TRUE | EU9: TRUE | EV9: TRUE | EW9: TRUE | EX9: TRUE | EY9: TRUE | EZ9: TRUE | FA9: TRUE | FB9: TRUE | FC9: TRUE | FD9: TRUE | FE9: TRUE | FF9: TRUE | FG9: TRUE | FH9: TRUE | FI9: TRUE | FJ9: TRUE | FK9: TRUE | FL9: TRUE | FM9: TRUE | FN9: TRUE | FO9: TRUE | FP9: TRUE | FQ9: TRUE | FR9: TRUE | FS9: TRUE | FT9: TRUE | FU9: TRUE | FV9: TRUE | FW9: TRUE | FX9: TRUE | FY9: TRUE | FZ9: TRUE | GA9: TRUE | GB9: TRUE | GC9: TRUE | GD9: TRUE | GE9: TRUE | GF9: TRUE | GG9: TRUE | GH9: TRUE | GI9: TRUE | GJ9: TRUE | GK9: TRUE | GL9: TRUE | GM9: TRUE | GN9: TRUE | GO9: TRUE | GP9: TRUE | GQ9: TRUE | GR9: TRUE | GS9: TRUE | GT9: =AND(GT$7>=$F9,GT$7<$G9) -> TRUE | GU9: TRUE | GV9: TRUE | GW9: TRUE | GX9: TRUE | GY9: TRUE | GZ9: TRUE | HA9: TRUE | HB9: FALSE | HC9: FALSE | HD9: FALSE | HE9: FALSE | HF9: FALSE | HG9: FALSE | HH9: FALSE | HI9: FALSE | HJ9: FALSE | HK9: FALSE | HL9: FALSE | HM9: FALSE | HN9: FALSE | HO9: FALSE | HP9: FALSE | HQ9: FALSE | HR9: FALSE | HS9: FALSE | HT9: FALSE | HU9: FALSE | HV9: FALSE | HW9: FALSE | HX9: FALSE | HY9: FALSE | HZ9: FALSE | IA9: FALSE | IB9: FALSE | IC9: FALSE | ID9: FALSE | IE9: FALSE | IF9: FALSE | IG9: FALSE | IH9: FALSE | II9: FALSE | IJ9: FALSE | IK9: FALSE | IL9: FALSE | IM9: FALSE | IN9: FALSE | IO9: FALSE | IP9: FALSE | IQ9: FALSE | IR9: FALSE | IS9: FALSE | IT9: FALSE | IU9: FALSE | IV9: FALSE | IW9: FALSE | IX9: FALSE | IY9: FALSE | IZ9: FALSE | JA9: FALSE | JB9: FALSE | JC9: FALSE | JD9: FALSE | JE9: FALSE | JF9: =AND(JF$7>=$F9,JF$7<$G9) -> FALSE | JG9: FALSE | JH9: FALSE | JI9: FALSE | JJ9: FALSE | JK9: FALSE | JL9: FALSE | JM9: FALSE | JN9: FALSE | JO9: FALSE | JP9: FALSE | JQ9: FALSE | JR9: FALSE | JS9: FALSE | JT9: FALSE | JU9: FALSE | JV9: FALSE | JW9: FALSE | JX9: FALSE | JY9: FALSE | JZ9: FALSE | KA9: FALSE | KB9: FALSE | KC9: FALSE | KD9: FALSE | KE9: FALSE | KF9: FALSE | KG9: FALSE | KH9: FALSE | KI9: FALSE | KJ9: FALSE | KK9: FALSE | KL9: FALSE | KM9: FALSE | KN9: FALSE | KO9: FALSE | KP9: FALSE | KQ9: FALSE | KR9: FALSE | KS9: FALSE | KT9: FALSE | KU9: FALSE | KV9: FALSE
B10: Month | I10: =MONTH(I7) -> 1 | J10: =MONTH(J7) -> 2 | K10: 3 | L10: 4 | M10: 5 | N10: 6 | O10: 7 | P10: 8 | Q10: 9 | R10: 10 | S10: 11 | T10: 12 | U10: 1 | V10: 2 | W10: 3 | X10: 4 | Y10: 5 | Z10: 6 | AA10: 7 | AB10: 8 | AC10: 9 | AD10: 10 | AE10: 11 | AF10: 12 | AG10: 1 | AH10: 2 | AI10: 3 | AJ10: 4 | AK10: 5 | AL10: 6 | AM10: 7 | AN10: 8 | AO10: 9 | AP10: 10 | AQ10: 11 | AR10: 12 | AS10: 1 | AT10: 2 | AU10: 3 | AV10: 4 | AW10: 5 | AX10: 6 | AY10: 7 | AZ10: 8 | BA10: 9 | BB10: 10 | BC10: 11 | BD10: 12 | BE10: 1 | BF10: 2 | BG10: 3 | BH10: 4 | BI10: 5 | BJ10: 6 | BK10: 7 | BL10: 8 | BM10: 9 | BN10: 10 | BO10: 11 | BP10: 12 | BQ10: 1 | BR10: 2 | BS10: 3 | BT10: 4 | BU10: 5 | BV10: =MONTH(BV7) -> 6 | BW10: 7 | BX10: 8 | BY10: 9 | BZ10: 10 | CA10: 11 | CB10: 12 | CC10: 1 | CD10: 2 | CE10: 3 | CF10: 4 | CG10: 5 | CH10: 6 | CI10: 7 | CJ10: 8 | CK10: 9 | CL10: 10 | CM10: 11 | CN10: 12 | CO10: 1 | CP10: 2 | CQ10: 3 | CR10: 4 | CS10: 5 | CT10: 6 | CU10: 7 | CV10: 8 | CW10: 9 | CX10: 10 | CY10: 11 | CZ10: 12 | DA10: 1 | DB10: 2 | DC10: 3 | DD10: 4 | DE10: 5 | DF10: 6 | DG10: 7 | DH10: 8 | DI10: 9 | DJ10: 10 | DK10: 11 | DL10: 12 | DM10: 1 | DN10: 2 | DO10: 3 | DP10: 4 | DQ10: 5 | DR10: 6 | DS10: 7 | DT10: 8 | DU10: 9 | DV10: 10 | DW10: 11 | DX10: 12 | DY10: 1 | DZ10: 2 | EA10: 3 | EB10: 4 | EC10: 5 | ED10: 6 | EE10: 7 | EF10: 8 | EG10: 9 | EH10: =MONTH(EH7) -> 10 | EI10: 11 | EJ10: 12 | EK10: 1 | EL10: 2 | EM10: 3 | EN10: 4 | EO10: 5 | EP10: 6 | EQ10: 7 | ER10: 8 | ES10: 9 | ET10: 10 | EU10: 11 | EV10: 12 | EW10: 1 | EX10: 2 | EY10: 3 | EZ10: 4 | FA10: 5 | FB10: 6 | FC10: 7 | FD10: 8 | FE10: 9 | FF10: 10 | FG10: 11 | FH10: 12 | FI10: 1 | FJ10: 2 | FK10: 3 | FL10: 4 | FM10: 5 | FN10: 6 | FO10: 7 | FP10: 8 | FQ10: 9 | FR10: 10 | FS10: 11 | FT10: 12 | FU10: 1 | FV10: 2 | FW10: 3 | FX10: 4 | FY10: 5 | FZ10: 6 | GA10: 7 | GB10: 8 | GC10: 9 | GD10: 10 | GE10: 11 | GF10: 12 | GG10: 1 | GH10: 2 | GI10: 3 | GJ10: 4 | GK10: 5 | GL10: 6 | GM10: 7 | GN10: 8 | GO10: 9 | GP10: 10 | GQ10: 11 | GR10: 12 | GS10: 1 | GT10: =MONTH(GT7) -> 2 | GU10: 3 | GV10: 4 | GW10: 5 | GX10: 6 | GY10: 7 | GZ10: 8 | HA10: 9 | HB10: 10 | HC10: 11 | HD10: 12 | HE10: 1 | HF10: 2 | HG10: 3 | HH10: 4 | HI10: 5 | HJ10: 6 | HK10: 7 | HL10: 8 | HM10: 9 | HN10: 10 | HO10: 11 | HP10: 12 | HQ10: 1 | HR10: 2 | HS10: 3 | HT10: 4 | HU10: 5 | HV10: 6 | HW10: 7 | HX10: 8 | HY10: 9 | HZ10: 10 | IA10: 11 | IB10: 12 | IC10: 1 | ID10: 2 | IE10: 3 | IF10: 4 | IG10: 5 | IH10: 6 | II10: 7 | IJ10: 8 | IK10: 9 | IL10: 10 | IM10: 11 | IN10: 12 | IO10: 1 | IP10: 2 | IQ10: 3 | IR10: 4 | IS10: 5 | IT10: 6 | IU10: 7 | IV10: 8 | IW10: 9 | IX10: 10 | IY10: 11 | IZ10: 12 | JA10: 1 | JB10: 2 | JC10: 3 | JD10: 4 | JE10: 5 | JF10: =MONTH(JF7) -> 6 | JG10: 7 | JH10: 8 | JI10: 9 | JJ10: 10 | JK10: 11 | JL10: 12 | JM10: 1 | JN10: 2 | JO10: 3 | JP10: 4 | JQ10: 5 | JR10: 6 | JS10: 7 | JT10: 8 | JU10: 9 | JV10: 10 | JW10: 11 | JX10: 12 | JY10: 1 | JZ10: 2 | KA10: 3 | KB10: 4 | KC10: 5 | KD10: 6 | KE10: 7 | KF10: 8 | KG10: 9 | KH10: 10 | KI10: 11 | KJ10: 12 | KK10: 1 | KL10: 2 | KM10: 3 | KN10: 4 | KO10: 5 | KP10: 6 | KQ10: 7 | KR10: 8 | KS10: 9 | KT10: 10 | KU10: 11 | KV10: 12
B11: Year | I11: =YEAR(I7) -> 2016 | J11: =YEAR(J7) -> 2016 | K11: 2016 | L11: 2016 | M11: 2016 | N11: 2016 | O11: 2016 | P11: 2016 | Q11: 2016 | R11: 2016 | S11: 2016 | T11: 2016 | U11: 2017 | V11: 2017 | W11: 2017 | X11: 2017 | Y11: 2017 | Z11: 2017 | AA11: 2017 | AB11: 2017 | AC11: 2017 | AD11: 2017 | AE11: 2017 | AF11: 2017 | AG11: 2018 | AH11: 2018 | AI11: 2018 | AJ11: 2018 | AK11: 2018 | AL11: 2018 | AM11: 2018 | AN11: 2018 | AO11: 2018 | AP11: 2018 | AQ11: 2018 | AR11: 2018 | AS11: 2019 | AT11: 2019 | AU11: 2019 | AV11: 2019 | AW11: 2019 | AX11: 2019 | AY11: 2019 | AZ11: 2019 | BA11: 2019 | BB11: 2019 | BC11: 2019 | BD11: 2019 | BE11: 2020 | BF11: 2020 | BG11: 2020 | BH11: 2020 | BI11: 2020 | BJ11: 2020 | BK11: 2020 | BL11: 2020 | BM11: 2020 | BN11: 2020 | BO11: 2020 | BP11: 2020 | BQ11: 2021 | BR11: 2021 | BS11: 2021 | BT11: 2021 | BU11: 2021 | BV11: =YEAR(BV7) -> 2021 | BW11: 2021 | BX11: 2021 | BY11: 2021 | BZ11: 2021 | CA11: 2021 | CB11: 2021 | CC11: 2022 | CD11: 2022 | CE11: 2022 | CF11: 2022 | CG11: 2022 | CH11: 2022 | CI11: 2022 | CJ11: 2022 | CK11: 2022 | CL11: 2022 | CM11: 2022 | CN11: 2022 | CO11: 2023 | CP11: 2023 | CQ11: 2023 | CR11: 2023 | CS11: 2023 | CT11: 2023 | CU11: 2023 | CV11: 2023 | CW11: 2023 | CX11: 2023 | CY11: 2023 | CZ11: 2023 | DA11: 2024 | DB11: 2024 | DC11: 2024 | DD11: 2024 | DE11: 2024 | DF11: 2024 | DG11: 2024 | DH11: 2024 | DI11: 2024 | DJ11: 2024 | DK11: 2024 | DL11: 2024 | DM11: 2025 | DN11: 2025 | DO11: 2025 | DP11: 2025 | DQ11: 2025 | DR11: 2025 | DS11: 2025 | DT11: 2025 | DU11: 2025 | DV11: 2025 | DW11: 2025 | DX11: 2025 | DY11: 2026 | DZ11: 2026 | EA11: 2026 | EB11: 2026 | EC11: 2026 | ED11: 2026 | EE11: 2026 | EF11: 2026 | EG11: 2026 | EH11: =YEAR(EH7) -> 2026 | EI11: 2026 | EJ11: 2026 | EK11: 2027 | EL11: 2027 | EM11: 2027 | EN11: 2027 | EO11: 2027 | EP11: 2027 | EQ11: 2027 | ER11: 2027 | ES11: 2027 | ET11: 2027 | EU11: 2027 | EV11: 2027 | EW11: 2028 | EX11: 2028 | EY11: 2028 | EZ11: 2028 | FA11: 2028 | FB11: 2028 | FC11: 2028 | FD11: 2028 | FE11: 2028 | FF11: 2028 | FG11: 2028 | FH11: 2028 | FI11: 2029 | FJ11: 2029 | FK11: 2029 | FL11: 2029 | FM11: 2029 | FN11: 2029 | FO11: 2029 | FP11: 2029 | FQ11: 2029 | FR11: 2029 | FS11: 2029 | FT11: 2029 | FU11: 2030 | FV11: 2030 | FW11: 2030 | FX11: 2030 | FY11: 2030 | FZ11: 2030 | GA11: 2030 | GB11: 2030 | GC11: 2030 | GD11: 2030 | GE11: 2030 | GF11: 2030 | GG11: 2031 | GH11: 2031 | GI11: 2031 | GJ11: 2031 | GK11: 2031 | GL11: 2031 | GM11: 2031 | GN11: 2031 | GO11: 2031 | GP11: 2031 | GQ11: 2031 | GR11: 2031 | GS11: 2032 | GT11: =YEAR(GT7) -> 2032 | GU11: 2032 | GV11: 2032 | GW11: 2032 | GX11: 2032 | GY11: 2032 | GZ11: 2032 | HA11: 2032 | HB11: 2032 | HC11: 2032 | HD11: 2032 | HE11: 2033 | HF11: 2033 | HG11: 2033 | HH11: 2033 | HI11: 2033 | HJ11: 2033 | HK11: 2033 | HL11: 2033 | HM11: 2033 | HN11: 2033 | HO11: 2033 | HP11: 2033 | HQ11: 2034 | HR11: 2034 | HS11: 2034 | HT11: 2034 | HU11: 2034 | HV11: 2034 | HW11: 2034 | HX11: 2034 | HY11: 2034 | HZ11: 2034 | IA11: 2034 | IB11: 2034 | IC11: 2035 | ID11: 2035 | IE11: 2035 | IF11: 2035 | IG11: 2035 | IH11: 2035 | II11: 2035 | IJ11: 2035 | IK11: 2035 | IL11: 2035 | IM11: 2035 | IN11: 2035 | IO11: 2036 | IP11: 2036 | IQ11: 2036 | IR11: 2036 | IS11: 2036 | IT11: 2036 | IU11: 2036 | IV11: 2036 | IW11: 2036 | IX11: 2036 | IY11: 2036 | IZ11: 2036 | JA11: 2037 | JB11: 2037 | JC11: 2037 | JD11: 2037 | JE11: 2037 | JF11: =YEAR(JF7) -> 2037 | JG11: 2037 | JH11: 2037 | JI11: 2037 | JJ11: 2037 | JK11: 2037 | JL11: 2037 | JM11: 2038 | JN11: 2038 | JO11: 2038 | JP11: 2038 | JQ11: 2038 | JR11: 2038 | JS11: 2038 | JT11: 2038 | JU11: 2038 | JV11: 2038 | JW11: 2038 | JX11: 2038 | JY11: 2039 | JZ11: 2039 | KA11: 2039 | KB11: 2039 | KC11: 2039 | KD11: 2039 | KE11: 2039 | KF11: 2039 | KG11: 2039 | KH11: 2039 | KI11: 2039 | KJ11: 2039 | KK11: 2040 | KL11: 2040 | KM11: 2040 | KN11: 2040 | KO11: 2040 | KP11: 2040 | KQ11: 2040 | KR11: 2040 | KS11: 2040 | KT11: 2040 | KU11: 2040 | KV11: 2040
A13: Capacity and Generation
B14: Days | E14: Days | I14: =I8-I7+1 -> 31 | J14: =J8-J7+1 -> 29 | K14: 31 | L14: 30 | M14: 31 | N14: 30 | O14: 31 | P14: 31 | Q14: 30 | R14: 31 | S14: 30 | T14: 31 | U14: 31 | V14: 28 | W14: 31 | X14: 30 | Y14: 31 | Z14: 30 | AA14: 31 | AB14: 31 | AC14: 30 | AD14: 31 | AE14: 30 | AF14: 31 | AG14: 31 | AH14: 28 | AI14: 31 | AJ14: 30 | AK14: 31 | AL14: 30 | AM14: 31 | AN14: 31 | AO14: 30 | AP14: 31 | AQ14: 30 | AR14: 31 | AS14: 31 | AT14: 28 | AU14: 31 | AV14: 30 | AW14: 31 | AX14: 30 | AY14: 31 | AZ14: 31 | BA14: 30 | BB14: 31 | BC14: 30 | BD14: 31 | BE14: 31 | BF14: 29 | BG14: 31 | BH14: 30 | BI14: 31 | BJ14: 30 | BK14: 31 | BL14: 31 | BM14: 30 | BN14: 31 | BO14: 30 | BP14: 31 | BQ14: 31 | BR14: 28 | BS14: 31 | BT14: 30 | BU14: 31 | BV14: =BV8-BV7+1 -> 30 | BW14: 31 | BX14: 31 | BY14: 30 | BZ14: 31 | CA14: 30 | CB14: 31 | CC14: 31 | CD14: 28 | CE14: 31 | CF14: 30 | CG14: 31 | CH14: 30 | CI14: 31 | CJ14: 31 | CK14: 30 | CL14: 31 | CM14: 30 | CN14: 31 | CO14: 31 | CP14: 28 | CQ14: 31 | CR14: 30 | CS14: 31 | CT14: 30 | CU14: 31 | CV14: 31 | CW14: 30 | CX14: 31 | CY14: 30 | CZ14: 31 | DA14: 31 | DB14: 29 | DC14: 31 | DD14: 30 | DE14: 31 | DF14: 30 | DG14: 31 | DH14: 31 | DI14: 30 | DJ14: 31 | DK14: 30 | DL14: 31 | DM14: 31 | DN14: 28 | DO14: 31 | DP14: 30 | DQ14: 31 | DR14: 30 | DS14: 31 | DT14: 31 | DU14: 30 | DV14: 31 | DW14: 30 | DX14: 31 | DY14: 31 | DZ14: 28 | EA14: 31 | EB14: 30 | EC14: 31 | ED14: 30 | EE14: 31 | EF14: 31 | EG14: 30 | EH14: =EH8-EH7+1 -> 31 | EI14: 30 | EJ14: 31 | EK14: 31 | EL14: 28 | EM14: 31 | EN14: 30 | EO14: 31 | EP14: 30 | EQ14: 31 | ER14: 31 | ES14: 30 | ET14: 31 | EU14: 30 | EV14: 31 | EW14: 31 | EX14: 29 | EY14: 31 | EZ14: 30 | FA14: 31 | FB14: 30 | FC14: 31 | FD14: 31 | FE14: 30 | FF14: 31 | FG14: 30 | FH14: 31 | FI14: 31 | FJ14: 28 | FK14: 31 | FL14: 30 | FM14: 31 | FN14: 30 | FO14: 31 | FP14: 31 | FQ14: 30 | FR14: 31 | FS14: 30 | FT14: 31 | FU14: 31 | FV14: 28 | FW14: 31 | FX14: 30 | FY14: 31 | FZ14: 30 | GA14: 31 | GB14: 31 | GC14: 30 | GD14: 31 | GE14: 30 | GF14: 31 | GG14: 31 | GH14: 28 | GI14: 31 | GJ14: 30 | GK14: 31 | GL14: 30 | GM14: 31 | GN14: 31 | GO14: 30 | GP14: 31 | GQ14: 30 | GR14: 31 | GS14: 31 | GT14: =GT8-GT7+1 -> 29 | GU14: 31 | GV14: 30 | GW14: 31 | GX14: 30 | GY14: 31 | GZ14: 31 | HA14: 30 | HB14: 31 | HC14: 30 | HD14: 31 | HE14: 31 | HF14: 28 | HG14: 31 | HH14: 30 | HI14: 31 | HJ14: 30 | HK14: 31 | HL14: 31 | HM14: 30 | HN14: 31 | HO14: 30 | HP14: 31 | HQ14: 31 | HR14: 28 | HS14: 31 | HT14: 30 | HU14: 31 | HV14: 30 | HW14: 31 | HX14: 31 | HY14: 30 | HZ14: 31 | IA14: 30 | IB14: 31 | IC14: 31 | ID14: 28 | IE14: 31 | IF14: 30 | IG14: 31 | IH14: 30 | II14: 31 | IJ14: 31 | IK14: 30 | IL14: 31 | IM14: 30 | IN14: 31 | IO14: 31 | IP14: 29 | IQ14: 31 | IR14: 30 | IS14: 31 | IT14: 30 | IU14: 31 | IV14: 31 | IW14: 30 | IX14: 31 | IY14: 30 | IZ14: 31 | JA14: 31 | JB14: 28 | JC14: 31 | JD14: 30 | JE14: 31 | JF14: =JF8-JF7+1 -> 30 | JG14: 31 | JH14: 31 | JI14: 30 | JJ14: 31 | JK14: 30 | JL14: 31 | JM14: 31 | JN14: 28 | JO14: 31 | JP14: 30 | JQ14: 31 | JR14: 30 | JS14: 31 | JT14: 31 | JU14: 30 | JV14: 31 | JW14: 30 | JX14: 31 | JY14: 31 | JZ14: 28 | KA14: 31 | KB14: 30 | KC14: 31 | KD14: 30 | KE14: 31 | KF14: 31 | KG14: 30 | KH14: 31 | KI14: 30 | KJ14: 31 | KK14: 31 | KL14: 29 | KM14: 31 | KN14: 30 | KO14: 31 | KP14: 30 | KQ14: 31 | KR14: 31 | KS14: 30 | KT14: 31 | KU14: 30 | KV14: 31
B15: Hours | E15: Hrs | I15: =I14*24 -> 744 | J15: =J14*24 -> 696 | K15: 744 | L15: 720 | M15: 744 | N15: 720 | O15: 744 | P15: 744 | Q15: 720 | R15: 744 | S15: 720 | T15: 744 | U15: 744 | V15: 672 | W15: 744 | X15: 720 | Y15: 744 | Z15: 720 | AA15: 744 | AB15: 744 | AC15: 720 | AD15: 744 | AE15: 720 | AF15: 744 | AG15: 744 | AH15: 672 | AI15: 744 | AJ15: 720 | AK15: 744 | AL15: 720 | AM15: 744 | AN15: 744 | AO15: 720 | AP15: 744 | AQ15: 720 | AR15: 744 | AS15: 744 | AT15: 672 | AU15: 744 | AV15: 720 | AW15: 744 | AX15: 720 | AY15: 744 | AZ15: 744 | BA15: 720 | BB15: 744 | BC15: 720 | BD15: 744 | BE15: 744 | BF15: 696 | BG15: 744 | BH15: 720 | BI15: 744 | BJ15: 720 | BK15: 744 | BL15: 744 | BM15: 720 | BN15: 744 | BO15: 720 | BP15: 744 | BQ15: 744 | BR15: 672 | BS15: 744 | BT15: 720 | BU15: 744 | BV15: =BV14*24 -> 720 | BW15: 744 | BX15: 744 | BY15: 720 | BZ15: 744 | CA15: 720 | CB15: 744 | CC15: 744 | CD15: 672 | CE15: 744 | CF15: 720 | CG15: 744 | CH15: 720 | CI15: 744 | CJ15: 744 | CK15: 720 | CL15: 744 | CM15: 720 | CN15: 744 | CO15: 744 | CP15: 672 | CQ15: 744 | CR15: 720 | CS15: 744 | CT15: 720 | CU15: 744 | CV15: 744 | CW15: 720 | CX15: 744 | CY15: 720 | CZ15: 744 | DA15: 744 | DB15: 696 | DC15: 744 | DD15: 720 | DE15: 744 | DF15: 720 | DG15: 744 | DH15: 744 | DI15: 720 | DJ15: 744 | DK15: 720 | DL15: 744 | DM15: 744 | DN15: 672 | DO15: 744 | DP15: 720 | DQ15: 744 | DR15: 720 | DS15: 744 | DT15: 744 | DU15: 720 | DV15: 744 | DW15: 720 | DX15: 744 | DY15: 744 | DZ15: 672 | EA15: 744 | EB15: 720 | EC15: 744 | ED15: 720 | EE15: 744 | EF15: 744 | EG15: 720 | EH15: =EH14*24 -> 744 | EI15: 720 | EJ15: 744 | EK15: 744 | EL15: 672 | EM15: 744 | EN15: 720 | EO15: 744 | EP15: 720 | EQ15: 744 | ER15: 744 | ES15: 720 | ET15: 744 | EU15: 720 | EV15: 744 | EW15: 744 | EX15: 696 | EY15: 744 | EZ15: 720 | FA15: 744 | FB15: 720 | FC15: 744 | FD15: 744 | FE15: 720 | FF15: 744 | FG15: 720 | FH15: 744 | FI15: 744 | FJ15: 672 | FK15: 744 | FL15: 720 | FM15: 744 | FN15: 720 | FO15: 744 | FP15: 744 | FQ15: 720 | FR15: 744 | FS15: 720 | FT15: 744 | FU15: 744 | FV15: 672 | FW15: 744 | FX15: 720 | FY15: 744 | FZ15: 720 | GA15: 744 | GB15: 744 | GC15: 720 | GD15: 744 | GE15: 720 | GF15: 744 | GG15: 744 | GH15: 672 | GI15: 744 | GJ15: 720 | GK15: 744 | GL15: 720 | GM15: 744 | GN15: 744 | GO15: 720 | GP15: 744 | GQ15: 720 | GR15: 744 | GS15: 744 | GT15: =GT14*24 -> 696 | GU15: 744 | GV15: 720 | GW15: 744 | GX15: 720 | GY15: 744 | GZ15: 744 | HA15: 720 | HB15: 744 | HC15: 720 | HD15: 744 | HE15: 744 | HF15: 672 | HG15: 744 | HH15: 720 | HI15: 744 | HJ15: 720 | HK15: 744 | HL15: 744 | HM15: 720 | HN15: 744 | HO15: 720 | HP15: 744 | HQ15: 744 | HR15: 672 | HS15: 744 | HT15: 720 | HU15: 744 | HV15: 720 | HW15: 744 | HX15: 744 | HY15: 720 | HZ15: 744 | IA15: 720 | IB15: 744 | IC15: 744 | ID15: 672 | IE15: 744 | IF15: 720 | IG15: 744 | IH15: 720 | II15: 744 | IJ15: 744 | IK15: 720 | IL15: 744 | IM15: 720 | IN15: 744 | IO15: 744 | IP15: 696 | IQ15: 744 | IR15: 720 | IS15: 744 | IT15: 720 | IU15: 744 | IV15: 744 | IW15: 720 | IX15: 744 | IY15: 720 | IZ15: 744 | JA15: 744 | JB15: 672 | JC15: 744 | JD15: 720 | JE15: 744 | JF15: =JF14*24 -> 720 | JG15: 744 | JH15: 744 | JI15: 720 | JJ15: 744 | JK15: 720 | JL15: 744 | JM15: 744 | JN15: 672 | JO15: 744 | JP15: 720 | JQ15: 744 | JR15: 720 | JS15: 744 | JT15: 744 | JU15: 720 | JV15: 744 | JW15: 720 | JX15: 744 | JY15: 744 | JZ15: 672 | KA15: 744 | KB15: 720 | KC15: 744 | KD15: 720 | KE15: 744 | KF15: 744 | KG15: 720 | KH15: 744 | KI15: 720 | KJ15: 744 | KK15: 744 | KL15: 696 | KM15: 744 | KN15: 720 | KO15: 744 | KP15: 720 | KQ15: 744 | KR15: 744 | KS15: 720 | KT15: 744 | KU15: 720 | KV15: 744
B16: Age of NGCC | E16: Months | I16: =H16+I9 -> 0 | J16: =I16+J9 -> 0 | K16: 0 | L16: 0 | M16: 0 | N16: 0 | O16: 0 | P16: 0 | Q16: 0 | R16: 0 | S16: 0 | T16: 0 | U16: 0 | V16: 0 | W16: 0 | X16: 0 | Y16: 0 | Z16: 0 | AA16: 0 | AB16: 0 | AC16: 0 | AD16: 1 | AE16: 2 | AF16: 3 | AG16: 4 | AH16: 5 | AI16: 6 | AJ16: 7 | AK16: 8 | AL16: 9 | AM16: 10 | AN16: 11 | AO16: 12 | AP16: 13 | AQ16: 14 | AR16: 15 | AS16: 16 | AT16: 17 | AU16: 18 | AV16: 19 | AW16: 20 | AX16: 21 | AY16: 22 | AZ16: 23 | BA16: 24 | BB16: 25 | BC16: 26 | BD16: 27 | BE16: 28 | BF16: 29 | BG16: 30 | BH16: 31 | BI16: 32 | BJ16: 33 | BK16: 34 | BL16: 35 | BM16: 36 | BN16: 37 | BO16: 38 | BP16: 39 | BQ16: 40 | BR16: 41 | BS16: 42 | BT16: 43 | BU16: 44 | BV16: =BU16+BV9 -> 45 | BW16: 46 | BX16: 47 | BY16: 48 | BZ16: 49 | CA16: 50 | CB16: 51 | CC16: 52 | CD16: 53 | CE16: 54 | CF16: 55 | CG16: 56 | CH16: 57 | CI16: 58 | CJ16: 59 | CK16: 60 | CL16: 61 | CM16: 62 | CN16: 63 | CO16: 64 | CP16: 65 | CQ16: 66 | CR16: 67 | CS16: 68 | CT16: 69 | CU16: 70 | CV16: 71 | CW16: 72 | CX16: 73 | CY16: 74 | CZ16: 75 | DA16: 76 | DB16: 77 | DC16: 78 | DD16: 79 | DE16: 80 | DF16: 81 | DG16: 82 | DH16: 83 | DI16: 84 | DJ16: 85 | DK16: 86 | DL16: 87 | DM16: 88 | DN16: 89 | DO16: 90 | DP16: 91 | DQ16: 92 | DR16: 93 | DS16: 94 | DT16: 95 | DU16: 96 | DV16: 97 | DW16: 98 | DX16: 99 | DY16: 100 | DZ16: 101 | EA16: 102 | EB16: 103 | EC16: 104 | ED16: 105 | EE16: 106 | EF16: 107 | EG16: 108 | EH16: =EG16+EH9 -> 109 | EI16: 110 | EJ16: 111 | EK16: 112 | EL16: 113 | EM16: 114 | EN16: 115 | EO16: 116 | EP16: 117 | EQ16: 118 | ER16: 119 | ES16: 120 | ET16: 121 | EU16: 122 | EV16: 123 | EW16: 124 | EX16: 125 | EY16: 126 | EZ16: 127 | FA16: 128 | FB16: 129 | FC16: 130 | FD16: 131 | FE16: 132 | FF16: 133 | FG16: 134 | FH16: 135 | FI16: 136 | FJ16: 137 | FK16: 138 | FL16: 139 | FM16: 140 | FN16: 141 | FO16: 142 | FP16: 143 | FQ16: 144 | FR16: 145 | FS16: 146 | FT16: 147 | FU16: 148 | FV16: 149 | FW16: 150 | FX16: 151 | FY16: 152 | FZ16: 153 | GA16: 154 | GB16: 155 | GC16: 156 | GD16: 157 | GE16: 158 | GF16: 159 | GG16: 160 | GH16: 161 | GI16: 162 | GJ16: 163 | GK16: 164 | GL16: 165 | GM16: 166 | GN16: 167 | GO16: 168 | GP16: 169 | GQ16: 170 | GR16: 171 | GS16: 172 | GT16: =GS16+GT9 -> 173 | GU16: 174 | GV16: 175 | GW16: 176 | GX16: 177 | GY16: 178 | GZ16: 179 | HA16: 180 | HB16: 180 | HC16: 180 | HD16: 180 | HE16: 180 | HF16: 180 | HG16: 180 | HH16: 180 | HI16: 180 | HJ16: 180 | HK16: 180 | HL16: 180 | HM16: 180 | HN16: 180 | HO16: 180 | HP16: 180 | HQ16: 180 | HR16: 180 | HS16: 180 | HT16: 180 | HU16: 180 | HV16: 180 | HW16: 180 | HX16: 180 | HY16: 180 | HZ16: 180 | IA16: 180 | IB16: 180 | IC16: 180 | ID16: 180 | IE16: 180 | IF16: 180 | IG16: 180 | IH16: 180 | II16: 180 | IJ16: 180 | IK16: 180 | IL16: 180 | IM16: 180 | IN16: 180 | IO16: 180 | IP16: 180 | IQ16: 180 | IR16: 180 | IS16: 180 | IT16: 180 | IU16: 180 | IV16: 180 | IW16: 180 | IX16: 180 | IY16: 180 | IZ16: 180 | JA16: 180 | JB16: 180 | JC16: 180 | JD16: 180 | JE16: 180 | JF16: =JE16+JF9 -> 180 | JG16: 180 | JH16: 180 | JI16: 180 | JJ16: 180 | JK16: 180 | JL16: 180 | JM16: 180 | JN16: 180 | JO16: 180 | JP16: 180 | JQ16: 180 | JR16: 180 | JS16: 180 | JT16: 180 | JU16: 180 | JV16: 180 | JW16: 180 | JX16: 180 | JY16: 180 | JZ16: 180 | KA16: 180 | KB16: 180 | KC16: 180 | KD16: 180 | KE16: 180 | KF16: 180 | KG16: 180 | KH16: 180 | KI16: 180 | KJ16: 180 | KK16: 180 | KL16: 180 | KM16: 180 | KN16: 180 | KO16: 180 | KP16: 180 | KQ16: 180 | KR16: 180 | KS16: 180 | KT16: 180 | KU16: 180 | KV16: 180
B17: Age of NGCC | E17: Years | I17: =ROUNDUP(I16/12,0) -> 0 | J17: =ROUNDUP(J16/12,0) -> 0 | K17: 0 | L17: 0 | M17: 0 | N17: 0 | O17: 0 | P17: 0 | Q17: 0 | R17: 0 | S17: 0 | T17: 0 | U17: 0 | V17: 0 | W17: 0 | X17: 0 | Y17: 0 | Z17: 0 | AA17: 0 | AB17: 0 | AC17: 0 | AD17: 1 | AE17: 1 | AF17: 1 | AG17: 1 | AH17: 1 | AI17: 1 | AJ17: 1 | AK17: 1 | AL17: 1 | AM17: 1 | AN17: 1 | AO17: 1 | AP17: 2 | AQ17: 2 | AR17: 2 | AS17: 2 | AT17: 2 | AU17: 2 | AV17: 2 | AW17: 2 | AX17: 2 | AY17: 2 | AZ17: 2 | BA17: 2 | BB17: 3 | BC17: 3 | BD17: 3 | BE17: 3 | BF17: 3 | BG17: 3 | BH17: 3 | BI17: 3 | BJ17: 3 | BK17: 3 | BL17: 3 | BM17: 3 | BN17: 4 | BO17: 4 | BP17: 4 | BQ17: 4 | BR17: 4 | BS17: 4 | BT17: 4 | BU17: 4 | BV17: =ROUNDUP(BV16/12,0) -> 4 | BW17: 4 | BX17: 4 | BY17: 4 | BZ17: 5 | CA17: 5 | CB17: 5 | CC17: 5 | CD17: 5 | CE17: 5 | CF17: 5 | CG17: 5 | CH17: 5 | CI17: 5 | CJ17: 5 | CK17: 5 | CL17: 6 | CM17: 6 | CN17: 6 | CO17: 6 | CP17: 6 | CQ17: 6 | CR17: 6 | CS17: 6 | CT17: 6 | CU17: 6 | CV17: 6 | CW17: 6 | CX17: 7 | CY17: 7 | CZ17: 7 | DA17: 7 | DB17: 7 | DC17: 7 | DD17: 7 | DE17: 7 | DF17: 7 | DG17: 7 | DH17: 7 | DI17: 7 | DJ17: 8 | DK17: 8 | DL17: 8 | DM17: 8 | DN17: 8 | DO17: 8 | DP17: 8 | DQ17: 8 | DR17: 8 | DS17: 8 | DT17: 8 | DU17: 8 | DV17: 9 | DW17: 9 | DX17: 9 | DY17: 9 | DZ17: 9 | EA17: 9 | EB17: 9 | EC17: 9 | ED17: 9 | EE17: 9 | EF17: 9 | EG17: 9 | EH17: =ROUNDUP(EH16/12,0) -> 10 | EI17: 10 | EJ17: 10 | EK17: 10 | EL17: 10 | EM17: 10 | EN17: 10 | EO17: 10 | EP17: 10 | EQ17: 10 | ER17: 10 | ES17: 10 | ET17: 11 | EU17: 11 | EV17: 11 | EW17: 11 | EX17: 11 | EY17: 11 | EZ17: 11 | FA17: 11 | FB17: 11 | FC17: 11 | FD17: 11 | FE17: 11 | FF17: 12 | FG17: 12 | FH17: 12 | FI17: 12 | FJ17: 12 | FK17: 12 | FL17: 12 | FM17: 12 | FN17: 12 | FO17: 12 | FP17: 12 | FQ17: 12 | FR17: 13 | FS17: 13 | FT17: 13 | FU17: 13 | FV17: 13 | FW17: 13 | FX17: 13 | FY17: 13 | FZ17: 13 | GA17: 13 | GB17: 13 | GC17: 13 | GD17: 14 | GE17: 14 | GF17: 14 | GG17: 14 | GH17: 14 | GI17: 14 | GJ17: 14 | GK17: 14 | GL17: 14 | GM17: 14 | GN17: 14 | GO17: 14 | GP17: 15 | GQ17: 15 | GR17: 15 | GS17: 15 | GT17: =ROUNDUP(GT16/12,0) -> 15 | GU17: 15 | GV17: 15 | GW17: 15 | GX17: 15 | GY17: 15 | GZ17: 15 | HA17: 15 | HB17: 15 | HC17: 15 | HD17: 15 | HE17: 15 | HF17: 15 | HG17: 15 | HH17: 15 | HI17: 15 | HJ17: 15 | HK17: 15 | HL17: 15 | HM17: 15 | HN17: 15 | HO17: 15 | HP17: 15 | HQ17: 15 | HR17: 15 | HS17: 15 | HT17: 15 | HU17: 15 | HV17: 15 | HW17: 15 | HX17: 15 | HY17: 15 | HZ17: 15 | IA17: 15 | IB17: 15 | IC17: 15 | ID17: 15 | IE17: 15 | IF17: 15 | IG17: 15 | IH17: 15 | II17: 15 | IJ17: 15 | IK17: 15 | IL17: 15 | IM17: 15 | IN17: 15 | IO17: 15 | IP17: 15 | IQ17: 15 | IR17: 15 | IS17: 15 | IT17: 15 | IU17: 15 | IV17: 15 | IW17: 15 | IX17: 15 | IY17: 15 | IZ17: 15 | JA17: 15 | JB17: 15 | JC17: 15 | JD17: 15 | JE17: 15 | JF17: =ROUNDUP(JF16/12,0) -> 15 | JG17: 15 | JH17: 15 | JI17: 15 | JJ17: 15 | JK17: 15 | JL17: 15 | JM17: 15 | JN17: 15 | JO17: 15 | JP17: 15 | JQ17: 15 | JR17: 15 | JS17: 15 | JT17: 15 | JU17: 15 | JV17: 15 | JW17: 15 | JX17: 15 | JY17: 15 | JZ17: 15 | KA17: 15 | KB17: 15 | KC17: 15 | KD17: 15 | KE17: 15 | KF17: 15 | KG17: 15 | KH17: 15 | KI17: 15 | KJ17: 15 | KK17: 15 | KL17: 15 | KM17: 15 | KN17: 15 | KO17: 15 | KP17: 15 | KQ17: 15 | KR17: 15 | KS17: 15 | KT17: 15 | KU17: 15 | KV17: 15
B18: Capacity (Lookup) | E18: MW | G18: =Scenario!D13 -> 0.95 | I18: =LOOKUP(I7,Assumptions!27:27,Assumptions!28:28)*$G$18 -> 104.5 | J18: =LOOKUP(J7,Assumptions!27:27,Assumptions!28:28)*$G$18 -> 104.5 | K18: =LOOKUP(K7,Assumptions!27:27,Assumptions!28:28)*$G$18 -> 104.5 | L18: =LOOKUP(L7,Assumptions!27:27,Assumptions!28:28)*$G$18 -> 104.5 | M18: =LOOKUP(M7,Assumptions!27:27,Assumptions!28:28)*$G$18 -> 104.5 | N18: =LOOKUP(N7,Assumptions!27:27,Assumptions!28:28)*$G$18 -> 104.5 | O18: =LOOKUP(O7,Assumptions!27:27,Assumptions!28:28)*$G$18 -> 104.5 | P18: =LOOKUP(P7,Assumptions!27:27,Assumptions!28:28)*$G$18 -> 104.5 | Q18: =LOOKUP(Q7,Assumptions!27:27,Assumptions!28:28)*$G$18 -> 104.5 | R18: =LOOKUP(R7,Assumptions!27:27,Assumptions!28:28)*$G$18 -> 104.5 | S18: =LOOKUP(S7,Assumptions!27:27,Assumptions!28:28)*$G$18 -> 104.5 | T18: =LOOKUP(T7,Assumptions!27:27,Assumptions!28:28)*$G$18 -> 104.5 | U18: =LOOKUP(U7,Assumptions!27:27,Assumptions!28:28)*$G$18 -> 104.5 | V18: =LOOKUP(V7,Assumptions!27:27,Assumptions!28:28)*$G$18 -> 104.5 | W18: =LOOKUP(W7,Assumptions!27:27,Assumptions!28:28)*$G$18 -> 104.5 | X18: =LOOKUP(X7,Assumptions!27:27,Assumptions!28:28)*$G$18 -> 104.5 | Y18: =LOOKUP(Y7,Assumptions!27:27,Assumptions!28:28)*$G$18 -> 104.5 | Z18: =LOOKUP(Z7,Assumptions!27:27,Assumptions!28:28)*$G$18 -> 104.5 | AA18: =LOOKUP(AA7,Assumptions!27:27,Assumptions!28:28)*$G$18 -> 104.5 | AB18: =LOOKUP(AB7,Assumptions!27:27,Assumptions!28:28)*$G$18 -> 104.5 | AC18: =LOOKUP(AC7,Assumptions!27:27,Assumptions!28:28)*$G$18 -> 104.5 | AD18: =LOOKUP(AD7,Assumptions!27:27,Assumptions!28:28)*$G$18 -> 142.5 | AE18: =LOOKUP(AE7,Assumptions!27:27,Assumptions!28:28)*$G$18 -> 142.5 | AF18: =LOOKUP(AF7,Assumptions!27:27,Assumptions!28:28)*$G$18 -> 142.5 | AG18: =LOOKUP(AG7,Assumptions!27:27,Assumptions!28:28)*$G$18 -> 142.5 | AH18: =LOOKUP(AH7,Assumptions!27:27,Assumptions!28:28)*$G$18 -> 142.5 | AI18: =LOOKUP(AI7,Assumptions!27:27,Assumptions!28:28)*$G$18 -> 142.5 | AJ18: =LOOKUP(AJ7,Assumptions!27:27,Assumptions!28:28)*$G$18 -> 142.5 | AK18: =LOOKUP(AK7,Assumptions!27:27,Assumptions!28:28)*$G$18 -> 142.5 | AL18: =LOOKUP(AL7,Assumptions!27:27,Assumptions!28:28)*$G$18 -> 142.5 | AM18: =LOOKUP(AM7,Assumptions!27:27,Assumptions!28:28)*$G$18 -> 142.5 | AN18: =LOOKUP(AN7,Assumptions!27:27,Assumptions!28:28)*$G$18 -> 142.5 | AO18: =LOOKUP(AO7,Assumptions!27:27,Assumptions!28:28)*$G$18 -> 142.5 | AP18: =LOOKUP(AP7,Assumptions!27:27,Assumptions!28:28)*$G$18 -> 142.5 | AQ18: =LOOKUP(AQ7,Assumptions!27:27,Assumptions!28:28)*$G$18 -> 142.5 | AR18: =LOOKUP(AR7,Assumptions!27:27,Assumptions!28:28)*$G$18 -> 142.5 | AS18: =LOOKUP(AS7,Assumptions!27:27,Assumptions!28:28)*$G$18 -> 142.5 | AT18: =LOOKUP(AT7,Assumptions!27:27,Assumptions!28:28)*$G$18 -> 142.5 | AU18: =LOOKUP(AU7,Assumptions!27:27,Assumptions!28:28)*$G$18 -> 142.5 | AV18: =LOOKUP(AV7,Assumptions!27:27,Assumptions!28:28)*$G$18 -> 142.5 | AW18: =LOOKUP(AW7,Assumptions!27:27,Assumptions!28:28)*$G$18 -> 142.5 | AX18: =LOOKUP(AX7,Assumptions!27:27,Assumptions!28:28)*$G$18 -> 142.5 | AY18: =LOOKUP(AY7,Assumptions!27:27,Assumptions!28:28)*$G$18 -> 142.5 | AZ18: =LOOKUP(AZ7,Assumptions!27:27,Assumptions!28:28)*$G$18 -> 142.5 | BA18: =LOOKUP(BA7,Assumptions!27:27,Assumptions!28:28)*$G$18 -> 142.5 | BB18: =LOOKUP(BB7,Assumptions!27:27,Assumptions!28:28)*$G$18 -> 142.5 | BC18: =LOOKUP(BC7,Assumptions!27:27,Assumptions!28:28)*$G$18 -> 142.5 | BD18: =LOOKUP(BD7,Assumptions!27:27,Assumptions!28:28)*$G$18 -> 142.5 | BE18: =LOOKUP(BE7,Assumptions!27:27,Assumptions!28:28)*$G$18 -> 142.5 | BF18: =LOOKUP(BF7,Assumptions!27:27,Assumptions!28:28)*$G$18 -> 142.5 | BG18: =LOOKUP(BG7,Assumptions!27:27,Assumptions!28:28)*$G$18 -> 142.5 | BH18: =LOOKUP(BH7,Assumptions!27:27,Assumptions!28:28)*$G$18 -> 142.5 | BI18: =LOOKUP(BI7,Assumptions!27:27,Assumptions!28:28)*$G$18 -> 142.5 | BJ18: =LOOKUP(BJ7,Assumptions!27:27,Assumptions!28:28)*$G$18 -> 142.5 | BK18: =LOOKUP(BK7,Assumptions!27:27,Assumptions!28:28)*$G$18 -> 142.5 | BL18: =LOOKUP(BL7,Assumptions!27:27,Assumptions!28:28)*$G$18 -> 142.5 | BM18: =LOOKUP(BM7,Assumptions!27:27,Assumptions!28:28)*$G$18 -> 142.5 | BN18: =LOOKUP(BN7,Assumptions!27:27,Assumptions!28:28)*$G$18 -> 142.5 | BO18: =LOOKUP(BO7,Assumptions!27:27,Assumptions!28:28)*$G$18 -> 142.5 | BP18: =LOOKUP(BP7,Assumptions!27:27,Assumptions!28:28)*$G$18 -> 142.5 | BQ18: =LOOKUP(BQ7,Assumptions!27:27,Assumptions!28:28)*$G$18 -> 142.5 | BR18: =LOOKUP(BR7,Assumptions!27:27,Assumptions!28:28)*$G$18 -> 142.5 | BS18: =LOOKUP(BS7,Assumptions!27:27,Assumptions!28:28)*$G$18 -> 142.5 | BT18: =LOOKUP(BT7,Assumptions!27:27,Assumptions!28:28)*$G$18 -> 142.5 | BU18: =LOOKUP(BU7,Assumptions!27:27,Assumptions!28:28)*$G$18 -> 142.5 | BV18: =LOOKUP(BV7,Assumptions!27:27,Assumptions!28:28)*$G$18 -> 142.5 | BW18: =LOOKUP(BW7,Assumptions!27:27,Assumptions!28:28)*$G$18 -> 142.5 | BX18: =LOOKUP(BX7,Assumptions!27:27,Assumptions!28:28)*$G$18 -> 142.5 | BY18: =LOOKUP(BY7,Assumptions!27:27,Assumptions!28:28)*$G$18 -> 142.5 | BZ18: =LOOKUP(BZ7,Assumptions!27:27,Assumptions!28:28)*$G$18 -> 142.5 | CA18: =LOOKUP(CA7,Assumptions!27:27,Assumptions!28:28)*$G$18 -> 142.5 | CB18: =LOOKUP(CB7,Assumptions!27:27,Assumptions!28:28)*$G$18 -> 142.5 | CC18: =LOOKUP(CC7,Assumptions!27:27,Assumptions!28:28)*$G$18 -> 142.5 | CD18: =LOOKUP(CD7,Assumptions!27:27,Assumptions!28:28)*$G$18 -> 142.5 | CE18: =LOOKUP(CE7,Assumptions!27:27,Assumptions!28:28)*$G$18 -> 142.5 | CF18: =LOOKUP(CF7,Assumptions!27:27,Assumptions!28:28)*$G$18 -> 142.5 | CG18: =LOOKUP(CG7,Assumptions!27:27,Assumptions!28:28)*$G$18 -> 142.5 | CH18: =LOOKUP(CH7,Assumptions!27:27,Assumptions!28:28)*$G$18 -> 142.5 | CI18: =LOOKUP(CI7,Assumptions!27:27,Assumptions!28:28)*$G$18 -> 142.5 | CJ18: =LOOKUP(CJ7,Assumptions!27:27,Assumptions!28:28)*$G$18 -> 142.5 | CK18: =LOOKUP(CK7,Assumptions!27:27,Assumptions!28:28)*$G$18 -> 142.5 | CL18: =LOOKUP(CL7,Assumptions!27:27,Assumptions!28:28)*$G$18 -> 142.5 | CM18: =LOOKUP(CM7,Assumptions!27:27,Assumptions!28:28)*$G$18 -> 142.5 | CN18: =LOOKUP(CN7,Assumptions!27:27,Assumptions!28:28)*$G$18 -> 142.5 | CO18: =LOOKUP(CO7,Assumptions!27:27,Assumptions!28:28)*$G$18 -> 142.5 | CP18: =LOOKUP(CP7,Assumptions!27:27,Assumptions!28:28)*$G$18 -> 142.5 | CQ18: =LOOKUP(CQ7,Assumptions!27:27,Assumptions!28:28)*$G$18 -> 142.5 | CR18: =LOOKUP(CR7,Assumptions!27:27,Assumptions!28:28)*$G$18 -> 142.5 | CS18: =LOOKUP(CS7,Assumptions!27:27,Assumptions!28:28)*$G$18 -> 142.5 | CT18: =LOOKUP(CT7,Assumptions!27:27,Assumptions!28:28)*$G$18 -> 142.5 | CU18: =LOOKUP(CU7,Assumptions!27:27,Assumptions!28:28)*$G$18 -> 142.5 | CV18: =LOOKUP(CV7,Assumptions!27:27,Assumptions!28:28)*$G$18 -> 142.5 | CW18: =LOOKUP(CW7,Assumptions!27:27,Assumptions!28:28)*$G$18 -> 142.5 | CX18: =LOOKUP(CX7,Assumptions!27:27,Assumptions!28:28)*$G$18 -> 142.5 | CY18: =LOOKUP(CY7,Assumptions!27:27,Assumptions!28:28)*$G$18 -> 142.5 | CZ18: =LOOKUP(CZ7,Assumptions!27:27,Assumptions!28:28)*$G$18 -> 142.5 | DA18: =LOOKUP(DA7,Assumptions!27:27,Assumptions!28:28)*$G$18 -> 142.5 | DB18: =LOOKUP(DB7,Assumptions!27:27,Assumptions!28:28)*$G$18 -> 142.5 | DC18: =LOOKUP(DC7,Assumptions!27:27,Assumptions!28:28)*$G$18 -> 142.5 | DD18: =LOOKUP(DD7,Assumptions!27:27,Assumptions!28:28)*$G$18 -> 142.5 | DE18: =LOOKUP(DE7,Assumptions!27:27,Assumptions!28:28)*$G$18 -> 142.5 | DF18: =LOOKUP(DF7,Assumptions!27:27,Assumptions!28:28)*$G$18 -> 142.5 | DG18: =LOOKUP(DG7,Assumptions!27:27,Assumptions!28:28)*$G$18 -> 142.5 | DH18: =LOOKUP(DH7,Assumptions!27:27,Assumptions!28:28)*$G$18 -> 142.5 | DI18: =LOOKUP(DI7,Assumptions!27:27,Assumptions!28:28)*$G$18 -> 142.5 | DJ18: =LOOKUP(DJ7,Assumptions!27:27,Assumptions!28:28)*$G$18 -> 142.5 | DK18: =LOOKUP(DK7,Assumptions!27:27,Assumptions!28:28)*$G$18 -> 142.5 | DL18: =LOOKUP(DL7,Assumptions!27:27,Assumptions!28:28)*$G$18 -> 142.5 | DM18: =LOOKUP(DM7,Assumptions!27:27,Assumptions!28:28)*$G$18 -> 142.5 | DN18: =LOOKUP(DN7,Assumptions!27:27,Assumptions!28:28)*$G$18 -> 142.5 | DO18: =LOOKUP(DO7,Assumptions!27:27,Assumptions!28:28)*$G$18 -> 142.5 | DP18: =LOOKUP(DP7,Assumptions!27:27,Assumptions!28:28)*$G$18 -> 142.5 | DQ18: =LOOKUP(DQ7,Assumptions!27:27,Assumptions!28:28)*$G$18 -> 142.5 | DR18: =LOOKUP(DR7,Assumptions!27:27,Assumptions!28:28)*$G$18 -> 142.5 | DS18: =LOOKUP(DS7,Assumptions!27:27,Assumptions!28:28)*$G$18 -> 142.5 | DT18: =LOOKUP(DT7,Assumptions!27:27,Assumptions!28:28)*$G$18 -> 142.5 | DU18: =LOOKUP(DU7,Assumptions!27:27,Assumptions!28:28)*$G$18 -> 142.5 | DV18: =LOOKUP(DV7,Assumptions!27:27,Assumptions!28:28)*$G$18 -> 142.5 | DW18: =LOOKUP(DW7,Assumptions!27:27,Assumptions!28:28)*$G$18 -> 142.5 | DX18: =LOOKUP(DX7,Assumptions!27:27,Assumptions!28:28)*$G$18 -> 142.5 | DY18: =LOOKUP(DY7,Assumptions!27:27,Assumptions!28:28)*$G$18 -> 142.5 | DZ18: =LOOKUP(DZ7,Assumptions!27:27,Assumptions!28:28)*$G$18 -> 142.5 | EA18: =LOOKUP(EA7,Assumptions!27:27,Assumptions!28:28)*$G$18 -> 142.5 | EB18: =LOOKUP(EB7,Assumptions!27:27,Assumptions!28:28)*$G$18 -> 142.5 | EC18: =LOOKUP(EC7,Assumptions!27:27,Assumptions!28:28)*$G$18 -> 142.5 | ED18: =LOOKUP(ED7,Assumptions!27:27,Assumptions!28:28)*$G$18 -> 142.5 | EE18: =LOOKUP(EE7,Assumptions!27:27,Assumptions!28:28)*$G$18 -> 142.5 | EF18: =LOOKUP(EF7,Assumptions!27:27,Assumptions!28:28)*$G$18 -> 142.5 | EG18: =LOOKUP(EG7,Assumptions!27:27,Assumptions!28:28)*$G$18 -> 142.5 | EH18: =LOOKUP(EH7,Assumptions!27:27,Assumptions!28:28)*$G$18 -> 142.5 | EI18: =LOOKUP(EI7,Assumptions!27:27,Assumptions!28:28)*$G$18 -> 142.5 | EJ18: =LOOKUP(EJ7,Assumptions!27:27,Assumptions!28:28)*$G$18 -> 142.5 | EK18: =LOOKUP(EK7,Assumptions!27:27,Assumptions!28:28)*$G$18 -> 142.5 | EL18: =LOOKUP(EL7,Assumptions!27:27,Assumptions!28:28)*$G$18 -> 142.5 | EM18: =LOOKUP(EM7,Assumptions!27:27,Assumptions!28:28)*$G$18 -> 142.5 | EN18: =LOOKUP(EN7,Assumptions!27:27,Assumptions!28:28)*$G$18 -> 142.5 | EO18: =LOOKUP(EO7,Assumptions!27:27,Assumptions!28:28)*$G$18 -> 142.5 | EP18: =LOOKUP(EP7,Assumptions!27:27,Assumptions!28:28)*$G$18 -> 142.5 | EQ18: =LOOKUP(EQ7,Assumptions!27:27,Assumptions!28:28)*$G$18 -> 142.5 | ER18: =LOOKUP(ER7,Assumptions!27:27,Assumptions!28:28)*$G$18 -> 142.5 | ES18: =LOOKUP(ES7,Assumptions!27:27,Assumptions!28:28)*$G$18 -> 142.5 | ET18: =LOOKUP(ET7,Assumptions!27:27,Assumptions!28:28)*$G$18 -> 142.5 | EU18: =LOOKUP(EU7,Assumptions!27:27,Assumptions!28:28)*$G$18 -> 142.5 | EV18: =LOOKUP(EV7,Assumptions!27:27,Assumptions!28:28)*$G$18 -> 142.5 | EW18: =LOOKUP(EW7,Assumptions!27:27,Assumptions!28:28)*$G$18 -> 142.5 | EX18: =LOOKUP(EX7,Assumptions!27:27,Assumptions!28:28)*$G$18 -> 142.5 | EY18: =LOOKUP(EY7,Assumptions!27:27,Assumptions!28:28)*$G$18 -> 142.5 | EZ18: =LOOKUP(EZ7,Assumptions!27:27,Assumptions!28:28)*$G$18 -> 142.5 | FA18: =LOOKUP(FA7,Assumptions!27:27,Assumptions!28:28)*$G$18 -> 142.5 | FB18: =LOOKUP(FB7,Assumptions!27:27,Assumptions!28:28)*$G$18 -> 142.5 | FC18: =LOOKUP(FC7,Assumptions!27:27,Assumptions!28:28)*$G$18 -> 142.5 | FD18: =LOOKUP(FD7,Assumptions!27:27,Assumptions!28:28)*$G$18 -> 142.5 | FE18: =LOOKUP(FE7,Assumptions!27:27,Assumptions!28:28)*$G$18 -> 142.5 | FF18: =LOOKUP(FF7,Assumptions!27:27,Assumptions!28:28)*$G$18 -> 142.5 | FG18: =LOOKUP(FG7,Assumptions!27:27,Assumptions!28:28)*$G$18 -> 142.5 | FH18: =LOOKUP(FH7,Assumptions!27:27,Assumptions!28:28)*$G$18 -> 142.5 | FI18: =LOOKUP(FI7,Assumptions!27:27,Assumptions!28:28)*$G$18 -> 142.5 | FJ18: =LOOKUP(FJ7,Assumptions!27:27,Assumptions!28:28)*$G$18 -> 142.5 | FK18: =LOOKUP(FK7,Assumptions!27:27,Assumptions!28:28)*$G$18 -> 142.5 | FL18: =LOOKUP(FL7,Assumptions!27:27,Assumptions!28:28)*$G$18 -> 142.5 | FM18: =LOOKUP(FM7,Assumptions!27:27,Assumptions!28:28)*$G$18 -> 142.5 | FN18: =LOOKUP(FN7,Assumptions!27:27,Assumptions!28:28)*$G$18 -> 142.5 | FO18: =LOOKUP(FO7,Assumptions!27:27,Assumptions!28:28)*$G$18 -> 142.5 | FP18: =LOOKUP(FP7,Assumptions!27:27,Assumptions!28:28)*$G$18 -> 142.5 | FQ18: =LOOKUP(FQ7,Assumptions!27:27,Assumptions!28:28)*$G$18 -> 142.5 | FR18: =LOOKUP(FR7,Assumptions!27:27,Assumptions!28:28)*$G$18 -> 142.5 | FS18: =LOOKUP(FS7,Assumptions!27:27,Assumptions!28:28)*$G$18 -> 142.5 | FT18: =LOOKUP(FT7,Assumptions!27:27,Assumptions!28:28)*$G$18 -> 142.5 | FU18: =LOOKUP(FU7,Assumptions!27:27,Assumptions!28:28)*$G$18 -> 142.5 | FV18: =LOOKUP(FV7,Assumptions!27:27,Assumptions!28:28)*$G$18 -> 142.5 | FW18: =LOOKUP(FW7,Assumptions!27:27,Assumptions!28:28)*$G$18 -> 142.5 | FX18: =LOOKUP(FX7,Assumptions!27:27,Assumptions!28:28)*$G$18 -> 142.5 | FY18: =LOOKUP(FY7,Assumptions!27:27,Assumptions!28:28)*$G$18 -> 142.5 | FZ18: =LOOKUP(FZ7,Assumptions!27:27,Assumptions!28:28)*$G$18 -> 142.5 | GA18: =LOOKUP(GA7,Assumptions!27:27,Assumptions!28:28)*$G$18 -> 142.5 | GB18: =LOOKUP(GB7,Assumptions!27:27,Assumptions!28:28)*$G$18 -> 142.5 | GC18: =LOOKUP(GC7,Assumptions!27:27,Assumptions!28:28)*$G$18 -> 142.5 | GD18: =LOOKUP(GD7,Assumptions!27:27,Assumptions!28:28)*$G$18 -> 142.5 | GE18: =LOOKUP(GE7,Assumptions!27:27,Assumptions!28:28)*$G$18 -> 142.5 | GF18: =LOOKUP(GF7,Assumptions!27:27,Assumptions!28:28)*$G$18 -> 142.5 | GG18: =LOOKUP(GG7,Assumptions!27:27,Assumptions!28:28)*$G$18 -> 142.5 | GH18: =LOOKUP(GH7,Assumptions!27:27,Assumptions!28:28)*$G$18 -> 142.5 | GI18: =LOOKUP(GI7,Assumptions!27:27,Assumptions!28:28)*$G$18 -> 142.5 | GJ18: =LOOKUP(GJ7,Assumptions!27:27,Assumptions!28:28)*$G$18 -> 142.5 | GK18: =LOOKUP(GK7,Assumptions!27:27,Assumptions!28:28)*$G$18 -> 142.5 | GL18: =LOOKUP(GL7,Assumptions!27:27,Assumptions!28:28)*$G$18 -> 142.5 | GM18: =LOOKUP(GM7,Assumptions!27:27,Assumptions!28:28)*$G$18 -> 142.5 | GN18: =LOOKUP(GN7,Assumptions!27:27,Assumptions!28:28)*$G$18 -> 142.5 | GO18: =LOOKUP(GO7,Assumptions!27:27,Assumptions!28:28)*$G$18 -> 142.5 | GP18: =LOOKUP(GP7,Assumptions!27:27,Assumptions!28:28)*$G$18 -> 142.5 | GQ18: =LOOKUP(GQ7,Assumptions!27:27,Assumptions!28:28)*$G$18 -> 142.5 | GR18: =LOOKUP(GR7,Assumptions!27:27,Assumptions!28:28)*$G$18 -> 142.5 | GS18: =LOOKUP(GS7,Assumptions!27:27,Assumptions!28:28)*$G$18 -> 142.5 | GT18: =LOOKUP(GT7,Assumptions!27:27,Assumptions!28:28)*$G$18 -> 142.5 | GU18: =LOOKUP(GU7,Assumptions!27:27,Assumptions!28:28)*$G$18 -> 142.5 | GV18: =LOOKUP(GV7,Assumptions!27:27,Assumptions!28:28)*$G$18 -> 142.5 | GW18: =LOOKUP(GW7,Assumptions!27:27,Assumptions!28:28)*$G$18 -> 142.5 | GX18: =LOOKUP(GX7,Assumptions!27:27,Assumptions!28:28)*$G$18 -> 142.5 | GY18: =LOOKUP(GY7,Assumptions!27:27,Assumptions!28:28)*$G$18 -> 142.5 | GZ18: =LOOKUP(GZ7,Assumptions!27:27,Assumptions!28:28)*$G$18 -> 142.5 | HA18: =LOOKUP(HA7,Assumptions!27:27,Assumptions!28:28)*$G$18 -> 142.5 | HB18: =LOOKUP(HB7,Assumptions!27:27,Assumptions!28:28)*$G$18 -> 142.5 | HC18: =LOOKUP(HC7,Assumptions!27:27,Assumptions!28:28)*$G$18 -> 142.5 | HD18: =LOOKUP(HD7,Assumptions!27:27,Assumptions!28:28)*$G$18 -> 142.5 | HE18: =LOOKUP(HE7,Assumptions!27:27,Assumptions!28:28)*$G$18 -> 142.5 | HF18: =LOOKUP(HF7,Assumptions!27:27,Assumptions!28:28)*$G$18 -> 142.5 | HG18: =LOOKUP(HG7,Assumptions!27:27,Assumptions!28:28)*$G$18 -> 142.5 | HH18: =LOOKUP(HH7,Assumptions!27:27,Assumptions!28:28)*$G$18 -> 142.5 | HI18: =LOOKUP(HI7,Assumptions!27:27,Assumptions!28:28)*$G$18 -> 142.5 | HJ18: =LOOKUP(HJ7,Assumptions!27:27,Assumptions!28:28)*$G$18 -> 142.5 | HK18: =LOOKUP(HK7,Assumptions!27:27,Assumptions!28:28)*$G$18 -> 142.5 | HL18: =LOOKUP(HL7,Assumptions!27:27,Assumptions!28:28)*$G$18 -> 142.5 | HM18: =LOOKUP(HM7,Assumptions!27:27,Assumptions!28:28)*$G$18 -> 142.5 | HN18: =LOOKUP(HN7,Assumptions!27:27,Assumptions!28:28)*$G$18 -> 142.5 | HO18: =LOOKUP(HO7,Assumptions!27:27,Assumptions!28:28)*$G$18 -> 142.5 | HP18: =LOOKUP(HP7,Assumptions!27:27,Assumptions!28:28)*$G$18 -> 142.5 | HQ18: =LOOKUP(HQ7,Assumptions!27:27,Assumptions!28:28)*$G$18 -> 142.5 | HR18: =LOOKUP(HR7,Assumptions!27:27,Assumptions!28:28)*$G$18 -> 142.5 | HS18: =LOOKUP(HS7,Assumptions!27:27,Assumptions!28:28)*$G$18 -> 142.5 | HT18: =LOOKUP(HT7,Assumptions!27:27,Assumptions!28:28)*$G$18 -> 142.5 | HU18: =LOOKUP(HU7,Assumptions!27:27,Assumptions!28:28)*$G$18 -> 142.5 | HV18: =LOOKUP(HV7,Assumptions!27:27,Assumptions!28:28)*$G$18 -> 142.5 | HW18: =LOOKUP(HW7,Assumptions!27:27,Assumptions!28:28)*$G$18 -> 142.5 | HX18: =LOOKUP(HX7,Assumptions!27:27,Assumptions!28:28)*$G$18 -> 142.5 | HY18: =LOOKUP(HY7,Assumptions!27:27,Assumptions!28:28)*$G$18 -> 142.5 | HZ18: =LOOKUP(HZ7,Assumptions!27:27,Assumptions!28:28)*$G$18 -> 142.5 | IA18: =LOOKUP(IA7,Assumptions!27:27,Assumptions!28:28)*$G$18 -> 142.5 | IB18: =LOOKUP(IB7,Assumptions!27:27,Assumptions!28:28)*$G$18 -> 142.5 | IC18: =LOOKUP(IC7,Assumptions!27:27,Assumptions!28:28)*$G$18 -> 142.5 | ID18: =LOOKUP(ID7,Assumptions!27:27,Assumptions!28:28)*$G$18 -> 142.5 | IE18: =LOOKUP(IE7,Assumptions!27:27,Assumptions!28:28)*$G$18 -> 142.5 | IF18: =LOOKUP(IF7,Assumptions!27:27,Assumptions!28:28)*$G$18 -> 142.5 | IG18: =LOOKUP(IG7,Assumptions!27:27,Assumptions!28:28)*$G$18 -> 142.5 | IH18: =LOOKUP(IH7,Assumptions!27:27,Assumptions!28:28)*$G$18 -> 142.5 | II18: =LOOKUP(II7,Assumptions!27:27,Assumptions!28:28)*$G$18 -> 142.5 | IJ18: =LOOKUP(IJ7,Assumptions!27:27,Assumptions!28:28)*$G$18 -> 142.5 | IK18: =LOOKUP(IK7,Assumptions!27:27,Assumptions!28:28)*$G$18 -> 142.5 | IL18: =LOOKUP(IL7,Assumptions!27:27,Assumptions!28:28)*$G$18 -> 142.5 | IM18: =LOOKUP(IM7,Assumptions!27:27,Assumptions!28:28)*$G$18 -> 142.5 | IN18: =LOOKUP(IN7,Assumptions!27:27,Assumptions!28:28)*$G$18 -> 142.5 | IO18: =LOOKUP(IO7,Assumptions!27:27,Assumptions!28:28)*$G$18 -> 142.5 | IP18: =LOOKUP(IP7,Assumptions!27:27,Assumptions!28:28)*$G$18 -> 142.5 | IQ18: =LOOKUP(IQ7,Assumptions!27:27,Assumptions!28:28)*$G$18 -> 142.5 | IR18: =LOOKUP(IR7,Assumptions!27:27,Assumptions!28:28)*$G$18 -> 142.5 | IS18: =LOOKUP(IS7,Assumptions!27:27,Assumptions!28:28)*$G$18 -> 142.5 | IT18: =LOOKUP(IT7,Assumptions!27:27,Assumptions!28:28)*$G$18 -> 142.5 | IU18: =LOOKUP(IU7,Assumptions!27:27,Assumptions!28:28)*$G$18 -> 142.5 | IV18: =LOOKUP(IV7,Assumptions!27:27,Assumptions!28:28)*$G$18 -> 142.5 | IW18: =LOOKUP(IW7,Assumptions!27:27,Assumptions!28:28)*$G$18 -> 142.5 | IX18: =LOOKUP(IX7,Assumptions!27:27,Assumptions!28:28)*$G$18 -> 142.5 | IY18: =LOOKUP(IY7,Assumptions!27:27,Assumptions!28:28)*$G$18 -> 142.5 | IZ18: =LOOKUP(IZ7,Assumptions!27:27,Assumptions!28:28)*$G$18 -> 142.5 | JA18: =LOOKUP(JA7,Assumptions!27:27,Assumptions!28:28)*$G$18 -> 142.5 | JB18: =LOOKUP(JB7,Assumptions!27:27,Assumptions!28:28)*$G$18 -> 142.5 | JC18: =LOOKUP(JC7,Assumptions!27:27,Assumptions!28:28)*$G$18 -> 142.5 | JD18: =LOOKUP(JD7,Assumptions!27:27,Assumptions!28:28)*$G$18 -> 142.5 | JE18: =LOOKUP(JE7,Assumptions!27:27,Assumptions!28:28)*$G$18 -> 142.5 | JF18: =LOOKUP(JF7,Assumptions!27:27,Assumptions!28:28)*$G$18 -> 142.5 | JG18: =LOOKUP(JG7,Assumptions!27:27,Assumptions!28:28)*$G$18 -> 142.5 | JH18: =LOOKUP(JH7,Assumptions!27:27,Assumptions!28:28)*$G$18 -> 142.5 | JI18: =LOOKUP(JI7,Assumptions!27:27,Assumptions!28:28)*$G$18 -> 142.5 | JJ18: =LOOKUP(JJ7,Assumptions!27:27,Assumptions!28:28)*$G$18 -> 142.5 | JK18: =LOOKUP(JK7,Assumptions!27:27,Assumptions!28:28)*$G$18 -> 142.5 | JL18: =LOOKUP(JL7,Assumptions!27:27,Assumptions!28:28)*$G$18 -> 142.5 | JM18: =LOOKUP(JM7,Assumptions!27:27,Assumptions!28:28)*$G$18 -> 142.5 | JN18: =LOOKUP(JN7,Assumptions!27:27,Assumptions!28:28)*$G$18 -> 142.5 | JO18: =LOOKUP(JO7,Assumptions!27:27,Assumptions!28:28)*$G$18 -> 142.5 | JP18: =LOOKUP(JP7,Assumptions!27:27,Assumptions!28:28)*$G$18 -> 142.5 | JQ18: =LOOKUP(JQ7,Assumptions!27:27,Assumptions!28:28)*$G$18 -> 142.5 | JR18: =LOOKUP(JR7,Assumptions!27:27,Assumptions!28:28)*$G$18 -> 142.5 | JS18: =LOOKUP(JS7,Assumptions!27:27,Assumptions!28:28)*$G$18 -> 142.5 | JT18: =LOOKUP(JT7,Assumptions!27:27,Assumptions!28:28)*$G$18 -> 142.5 | JU18: =LOOKUP(JU7,Assumptions!27:27,Assumptions!28:28)*$G$18 -> 142.5 | JV18: =LOOKUP(JV7,Assumptions!27:27,Assumptions!28:28)*$G$18 -> 142.5 | JW18: =LOOKUP(JW7,Assumptions!27:27,Assumptions!28:28)*$G$18 -> 142.5 | JX18: =LOOKUP(JX7,Assumptions!27:27,Assumptions!28:28)*$G$18 -> 142.5 | JY18: =LOOKUP(JY7,Assumptions!27:27,Assumptions!28:28)*$G$18 -> 142.5 | JZ18: =LOOKUP(JZ7,Assumptions!27:27,Assumptions!28:28)*$G$18 -> 142.5 | KA18: =LOOKUP(KA7,Assumptions!27:27,Assumptions!28:28)*$G$18 -> 142.5 | KB18: =LOOKUP(KB7,Assumptions!27:27,Assumptions!28:28)*$G$18 -> 142.5 | KC18: =LOOKUP(KC7,Assumptions!27:27,Assumptions!28:28)*$G$18 -> 142.5 | KD18: =LOOKUP(KD7,Assumptions!27:27,Assumptions!28:28)*$G$18 -> 142.5 | KE18: =LOOKUP(KE7,Assumptions!27:27,Assumptions!28:28)*$G$18 -> 142.5 | KF18: =LOOKUP(KF7,Assumptions!27:27,Assumptions!28:28)*$G$18 -> 142.5 | KG18: =LOOKUP(KG7,Assumptions!27:27,Assumptions!28:28)*$G$18 -> 142.5 | KH18: =LOOKUP(KH7,Assumptions!27:27,Assumptions!28:28)*$G$18 -> 142.5 | KI18: =LOOKUP(KI7,Assumptions!27:27,Assumptions!28:28)*$G$18 -> 142.5 | KJ18: =LOOKUP(KJ7,Assumptions!27:27,Assumptions!28:28)*$G$18 -> 142.5 | KK18: =LOOKUP(KK7,Assumptions!27:27,Assumptions!28:28)*$G$18 -> 142.5 | KL18: =LOOKUP(KL7,Assumptions!27:27,Assumptions!28:28)*$G$18 -> 142.5 | KM18: =LOOKUP(KM7,Assumptions!27:27,Assumptions!28:28)*$G$18 -> 142.5 | KN18: =LOOKUP(KN7,Assumptions!27:27,Assumptions!28:28)*$G$18 -> 142.5 | KO18: =LOOKUP(KO7,Assumptions!27:27,Assumptions!28:28)*$G$18 -> 142.5 | KP18: =LOOKUP(KP7,Assumptions!27:27,Assumptions!28:28)*$G$18 -> 142.5 | KQ18: =LOOKUP(KQ7,Assumptions!27:27,Assumptions!28:28)*$G$18 -> 142.5 | KR18: =LOOKUP(KR7,Assumptions!27:27,Assumptions!28:28)*$G$18 -> 142.5 | KS18: =LOOKUP(KS7,Assumptions!27:27,Assumptions!28:28)*$G$18 -> 142.5 | KT18: =LOOKUP(KT7,Assumptions!27:27,Assumptions!28:28)*$G$18 -> 142.5 | KU18: =LOOKUP(KU7,Assumptions!27:27,Assumptions!28:28)*$G$18 -> 142.5 | KV18: =LOOKUP(KV7,Assumptions!27:27,Assumptions!28:28)*$G$18 -> 142.5
B19: Availability | E19: % | G19: =Scenario!F13 -> 0.95 | I19: =LOOKUP(I17,Assumptions!31:31,Assumptions!33:33) -> 0.85 | J19: =LOOKUP(J17,Assumptions!31:31,Assumptions!33:33) -> 0.85 | K19: =LOOKUP(K17,Assumptions!31:31,Assumptions!33:33) -> 0.85 | L19: =LOOKUP(L17,Assumptions!31:31,Assumptions!33:33) -> 0.85 | M19: =LOOKUP(M17,Assumptions!31:31,Assumptions!33:33) -> 0.85 | N19: =LOOKUP(N17,Assumptions!31:31,Assumptions!33:33) -> 0.85 | O19: =LOOKUP(O17,Assumptions!31:31,Assumptions!33:33) -> 0.85 | P19: =LOOKUP(P17,Assumptions!31:31,Assumptions!33:33) -> 0.85 | Q19: =LOOKUP(Q17,Assumptions!31:31,Assumptions!33:33) -> 0.85 | R19: =LOOKUP(R17,Assumptions!31:31,Assumptions!33:33) -> 0.85 | S19: =LOOKUP(S17,Assumptions!31:31,Assumptions!33:33) -> 0.85 | T19: =LOOKUP(T17,Assumptions!31:31,Assumptions!33:33) -> 0.85 | U19: =LOOKUP(U17,Assumptions!31:31,Assumptions!33:33) -> 0.85 | V19: =LOOKUP(V17,Assumptions!31:31,Assumptions!33:33) -> 0.85 | W19: =LOOKUP(W17,Assumptions!31:31,Assumptions!33:33) -> 0.85 | X19: =LOOKUP(X17,Assumptions!31:31,Assumptions!33:33) -> 0.85 | Y19: =LOOKUP(Y17,Assumptions!31:31,Assumptions!33:33) -> 0.85 | Z19: =LOOKUP(Z17,Assumptions!31:31,Assumptions!33:33) -> 0.85 | AA19: =LOOKUP(AA17,Assumptions!31:31,Assumptions!33:33) -> 0.85 | AB19: =LOOKUP(AB17,Assumptions!31:31,Assumptions!33:33) -> 0.85 | AC19: =LOOKUP(AC17,Assumptions!31:31,Assumptions!33:33) -> 0.85 | AD19: =LOOKUP(AD17,Assumptions!31:31,Assumptions!33:33) -> 0.85 | AE19: =LOOKUP(AE17,Assumptions!31:31,Assumptions!33:33) -> 0.85 | AF19: =LOOKUP(AF17,Assumptions!31:31,Assumptions!33:33) -> 0.85 | AG19: =LOOKUP(AG17,Assumptions!31:31,Assumptions!33:33) -> 0.85 | AH19: =LOOKUP(AH17,Assumptions!31:31,Assumptions!33:33) -> 0.85 | AI19: =LOOKUP(AI17,Assumptions!31:31,Assumptions!33:33) -> 0.85 | AJ19: =LOOKUP(AJ17,Assumptions!31:31,Assumptions!33:33) -> 0.85 | AK19: =LOOKUP(AK17,Assumptions!31:31,Assumptions!33:33) -> 0.85 | AL19: =LOOKUP(AL17,Assumptions!31:31,Assumptions!33:33) -> 0.85 | AM19: =LOOKUP(AM17,Assumptions!31:31,Assumptions!33:33) -> 0.85 | AN19: =LOOKUP(AN17,Assumptions!31:31,Assumptions!33:33) -> 0.85 | AO19: =LOOKUP(AO17,Assumptions!31:31,Assumptions!33:33) -> 0.85 | AP19: =LOOKUP(AP17,Assumptions!31:31,Assumptions!33:33) -> 0.85 | AQ19: =LOOKUP(AQ17,Assumptions!31:31,Assumptions!33:33) -> 0.85 | AR19: =LOOKUP(AR17,Assumptions!31:31,Assumptions!33:33) -> 0.85 | AS19: =LOOKUP(AS17,Assumptions!31:31,Assumptions!33:33) -> 0.85 | AT19: =LOOKUP(AT17,Assumptions!31:31,Assumptions!33:33) -> 0.85 | AU19: =LOOKUP(AU17,Assumptions!31:31,Assumptions!33:33) -> 0.85 | AV19: =LOOKUP(AV17,Assumptions!31:31,Assumptions!33:33) -> 0.85 | AW19: =LOOKUP(AW17,Assumptions!31:31,Assumptions!33:33) -> 0.85 | AX19: =LOOKUP(AX17,Assumptions!31:31,Assumptions!33:33) -> 0.85 | AY19: =LOOKUP(AY17,Assumptions!31:31,Assumptions!33:33) -> 0.85 | AZ19: =LOOKUP(AZ17,Assumptions!31:31,Assumptions!33:33) -> 0.85 | BA19: =LOOKUP(BA17,Assumptions!31:31,Assumptions!33:33) -> 0.85 | BB19: =LOOKUP(BB17,Assumptions!31:31,Assumptions!33:33) -> 0.85 | BC19: =LOOKUP(BC17,Assumptions!31:31,Assumptions!33:33) -> 0.85 | BD19: =LOOKUP(BD17,Assumptions!31:31,Assumptions!33:33) -> 0.85 | BE19: =LOOKUP(BE17,Assumptions!31:31,Assumptions!33:33) -> 0.85 | BF19: =LOOKUP(BF17,Assumptions!31:31,Assumptions!33:33) -> 0.85 | BG19: =LOOKUP(BG17,Assumptions!31:31,Assumptions!33:33) -> 0.85 | BH19: =LOOKUP(BH17,Assumptions!31:31,Assumptions!33:33) -> 0.85 | BI19: =LOOKUP(BI17,Assumptions!31:31,Assumptions!33:33) -> 0.85 | BJ19: =LOOKUP(BJ17,Assumptions!31:31,Assumptions!33:33) -> 0.85 | BK19: =LOOKUP(BK17,Assumptions!31:31,Assumptions!33:33) -> 0.85 | BL19: =LOOKUP(BL17,Assumptions!31:31,Assumptions!33:33) -> 0.85 | BM19: =LOOKUP(BM17,Assumptions!31:31,Assumptions!33:33) -> 0.85 | BN19: =LOOKUP(BN17,Assumptions!31:31,Assumptions!33:33) -> 0.85 | BO19: =LOOKUP(BO17,Assumptions!31:31,Assumptions!33:33) -> 0.85 | BP19: =LOOKUP(BP17,Assumptions!31:31,Assumptions!33:33) -> 0.85 | BQ19: =LOOKUP(BQ17,Assumptions!31:31,Assumptions!33:33) -> 0.85 | BR19: =LOOKUP(BR17,Assumptions!31:31,Assumptions!33:33) -> 0.85 | BS19: =LOOKUP(BS17,Assumptions!31:31,Assumptions!33:33) -> 0.85 | BT19: =LOOKUP(BT17,Assumptions!31:31,Assumptions!33:33) -> 0.85 | BU19: =LOOKUP(BU17,Assumptions!31:31,Assumptions!33:33) -> 0.85 | BV19: =LOOKUP(BV17,Assumptions!31:31,Assumptions!33:33) -> 0.85 | BW19: =LOOKUP(BW17,Assumptions!31:31,Assumptions!33:33) -> 0.85 | BX19: =LOOKUP(BX17,Assumptions!31:31,Assumptions!33:33) -> 0.85 | BY19: =LOOKUP(BY17,Assumptions!31:31,Assumptions!33:33) -> 0.85 | BZ19: =LOOKUP(BZ17,Assumptions!31:31,Assumptions!33:33) -> 0.85 | CA19: =LOOKUP(CA17,Assumptions!31:31,Assumptions!33:33) -> 0.85 | CB19: =LOOKUP(CB17,Assumptions!31:31,Assumptions!33:33) -> 0.85 | CC19: =LOOKUP(CC17,Assumptions!31:31,Assumptions!33:33) -> 0.85 | CD19: =LOOKUP(CD17,Assumptions!31:31,Assumptions!33:33) -> 0.85 | CE19: =LOOKUP(CE17,Assumptions!31:31,Assumptions!33:33) -> 0.85 | CF19: =LOOKUP(CF17,Assumptions!31:31,Assumptions!33:33) -> 0.85 | CG19: =LOOKUP(CG17,Assumptions!31:31,Assumptions!33:33) -> 0.85 | CH19: =LOOKUP(CH17,Assumptions!31:31,Assumptions!33:33) -> 0.85 | CI19: =LOOKUP(CI17,Assumptions!31:31,Assumptions!33:33) -> 0.85 | CJ19: =LOOKUP(CJ17,Assumptions!31:31,Assumptions!33:33) -> 0.85 | CK19: =LOOKUP(CK17,Assumptions!31:31,Assumptions!33:33) -> 0.85 | CL19: =LOOKUP(CL17,Assumptions!31:31,Assumptions!33:33) -> 0.85 | CM19: =LOOKUP(CM17,Assumptions!31:31,Assumptions!33:33) -> 0.85 | CN19: =LOOKUP(CN17,Assumptions!31:31,Assumptions!33:33) -> 0.85 | CO19: =LOOKUP(CO17,Assumptions!31:31,Assumptions!33:33) -> 0.85 | CP19: =LOOKUP(CP17,Assumptions!31:31,Assumptions!33:33) -> 0.85 | CQ19: =LOOKUP(CQ17,Assumptions!31:31,Assumptions!33:33) -> 0.85 | CR19: =LOOKUP(CR17,Assumptions!31:31,Assumptions!33:33) -> 0.85 | CS19: =LOOKUP(CS17,Assumptions!31:31,Assumptions!33:33) -> 0.85 | CT19: =LOOKUP(CT17,Assumptions!31:31,Assumptions!33:33) -> 0.85 | CU19: =LOOKUP(CU17,Assumptions!31:31,Assumptions!33:33) -> 0.85 | CV19: =LOOKUP(CV17,Assumptions!31:31,Assumptions!33:33) -> 0.85 | CW19: =LOOKUP(CW17,Assumptions!31:31,Assumptions!33:33) -> 0.85 | CX19: =LOOKUP(CX17,Assumptions!31:31,Assumptions!33:33) -> 0.85 | CY19: =LOOKUP(CY17,Assumptions!31:31,Assumptions!33:33) -> 0.85 | CZ19: =LOOKUP(CZ17,Assumptions!31:31,Assumptions!33:33) -> 0.85 | DA19: =LOOKUP(DA17,Assumptions!31:31,Assumptions!33:33) -> 0.85 | DB19: =LOOKUP(DB17,Assumptions!31:31,Assumptions!33:33) -> 0.85 | DC19: =LOOKUP(DC17,Assumptions!31:31,Assumptions!33:33) -> 0.85 | DD19: =LOOKUP(DD17,Assumptions!31:31,Assumptions!33:33) -> 0.85 | DE19: =LOOKUP(DE17,Assumptions!31:31,Assumptions!33:33) -> 0.85 | DF19: =LOOKUP(DF17,Assumptions!31:31,Assumptions!33:33) -> 0.85 | DG19: =LOOKUP(DG17,Assumptions!31:31,Assumptions!33:33) -> 0.85 | DH19: =LOOKUP(DH17,Assumptions!31:31,Assumptions!33:33) -> 0.85 | DI19: =LOOKUP(DI17,Assumptions!31:31,Assumptions!33:33) -> 0.85 | DJ19: =LOOKUP(DJ17,Assumptions!31:31,Assumptions!33:33) -> 0.85 | DK19: =LOOKUP(DK17,Assumptions!31:31,Assumptions!33:33) -> 0.85 | DL19: =LOOKUP(DL17,Assumptions!31:31,Assumptions!33:33) -> 0.85 | DM19: =LOOKUP(DM17,Assumptions!31:31,Assumptions!33:33) -> 0.85 | DN19: =LOOKUP(DN17,Assumptions!31:31,Assumptions!33:33) -> 0.85 | DO19: =LOOKUP(DO17,Assumptions!31:31,Assumptions!33:33) -> 0.85 | DP19: =LOOKUP(DP17,Assumptions!31:31,Assumptions!33:33) -> 0.85 | DQ19: =LOOKUP(DQ17,Assumptions!31:31,Assumptions!33:33) -> 0.85 | DR19: =LOOKUP(DR17,Assumptions!31:31,Assumptions!33:33) -> 0.85 | DS19: =LOOKUP(DS17,Assumptions!31:31,Assumptions!33:33) -> 0.85 | DT19: =LOOKUP(DT17,Assumptions!31:31,Assumptions!33:33) -> 0.85 | DU19: =LOOKUP(DU17,Assumptions!31:31,Assumptions!33:33) -> 0.85 | DV19: =LOOKUP(DV17,Assumptions!31:31,Assumptions!33:33) -> 0.85 | DW19: =LOOKUP(DW17,Assumptions!31:31,Assumptions!33:33) -> 0.85 | DX19: =LOOKUP(DX17,Assumptions!31:31,Assumptions!33:33) -> 0.85 | DY19: =LOOKUP(DY17,Assumptions!31:31,Assumptions!33:33) -> 0.85 | DZ19: =LOOKUP(DZ17,Assumptions!31:31,Assumptions!33:33) -> 0.85 | EA19: =LOOKUP(EA17,Assumptions!31:31,Assumptions!33:33) -> 0.85 | EB19: =LOOKUP(EB17,Assumptions!31:31,Assumptions!33:33) -> 0.85 | EC19: =LOOKUP(EC17,Assumptions!31:31,Assumptions!33:33) -> 0.85 | ED19: =LOOKUP(ED17,Assumptions!31:31,Assumptions!33:33) -> 0.85 | EE19: =LOOKUP(EE17,Assumptions!31:31,Assumptions!33:33) -> 0.85 | EF19: =LOOKUP(EF17,Assumptions!31:31,Assumptions!33:33) -> 0.85 | EG19: =LOOKUP(EG17,Assumptions!31:31,Assumptions!33:33) -> 0.85 | EH19: =LOOKUP(EH17,Assumptions!31:31,Assumptions!33:33) -> 0.85 | EI19: =LOOKUP(EI17,Assumptions!31:31,Assumptions!33:33) -> 0.85 | EJ19: =LOOKUP(EJ17,Assumptions!31:31,Assumptions!33:33) -> 0.85 | EK19: =LOOKUP(EK17,Assumptions!31:31,Assumptions!33:33) -> 0.85 | EL19: =LOOKUP(EL17,Assumptions!31:31,Assumptions!33:33) -> 0.85 | EM19: =LOOKUP(EM17,Assumptions!31:31,Assumptions!33:33) -> 0.85 | EN19: =LOOKUP(EN17,Assumptions!31:31,Assumptions!33:33) -> 0.85 | EO19: =LOOKUP(EO17,Assumptions!31:31,Assumptions!33:33) -> 0.85 | EP19: =LOOKUP(EP17,Assumptions!31:31,Assumptions!33:33) -> 0.85 | EQ19: =LOOKUP(EQ17,Assumptions!31:31,Assumptions!33:33) -> 0.85 | ER19: =LOOKUP(ER17,Assumptions!31:31,Assumptions!33:33) -> 0.85 | ES19: =LOOKUP(ES17,Assumptions!31:31,Assumptions!33:33) -> 0.85 | ET19: =LOOKUP(ET17,Assumptions!31:31,Assumptions!33:33) -> 0.85 | EU19: =LOOKUP(EU17,Assumptions!31:31,Assumptions!33:33) -> 0.85 | EV19: =LOOKUP(EV17,Assumptions!31:31,Assumptions!33:33) -> 0.85 | EW19: =LOOKUP(EW17,Assumptions!31:31,Assumptions!33:33) -> 0.85 | EX19: =LOOKUP(EX17,Assumptions!31:31,Assumptions!33:33) -> 0.85 | EY19: =LOOKUP(EY17,Assumptions!31:31,Assumptions!33:33) -> 0.85 | EZ19: =LOOKUP(EZ17,Assumptions!31:31,Assumptions!33:33) -> 0.85 | FA19: =LOOKUP(FA17,Assumptions!31:31,Assumptions!33:33) -> 0.85 | FB19: =LOOKUP(FB17,Assumptions!31:31,Assumptions!33:33) -> 0.85 | FC19: =LOOKUP(FC17,Assumptions!31:31,Assumptions!33:33) -> 0.85 | FD19: =LOOKUP(FD17,Assumptions!31:31,Assumptions!33:33) -> 0.85 | FE19: =LOOKUP(FE17,Assumptions!31:31,Assumptions!33:33) -> 0.85 | FF19: =LOOKUP(FF17,Assumptions!31:31,Assumptions!33:33) -> 0.85 | FG19: =LOOKUP(FG17,Assumptions!31:31,Assumptions!33:33) -> 0.85 | FH19: =LOOKUP(FH17,Assumptions!31:31,Assumptions!33:33) -> 0.85 | FI19: =LOOKUP(FI17,Assumptions!31:31,Assumptions!33:33) -> 0.85 | FJ19: =LOOKUP(FJ17,Assumptions!31:31,Assumptions!33:33) -> 0.85 | FK19: =LOOKUP(FK17,Assumptions!31:31,Assumptions!33:33) -> 0.85 | FL19: =LOOKUP(FL17,Assumptions!31:31,Assumptions!33:33) -> 0.85 | FM19: =LOOKUP(FM17,Assumptions!31:31,Assumptions!33:33) -> 0.85 | FN19: =LOOKUP(FN17,Assumptions!31:31,Assumptions!33:33) -> 0.85 | FO19: =LOOKUP(FO17,Assumptions!31:31,Assumptions!33:33) -> 0.85 | FP19: =LOOKUP(FP17,Assumptions!31:31,Assumptions!33:33) -> 0.85 | FQ19: =LOOKUP(FQ17,Assumptions!31:31,Assumptions!33:33) -> 0.85 | FR19: =LOOKUP(FR17,Assumptions!31:31,Assumptions!33:33) -> 0.85 | FS19: =LOOKUP(FS17,Assumptions!31:31,Assumptions!33:33) -> 0.85 | FT19: =LOOKUP(FT17,Assumptions!31:31,Assumptions!33:33) -> 0.85 | FU19: =LOOKUP(FU17,Assumptions!31:31,Assumptions!33:33) -> 0.85 | FV19: =LOOKUP(FV17,Assumptions!31:31,Assumptions!33:33) -> 0.85 | FW19: =LOOKUP(FW17,Assumptions!31:31,Assumptions!33:33) -> 0.85 | FX19: =LOOKUP(FX17,Assumptions!31:31,Assumptions!33:33) -> 0.85 | FY19: =LOOKUP(FY17,Assumptions!31:31,Assumptions!33:33) -> 0.85 | FZ19: =LOOKUP(FZ17,Assumptions!31:31,Assumptions!33:33) -> 0.85 | GA19: =LOOKUP(GA17,Assumptions!31:31,Assumptions!33:33) -> 0.85 | GB19: =LOOKUP(GB17,Assumptions!31:31,Assumptions!33:33) -> 0.85 | GC19: =LOOKUP(GC17,Assumptions!31:31,Assumptions!33:33) -> 0.85 | GD19: =LOOKUP(GD17,Assumptions!31:31,Assumptions!33:33) -> 0.85 | GE19: =LOOKUP(GE17,Assumptions!31:31,Assumptions!33:33) -> 0.85 | GF19: =LOOKUP(GF17,Assumptions!31:31,Assumptions!33:33) -> 0.85 | GG19: =LOOKUP(GG17,Assumptions!31:31,Assumptions!33:33) -> 0.85 | GH19: =LOOKUP(GH17,Assumptions!31:31,Assumptions!33:33) -> 0.85 | GI19: =LOOKUP(GI17,Assumptions!31:31,Assumptions!33:33) -> 0.85 | GJ19: =LOOKUP(GJ17,Assumptions!31:31,Assumptions!33:33) -> 0.85 | GK19: =LOOKUP(GK17,Assumptions!31:31,Assumptions!33:33) -> 0.85 | GL19: =LOOKUP(GL17,Assumptions!31:31,Assumptions!33:33) -> 0.85 | GM19: =LOOKUP(GM17,Assumptions!31:31,Assumptions!33:33) -> 0.85 | GN19: =LOOKUP(GN17,Assumptions!31:31,Assumptions!33:33) -> 0.85 | GO19: =LOOKUP(GO17,Assumptions!31:31,Assumptions!33:33) -> 0.85 | GP19: =LOOKUP(GP17,Assumptions!31:31,Assumptions!33:33) -> 0.85 | GQ19: =LOOKUP(GQ17,Assumptions!31:31,Assumptions!33:33) -> 0.85 | GR19: =LOOKUP(GR17,Assumptions!31:31,Assumptions!33:33) -> 0.85 | GS19: =LOOKUP(GS17,Assumptions!31:31,Assumptions!33:33) -> 0.85 | GT19: =LOOKUP(GT17,Assumptions!31:31,Assumptions!33:33) -> 0.85 | GU19: =LOOKUP(GU17,Assumptions!31:31,Assumptions!33:33) -> 0.85 | GV19: =LOOKUP(GV17,Assumptions!31:31,Assumptions!33:33) -> 0.85 | GW19: =LOOKUP(GW17,Assumptions!31:31,Assumptions!33:33) -> 0.85 | GX19: =LOOKUP(GX17,Assumptions!31:31,Assumptions!33:33) -> 0.85 | GY19: =LOOKUP(GY17,Assumptions!31:31,Assumptions!33:33) -> 0.85 | GZ19: =LOOKUP(GZ17,Assumptions!31:31,Assumptions!33:33) -> 0.85 | HA19: =LOOKUP(HA17,Assumptions!31:31,Assumptions!33:33) -> 0.85 | HB19: =LOOKUP(HB17,Assumptions!31:31,Assumptions!33:33) -> 0.85 | HC19: =LOOKUP(HC17,Assumptions!31:31,Assumptions!33:33) -> 0.85 | HD19: =LOOKUP(HD17,Assumptions!31:31,Assumptions!33:33) -> 0.85 | HE19: =LOOKUP(HE17,Assumptions!31:31,Assumptions!33:33) -> 0.85 | HF19: =LOOKUP(HF17,Assumptions!31:31,Assumptions!33:33) -> 0.85 | HG19: =LOOKUP(HG17,Assumptions!31:31,Assumptions!33:33) -> 0.85 | HH19: =LOOKUP(HH17,Assumptions!31:31,Assumptions!33:33) -> 0.85 | HI19: =LOOKUP(HI17,Assumptions!31:31,Assumptions!33:33) -> 0.85 | HJ19: =LOOKUP(HJ17,Assumptions!31:31,Assumptions!33:33) -> 0.85 | HK19: =LOOKUP(HK17,Assumptions!31:31,Assumptions!33:33) -> 0.85 | HL19: =LOOKUP(HL17,Assumptions!31:31,Assumptions!33:33) -> 0.85 | HM19: =LOOKUP(HM17,Assumptions!31:31,Assumptions!33:33) -> 0.85 | HN19: =LOOKUP(HN17,Assumptions!31:31,Assumptions!33:33) -> 0.85 | HO19: =LOOKUP(HO17,Assumptions!31:31,Assumptions!33:33) -> 0.85 | HP19: =LOOKUP(HP17,Assumptions!31:31,Assumptions!33:33) -> 0.85 | HQ19: =LOOKUP(HQ17,Assumptions!31:31,Assumptions!33:33) -> 0.85 | HR19: =LOOKUP(HR17,Assumptions!31:31,Assumptions!33:33) -> 0.85 | HS19: =LOOKUP(HS17,Assumptions!31:31,Assumptions!33:33) -> 0.85 | HT19: =LOOKUP(HT17,Assumptions!31:31,Assumptions!33:33) -> 0.85 | HU19: =LOOKUP(HU17,Assumptions!31:31,Assumptions!33:33) -> 0.85 | HV19: =LOOKUP(HV17,Assumptions!31:31,Assumptions!33:33) -> 0.85 | HW19: =LOOKUP(HW17,Assumptions!31:31,Assumptions!33:33) -> 0.85 | HX19: =LOOKUP(HX17,Assumptions!31:31,Assumptions!33:33) -> 0.85 | HY19: =LOOKUP(HY17,Assumptions!31:31,Assumptions!33:33) -> 0.85 | HZ19: =LOOKUP(HZ17,Assumptions!31:31,Assumptions!33:33) -> 0.85 | IA19: =LOOKUP(IA17,Assumptions!31:31,Assumptions!33:33) -> 0.85 | IB19: =LOOKUP(IB17,Assumptions!31:31,Assumptions!33:33) -> 0.85 | IC19: =LOOKUP(IC17,Assumptions!31:31,Assumptions!33:33) -> 0.85 | ID19: =LOOKUP(ID17,Assumptions!31:31,Assumptions!33:33) -> 0.85 | IE19: =LOOKUP(IE17,Assumptions!31:31,Assumptions!33:33) -> 0.85 | IF19: =LOOKUP(IF17,Assumptions!31:31,Assumptions!33:33) -> 0.85 | IG19: =LOOKUP(IG17,Assumptions!31:31,Assumptions!33:33) -> 0.85 | IH19: =LOOKUP(IH17,Assumptions!31:31,Assumptions!33:33) -> 0.85 | II19: =LOOKUP(II17,Assumptions!31:31,Assumptions!33:33) -> 0.85 | IJ19: =LOOKUP(IJ17,Assumptions!31:31,Assumptions!33:33) -> 0.85 | IK19: =LOOKUP(IK17,Assumptions!31:31,Assumptions!33:33) -> 0.85 | IL19: =LOOKUP(IL17,Assumptions!31:31,Assumptions!33:33) -> 0.85 | IM19: =LOOKUP(IM17,Assumptions!31:31,Assumptions!33:33) -> 0.85 | IN19: =LOOKUP(IN17,Assumptions!31:31,Assumptions!33:33) -> 0.85 | IO19: =LOOKUP(IO17,Assumptions!31:31,Assumptions!33:33) -> 0.85 | IP19: =LOOKUP(IP17,Assumptions!31:31,Assumptions!33:33) -> 0.85 | IQ19: =LOOKUP(IQ17,Assumptions!31:31,Assumptions!33:33) -> 0.85 | IR19: =LOOKUP(IR17,Assumptions!31:31,Assumptions!33:33) -> 0.85 | IS19: =LOOKUP(IS17,Assumptions!31:31,Assumptions!33:33) -> 0.85 | IT19: =LOOKUP(IT17,Assumptions!31:31,Assumptions!33:33) -> 0.85 | IU19: =LOOKUP(IU17,Assumptions!31:31,Assumptions!33:33) -> 0.85 | IV19: =LOOKUP(IV17,Assumptions!31:31,Assumptions!33:33) -> 0.85 | IW19: =LOOKUP(IW17,Assumptions!31:31,Assumptions!33:33) -> 0.85 | IX19: =LOOKUP(IX17,Assumptions!31:31,Assumptions!33:33) -> 0.85 | IY19: =LOOKUP(IY17,Assumptions!31:31,Assumptions!33:33) -> 0.85 | IZ19: =LOOKUP(IZ17,Assumptions!31:31,Assumptions!33:33) -> 0.85 | JA19: =LOOKUP(JA17,Assumptions!31:31,Assumptions!33:33) -> 0.85 | JB19: =LOOKUP(JB17,Assumptions!31:31,Assumptions!33:33) -> 0.85 | JC19: =LOOKUP(JC17,Assumptions!31:31,Assumptions!33:33) -> 0.85 | JD19: =LOOKUP(JD17,Assumptions!31:31,Assumptions!33:33) -> 0.85 | JE19: =LOOKUP(JE17,Assumptions!31:31,Assumptions!33:33) -> 0.85 | JF19: =LOOKUP(JF17,Assumptions!31:31,Assumptions!33:33) -> 0.85 | JG19: =LOOKUP(JG17,Assumptions!31:31,Assumptions!33:33) -> 0.85 | JH19: =LOOKUP(JH17,Assumptions!31:31,Assumptions!33:33) -> 0.85 | JI19: =LOOKUP(JI17,Assumptions!31:31,Assumptions!33:33) -> 0.85 | JJ19: =LOOKUP(JJ17,Assumptions!31:31,Assumptions!33:33) -> 0.85 | JK19: =LOOKUP(JK17,Assumptions!31:31,Assumptions!33:33) -> 0.85 | JL19: =LOOKUP(JL17,Assumptions!31:31,Assumptions!33:33) -> 0.85 | JM19: =LOOKUP(JM17,Assumptions!31:31,Assumptions!33:33) -> 0.85 | JN19: =LOOKUP(JN17,Assumptions!31:31,Assumptions!33:33) -> 0.85 | JO19: =LOOKUP(JO17,Assumptions!31:31,Assumptions!33:33) -> 0.85 | JP19: =LOOKUP(JP17,Assumptions!31:31,Assumptions!33:33) -> 0.85 | JQ19: =LOOKUP(JQ17,Assumptions!31:31,Assumptions!33:33) -> 0.85 | JR19: =LOOKUP(JR17,Assumptions!31:31,Assumptions!33:33) -> 0.85 | JS19: =LOOKUP(JS17,Assumptions!31:31,Assumptions!33:33) -> 0.85 | JT19: =LOOKUP(JT17,Assumptions!31:31,Assumptions!33:33) -> 0.85 | JU19: =LOOKUP(JU17,Assumptions!31:31,Assumptions!33:33) -> 0.85 | JV19: =LOOKUP(JV17,Assumptions!31:31,Assumptions!33:33) -> 0.85 | JW19: =LOOKUP(JW17,Assumptions!31:31,Assumptions!33:33) -> 0.85 | JX19: =LOOKUP(JX17,Assumptions!31:31,Assumptions!33:33) -> 0.85 | JY19: =LOOKUP(JY17,Assumptions!31:31,Assumptions!33:33) -> 0.85 | JZ19: =LOOKUP(JZ17,Assumptions!31:31,Assumptions!33:33) -> 0.85 | KA19: =LOOKUP(KA17,Assumptions!31:31,Assumptions!33:33) -> 0.85 | KB19: =LOOKUP(KB17,Assumptions!31:31,Assumptions!33:33) -> 0.85 | KC19: =LOOKUP(KC17,Assumptions!31:31,Assumptions!33:33) -> 0.85 | KD19: =LOOKUP(KD17,Assumptions!31:31,Assumptions!33:33) -> 0.85 | KE19: =LOOKUP(KE17,Assumptions!31:31,Assumptions!33:33) -> 0.85 | KF19: =LOOKUP(KF17,Assumptions!31:31,Assumptions!33:33) -> 0.85 | KG19: =LOOKUP(KG17,Assumptions!31:31,Assumptions!33:33) -> 0.85 | KH19: =LOOKUP(KH17,Assumptions!31:31,Assumptions!33:33) -> 0.85 | KI19: =LOOKUP(KI17,Assumptions!31:31,Assumptions!33:33) -> 0.85 | KJ19: =LOOKUP(KJ17,Assumptions!31:31,Assumptions!33:33) -> 0.85 | KK19: =LOOKUP(KK17,Assumptions!31:31,Assumptions!33:33) -> 0.85 | KL19: =LOOKUP(KL17,Assumptions!31:31,Assumptions!33:33) -> 0.85 | KM19: =LOOKUP(KM17,Assumptions!31:31,Assumptions!33:33) -> 0.85 | KN19: =LOOKUP(KN17,Assumptions!31:31,Assumptions!33:33) -> 0.85 | KO19: =LOOKUP(KO17,Assumptions!31:31,Assumptions!33:33) -> 0.85 | KP19: =LOOKUP(KP17,Assumptions!31:31,Assumptions!33:33) -> 0.85 | KQ19: =LOOKUP(KQ17,Assumptions!31:31,Assumptions!33:33) -> 0.85 | KR19: =LOOKUP(KR17,Assumptions!31:31,Assumptions!33:33) -> 0.85 | KS19: =LOOKUP(KS17,Assumptions!31:31,Assumptions!33:33) -> 0.85 | KT19: =LOOKUP(KT17,Assumptions!31:31,Assumptions!33:33) -> 0.85 | KU19: =LOOKUP(KU17,Assumptions!31:31,Assumptions!33:33) -> 0.85 | KV19: =LOOKUP(KV17,Assumptions!31:31,Assumptions!33:33) -> 0.85
B20: Dispatch Percent | E20: % | I20: =LOOKUP(I17,Assumptions!31:31,Assumptions!34:34) -> 0.8 | J20: =LOOKUP(J17,Assumptions!31:31,Assumptions!34:34) -> 0.8 | K20: =LOOKUP(K17,Assumptions!31:31,Assumptions!34:34) -> 0.8 | L20: =LOOKUP(L17,Assumptions!31:31,Assumptions!34:34) -> 0.8 | M20: =LOOKUP(M17,Assumptions!31:31,Assumptions!34:34) -> 0.8 | N20: =LOOKUP(N17,Assumptions!31:31,Assumptions!34:34) -> 0.8 | O20: =LOOKUP(O17,Assumptions!31:31,Assumptions!34:34) -> 0.8 | P20: =LOOKUP(P17,Assumptions!31:31,Assumptions!34:34) -> 0.8 | Q20: =LOOKUP(Q17,Assumptions!31:31,Assumptions!34:34) -> 0.8 | R20: =LOOKUP(R17,Assumptions!31:31,Assumptions!34:34) -> 0.8 | S20: =LOOKUP(S17,Assumptions!31:31,Assumptions!34:34) -> 0.8 | T20: =LOOKUP(T17,Assumptions!31:31,Assumptions!34:34) -> 0.8 | U20: =LOOKUP(U17,Assumptions!31:31,Assumptions!34:34) -> 0.8 | V20: =LOOKUP(V17,Assumptions!31:31,Assumptions!34:34) -> 0.8 | W20: =LOOKUP(W17,Assumptions!31:31,Assumptions!34:34) -> 0.8 | X20: =LOOKUP(X17,Assumptions!31:31,Assumptions!34:34) -> 0.8 | Y20: =LOOKUP(Y17,Assumptions!31:31,Assumptions!34:34) -> 0.8 | Z20: =LOOKUP(Z17,Assumptions!31:31,Assumptions!34:34) -> 0.8 | AA20: =LOOKUP(AA17,Assumptions!31:31,Assumptions!34:34) -> 0.8 | AB20: =LOOKUP(AB17,Assumptions!31:31,Assumptions!34:34) -> 0.8 | AC20: =LOOKUP(AC17,Assumptions!31:31,Assumptions!34:34) -> 0.8 | AD20: =LOOKUP(AD17,Assumptions!31:31,Assumptions!34:34) -> 0.8 | AE20: =LOOKUP(AE17,Assumptions!31:31,Assumptions!34:34) -> 0.8 | AF20: =LOOKUP(AF17,Assumptions!31:31,Assumptions!34:34) -> 0.8 | AG20: =LOOKUP(AG17,Assumptions!31:31,Assumptions!34:34) -> 0.8 | AH20: =LOOKUP(AH17,Assumptions!31:31,Assumptions!34:34) -> 0.8 | AI20: =LOOKUP(AI17,Assumptions!31:31,Assumptions!34:34) -> 0.8 | AJ20: =LOOKUP(AJ17,Assumptions!31:31,Assumptions!34:34) -> 0.8 | AK20: =LOOKUP(AK17,Assumptions!31:31,Assumptions!34:34) -> 0.8 | AL20: =LOOKUP(AL17,Assumptions!31:31,Assumptions!34:34) -> 0.8 | AM20: =LOOKUP(AM17,Assumptions!31:31,Assumptions!34:34) -> 0.8 | AN20: =LOOKUP(AN17,Assumptions!31:31,Assumptions!34:34) -> 0.8 | AO20: =LOOKUP(AO17,Assumptions!31:31,Assumptions!34:34) -> 0.8 | AP20: =LOOKUP(AP17,Assumptions!31:31,Assumptions!34:34) -> 0.8 | AQ20: =LOOKUP(AQ17,Assumptions!31:31,Assumptions!34:34) -> 0.8 | AR20: =LOOKUP(AR17,Assumptions!31:31,Assumptions!34:34) -> 0.8 | AS20: =LOOKUP(AS17,Assumptions!31:31,Assumptions!34:34) -> 0.8 | AT20: =LOOKUP(AT17,Assumptions!31:31,Assumptions!34:34) -> 0.8 | AU20: =LOOKUP(AU17,Assumptions!31:31,Assumptions!34:34) -> 0.8 | AV20: =LOOKUP(AV17,Assumptions!31:31,Assumptions!34:34) -> 0.8 | AW20: =LOOKUP(AW17,Assumptions!31:31,Assumptions!34:34) -> 0.8 | AX20: =LOOKUP(AX17,Assumptions!31:31,Assumptions!34:34) -> 0.8 | AY20: =LOOKUP(AY17,Assumptions!31:31,Assumptions!34:34) -> 0.8 | AZ20: =LOOKUP(AZ17,Assumptions!31:31,Assumptions!34:34) -> 0.8 | BA20: =LOOKUP(BA17,Assumptions!31:31,Assumptions!34:34) -> 0.8 | BB20: =LOOKUP(BB17,Assumptions!31:31,Assumptions!34:34) -> 0.8 | BC20: =LOOKUP(BC17,Assumptions!31:31,Assumptions!34:34) -> 0.8 | BD20: =LOOKUP(BD17,Assumptions!31:31,Assumptions!34:34) -> 0.8 | BE20: =LOOKUP(BE17,Assumptions!31:31,Assumptions!34:34) -> 0.8 | BF20: =LOOKUP(BF17,Assumptions!31:31,Assumptions!34:34) -> 0.8 | BG20: =LOOKUP(BG17,Assumptions!31:31,Assumptions!34:34) -> 0.8 | BH20: =LOOKUP(BH17,Assumptions!31:31,Assumptions!34:34) -> 0.8 | BI20: =LOOKUP(BI17,Assumptions!31:31,Assumptions!34:34) -> 0.8 | BJ20: =LOOKUP(BJ17,Assumptions!31:31,Assumptions!34:34) -> 0.8 | BK20: =LOOKUP(BK17,Assumptions!31:31,Assumptions!34:34) -> 0.8 | BL20: =LOOKUP(BL17,Assumptions!31:31,Assumptions!34:34) -> 0.8 | BM20: =LOOKUP(BM17,Assumptions!31:31,Assumptions!34:34) -> 0.8 | BN20: =LOOKUP(BN17,Assumptions!31:31,Assumptions!34:34) -> 0.8 | BO20: =LOOKUP(BO17,Assumptions!31:31,Assumptions!34:34) -> 0.8 | BP20: =LOOKUP(BP17,Assumptions!31:31,Assumptions!34:34) -> 0.8 | BQ20: =LOOKUP(BQ17,Assumptions!31:31,Assumptions!34:34) -> 0.8 | BR20: =LOOKUP(BR17,Assumptions!31:31,Assumptions!34:34) -> 0.8 | BS20: =LOOKUP(BS17,Assumptions!31:31,Assumptions!34:34) -> 0.8 | BT20: =LOOKUP(BT17,Assumptions!31:31,Assumptions!34:34) -> 0.8 | BU20: =LOOKUP(BU17,Assumptions!31:31,Assumptions!34:34) -> 0.8 | BV20: =LOOKUP(BV17,Assumptions!31:31,Assumptions!34:34) -> 0.8 | BW20: =LOOKUP(BW17,Assumptions!31:31,Assumptions!34:34) -> 0.8 | BX20: =LOOKUP(BX17,Assumptions!31:31,Assumptions!34:34) -> 0.8 | BY20: =LOOKUP(BY17,Assumptions!31:31,Assumptions!34:34) -> 0.8 | BZ20: =LOOKUP(BZ17,Assumptions!31:31,Assumptions!34:34) -> 0.8 | CA20: =LOOKUP(CA17,Assumptions!31:31,Assumptions!34:34) -> 0.8 | CB20: =LOOKUP(CB17,Assumptions!31:31,Assumptions!34:34) -> 0.8 | CC20: =LOOKUP(CC17,Assumptions!31:31,Assumptions!34:34) -> 0.8 | CD20: =LOOKUP(CD17,Assumptions!31:31,Assumptions!34:34) -> 0.8 | CE20: =LOOKUP(CE17,Assumptions!31:31,Assumptions!34:34) -> 0.8 | CF20: =LOOKUP(CF17,Assumptions!31:31,Assumptions!34:34) -> 0.8 | CG20: =LOOKUP(CG17,Assumptions!31:31,Assumptions!34:34) -> 0.8 | CH20: =LOOKUP(CH17,Assumptions!31:31,Assumptions!34:34) -> 0.8 | CI20: =LOOKUP(CI17,Assumptions!31:31,Assumptions!34:34) -> 0.8 | CJ20: =LOOKUP(CJ17,Assumptions!31:31,Assumptions!34:34) -> 0.8 | CK20: =LOOKUP(CK17,Assumptions!31:31,Assumptions!34:34) -> 0.8 | CL20: =LOOKUP(CL17,Assumptions!31:31,Assumptions!34:34) -> 0.8 | CM20: =LOOKUP(CM17,Assumptions!31:31,Assumptions!34:34) -> 0.8 | CN20: =LOOKUP(CN17,Assumptions!31:31,Assumptions!34:34) -> 0.8 | CO20: =LOOKUP(CO17,Assumptions!31:31,Assumptions!34:34) -> 0.8 | CP20: =LOOKUP(CP17,Assumptions!31:31,Assumptions!34:34) -> 0.8 | CQ20: =LOOKUP(CQ17,Assumptions!31:31,Assumptions!34:34) -> 0.8 | CR20: =LOOKUP(CR17,Assumptions!31:31,Assumptions!34:34) -> 0.8 | CS20: =LOOKUP(CS17,Assumptions!31:31,Assumptions!34:34) -> 0.8 | CT20: =LOOKUP(CT17,Assumptions!31:31,Assumptions!34:34) -> 0.8 | CU20: =LOOKUP(CU17,Assumptions!31:31,Assumptions!34:34) -> 0.8 | CV20: =LOOKUP(CV17,Assumptions!31:31,Assumptions!34:34) -> 0.8 | CW20: =LOOKUP(CW17,Assumptions!31:31,Assumptions!34:34) -> 0.8 | CX20: =LOOKUP(CX17,Assumptions!31:31,Assumptions!34:34) -> 0.8 | CY20: =LOOKUP(CY17,Assumptions!31:31,Assumptions!34:34) -> 0.8 | CZ20: =LOOKUP(CZ17,Assumptions!31:31,Assumptions!34:34) -> 0.8 | DA20: =LOOKUP(DA17,Assumptions!31:31,Assumptions!34:34) -> 0.8 | DB20: =LOOKUP(DB17,Assumptions!31:31,Assumptions!34:34) -> 0.8 | DC20: =LOOKUP(DC17,Assumptions!31:31,Assumptions!34:34) -> 0.8 | DD20: =LOOKUP(DD17,Assumptions!31:31,Assumptions!34:34) -> 0.8 | DE20: =LOOKUP(DE17,Assumptions!31:31,Assumptions!34:34) -> 0.8 | DF20: =LOOKUP(DF17,Assumptions!31:31,Assumptions!34:34) -> 0.8 | DG20: =LOOKUP(DG17,Assumptions!31:31,Assumptions!34:34) -> 0.8 | DH20: =LOOKUP(DH17,Assumptions!31:31,Assumptions!34:34) -> 0.8 | DI20: =LOOKUP(DI17,Assumptions!31:31,Assumptions!34:34) -> 0.8 | DJ20: =LOOKUP(DJ17,Assumptions!31:31,Assumptions!34:34) -> 0.8 | DK20: =LOOKUP(DK17,Assumptions!31:31,Assumptions!34:34) -> 0.8 | DL20: =LOOKUP(DL17,Assumptions!31:31,Assumptions!34:34) -> 0.8 | DM20: =LOOKUP(DM17,Assumptions!31:31,Assumptions!34:34) -> 0.8 | DN20: =LOOKUP(DN17,Assumptions!31:31,Assumptions!34:34) -> 0.8 | DO20: =LOOKUP(DO17,Assumptions!31:31,Assumptions!34:34) -> 0.8 | DP20: =LOOKUP(DP17,Assumptions!31:31,Assumptions!34:34) -> 0.8 | DQ20: =LOOKUP(DQ17,Assumptions!31:31,Assumptions!34:34) -> 0.8 | DR20: =LOOKUP(DR17,Assumptions!31:31,Assumptions!34:34) -> 0.8 | DS20: =LOOKUP(DS17,Assumptions!31:31,Assumptions!34:34) -> 0.8 | DT20: =LOOKUP(DT17,Assumptions!31:31,Assumptions!34:34) -> 0.8 | DU20: =LOOKUP(DU17,Assumptions!31:31,Assumptions!34:34) -> 0.8 | DV20: =LOOKUP(DV17,Assumptions!31:31,Assumptions!34:34) -> 0.8 | DW20: =LOOKUP(DW17,Assumptions!31:31,Assumptions!34:34) -> 0.8 | DX20: =LOOKUP(DX17,Assumptions!31:31,Assumptions!34:34) -> 0.8 | DY20: =LOOKUP(DY17,Assumptions!31:31,Assumptions!34:34) -> 0.8 | DZ20: =LOOKUP(DZ17,Assumptions!31:31,Assumptions!34:34) -> 0.8 | EA20: =LOOKUP(EA17,Assumptions!31:31,Assumptions!34:34) -> 0.8 | EB20: =LOOKUP(EB17,Assumptions!31:31,Assumptions!34:34) -> 0.8 | EC20: =LOOKUP(EC17,Assumptions!31:31,Assumptions!34:34) -> 0.8 | ED20: =LOOKUP(ED17,Assumptions!31:31,Assumptions!34:34) -> 0.8 | EE20: =LOOKUP(EE17,Assumptions!31:31,Assumptions!34:34) -> 0.8 | EF20: =LOOKUP(EF17,Assumptions!31:31,Assumptions!34:34) -> 0.8 | EG20: =LOOKUP(EG17,Assumptions!31:31,Assumptions!34:34) -> 0.8 | EH20: =LOOKUP(EH17,Assumptions!31:31,Assumptions!34:34) -> 0.8 | EI20: =LOOKUP(EI17,Assumptions!31:31,Assumptions!34:34) -> 0.8 | EJ20: =LOOKUP(EJ17,Assumptions!31:31,Assumptions!34:34) -> 0.8 | EK20: =LOOKUP(EK17,Assumptions!31:31,Assumptions!34:34) -> 0.8 | EL20: =LOOKUP(EL17,Assumptions!31:31,Assumptions!34:34) -> 0.8 | EM20: =LOOKUP(EM17,Assumptions!31:31,Assumptions!34:34) -> 0.8 | EN20: =LOOKUP(EN17,Assumptions!31:31,Assumptions!34:34) -> 0.8 | EO20: =LOOKUP(EO17,Assumptions!31:31,Assumptions!34:34) -> 0.8 | EP20: =LOOKUP(EP17,Assumptions!31:31,Assumptions!34:34) -> 0.8 | EQ20: =LOOKUP(EQ17,Assumptions!31:31,Assumptions!34:34) -> 0.8 | ER20: =LOOKUP(ER17,Assumptions!31:31,Assumptions!34:34) -> 0.8 | ES20: =LOOKUP(ES17,Assumptions!31:31,Assumptions!34:34) -> 0.8 | ET20: =LOOKUP(ET17,Assumptions!31:31,Assumptions!34:34) -> 0.8 | EU20: =LOOKUP(EU17,Assumptions!31:31,Assumptions!34:34) -> 0.8 | EV20: =LOOKUP(EV17,Assumptions!31:31,Assumptions!34:34) -> 0.8 | EW20: =LOOKUP(EW17,Assumptions!31:31,Assumptions!34:34) -> 0.8 | EX20: =LOOKUP(EX17,Assumptions!31:31,Assumptions!34:34) -> 0.8 | EY20: =LOOKUP(EY17,Assumptions!31:31,Assumptions!34:34) -> 0.8 | EZ20: =LOOKUP(EZ17,Assumptions!31:31,Assumptions!34:34) -> 0.8 | FA20: =LOOKUP(FA17,Assumptions!31:31,Assumptions!34:34) -> 0.8 | FB20: =LOOKUP(FB17,Assumptions!31:31,Assumptions!34:34) -> 0.8 | FC20: =LOOKUP(FC17,Assumptions!31:31,Assumptions!34:34) -> 0.8 | FD20: =LOOKUP(FD17,Assumptions!31:31,Assumptions!34:34) -> 0.8 | FE20: =LOOKUP(FE17,Assumptions!31:31,Assumptions!34:34) -> 0.8 | FF20: =LOOKUP(FF17,Assumptions!31:31,Assumptions!34:34) -> 0.8 | FG20: =LOOKUP(FG17,Assumptions!31:31,Assumptions!34:34) -> 0.8 | FH20: =LOOKUP(FH17,Assumptions!31:31,Assumptions!34:34) -> 0.8 | FI20: =LOOKUP(FI17,Assumptions!31:31,Assumptions!34:34) -> 0.8 | FJ20: =LOOKUP(FJ17,Assumptions!31:31,Assumptions!34:34) -> 0.8 | FK20: =LOOKUP(FK17,Assumptions!31:31,Assumptions!34:34) -> 0.8 | FL20: =LOOKUP(FL17,Assumptions!31:31,Assumptions!34:34) -> 0.8 | FM20: =LOOKUP(FM17,Assumptions!31:31,Assumptions!34:34) -> 0.8 | FN20: =LOOKUP(FN17,Assumptions!31:31,Assumptions!34:34) -> 0.8 | FO20: =LOOKUP(FO17,Assumptions!31:31,Assumptions!34:34) -> 0.8 | FP20: =LOOKUP(FP17,Assumptions!31:31,Assumptions!34:34) -> 0.8 | FQ20: =LOOKUP(FQ17,Assumptions!31:31,Assumptions!34:34) -> 0.8 | FR20: =LOOKUP(FR17,Assumptions!31:31,Assumptions!34:34) -> 0.8 | FS20: =LOOKUP(FS17,Assumptions!31:31,Assumptions!34:34) -> 0.8 | FT20: =LOOKUP(FT17,Assumptions!31:31,Assumptions!34:34) -> 0.8 | FU20: =LOOKUP(FU17,Assumptions!31:31,Assumptions!34:34) -> 0.8 | FV20: =LOOKUP(FV17,Assumptions!31:31,Assumptions!34:34) -> 0.8 | FW20: =LOOKUP(FW17,Assumptions!31:31,Assumptions!34:34) -> 0.8 | FX20: =LOOKUP(FX17,Assumptions!31:31,Assumptions!34:34) -> 0.8 | FY20: =LOOKUP(FY17,Assumptions!31:31,Assumptions!34:34) -> 0.8 | FZ20: =LOOKUP(FZ17,Assumptions!31:31,Assumptions!34:34) -> 0.8 | GA20: =LOOKUP(GA17,Assumptions!31:31,Assumptions!34:34) -> 0.8 | GB20: =LOOKUP(GB17,Assumptions!31:31,Assumptions!34:34) -> 0.8 | GC20: =LOOKUP(GC17,Assumptions!31:31,Assumptions!34:34) -> 0.8 | GD20: =LOOKUP(GD17,Assumptions!31:31,Assumptions!34:34) -> 0.8 | GE20: =LOOKUP(GE17,Assumptions!31:31,Assumptions!34:34) -> 0.8 | GF20: =LOOKUP(GF17,Assumptions!31:31,Assumptions!34:34) -> 0.8 | GG20: =LOOKUP(GG17,Assumptions!31:31,Assumptions!34:34) -> 0.8 | GH20: =LOOKUP(GH17,Assumptions!31:31,Assumptions!34:34) -> 0.8 | GI20: =LOOKUP(GI17,Assumptions!31:31,Assumptions!34:34) -> 0.8 | GJ20: =LOOKUP(GJ17,Assumptions!31:31,Assumptions!34:34) -> 0.8 | GK20: =LOOKUP(GK17,Assumptions!31:31,Assumptions!34:34) -> 0.8 | GL20: =LOOKUP(GL17,Assumptions!31:31,Assumptions!34:34) -> 0.8 | GM20: =LOOKUP(GM17,Assumptions!31:31,Assumptions!34:34) -> 0.8 | GN20: =LOOKUP(GN17,Assumptions!31:31,Assumptions!34:34) -> 0.8 | GO20: =LOOKUP(GO17,Assumptions!31:31,Assumptions!34:34) -> 0.8 | GP20: =LOOKUP(GP17,Assumptions!31:31,Assumptions!34:34) -> 0.8 | GQ20: =LOOKUP(GQ17,Assumptions!31:31,Assumptions!34:34) -> 0.8 | GR20: =LOOKUP(GR17,Assumptions!31:31,Assumptions!34:34) -> 0.8 | GS20: =LOOKUP(GS17,Assumptions!31:31,Assumptions!34:34) -> 0.8 | GT20: =LOOKUP(GT17,Assumptions!31:31,Assumptions!34:34) -> 0.8 | GU20: =LOOKUP(GU17,Assumptions!31:31,Assumptions!34:34) -> 0.8 | GV20: =LOOKUP(GV17,Assumptions!31:31,Assumptions!34:34) -> 0.8 | GW20: =LOOKUP(GW17,Assumptions!31:31,Assumptions!34:34) -> 0.8 | GX20: =LOOKUP(GX17,Assumptions!31:31,Assumptions!34:34) -> 0.8 | GY20: =LOOKUP(GY17,Assumptions!31:31,Assumptions!34:34) -> 0.8 | GZ20: =LOOKUP(GZ17,Assumptions!31:31,Assumptions!34:34) -> 0.8 | HA20: =LOOKUP(HA17,Assumptions!31:31,Assumptions!34:34) -> 0.8 | HB20: =LOOKUP(HB17,Assumptions!31:31,Assumptions!34:34) -> 0.8 | HC20: =LOOKUP(HC17,Assumptions!31:31,Assumptions!34:34) -> 0.8 | HD20: =LOOKUP(HD17,Assumptions!31:31,Assumptions!34:34) -> 0.8 | HE20: =LOOKUP(HE17,Assumptions!31:31,Assumptions!34:34) -> 0.8 | HF20: =LOOKUP(HF17,Assumptions!31:31,Assumptions!34:34) -> 0.8 | HG20: =LOOKUP(HG17,Assumptions!31:31,Assumptions!34:34) -> 0.8 | HH20: =LOOKUP(HH17,Assumptions!31:31,Assumptions!34:34) -> 0.8 | HI20: =LOOKUP(HI17,Assumptions!31:31,Assumptions!34:34) -> 0.8 | HJ20: =LOOKUP(HJ17,Assumptions!31:31,Assumptions!34:34) -> 0.8 | HK20: =LOOKUP(HK17,Assumptions!31:31,Assumptions!34:34) -> 0.8 | HL20: =LOOKUP(HL17,Assumptions!31:31,Assumptions!34:34) -> 0.8 | HM20: =LOOKUP(HM17,Assumptions!31:31,Assumptions!34:34) -> 0.8 | HN20: =LOOKUP(HN17,Assumptions!31:31,Assumptions!34:34) -> 0.8 | HO20: =LOOKUP(HO17,Assumptions!31:31,Assumptions!34:34) -> 0.8 | HP20: =LOOKUP(HP17,Assumptions!31:31,Assumptions!34:34) -> 0.8 | HQ20: =LOOKUP(HQ17,Assumptions!31:31,Assumptions!34:34) -> 0.8 | HR20: =LOOKUP(HR17,Assumptions!31:31,Assumptions!34:34) -> 0.8 | HS20: =LOOKUP(HS17,Assumptions!31:31,Assumptions!34:34) -> 0.8 | HT20: =LOOKUP(HT17,Assumptions!31:31,Assumptions!34:34) -> 0.8 | HU20: =LOOKUP(HU17,Assumptions!31:31,Assumptions!34:34) -> 0.8 | HV20: =LOOKUP(HV17,Assumptions!31:31,Assumptions!34:34) -> 0.8 | HW20: =LOOKUP(HW17,Assumptions!31:31,Assumptions!34:34) -> 0.8 | HX20: =LOOKUP(HX17,Assumptions!31:31,Assumptions!34:34) -> 0.8 | HY20: =LOOKUP(HY17,Assumptions!31:31,Assumptions!34:34) -> 0.8 | HZ20: =LOOKUP(HZ17,Assumptions!31:31,Assumptions!34:34) -> 0.8 | IA20: =LOOKUP(IA17,Assumptions!31:31,Assumptions!34:34) -> 0.8 | IB20: =LOOKUP(IB17,Assumptions!31:31,Assumptions!34:34) -> 0.8 | IC20: =LOOKUP(IC17,Assumptions!31:31,Assumptions!34:34) -> 0.8 | ID20: =LOOKUP(ID17,Assumptions!31:31,Assumptions!34:34) -> 0.8 | IE20: =LOOKUP(IE17,Assumptions!31:31,Assumptions!34:34) -> 0.8 | IF20: =LOOKUP(IF17,Assumptions!31:31,Assumptions!34:34) -> 0.8 | IG20: =LOOKUP(IG17,Assumptions!31:31,Assumptions!34:34) -> 0.8 | IH20: =LOOKUP(IH17,Assumptions!31:31,Assumptions!34:34) -> 0.8 | II20: =LOOKUP(II17,Assumptions!31:31,Assumptions!34:34) -> 0.8 | IJ20: =LOOKUP(IJ17,Assumptions!31:31,Assumptions!34:34) -> 0.8 | IK20: =LOOKUP(IK17,Assumptions!31:31,Assumptions!34:34) -> 0.8 | IL20: =LOOKUP(IL17,Assumptions!31:31,Assumptions!34:34) -> 0.8 | IM20: =LOOKUP(IM17,Assumptions!31:31,Assumptions!34:34) -> 0.8 | IN20: =LOOKUP(IN17,Assumptions!31:31,Assumptions!34:34) -> 0.8 | IO20: =LOOKUP(IO17,Assumptions!31:31,Assumptions!34:34) -> 0.8 | IP20: =LOOKUP(IP17,Assumptions!31:31,Assumptions!34:34) -> 0.8 | IQ20: =LOOKUP(IQ17,Assumptions!31:31,Assumptions!34:34) -> 0.8 | IR20: =LOOKUP(IR17,Assumptions!31:31,Assumptions!34:34) -> 0.8 | IS20: =LOOKUP(IS17,Assumptions!31:31,Assumptions!34:34) -> 0.8 | IT20: =LOOKUP(IT17,Assumptions!31:31,Assumptions!34:34) -> 0.8 | IU20: =LOOKUP(IU17,Assumptions!31:31,Assumptions!34:34) -> 0.8 | IV20: =LOOKUP(IV17,Assumptions!31:31,Assumptions!34:34) -> 0.8 | IW20: =LOOKUP(IW17,Assumptions!31:31,Assumptions!34:34) -> 0.8 | IX20: =LOOKUP(IX17,Assumptions!31:31,Assumptions!34:34) -> 0.8 | IY20: =LOOKUP(IY17,Assumptions!31:31,Assumptions!34:34) -> 0.8 | IZ20: =LOOKUP(IZ17,Assumptions!31:31,Assumptions!34:34) -> 0.8 | JA20: =LOOKUP(JA17,Assumptions!31:31,Assumptions!34:34) -> 0.8 | JB20: =LOOKUP(JB17,Assumptions!31:31,Assumptions!34:34) -> 0.8 | JC20: =LOOKUP(JC17,Assumptions!31:31,Assumptions!34:34) -> 0.8 | JD20: =LOOKUP(JD17,Assumptions!31:31,Assumptions!34:34) -> 0.8 | JE20: =LOOKUP(JE17,Assumptions!31:31,Assumptions!34:34) -> 0.8 | JF20: =LOOKUP(JF17,Assumptions!31:31,Assumptions!34:34) -> 0.8 | JG20: =LOOKUP(JG17,Assumptions!31:31,Assumptions!34:34) -> 0.8 | JH20: =LOOKUP(JH17,Assumptions!31:31,Assumptions!34:34) -> 0.8 | JI20: =LOOKUP(JI17,Assumptions!31:31,Assumptions!34:34) -> 0.8 | JJ20: =LOOKUP(JJ17,Assumptions!31:31,Assumptions!34:34) -> 0.8 | JK20: =LOOKUP(JK17,Assumptions!31:31,Assumptions!34:34) -> 0.8 | JL20: =LOOKUP(JL17,Assumptions!31:31,Assumptions!34:34) -> 0.8 | JM20: =LOOKUP(JM17,Assumptions!31:31,Assumptions!34:34) -> 0.8 | JN20: =LOOKUP(JN17,Assumptions!31:31,Assumptions!34:34) -> 0.8 | JO20: =LOOKUP(JO17,Assumptions!31:31,Assumptions!34:34) -> 0.8 | JP20: =LOOKUP(JP17,Assumptions!31:31,Assumptions!34:34) -> 0.8 | JQ20: =LOOKUP(JQ17,Assumptions!31:31,Assumptions!34:34) -> 0.8 | JR20: =LOOKUP(JR17,Assumptions!31:31,Assumptions!34:34) -> 0.8 | JS20: =LOOKUP(JS17,Assumptions!31:31,Assumptions!34:34) -> 0.8 | JT20: =LOOKUP(JT17,Assumptions!31:31,Assumptions!34:34) -> 0.8 | JU20: =LOOKUP(JU17,Assumptions!31:31,Assumptions!34:34) -> 0.8 | JV20: =LOOKUP(JV17,Assumptions!31:31,Assumptions!34:34) -> 0.8 | JW20: =LOOKUP(JW17,Assumptions!31:31,Assumptions!34:34) -> 0.8 | JX20: =LOOKUP(JX17,Assumptions!31:31,Assumptions!34:34) -> 0.8 | JY20: =LOOKUP(JY17,Assumptions!31:31,Assumptions!34:34) -> 0.8 | JZ20: =LOOKUP(JZ17,Assumptions!31:31,Assumptions!34:34) -> 0.8 | KA20: =LOOKUP(KA17,Assumptions!31:31,Assumptions!34:34) -> 0.8 | KB20: =LOOKUP(KB17,Assumptions!31:31,Assumptions!34:34) -> 0.8 | KC20: =LOOKUP(KC17,Assumptions!31:31,Assumptions!34:34) -> 0.8 | KD20: =LOOKUP(KD17,Assumptions!31:31,Assumptions!34:34) -> 0.8 | KE20: =LOOKUP(KE17,Assumptions!31:31,Assumptions!34:34) -> 0.8 | KF20: =LOOKUP(KF17,Assumptions!31:31,Assumptions!34:34) -> 0.8 | KG20: =LOOKUP(KG17,Assumptions!31:31,Assumptions!34:34) -> 0.8 | KH20: =LOOKUP(KH17,Assumptions!31:31,Assumptions!34:34) -> 0.8 | KI20: =LOOKUP(KI17,Assumptions!31:31,Assumptions!34:34) -> 0.8 | KJ20: =LOOKUP(KJ17,Assumptions!31:31,Assumptions!34:34) -> 0.8 | KK20: =LOOKUP(KK17,Assumptions!31:31,Assumptions!34:34) -> 0.8 | KL20: =LOOKUP(KL17,Assumptions!31:31,Assumptions!34:34) -> 0.8 | KM20: =LOOKUP(KM17,Assumptions!31:31,Assumptions!34:34) -> 0.8 | KN20: =LOOKUP(KN17,Assumptions!31:31,Assumptions!34:34) -> 0.8 | KO20: =LOOKUP(KO17,Assumptions!31:31,Assumptions!34:34) -> 0.8 | KP20: =LOOKUP(KP17,Assumptions!31:31,Assumptions!34:34) -> 0.8 | KQ20: =LOOKUP(KQ17,Assumptions!31:31,Assumptions!34:34) -> 0.8 | KR20: =LOOKUP(KR17,Assumptions!31:31,Assumptions!34:34) -> 0.8 | KS20: =LOOKUP(KS17,Assumptions!31:31,Assumptions!34:34) -> 0.8 | KT20: =LOOKUP(KT17,Assumptions!31:31,Assumptions!34:34) -> 0.8 | KU20: =LOOKUP(KU17,Assumptions!31:31,Assumptions!34:34) -> 0.8 | KV20: =LOOKUP(KV17,Assumptions!31:31,Assumptions!34:34) -> 0.8
B22: Available kWh | E22: MWH | I22: =I19*I15*I18 -> 66085.8 | J22: =J19*J15*J18 -> 61822.2 | K22: 66085.8 | L22: 63954 | M22: 66085.8 | N22: 63954 | O22: 66085.8 | P22: 66085.8 | Q22: 63954 | R22: 66085.8 | S22: 63954 | T22: 66085.8 | U22: 66085.8 | V22: 59690.4 | W22: 66085.8 | X22: 63954 | Y22: 66085.8 | Z22: 63954 | AA22: 66085.8 | AB22: 66085.8 | AC22: 63954 | AD22: 90117 | AE22: 87210 | AF22: 90117 | AG22: 90117 | AH22: 81396 | AI22: 90117 | AJ22: 87210 | AK22: 90117 | AL22: 87210 | AM22: 90117 | AN22: 90117 | AO22: 87210 | AP22: 90117 | AQ22: 87210 | AR22: 90117 | AS22: 90117 | AT22: 81396 | AU22: 90117 | AV22: 87210 | AW22: 90117 | AX22: 87210 | AY22: 90117 | AZ22: 90117 | BA22: 87210 | BB22: 90117 | BC22: 87210 | BD22: 90117 | BE22: 90117 | BF22: 84303 | BG22: 90117 | BH22: 87210 | BI22: 90117 | BJ22: 87210 | BK22: 90117 | BL22: 90117 | BM22: 87210 | BN22: 90117 | BO22: 87210 | BP22: 90117 | BQ22: 90117 | BR22: 81396 | BS22: 90117 | BT22: 87210 | BU22: 90117 | BV22: =BV19*BV15*BV18 -> 87210 | BW22: 90117 | BX22: 90117 | BY22: 87210 | BZ22: 90117 | CA22: 87210 | CB22: 90117 | CC22: 90117 | CD22: 81396 | CE22: 90117 | CF22: 87210 | CG22: 90117 | CH22: 87210 | CI22: 90117 | CJ22: 90117 | CK22: 87210 | CL22: 90117 | CM22: 87210 | CN22: 90117 | CO22: 90117 | CP22: 81396 | CQ22: 90117 | CR22: 87210 | CS22: 90117 | CT22: 87210 | CU22: 90117 | CV22: 90117 | CW22: 87210 | CX22: 90117 | CY22: 87210 | CZ22: 90117 | DA22: 90117 | DB22: 84303 | DC22: 90117 | DD22: 87210 | DE22: 90117 | DF22: 87210 | DG22: 90117 | DH22: 90117 | DI22: 87210 | DJ22: 90117 | DK22: 87210 | DL22: 90117 | DM22: 90117 | DN22: 81396 | DO22: 90117 | DP22: 87210 | DQ22: 90117 | DR22: 87210 | DS22: 90117 | DT22: 90117 | DU22: 87210 | DV22: 90117 | DW22: 87210 | DX22: 90117 | DY22: 90117 | DZ22: 81396 | EA22: 90117 | EB22: 87210 | EC22: 90117 | ED22: 87210 | EE22: 90117 | EF22: 90117 | EG22: 87210 | EH22: =EH19*EH15*EH18 -> 90117 | EI22: 87210 | EJ22: 90117 | EK22: 90117 | EL22: 81396 | EM22: 90117 | EN22: 87210 | EO22: 90117 | EP22: 87210 | EQ22: 90117 | ER22: 90117 | ES22: 87210 | ET22: 90117 | EU22: 87210 | EV22: 90117 | EW22: 90117 | EX22: 84303 | EY22: 90117 | EZ22: 87210 | FA22: 90117 | FB22: 87210 | FC22: 90117 | FD22: 90117 | FE22: 87210 | FF22: 90117 | FG22: 87210 | FH22: 90117 | FI22: 90117 | FJ22: 81396 | FK22: 90117 | FL22: 87210 | FM22: 90117 | FN22: 87210 | FO22: 90117 | FP22: 90117 | FQ22: 87210 | FR22: 90117 | FS22: 87210 | FT22: 90117 | FU22: 90117 | FV22: 81396 | FW22: 90117 | FX22: 87210 | FY22: 90117 | FZ22: 87210 | GA22: 90117 | GB22: 90117 | GC22: 87210 | GD22: 90117 | GE22: 87210 | GF22: 90117 | GG22: 90117 | GH22: 81396 | GI22: 90117 | GJ22: 87210 | GK22: 90117 | GL22: 87210 | GM22: 90117 | GN22: 90117 | GO22: 87210 | GP22: 90117 | GQ22: 87210 | GR22: 90117 | GS22: 90117 | GT22: =GT19*GT15*GT18 -> 84303 | GU22: 90117 | GV22: 87210 | GW22: 90117 | GX22: 87210 | GY22: 90117 | GZ22: 90117 | HA22: 87210 | HB22: 90117 | HC22: 87210 | HD22: 90117 | HE22: 90117 | HF22: 81396 | HG22: 90117 | HH22: 87210 | HI22: 90117 | HJ22: 87210 | HK22: 90117 | HL22: 90117 | HM22: 87210 | HN22: 90117 | HO22: 87210 | HP22: 90117 | HQ22: 90117 | HR22: 81396 | HS22: 90117 | HT22: 87210 | HU22: 90117 | HV22: 87210 | HW22: 90117 | HX22: 90117 | HY22: 87210 | HZ22: 90117 | IA22: 87210 | IB22: 90117 | IC22: 90117 | ID22: 81396 | IE22: 90117 | IF22: 87210 | IG22: 90117 | IH22: 87210 | II22: 90117 | IJ22: 90117 | IK22: 87210 | IL22: 90117 | IM22: 87210 | IN22: 90117 | IO22: 90117 | IP22: 84303 | IQ22: 90117 | IR22: 87210 | IS22: 90117 | IT22: 87210 | IU22: 90117 | IV22: 90117 | IW22: 87210 | IX22: 90117 | IY22: 87210 | IZ22: 90117 | JA22: 90117 | JB22: 81396 | JC22: 90117 | JD22: 87210 | JE22: 90117 | JF22: =JF19*JF15*JF18 -> 87210 | JG22: 90117 | JH22: 90117 | JI22: 87210 | JJ22: 90117 | JK22: 87210 | JL22: 90117 | JM22: 90117 | JN22: 81396 | JO22: 90117 | JP22: 87210 | JQ22: 90117 | JR22: 87210 | JS22: 90117 | JT22: 90117 | JU22: 87210 | JV22: 90117 | JW22: 87210 | JX22: 90117 | JY22: 90117 | JZ22: 81396 | KA22: 90117 | KB22: 87210 | KC22: 90117 | KD22: 87210 | KE22: 90117 | KF22: 90117 | KG22: 87210 | KH22: 90117 | KI22: 87210 | KJ22: 90117 | KK22: 90117 | KL22: 84303 | KM22: 90117 | KN22: 87210 | KO22: 90117 | KP22: 87210 | KQ22: 90117 | KR22: 90117 | KS22: 87210 | KT22: 90117 | KU22: 87210 | KV22: 90117
B23: Dispached kWh | E23: MWH | I23: =I20*I18*I15 -> 62198.4 | J23: =J20*J18*J15 -> 58185.6 | K23: 62198.4 | L23: 60192 | M23: 62198.4 | N23: 60192 | O23: 62198.4 | P23: 62198.4 | Q23: 60192 | R23: 62198.4 | S23: 60192 | T23: 62198.4 | U23: 62198.4 | V23: 56179.2 | W23: 62198.4 | X23: 60192 | Y23: 62198.4 | Z23: 60192 | AA23: 62198.4 | AB23: 62198.4 | AC23: 60192 | AD23: 84816 | AE23: 82080 | AF23: 84816 | AG23: 84816 | AH23: 76608 | AI23: 84816 | AJ23: 82080 | AK23: 84816 | AL23: 82080 | AM23: 84816 | AN23: 84816 | AO23: 82080 | AP23: 84816 | AQ23: 82080 | AR23: 84816 | AS23: 84816 | AT23: 76608 | AU23: 84816 | AV23: 82080 | AW23: 84816 | AX23: 82080 | AY23: 84816 | AZ23: 84816 | BA23: 82080 | BB23: 84816 | BC23: 82080 | BD23: 84816 | BE23: 84816 | BF23: 79344 | BG23: 84816 | BH23: 82080 | BI23: 84816 | BJ23: 82080 | BK23: 84816 | BL23: 84816 | BM23: 82080 | BN23: 84816 | BO23: 82080 | BP23: 84816 | BQ23: 84816 | BR23: 76608 | BS23: 84816 | BT23: 82080 | BU23: 84816 | BV23: =BV20*BV18*BV15 -> 82080 | BW23: 84816 | BX23: 84816 | BY23: 82080 | BZ23: 84816 | CA23: 82080 | CB23: 84816 | CC23: 84816 | CD23: 76608 | CE23: 84816 | CF23: 82080 | CG23: 84816 | CH23: 82080 | CI23: 84816 | CJ23: 84816 | CK23: 82080 | CL23: 84816 | CM23: 82080 | CN23: 84816 | CO23: 84816 | CP23: 76608 | CQ23: 84816 | CR23: 82080 | CS23: 84816 | CT23: 82080 | CU23: 84816 | CV23: 84816 | CW23: 82080 | CX23: 84816 | CY23: 82080 | CZ23: 84816 | DA23: 84816 | DB23: 79344 | DC23: 84816 | DD23: 82080 | DE23: 84816 | DF23: 82080 | DG23: 84816 | DH23: 84816 | DI23: 82080 | DJ23: 84816 | DK23: 82080 | DL23: 84816 | DM23: 84816 | DN23: 76608 | DO23: 84816 | DP23: 82080 | DQ23: 84816 | DR23: 82080 | DS23: 84816 | DT23: 84816 | DU23: 82080 | DV23: 84816 | DW23: 82080 | DX23: 84816 | DY23: 84816 | DZ23: 76608 | EA23: 84816 | EB23: 82080 | EC23: 84816 | ED23: 82080 | EE23: 84816 | EF23: 84816 | EG23: 82080 | EH23: =EH20*EH18*EH15 -> 84816 | EI23: 82080 | EJ23: 84816 | EK23: 84816 | EL23: 76608 | EM23: 84816 | EN23: 82080 | EO23: 84816 | EP23: 82080 | EQ23: 84816 | ER23: 84816 | ES23: 82080 | ET23: 84816 | EU23: 82080 | EV23: 84816 | EW23: 84816 | EX23: 79344 | EY23: 84816 | EZ23: 82080 | FA23: 84816 | FB23: 82080 | FC23: 84816 | FD23: 84816 | FE23: 82080 | FF23: 84816 | FG23: 82080 | FH23: 84816 | FI23: 84816 | FJ23: 76608 | FK23: 84816 | FL23: 82080 | FM23: 84816 | FN23: 82080 | FO23: 84816 | FP23: 84816 | FQ23: 82080 | FR23: 84816 | FS23: 82080 | FT23: 84816 | FU23: 84816 | FV23: 76608 | FW23: 84816 | FX23: 82080 | FY23: 84816 | FZ23: 82080 | GA23: 84816 | GB23: 84816 | GC23: 82080 | GD23: 84816 | GE23: 82080 | GF23: 84816 | GG23: 84816 | GH23: 76608 | GI23: 84816 | GJ23: 82080 | GK23: 84816 | GL23: 82080 | GM23: 84816 | GN23: 84816 | GO23: 82080 | GP23: 84816 | GQ23: 82080 | GR23: 84816 | GS23: 84816 | GT23: =GT20*GT18*GT15 -> 79344 | GU23: 84816 | GV23: 82080 | GW23: 84816 | GX23: 82080 | GY23: 84816 | GZ23: 84816 | HA23: 82080 | HB23: 84816 | HC23: 82080 | HD23: 84816 | HE23: 84816 | HF23: 76608 | HG23: 84816 | HH23: 82080 | HI23: 84816 | HJ23: 82080 | HK23: 84816 | HL23: 84816 | HM23: 82080 | HN23: 84816 | HO23: 82080 | HP23: 84816 | HQ23: 84816 | HR23: 76608 | HS23: 84816 | HT23: 82080 | HU23: 84816 | HV23: 82080 | HW23: 84816 | HX23: 84816 | HY23: 82080 | HZ23: 84816 | IA23: 82080 | IB23: 84816 | IC23: 84816 | ID23: 76608 | IE23: 84816 | IF23: 82080 | IG23: 84816 | IH23: 82080 | II23: 84816 | IJ23: 84816 | IK23: 82080 | IL23: 84816 | IM23: 82080 | IN23: 84816 | IO23: 84816 | IP23: 79344 | IQ23: 84816 | IR23: 82080 | IS23: 84816 | IT23: 82080 | IU23: 84816 | IV23: 84816 | IW23: 82080 | IX23: 84816 | IY23: 82080 | IZ23: 84816 | JA23: 84816 | JB23: 76608 | JC23: 84816 | JD23: 82080 | JE23: 84816 | JF23: =JF20*JF18*JF15 -> 82080 | JG23: 84816 | JH23: 84816 | JI23: 82080 | JJ23: 84816 | JK23: 82080 | JL23: 84816 | JM23: 84816 | JN23: 76608 | JO23: 84816 | JP23: 82080 | JQ23: 84816 | JR23: 82080 | JS23: 84816 | JT23: 84816 | JU23: 82080 | JV23: 84816 | JW23: 82080 | JX23: 84816 | JY23: 84816 | JZ23: 76608 | KA23: 84816 | KB23: 82080 | KC23: 84816 | KD23: 82080 | KE23: 84816 | KF23: 84816 | KG23: 82080 | KH23: 84816 | KI23: 82080 | KJ23: 84816 | KK23: 84816 | KL23: 79344 | KM23: 84816 | KN23: 82080 | KO23: 84816 | KP23: 82080 | KQ23: 84816 | KR23: 84816 | KS23: 82080 | KT23: 84816 | KU23: 82080 | KV23: 84816
B25: Achieved Heat Rate (Lookup) | E25: BTU/kWh | G25: =Scenario!H13 -> 1.1 | I25: =LOOKUP('EBITDA and Cap Exp'!I7,Assumptions!42:42,Assumptions!43:43)*$G$25 -> 8992.5 | J25: =LOOKUP('EBITDA and Cap Exp'!J7,Assumptions!42:42,Assumptions!43:43)*$G$25 -> 8992.5 | K25: =LOOKUP('EBITDA and Cap Exp'!K7,Assumptions!42:42,Assumptions!43:43)*$G$25 -> 8992.5 | L25: =LOOKUP('EBITDA and Cap Exp'!L7,Assumptions!42:42,Assumptions!43:43)*$G$25 -> 8992.5 | M25: =LOOKUP('EBITDA and Cap Exp'!M7,Assumptions!42:42,Assumptions!43:43)*$G$25 -> 8992.5 | N25: =LOOKUP('EBITDA and Cap Exp'!N7,Assumptions!42:42,Assumptions!43:43)*$G$25 -> 8992.5 | O25: =LOOKUP('EBITDA and Cap Exp'!O7,Assumptions!42:42,Assumptions!43:43)*$G$25 -> 8992.5 | P25: =LOOKUP('EBITDA and Cap Exp'!P7,Assumptions!42:42,Assumptions!43:43)*$G$25 -> 8992.5 | Q25: =LOOKUP('EBITDA and Cap Exp'!Q7,Assumptions!42:42,Assumptions!43:43)*$G$25 -> 8992.5 | R25: =LOOKUP('EBITDA and Cap Exp'!R7,Assumptions!42:42,Assumptions!43:43)*$G$25 -> 8992.5 | S25: =LOOKUP('EBITDA and Cap Exp'!S7,Assumptions!42:42,Assumptions!43:43)*$G$25 -> 8992.5 | T25: =LOOKUP('EBITDA and Cap Exp'!T7,Assumptions!42:42,Assumptions!43:43)*$G$25 -> 8992.5 | U25: =LOOKUP('EBITDA and Cap Exp'!U7,Assumptions!42:42,Assumptions!43:43)*$G$25 -> 8992.5 | V25: =LOOKUP('EBITDA and Cap Exp'!V7,Assumptions!42:42,Assumptions!43:43)*$G$25 -> 8992.5 | W25: =LOOKUP('EBITDA and Cap Exp'!W7,Assumptions!42:42,Assumptions!43:43)*$G$25 -> 8992.5 | X25: =LOOKUP('EBITDA and Cap Exp'!X7,Assumptions!42:42,Assumptions!43:43)*$G$25 -> 8992.5 | Y25: =LOOKUP('EBITDA and Cap Exp'!Y7,Assumptions!42:42,Assumptions!43:43)*$G$25 -> 8992.5 | Z25: =LOOKUP('EBITDA and Cap Exp'!Z7,Assumptions!42:42,Assumptions!43:43)*$G$25 -> 8992.5 | AA25: =LOOKUP('EBITDA and Cap Exp'!AA7,Assumptions!42:42,Assumptions!43:43)*$G$25 -> 8992.5 | AB25: =LOOKUP('EBITDA and Cap Exp'!AB7,Assumptions!42:42,Assumptions!43:43)*$G$25 -> 8992.5 | AC25: =LOOKUP('EBITDA and Cap Exp'!AC7,Assumptions!42:42,Assumptions!43:43)*$G$25 -> 8992.5 | AD25: =LOOKUP('EBITDA and Cap Exp'!AD7,Assumptions!42:42,Assumptions!43:43)*$G$25 -> 8505.357143 | AE25: =LOOKUP('EBITDA and Cap Exp'!AE7,Assumptions!42:42,Assumptions!43:43)*$G$25 -> 8505.357143 | AF25: =LOOKUP('EBITDA and Cap Exp'!AF7,Assumptions!42:42,Assumptions!43:43)*$G$25 -> 8505.357143 | AG25: =LOOKUP('EBITDA and Cap Exp'!AG7,Assumptions!42:42,Assumptions!43:43)*$G$25 -> 8505.357143 | AH25: =LOOKUP('EBITDA and Cap Exp'!AH7,Assumptions!42:42,Assumptions!43:43)*$G$25 -> 8505.357143 | AI25: =LOOKUP('EBITDA and Cap Exp'!AI7,Assumptions!42:42,Assumptions!43:43)*$G$25 -> 8505.357143 | AJ25: =LOOKUP('EBITDA and Cap Exp'!AJ7,Assumptions!42:42,Assumptions!43:43)*$G$25 -> 8505.357143 | AK25: =LOOKUP('EBITDA and Cap Exp'!AK7,Assumptions!42:42,Assumptions!43:43)*$G$25 -> 8505.357143 | AL25: =LOOKUP('EBITDA and Cap Exp'!AL7,Assumptions!42:42,Assumptions!43:43)*$G$25 -> 8505.357143 | AM25: =LOOKUP('EBITDA and Cap Exp'!AM7,Assumptions!42:42,Assumptions!43:43)*$G$25 -> 8505.357143 | AN25: =LOOKUP('EBITDA and Cap Exp'!AN7,Assumptions!42:42,Assumptions!43:43)*$G$25 -> 8505.357143 | AO25: =LOOKUP('EBITDA and Cap Exp'!AO7,Assumptions!42:42,Assumptions!43:43)*$G$25 -> 8505.357143 | AP25: =LOOKUP('EBITDA and Cap Exp'!AP7,Assumptions!42:42,Assumptions!43:43)*$G$25 -> 8505.357143 | AQ25: =LOOKUP('EBITDA and Cap Exp'!AQ7,Assumptions!42:42,Assumptions!43:43)*$G$25 -> 8505.357143 | AR25: =LOOKUP('EBITDA and Cap Exp'!AR7,Assumptions!42:42,Assumptions!43:43)*$G$25 -> 8505.357143 | AS25: =LOOKUP('EBITDA and Cap Exp'!AS7,Assumptions!42:42,Assumptions!43:43)*$G$25 -> 8505.357143 | AT25: =LOOKUP('EBITDA and Cap Exp'!AT7,Assumptions!42:42,Assumptions!43:43)*$G$25 -> 8505.357143 | AU25: =LOOKUP('EBITDA and Cap Exp'!AU7,Assumptions!42:42,Assumptions!43:43)*$G$25 -> 8505.357143 | AV25: =LOOKUP('EBITDA and Cap Exp'!AV7,Assumptions!42:42,Assumptions!43:43)*$G$25 -> 8505.357143 | AW25: =LOOKUP('EBITDA and Cap Exp'!AW7,Assumptions!42:42,Assumptions!43:43)*$G$25 -> 8505.357143 | AX25: =LOOKUP('EBITDA and Cap Exp'!AX7,Assumptions!42:42,Assumptions!43:43)*$G$25 -> 8505.357143 | AY25: =LOOKUP('EBITDA and Cap Exp'!AY7,Assumptions!42:42,Assumptions!43:43)*$G$25 -> 8505.357143 | AZ25: =LOOKUP('EBITDA and Cap Exp'!AZ7,Assumptions!42:42,Assumptions!43:43)*$G$25 -> 8505.357143 | BA25: =LOOKUP('EBITDA and Cap Exp'!BA7,Assumptions!42:42,Assumptions!43:43)*$G$25 -> 8505.357143 | BB25: =LOOKUP('EBITDA and Cap Exp'!BB7,Assumptions!42:42,Assumptions!43:43)*$G$25 -> 8505.357143 | BC25: =LOOKUP('EBITDA and Cap Exp'!BC7,Assumptions!42:42,Assumptions!43:43)*$G$25 -> 8505.357143 | BD25: =LOOKUP('EBITDA and Cap Exp'!BD7,Assumptions!42:42,Assumptions!43:43)*$G$25 -> 8505.357143 | BE25: =LOOKUP('EBITDA and Cap Exp'!BE7,Assumptions!42:42,Assumptions!43:43)*$G$25 -> 8505.357143 | BF25: =LOOKUP('EBITDA and Cap Exp'!BF7,Assumptions!42:42,Assumptions!43:43)*$G$25 -> 8505.357143 | BG25: =LOOKUP('EBITDA and Cap Exp'!BG7,Assumptions!42:42,Assumptions!43:43)*$G$25 -> 8505.357143 | BH25: =LOOKUP('EBITDA and Cap Exp'!BH7,Assumptions!42:42,Assumptions!43:43)*$G$25 -> 8505.357143 | BI25: =LOOKUP('EBITDA and Cap Exp'!BI7,Assumptions!42:42,Assumptions!43:43)*$G$25 -> 8505.357143 | BJ25: =LOOKUP('EBITDA and Cap Exp'!BJ7,Assumptions!42:42,Assumptions!43:43)*$G$25 -> 8505.357143 | BK25: =LOOKUP('EBITDA and Cap Exp'!BK7,Assumptions!42:42,Assumptions!43:43)*$G$25 -> 8505.357143 | BL25: =LOOKUP('EBITDA and Cap Exp'!BL7,Assumptions!42:42,Assumptions!43:43)*$G$25 -> 8505.357143 | BM25: =LOOKUP('EBITDA and Cap Exp'!BM7,Assumptions!42:42,Assumptions!43:43)*$G$25 -> 8505.357143 | BN25: =LOOKUP('EBITDA and Cap Exp'!BN7,Assumptions!42:42,Assumptions!43:43)*$G$25 -> 8505.357143 | BO25: =LOOKUP('EBITDA and Cap Exp'!BO7,Assumptions!42:42,Assumptions!43:43)*$G$25 -> 8505.357143 | BP25: =LOOKUP('EBITDA and Cap Exp'!BP7,Assumptions!42:42,Assumptions!43:43)*$G$25 -> 8505.357143 | BQ25: =LOOKUP('EBITDA and Cap Exp'!BQ7,Assumptions!42:42,Assumptions!43:43)*$G$25 -> 8505.357143 | BR25: =LOOKUP('EBITDA and Cap Exp'!BR7,Assumptions!42:42,Assumptions!43:43)*$G$25 -> 8505.357143 | BS25: =LOOKUP('EBITDA and Cap Exp'!BS7,Assumptions!42:42,Assumptions!43:43)*$G$25 -> 8505.357143 | BT25: =LOOKUP('EBITDA and Cap Exp'!BT7,Assumptions!42:42,Assumptions!43:43)*$G$25 -> 8505.357143 | BU25: =LOOKUP('EBITDA and Cap Exp'!BU7,Assumptions!42:42,Assumptions!43:43)*$G$25 -> 8505.357143 | BV25: =LOOKUP('EBITDA and Cap Exp'!BV7,Assumptions!42:42,Assumptions!43:43)*$G$25 -> 8505.357143 | BW25: =LOOKUP('EBITDA and Cap Exp'!BW7,Assumptions!42:42,Assumptions!43:43)*$G$25 -> 8505.357143 | BX25: =LOOKUP('EBITDA and Cap Exp'!BX7,Assumptions!42:42,Assumptions!43:43)*$G$25 -> 8505.357143 | BY25: =LOOKUP('EBITDA and Cap Exp'!BY7,Assumptions!42:42,Assumptions!43:43)*$G$25 -> 8505.357143 | BZ25: =LOOKUP('EBITDA and Cap Exp'!BZ7,Assumptions!42:42,Assumptions!43:43)*$G$25 -> 8505.357143 | CA25: =LOOKUP('EBITDA and Cap Exp'!CA7,Assumptions!42:42,Assumptions!43:43)*$G$25 -> 8505.357143 | CB25: =LOOKUP('EBITDA and Cap Exp'!CB7,Assumptions!42:42,Assumptions!43:43)*$G$25 -> 8505.357143 | CC25: =LOOKUP('EBITDA and Cap Exp'!CC7,Assumptions!42:42,Assumptions!43:43)*$G$25 -> 8505.357143 | CD25: =LOOKUP('EBITDA and Cap Exp'!CD7,Assumptions!42:42,Assumptions!43:43)*$G$25 -> 8505.357143 | CE25: =LOOKUP('EBITDA and Cap Exp'!CE7,Assumptions!42:42,Assumptions!43:43)*$G$25 -> 8505.357143 | CF25: =LOOKUP('EBITDA and Cap Exp'!CF7,Assumptions!42:42,Assumptions!43:43)*$G$25 -> 8505.357143 | CG25: =LOOKUP('EBITDA and Cap Exp'!CG7,Assumptions!42:42,Assumptions!43:43)*$G$25 -> 8505.357143 | CH25: =LOOKUP('EBITDA and Cap Exp'!CH7,Assumptions!42:42,Assumptions!43:43)*$G$25 -> 8505.357143 | CI25: =LOOKUP('EBITDA and Cap Exp'!CI7,Assumptions!42:42,Assumptions!43:43)*$G$25 -> 8505.357143 | CJ25: =LOOKUP('EBITDA and Cap Exp'!CJ7,Assumptions!42:42,Assumptions!43:43)*$G$25 -> 8505.357143 | CK25: =LOOKUP('EBITDA and Cap Exp'!CK7,Assumptions!42:42,Assumptions!43:43)*$G$25 -> 8505.357143 | CL25: =LOOKUP('EBITDA and Cap Exp'!CL7,Assumptions!42:42,Assumptions!43:43)*$G$25 -> 8505.357143 | CM25: =LOOKUP('EBITDA and Cap Exp'!CM7,Assumptions!42:42,Assumptions!43:43)*$G$25 -> 8505.357143 | CN25: =LOOKUP('EBITDA and Cap Exp'!CN7,Assumptions!42:42,Assumptions!43:43)*$G$25 -> 8505.357143 | CO25: =LOOKUP('EBITDA and Cap Exp'!CO7,Assumptions!42:42,Assumptions!43:43)*$G$25 -> 8505.357143 | CP25: =LOOKUP('EBITDA and Cap Exp'!CP7,Assumptions!42:42,Assumptions!43:43)*$G$25 -> 8505.357143 | CQ25: =LOOKUP('EBITDA and Cap Exp'!CQ7,Assumptions!42:42,Assumptions!43:43)*$G$25 -> 8505.357143 | CR25: =LOOKUP('EBITDA and Cap Exp'!CR7,Assumptions!42:42,Assumptions!43:43)*$G$25 -> 8505.357143 | CS25: =LOOKUP('EBITDA and Cap Exp'!CS7,Assumptions!42:42,Assumptions!43:43)*$G$25 -> 8505.357143 | CT25: =LOOKUP('EBITDA and Cap Exp'!CT7,Assumptions!42:42,Assumptions!43:43)*$G$25 -> 8505.357143 | CU25: =LOOKUP('EBITDA and Cap Exp'!CU7,Assumptions!42:42,Assumptions!43:43)*$G$25 -> 8505.357143 | CV25: =LOOKUP('EBITDA and Cap Exp'!CV7,Assumptions!42:42,Assumptions!43:43)*$G$25 -> 8505.357143 | CW25: =LOOKUP('EBITDA and Cap Exp'!CW7,Assumptions!42:42,Assumptions!43:43)*$G$25 -> 8505.357143 | CX25: =LOOKUP('EBITDA and Cap Exp'!CX7,Assumptions!42:42,Assumptions!43:43)*$G$25 -> 8505.357143 | CY25: =LOOKUP('EBITDA and Cap Exp'!CY7,Assumptions!42:42,Assumptions!43:43)*$G$25 -> 8505.357143 | CZ25: =LOOKUP('EBITDA and Cap Exp'!CZ7,Assumptions!42:42,Assumptions!43:43)*$G$25 -> 8505.357143 | DA25: =LOOKUP('EBITDA and Cap Exp'!DA7,Assumptions!42:42,Assumptions!43:43)*$G$25 -> 8505.357143 | DB25: =LOOKUP('EBITDA and Cap Exp'!DB7,Assumptions!42:42,Assumptions!43:43)*$G$25 -> 8505.357143 | DC25: =LOOKUP('EBITDA and Cap Exp'!DC7,Assumptions!42:42,Assumptions!43:43)*$G$25 -> 8505.357143 | DD25: =LOOKUP('EBITDA and Cap Exp'!DD7,Assumptions!42:42,Assumptions!43:43)*$G$25 -> 8505.357143 | DE25: =LOOKUP('EBITDA and Cap Exp'!DE7,Assumptions!42:42,Assumptions!43:43)*$G$25 -> 8505.357143 | DF25: =LOOKUP('EBITDA and Cap Exp'!DF7,Assumptions!42:42,Assumptions!43:43)*$G$25 -> 8505.357143 | DG25: =LOOKUP('EBITDA and Cap Exp'!DG7,Assumptions!42:42,Assumptions!43:43)*$G$25 -> 8505.357143 | DH25: =LOOKUP('EBITDA and Cap Exp'!DH7,Assumptions!42:42,Assumptions!43:43)*$G$25 -> 8505.357143 | DI25: =LOOKUP('EBITDA and Cap Exp'!DI7,Assumptions!42:42,Assumptions!43:43)*$G$25 -> 8505.357143 | DJ25: =LOOKUP('EBITDA and Cap Exp'!DJ7,Assumptions!42:42,Assumptions!43:43)*$G$25 -> 8505.357143 | DK25: =LOOKUP('EBITDA and Cap Exp'!DK7,Assumptions!42:42,Assumptions!43:43)*$G$25 -> 8505.357143 | DL25: =LOOKUP('EBITDA and Cap Exp'!DL7,Assumptions!42:42,Assumptions!43:43)*$G$25 -> 8505.357143 | DM25: =LOOKUP('EBITDA and Cap Exp'!DM7,Assumptions!42:42,Assumptions!43:43)*$G$25 -> 8505.357143 | DN25: =LOOKUP('EBITDA and Cap Exp'!DN7,Assumptions!42:42,Assumptions!43:43)*$G$25 -> 8505.357143 | DO25: =LOOKUP('EBITDA and Cap Exp'!DO7,Assumptions!42:42,Assumptions!43:43)*$G$25 -> 8505.357143 | DP25: =LOOKUP('EBITDA and Cap Exp'!DP7,Assumptions!42:42,Assumptions!43:43)*$G$25 -> 8505.357143 | DQ25: =LOOKUP('EBITDA and Cap Exp'!DQ7,Assumptions!42:42,Assumptions!43:43)*$G$25 -> 8505.357143 | DR25: =LOOKUP('EBITDA and Cap Exp'!DR7,Assumptions!42:42,Assumptions!43:43)*$G$25 -> 8505.357143 | DS25: =LOOKUP('EBITDA and Cap Exp'!DS7,Assumptions!42:42,Assumptions!43:43)*$G$25 -> 8505.357143 | DT25: =LOOKUP('EBITDA and Cap Exp'!DT7,Assumptions!42:42,Assumptions!43:43)*$G$25 -> 8505.357143 | DU25: =LOOKUP('EBITDA and Cap Exp'!DU7,Assumptions!42:42,Assumptions!43:43)*$G$25 -> 8505.357143 | DV25: =LOOKUP('EBITDA and Cap Exp'!DV7,Assumptions!42:42,Assumptions!43:43)*$G$25 -> 8505.357143 | DW25: =LOOKUP('EBITDA and Cap Exp'!DW7,Assumptions!42:42,Assumptions!43:43)*$G$25 -> 8505.357143 | DX25: =LOOKUP('EBITDA and Cap Exp'!DX7,Assumptions!42:42,Assumptions!43:43)*$G$25 -> 8505.357143 | DY25: =LOOKUP('EBITDA and Cap Exp'!DY7,Assumptions!42:42,Assumptions!43:43)*$G$25 -> 8505.357143 | DZ25: =LOOKUP('EBITDA and Cap Exp'!DZ7,Assumptions!42:42,Assumptions!43:43)*$G$25 -> 8505.357143 | EA25: =LOOKUP('EBITDA and Cap Exp'!EA7,Assumptions!42:42,Assumptions!43:43)*$G$25 -> 8505.357143 | EB25: =LOOKUP('EBITDA and Cap Exp'!EB7,Assumptions!42:42,Assumptions!43:43)*$G$25 -> 8505.357143 | EC25: =LOOKUP('EBITDA and Cap Exp'!EC7,Assumptions!42:42,Assumptions!43:43)*$G$25 -> 8505.357143 | ED25: =LOOKUP('EBITDA and Cap Exp'!ED7,Assumptions!42:42,Assumptions!43:43)*$G$25 -> 8505.357143 | EE25: =LOOKUP('EBITDA and Cap Exp'!EE7,Assumptions!42:42,Assumptions!43:43)*$G$25 -> 8505.357143 | EF25: =LOOKUP('EBITDA and Cap Exp'!EF7,Assumptions!42:42,Assumptions!43:43)*$G$25 -> 8505.357143 | EG25: =LOOKUP('EBITDA and Cap Exp'!EG7,Assumptions!42:42,Assumptions!43:43)*$G$25 -> 8505.357143 | EH25: =LOOKUP('EBITDA and Cap Exp'!EH7,Assumptions!42:42,Assumptions!43:43)*$G$25 -> 8505.357143 | EI25: =LOOKUP('EBITDA and Cap Exp'!EI7,Assumptions!42:42,Assumptions!43:43)*$G$25 -> 8505.357143 | EJ25: =LOOKUP('EBITDA and Cap Exp'!EJ7,Assumptions!42:42,Assumptions!43:43)*$G$25 -> 8505.357143 | EK25: =LOOKUP('EBITDA and Cap Exp'!EK7,Assumptions!42:42,Assumptions!43:43)*$G$25 -> 8505.357143 | EL25: =LOOKUP('EBITDA and Cap Exp'!EL7,Assumptions!42:42,Assumptions!43:43)*$G$25 -> 8505.357143 | EM25: =LOOKUP('EBITDA and Cap Exp'!EM7,Assumptions!42:42,Assumptions!43:43)*$G$25 -> 8505.357143 | EN25: =LOOKUP('EBITDA and Cap Exp'!EN7,Assumptions!42:42,Assumptions!43:43)*$G$25 -> 8505.357143 | EO25: =LOOKUP('EBITDA and Cap Exp'!EO7,Assumptions!42:42,Assumptions!43:43)*$G$25 -> 8505.357143 | EP25: =LOOKUP('EBITDA and Cap Exp'!EP7,Assumptions!42:42,Assumptions!43:43)*$G$25 -> 8505.357143 | EQ25: =LOOKUP('EBITDA and Cap Exp'!EQ7,Assumptions!42:42,Assumptions!43:43)*$G$25 -> 8505.357143 | ER25: =LOOKUP('EBITDA and Cap Exp'!ER7,Assumptions!42:42,Assumptions!43:43)*$G$25 -> 8505.357143 | ES25: =LOOKUP('EBITDA and Cap Exp'!ES7,Assumptions!42:42,Assumptions!43:43)*$G$25 -> 8505.357143 | ET25: =LOOKUP('EBITDA and Cap Exp'!ET7,Assumptions!42:42,Assumptions!43:43)*$G$25 -> 8505.357143 | EU25: =LOOKUP('EBITDA and Cap Exp'!EU7,Assumptions!42:42,Assumptions!43:43)*$G$25 -> 8505.357143 | EV25: =LOOKUP('EBITDA and Cap Exp'!EV7,Assumptions!42:42,Assumptions!43:43)*$G$25 -> 8505.357143 | EW25: =LOOKUP('EBITDA and Cap Exp'!EW7,Assumptions!42:42,Assumptions!43:43)*$G$25 -> 8505.357143 | EX25: =LOOKUP('EBITDA and Cap Exp'!EX7,Assumptions!42:42,Assumptions!43:43)*$G$25 -> 8505.357143 | EY25: =LOOKUP('EBITDA and Cap Exp'!EY7,Assumptions!42:42,Assumptions!43:43)*$G$25 -> 8505.357143 | EZ25: =LOOKUP('EBITDA and Cap Exp'!EZ7,Assumptions!42:42,Assumptions!43:43)*$G$25 -> 8505.357143 | FA25: =LOOKUP('EBITDA and Cap Exp'!FA7,Assumptions!42:42,Assumptions!43:43)*$G$25 -> 8505.357143 | FB25: =LOOKUP('EBITDA and Cap Exp'!FB7,Assumptions!42:42,Assumptions!43:43)*$G$25 -> 8505.357143 | FC25: =LOOKUP('EBITDA and Cap Exp'!FC7,Assumptions!42:42,Assumptions!43:43)*$G$25 -> 8505.357143 | FD25: =LOOKUP('EBITDA and Cap Exp'!FD7,Assumptions!42:42,Assumptions!43:43)*$G$25 -> 8505.357143 | FE25: =LOOKUP('EBITDA and Cap Exp'!FE7,Assumptions!42:42,Assumptions!43:43)*$G$25 -> 8505.357143 | FF25: =LOOKUP('EBITDA and Cap Exp'!FF7,Assumptions!42:42,Assumptions!43:43)*$G$25 -> 8505.357143 | FG25: =LOOKUP('EBITDA and Cap Exp'!FG7,Assumptions!42:42,Assumptions!43:43)*$G$25 -> 8505.357143 | FH25: =LOOKUP('EBITDA and Cap Exp'!FH7,Assumptions!42:42,Assumptions!43:43)*$G$25 -> 8505.357143 | FI25: =LOOKUP('EBITDA and Cap Exp'!FI7,Assumptions!42:42,Assumptions!43:43)*$G$25 -> 8505.357143 | FJ25: =LOOKUP('EBITDA and Cap Exp'!FJ7,Assumptions!42:42,Assumptions!43:43)*$G$25 -> 8505.357143 | FK25: =LOOKUP('EBITDA and Cap Exp'!FK7,Assumptions!42:42,Assumptions!43:43)*$G$25 -> 8505.357143 | FL25: =LOOKUP('EBITDA and Cap Exp'!FL7,Assumptions!42:42,Assumptions!43:43)*$G$25 -> 8505.357143 | FM25: =LOOKUP('EBITDA and Cap Exp'!FM7,Assumptions!42:42,Assumptions!43:43)*$G$25 -> 8505.357143 | FN25: =LOOKUP('EBITDA and Cap Exp'!FN7,Assumptions!42:42,Assumptions!43:43)*$G$25 -> 8505.357143 | FO25: =LOOKUP('EBITDA and Cap Exp'!FO7,Assumptions!42:42,Assumptions!43:43)*$G$25 -> 8505.357143 | FP25: =LOOKUP('EBITDA and Cap Exp'!FP7,Assumptions!42:42,Assumptions!43:43)*$G$25 -> 8505.357143 | FQ25: =LOOKUP('EBITDA and Cap Exp'!FQ7,Assumptions!42:42,Assumptions!43:43)*$G$25 -> 8505.357143 | FR25: =LOOKUP('EBITDA and Cap Exp'!FR7,Assumptions!42:42,Assumptions!43:43)*$G$25 -> 8505.357143 | FS25: =LOOKUP('EBITDA and Cap Exp'!FS7,Assumptions!42:42,Assumptions!43:43)*$G$25 -> 8505.357143 | FT25: =LOOKUP('EBITDA and Cap Exp'!FT7,Assumptions!42:42,Assumptions!43:43)*$G$25 -> 8505.357143 | FU25: =LOOKUP('EBITDA and Cap Exp'!FU7,Assumptions!42:42,Assumptions!43:43)*$G$25 -> 8505.357143 | FV25: =LOOKUP('EBITDA and Cap Exp'!FV7,Assumptions!42:42,Assumptions!43:43)*$G$25 -> 8505.357143 | FW25: =LOOKUP('EBITDA and Cap Exp'!FW7,Assumptions!42:42,Assumptions!43:43)*$G$25 -> 8505.357143 | FX25: =LOOKUP('EBITDA and Cap Exp'!FX7,Assumptions!42:42,Assumptions!43:43)*$G$25 -> 8505.357143 | FY25: =LOOKUP('EBITDA and Cap Exp'!FY7,Assumptions!42:42,Assumptions!43:43)*$G$25 -> 8505.357143 | FZ25: =LOOKUP('EBITDA and Cap Exp'!FZ7,Assumptions!42:42,Assumptions!43:43)*$G$25 -> 8505.357143 | GA25: =LOOKUP('EBITDA and Cap Exp'!GA7,Assumptions!42:42,Assumptions!43:43)*$G$25 -> 8505.357143 | GB25: =LOOKUP('EBITDA and Cap Exp'!GB7,Assumptions!42:42,Assumptions!43:43)*$G$25 -> 8505.357143 | GC25: =LOOKUP('EBITDA and Cap Exp'!GC7,Assumptions!42:42,Assumptions!43:43)*$G$25 -> 8505.357143 | GD25: =LOOKUP('EBITDA and Cap Exp'!GD7,Assumptions!42:42,Assumptions!43:43)*$G$25 -> 8505.357143 | GE25: =LOOKUP('EBITDA and Cap Exp'!GE7,Assumptions!42:42,Assumptions!43:43)*$G$25 -> 8505.357143 | GF25: =LOOKUP('EBITDA and Cap Exp'!GF7,Assumptions!42:42,Assumptions!43:43)*$G$25 -> 8505.357143 | GG25: =LOOKUP('EBITDA and Cap Exp'!GG7,Assumptions!42:42,Assumptions!43:43)*$G$25 -> 8505.357143 | GH25: =LOOKUP('EBITDA and Cap Exp'!GH7,Assumptions!42:42,Assumptions!43:43)*$G$25 -> 8505.357143 | GI25: =LOOKUP('EBITDA and Cap Exp'!GI7,Assumptions!42:42,Assumptions!43:43)*$G$25 -> 8505.357143 | GJ25: =LOOKUP('EBITDA and Cap Exp'!GJ7,Assumptions!42:42,Assumptions!43:43)*$G$25 -> 8505.357143 | GK25: =LOOKUP('EBITDA and Cap Exp'!GK7,Assumptions!42:42,Assumptions!43:43)*$G$25 -> 8505.357143 | GL25: =LOOKUP('EBITDA and Cap Exp'!GL7,Assumptions!42:42,Assumptions!43:43)*$G$25 -> 8505.357143 | GM25: =LOOKUP('EBITDA and Cap Exp'!GM7,Assumptions!42:42,Assumptions!43:43)*$G$25 -> 8505.357143 | GN25: =LOOKUP('EBITDA and Cap Exp'!GN7,Assumptions!42:42,Assumptions!43:43)*$G$25 -> 8505.357143 | GO25: =LOOKUP('EBITDA and Cap Exp'!GO7,Assumptions!42:42,Assumptions!43:43)*$G$25 -> 8505.357143 | GP25: =LOOKUP('EBITDA and Cap Exp'!GP7,Assumptions!42:42,Assumptions!43:43)*$G$25 -> 8505.357143 | GQ25: =LOOKUP('EBITDA and Cap Exp'!GQ7,Assumptions!42:42,Assumptions!43:43)*$G$25 -> 8505.357143 | GR25: =LOOKUP('EBITDA and Cap Exp'!GR7,Assumptions!42:42,Assumptions!43:43)*$G$25 -> 8505.357143 | GS25: =LOOKUP('EBITDA and Cap Exp'!GS7,Assumptions!42:42,Assumptions!43:43)*$G$25 -> 8505.357143 | GT25: =LOOKUP('EBITDA and Cap Exp'!GT7,Assumptions!42:42,Assumptions!43:43)*$G$25 -> 8505.357143 | GU25: =LOOKUP('EBITDA and Cap Exp'!GU7,Assumptions!42:42,Assumptions!43:43)*$G$25 -> 8505.357143 | GV25: =LOOKUP('EBITDA and Cap Exp'!GV7,Assumptions!42:42,Assumptions!43:43)*$G$25 -> 8505.357143 | GW25: =LOOKUP('EBITDA and Cap Exp'!GW7,Assumptions!42:42,Assumptions!43:43)*$G$25 -> 8505.357143 | GX25: =LOOKUP('EBITDA and Cap Exp'!GX7,Assumptions!42:42,Assumptions!43:43)*$G$25 -> 8505.357143 | GY25: =LOOKUP('EBITDA and Cap Exp'!GY7,Assumptions!42:42,Assumptions!43:43)*$G$25 -> 8505.357143 | GZ25: =LOOKUP('EBITDA and Cap Exp'!GZ7,Assumptions!42:42,Assumptions!43:43)*$G$25 -> 8505.357143 | HA25: =LOOKUP('EBITDA and Cap Exp'!HA7,Assumptions!42:42,Assumptions!43:43)*$G$25 -> 8505.357143 | HB25: =LOOKUP('EBITDA and Cap Exp'!HB7,Assumptions!42:42,Assumptions!43:43)*$G$25 -> 8505.357143 | HC25: =LOOKUP('EBITDA and Cap Exp'!HC7,Assumptions!42:42,Assumptions!43:43)*$G$25 -> 8505.357143 | HD25: =LOOKUP('EBITDA and Cap Exp'!HD7,Assumptions!42:42,Assumptions!43:43)*$G$25 -> 8505.357143 | HE25: =LOOKUP('EBITDA and Cap Exp'!HE7,Assumptions!42:42,Assumptions!43:43)*$G$25 -> 8505.357143 | HF25: =LOOKUP('EBITDA and Cap Exp'!HF7,Assumptions!42:42,Assumptions!43:43)*$G$25 -> 8505.357143 | HG25: =LOOKUP('EBITDA and Cap Exp'!HG7,Assumptions!42:42,Assumptions!43:43)*$G$25 -> 8505.357143 | HH25: =LOOKUP('EBITDA and Cap Exp'!HH7,Assumptions!42:42,Assumptions!43:43)*$G$25 -> 8505.357143 | HI25: =LOOKUP('EBITDA and Cap Exp'!HI7,Assumptions!42:42,Assumptions!43:43)*$G$25 -> 8505.357143 | HJ25: =LOOKUP('EBITDA and Cap Exp'!HJ7,Assumptions!42:42,Assumptions!43:43)*$G$25 -> 8505.357143 | HK25: =LOOKUP('EBITDA and Cap Exp'!HK7,Assumptions!42:42,Assumptions!43:43)*$G$25 -> 8505.357143 | HL25: =LOOKUP('EBITDA and Cap Exp'!HL7,Assumptions!42:42,Assumptions!43:43)*$G$25 -> 8505.357143 | HM25: =LOOKUP('EBITDA and Cap Exp'!HM7,Assumptions!42:42,Assumptions!43:43)*$G$25 -> 8505.357143 | HN25: =LOOKUP('EBITDA and Cap Exp'!HN7,Assumptions!42:42,Assumptions!43:43)*$G$25 -> 8505.357143 | HO25: =LOOKUP('EBITDA and Cap Exp'!HO7,Assumptions!42:42,Assumptions!43:43)*$G$25 -> 8505.357143 | HP25: =LOOKUP('EBITDA and Cap Exp'!HP7,Assumptions!42:42,Assumptions!43:43)*$G$25 -> 8505.357143 | HQ25: =LOOKUP('EBITDA and Cap Exp'!HQ7,Assumptions!42:42,Assumptions!43:43)*$G$25 -> 8505.357143 | HR25: =LOOKUP('EBITDA and Cap Exp'!HR7,Assumptions!42:42,Assumptions!43:43)*$G$25 -> 8505.357143 | HS25: =LOOKUP('EBITDA and Cap Exp'!HS7,Assumptions!42:42,Assumptions!43:43)*$G$25 -> 8505.357143 | HT25: =LOOKUP('EBITDA and Cap Exp'!HT7,Assumptions!42:42,Assumptions!43:43)*$G$25 -> 8505.357143 | HU25: =LOOKUP('EBITDA and Cap Exp'!HU7,Assumptions!42:42,Assumptions!43:43)*$G$25 -> 8505.357143 | HV25: =LOOKUP('EBITDA and Cap Exp'!HV7,Assumptions!42:42,Assumptions!43:43)*$G$25 -> 8505.357143 | HW25: =LOOKUP('EBITDA and Cap Exp'!HW7,Assumptions!42:42,Assumptions!43:43)*$G$25 -> 8505.357143 | HX25: =LOOKUP('EBITDA and Cap Exp'!HX7,Assumptions!42:42,Assumptions!43:43)*$G$25 -> 8505.357143 | HY25: =LOOKUP('EBITDA and Cap Exp'!HY7,Assumptions!42:42,Assumptions!43:43)*$G$25 -> 8505.357143 | HZ25: =LOOKUP('EBITDA and Cap Exp'!HZ7,Assumptions!42:42,Assumptions!43:43)*$G$25 -> 8505.357143 | IA25: =LOOKUP('EBITDA and Cap Exp'!IA7,Assumptions!42:42,Assumptions!43:43)*$G$25 -> 8505.357143 | IB25: =LOOKUP('EBITDA and Cap Exp'!IB7,Assumptions!42:42,Assumptions!43:43)*$G$25 -> 8505.357143 | IC25: =LOOKUP('EBITDA and Cap Exp'!IC7,Assumptions!42:42,Assumptions!43:43)*$G$25 -> 8505.357143 | ID25: =LOOKUP('EBITDA and Cap Exp'!ID7,Assumptions!42:42,Assumptions!43:43)*$G$25 -> 8505.357143 | IE25: =LOOKUP('EBITDA and Cap Exp'!IE7,Assumptions!42:42,Assumptions!43:43)*$G$25 -> 8505.357143 | IF25: =LOOKUP('EBITDA and Cap Exp'!IF7,Assumptions!42:42,Assumptions!43:43)*$G$25 -> 8505.357143 | IG25: =LOOKUP('EBITDA and Cap Exp'!IG7,Assumptions!42:42,Assumptions!43:43)*$G$25 -> 8505.357143 | IH25: =LOOKUP('EBITDA and Cap Exp'!IH7,Assumptions!42:42,Assumptions!43:43)*$G$25 -> 8505.357143 | II25: =LOOKUP('EBITDA and Cap Exp'!II7,Assumptions!42:42,Assumptions!43:43)*$G$25 -> 8505.357143 | IJ25: =LOOKUP('EBITDA and Cap Exp'!IJ7,Assumptions!42:42,Assumptions!43:43)*$G$25 -> 8505.357143 | IK25: =LOOKUP('EBITDA and Cap Exp'!IK7,Assumptions!42:42,Assumptions!43:43)*$G$25 -> 8505.357143 | IL25: =LOOKUP('EBITDA and Cap Exp'!IL7,Assumptions!42:42,Assumptions!43:43)*$G$25 -> 8505.357143 | IM25: =LOOKUP('EBITDA and Cap Exp'!IM7,Assumptions!42:42,Assumptions!43:43)*$G$25 -> 8505.357143 | IN25: =LOOKUP('EBITDA and Cap Exp'!IN7,Assumptions!42:42,Assumptions!43:43)*$G$25 -> 8505.357143 | IO25: =LOOKUP('EBITDA and Cap Exp'!IO7,Assumptions!42:42,Assumptions!43:43)*$G$25 -> 8505.357143 | IP25: =LOOKUP('EBITDA and Cap Exp'!IP7,Assumptions!42:42,Assumptions!43:43)*$G$25 -> 8505.357143 | IQ25: =LOOKUP('EBITDA and Cap Exp'!IQ7,Assumptions!42:42,Assumptions!43:43)*$G$25 -> 8505.357143 | IR25: =LOOKUP('EBITDA and Cap Exp'!IR7,Assumptions!42:42,Assumptions!43:43)*$G$25 -> 8505.357143 | IS25: =LOOKUP('EBITDA and Cap Exp'!IS7,Assumptions!42:42,Assumptions!43:43)*$G$25 -> 8505.357143 | IT25: =LOOKUP('EBITDA and Cap Exp'!IT7,Assumptions!42:42,Assumptions!43:43)*$G$25 -> 8505.357143 | IU25: =LOOKUP('EBITDA and Cap Exp'!IU7,Assumptions!42:42,Assumptions!43:43)*$G$25 -> 8505.357143 | IV25: =LOOKUP('EBITDA and Cap Exp'!IV7,Assumptions!42:42,Assumptions!43:43)*$G$25 -> 8505.357143 | IW25: =LOOKUP('EBITDA and Cap Exp'!IW7,Assumptions!42:42,Assumptions!43:43)*$G$25 -> 8505.357143 | IX25: =LOOKUP('EBITDA and Cap Exp'!IX7,Assumptions!42:42,Assumptions!43:43)*$G$25 -> 8505.357143 | IY25: =LOOKUP('EBITDA and Cap Exp'!IY7,Assumptions!42:42,Assumptions!43:43)*$G$25 -> 8505.357143 | IZ25: =LOOKUP('EBITDA and Cap Exp'!IZ7,Assumptions!42:42,Assumptions!43:43)*$G$25 -> 8505.357143 | JA25: =LOOKUP('EBITDA and Cap Exp'!JA7,Assumptions!42:42,Assumptions!43:43)*$G$25 -> 8505.357143 | JB25: =LOOKUP('EBITDA and Cap Exp'!JB7,Assumptions!42:42,Assumptions!43:43)*$G$25 -> 8505.357143 | JC25: =LOOKUP('EBITDA and Cap Exp'!JC7,Assumptions!42:42,Assumptions!43:43)*$G$25 -> 8505.357143 | JD25: =LOOKUP('EBITDA and Cap Exp'!JD7,Assumptions!42:42,Assumptions!43:43)*$G$25 -> 8505.357143 | JE25: =LOOKUP('EBITDA and Cap Exp'!JE7,Assumptions!42:42,Assumptions!43:43)*$G$25 -> 8505.357143 | JF25: =LOOKUP('EBITDA and Cap Exp'!JF7,Assumptions!42:42,Assumptions!43:43)*$G$25 -> 8505.357143 | JG25: =LOOKUP('EBITDA and Cap Exp'!JG7,Assumptions!42:42,Assumptions!43:43)*$G$25 -> 8505.357143 | JH25: =LOOKUP('EBITDA and Cap Exp'!JH7,Assumptions!42:42,Assumptions!43:43)*$G$25 -> 8505.357143 | JI25: =LOOKUP('EBITDA and Cap Exp'!JI7,Assumptions!42:42,Assumptions!43:43)*$G$25 -> 8505.357143 | JJ25: =LOOKUP('EBITDA and Cap Exp'!JJ7,Assumptions!42:42,Assumptions!43:43)*$G$25 -> 8505.357143 | JK25: =LOOKUP('EBITDA and Cap Exp'!JK7,Assumptions!42:42,Assumptions!43:43)*$G$25 -> 8505.357143 | JL25: =LOOKUP('EBITDA and Cap Exp'!JL7,Assumptions!42:42,Assumptions!43:43)*$G$25 -> 8505.357143 | JM25: =LOOKUP('EBITDA and Cap Exp'!JM7,Assumptions!42:42,Assumptions!43:43)*$G$25 -> 8505.357143 | JN25: =LOOKUP('EBITDA and Cap Exp'!JN7,Assumptions!42:42,Assumptions!43:43)*$G$25 -> 8505.357143 | JO25: =LOOKUP('EBITDA and Cap Exp'!JO7,Assumptions!42:42,Assumptions!43:43)*$G$25 -> 8505.357143 | JP25: =LOOKUP('EBITDA and Cap Exp'!JP7,Assumptions!42:42,Assumptions!43:43)*$G$25 -> 8505.357143 | JQ25: =LOOKUP('EBITDA and Cap Exp'!JQ7,Assumptions!42:42,Assumptions!43:43)*$G$25 -> 8505.357143 | JR25: =LOOKUP('EBITDA and Cap Exp'!JR7,Assumptions!42:42,Assumptions!43:43)*$G$25 -> 8505.357143 | JS25: =LOOKUP('EBITDA and Cap Exp'!JS7,Assumptions!42:42,Assumptions!43:43)*$G$25 -> 8505.357143 | JT25: =LOOKUP('EBITDA and Cap Exp'!JT7,Assumptions!42:42,Assumptions!43:43)*$G$25 -> 8505.357143 | JU25: =LOOKUP('EBITDA and Cap Exp'!JU7,Assumptions!42:42,Assumptions!43:43)*$G$25 -> 8505.357143 | JV25: =LOOKUP('EBITDA and Cap Exp'!JV7,Assumptions!42:42,Assumptions!43:43)*$G$25 -> 8505.357143 | JW25: =LOOKUP('EBITDA and Cap Exp'!JW7,Assumptions!42:42,Assumptions!43:43)*$G$25 -> 8505.357143 | JX25: =LOOKUP('EBITDA and Cap Exp'!JX7,Assumptions!42:42,Assumptions!43:43)*$G$25 -> 8505.357143 | JY25: =LOOKUP('EBITDA and Cap Exp'!JY7,Assumptions!42:42,Assumptions!43:43)*$G$25 -> 8505.357143 | JZ25: =LOOKUP('EBITDA and Cap Exp'!JZ7,Assumptions!42:42,Assumptions!43:43)*$G$25 -> 8505.357143 | KA25: =LOOKUP('EBITDA and Cap Exp'!KA7,Assumptions!42:42,Assumptions!43:43)*$G$25 -> 8505.357143 | KB25: =LOOKUP('EBITDA and Cap Exp'!KB7,Assumptions!42:42,Assumptions!43:43)*$G$25 -> 8505.357143 | KC25: =LOOKUP('EBITDA and Cap Exp'!KC7,Assumptions!42:42,Assumptions!43:43)*$G$25 -> 8505.357143 | KD25: =LOOKUP('EBITDA and Cap Exp'!KD7,Assumptions!42:42,Assumptions!43:43)*$G$25 -> 8505.357143 | KE25: =LOOKUP('EBITDA and Cap Exp'!KE7,Assumptions!42:42,Assumptions!43:43)*$G$25 -> 8505.357143 | KF25: =LOOKUP('EBITDA and Cap Exp'!KF7,Assumptions!42:42,Assumptions!43:43)*$G$25 -> 8505.357143 | KG25: =LOOKUP('EBITDA and Cap Exp'!KG7,Assumptions!42:42,Assumptions!43:43)*$G$25 -> 8505.357143 | KH25: =LOOKUP('EBITDA and Cap Exp'!KH7,Assumptions!42:42,Assumptions!43:43)*$G$25 -> 8505.357143 | KI25: =LOOKUP('EBITDA and Cap Exp'!KI7,Assumptions!42:42,Assumptions!43:43)*$G$25 -> 8505.357143 | KJ25: =LOOKUP('EBITDA and Cap Exp'!KJ7,Assumptions!42:42,Assumptions!43:43)*$G$25 -> 8505.357143 | KK25: =LOOKUP('EBITDA and Cap Exp'!KK7,Assumptions!42:42,Assumptions!43:43)*$G$25 -> 8505.357143 | KL25: =LOOKUP('EBITDA and Cap Exp'!KL7,Assumptions!42:42,Assumptions!43:43)*$G$25 -> 8505.357143 | KM25: =LOOKUP('EBITDA and Cap Exp'!KM7,Assumptions!42:42,Assumptions!43:43)*$G$25 -> 8505.357143 | KN25: =LOOKUP('EBITDA and Cap Exp'!KN7,Assumptions!42:42,Assumptions!43:43)*$G$25 -> 8505.357143 | KO25: =LOOKUP('EBITDA and Cap Exp'!KO7,Assumptions!42:42,Assumptions!43:43)*$G$25 -> 8505.357143 | KP25: =LOOKUP('EBITDA and Cap Exp'!KP7,Assumptions!42:42,Assumptions!43:43)*$G$25 -> 8505.357143 | KQ25: =LOOKUP('EBITDA and Cap Exp'!KQ7,Assumptions!42:42,Assumptions!43:43)*$G$25 -> 8505.357143 | KR25: =LOOKUP('EBITDA and Cap Exp'!KR7,Assumptions!42:42,Assumptions!43:43)*$G$25 -> 8505.357143 | KS25: =LOOKUP('EBITDA and Cap Exp'!KS7,Assumptions!42:42,Assumptions!43:43)*$G$25 -> 8505.357143 | KT25: =LOOKUP('EBITDA and Cap Exp'!KT7,Assumptions!42:42,Assumptions!43:43)*$G$25 -> 8505.357143 | KU25: =LOOKUP('EBITDA and Cap Exp'!KU7,Assumptions!42:42,Assumptions!43:43)*$G$25 -> 8505.357143 | KV25: =LOOKUP('EBITDA and Cap Exp'!KV7,Assumptions!42:42,Assumptions!43:43)*$G$25 -> 8505.357143
B26: Required Gas per Period | E26: MMBTU | I26: =I23*I25/1000000 -> 559.319112 | J26: =J23*J25/1000000 -> 523.234008 | K26: 559.319112 | L26: 541.27656 | M26: 559.319112 | N26: 541.27656 | O26: 559.319112 | P26: 559.319112 | Q26: 541.27656 | R26: 559.319112 | S26: 541.27656 | T26: 559.319112 | U26: 559.319112 | V26: 505.191456 | W26: 559.319112 | X26: 541.27656 | Y26: 559.319112 | Z26: 541.27656 | AA26: 559.319112 | AB26: 559.319112 | AC26: 541.27656 | AD26: 721.3903714 | AE26: 698.1197143 | AF26: 721.3903714 | AG26: 721.3903714 | AH26: 651.5784 | AI26: 721.3903714 | AJ26: 698.1197143 | AK26: 721.3903714 | AL26: 698.1197143 | AM26: 721.3903714 | AN26: 721.3903714 | AO26: 698.1197143 | AP26: 721.3903714 | AQ26: 698.1197143 | AR26: 721.3903714 | AS26: 721.3903714 | AT26: 651.5784 | AU26: 721.3903714 | AV26: 698.1197143 | AW26: 721.3903714 | AX26: 698.1197143 | AY26: 721.3903714 | AZ26: 721.3903714 | BA26: 698.1197143 | BB26: 721.3903714 | BC26: 698.1197143 | BD26: 721.3903714 | BE26: 721.3903714 | BF26: 674.8490571 | BG26: 721.3903714 | BH26: 698.1197143 | BI26: 721.3903714 | BJ26: 698.1197143 | BK26: 721.3903714 | BL26: 721.3903714 | BM26: 698.1197143 | BN26: 721.3903714 | BO26: 698.1197143 | BP26: 721.3903714 | BQ26: 721.3903714 | BR26: 651.5784 | BS26: 721.3903714 | BT26: 698.1197143 | BU26: 721.3903714 | BV26: =BV23*BV25/1000000 -> 698.1197143 | BW26: 721.3903714 | BX26: 721.3903714 | BY26: 698.1197143 | BZ26: 721.3903714 | CA26: 698.1197143 | CB26: 721.3903714 | CC26: 721.3903714 | CD26: 651.5784 | CE26: 721.3903714 | CF26: 698.1197143 | CG26: 721.3903714 | CH26: 698.1197143 | CI26: 721.3903714 | CJ26: 721.3903714 | CK26: 698.1197143 | CL26: 721.3903714 | CM26: 698.1197143 | CN26: 721.3903714 | CO26: 721.3903714 | CP26: 651.5784 | CQ26: 721.3903714 | CR26: 698.1197143 | CS26: 721.3903714 | CT26: 698.1197143 | CU26: 721.3903714 | CV26: 721.3903714 | CW26: 698.1197143 | CX26: 721.3903714 | CY26: 698.1197143 | CZ26: 721.3903714 | DA26: 721.3903714 | DB26: 674.8490571 | DC26: 721.3903714 | DD26: 698.1197143 | DE26: 721.3903714 | DF26: 698.1197143 | DG26: 721.3903714 | DH26: 721.3903714 | DI26: 698.1197143 | DJ26: 721.3903714 | DK26: 698.1197143 | DL26: 721.3903714 | DM26: 721.3903714 | DN26: 651.5784 | DO26: 721.3903714 | DP26: 698.1197143 | DQ26: 721.3903714 | DR26: 698.1197143 | DS26: 721.3903714 | DT26: 721.3903714 | DU26: 698.1197143 | DV26: 721.3903714 | DW26: 698.1197143 | DX26: 721.3903714 | DY26: 721.3903714 | DZ26: 651.5784 | EA26: 721.3903714 | EB26: 698.1197143 | EC26: 721.3903714 | ED26: 698.1197143 | EE26: 721.3903714 | EF26: 721.3903714 | EG26: 698.1197143 | EH26: =EH23*EH25/1000000 -> 721.3903714 | EI26: 698.1197143 | EJ26: 721.3903714 | EK26: 721.3903714 | EL26: 651.5784 | EM26: 721.3903714 | EN26: 698.1197143 | EO26: 721.3903714 | EP26: 698.1197143 | EQ26: 721.3903714 | ER26: 721.3903714 | ES26: 698.1197143 | ET26: 721.3903714 | EU26: 698.1197143 | EV26: 721.3903714 | EW26: 721.3903714 | EX26: 674.8490571 | EY26: 721.3903714 | EZ26: 698.1197143 | FA26: 721.3903714 | FB26: 698.1197143 | FC26: 721.3903714 | FD26: 721.3903714 | FE26: 698.1197143 | FF26: 721.3903714 | FG26: 698.1197143 | FH26: 721.3903714 | FI26: 721.3903714 | FJ26: 651.5784 | FK26: 721.3903714 | FL26: 698.1197143 | FM26: 721.3903714 | FN26: 698.1197143 | FO26: 721.3903714 | FP26: 721.3903714 | FQ26: 698.1197143 | FR26: 721.3903714 | FS26: 698.1197143 | FT26: 721.3903714 | FU26: 721.3903714 | FV26: 651.5784 | FW26: 721.3903714 | FX26: 698.1197143 | FY26: 721.3903714 | FZ26: 698.1197143 | GA26: 721.3903714 | GB26: 721.3903714 | GC26: 698.1197143 | GD26: 721.3903714 | GE26: 698.1197143 | GF26: 721.3903714 | GG26: 721.3903714 | GH26: 651.5784 | GI26: 721.3903714 | GJ26: 698.1197143 | GK26: 721.3903714 | GL26: 698.1197143 | GM26: 721.3903714 | GN26: 721.3903714 | GO26: 698.1197143 | GP26: 721.3903714 | GQ26: 698.1197143 | GR26: 721.3903714 | GS26: 721.3903714 | GT26: =GT23*GT25/1000000 -> 674.8490571 | GU26: 721.3903714 | GV26: 698.1197143 | GW26: 721.3903714 | GX26: 698.1197143 | GY26: 721.3903714 | GZ26: 721.3903714 | HA26: 698.1197143 | HB26: 721.3903714 | HC26: 698.1197143 | HD26: 721.3903714 | HE26: 721.3903714 | HF26: 651.5784 | HG26: 721.3903714 | HH26: 698.1197143 | HI26: 721.3903714 | HJ26: 698.1197143 | HK26: 721.3903714 | HL26: 721.3903714 | HM26: 698.1197143 | HN26: 721.3903714 | HO26: 698.1197143 | HP26: 721.3903714 | HQ26: 721.3903714 | HR26: 651.5784 | HS26: 721.3903714 | HT26: 698.1197143 | HU26: 721.3903714 | HV26: 698.1197143 | HW26: 721.3903714 | HX26: 721.3903714 | HY26: 698.1197143 | HZ26: 721.3903714 | IA26: 698.1197143 | IB26: 721.3903714 | IC26: 721.3903714 | ID26: 651.5784 | IE26: 721.3903714 | IF26: 698.1197143 | IG26: 721.3903714 | IH26: 698.1197143 | II26: 721.3903714 | IJ26: 721.3903714 | IK26: 698.1197143 | IL26: 721.3903714 | IM26: 698.1197143 | IN26: 721.3903714 | IO26: 721.3903714 | IP26: 674.8490571 | IQ26: 721.3903714 | IR26: 698.1197143 | IS26: 721.3903714 | IT26: 698.1197143 | IU26: 721.3903714 | IV26: 721.3903714 | IW26: 698.1197143 | IX26: 721.3903714 | IY26: 698.1197143 | IZ26: 721.3903714 | JA26: 721.3903714 | JB26: 651.5784 | JC26: 721.3903714 | JD26: 698.1197143 | JE26: 721.3903714 | JF26: =JF23*JF25/1000000 -> 698.1197143 | JG26: 721.3903714 | JH26: 721.3903714 | JI26: 698.1197143 | JJ26: 721.3903714 | JK26: 698.1197143 | JL26: 721.3903714 | JM26: 721.3903714 | JN26: 651.5784 | JO26: 721.3903714 | JP26: 698.1197143 | JQ26: 721.3903714 | JR26: 698.1197143 | JS26: 721.3903714 | JT26: 721.3903714 | JU26: 698.1197143 | JV26: 721.3903714 | JW26: 698.1197143 | JX26: 721.3903714 | JY26: 721.3903714 | JZ26: 651.5784 | KA26: 721.3903714 | KB26: 698.1197143 | KC26: 721.3903714 | KD26: 698.1197143 | KE26: 721.3903714 | KF26: 721.3903714 | KG26: 698.1197143 | KH26: 721.3903714 | KI26: 698.1197143 | KJ26: 721.3903714 | KK26: 721.3903714 | KL26: 674.8490571 | KM26: 721.3903714 | KN26: 698.1197143 | KO26: 721.3903714 | KP26: 698.1197143 | KQ26: 721.3903714 | KR26: 721.3903714 | KS26: 698.1197143 | KT26: 721.3903714 | KU26: 698.1197143 | KV26: 721.3903714
B27: Required Gas per Day | E27: MMBTU/d | I27: =I26/I14 -> 18.042552 | J27: =J26/J14 -> 18.042552 | K27: 18.042552 | L27: 18.042552 | M27: 18.042552 | N27: 18.042552 | O27: 18.042552 | P27: 18.042552 | Q27: 18.042552 | R27: 18.042552 | S27: 18.042552 | T27: 18.042552 | U27: 18.042552 | V27: 18.042552 | W27: 18.042552 | X27: 18.042552 | Y27: 18.042552 | Z27: 18.042552 | AA27: 18.042552 | AB27: 18.042552 | AC27: 18.042552 | AD27: 23.27065714 | AE27: 23.27065714 | AF27: 23.27065714 | AG27: 23.27065714 | AH27: 23.27065714 | AI27: 23.27065714 | AJ27: 23.27065714 | AK27: 23.27065714 | AL27: 23.27065714 | AM27: 23.27065714 | AN27: 23.27065714 | AO27: 23.27065714 | AP27: 23.27065714 | AQ27: 23.27065714 | AR27: 23.27065714 | AS27: 23.27065714 | AT27: 23.27065714 | AU27: 23.27065714 | AV27: 23.27065714 | AW27: 23.27065714 | AX27: 23.27065714 | AY27: 23.27065714 | AZ27: 23.27065714 | BA27: 23.27065714 | BB27: 23.27065714 | BC27: 23.27065714 | BD27: 23.27065714 | BE27: 23.27065714 | BF27: 23.27065714 | BG27: 23.27065714 | BH27: 23.27065714 | BI27: 23.27065714 | BJ27: 23.27065714 | BK27: 23.27065714 | BL27: 23.27065714 | BM27: 23.27065714 | BN27: 23.27065714 | BO27: 23.27065714 | BP27: 23.27065714 | BQ27: 23.27065714 | BR27: 23.27065714 | BS27: 23.27065714 | BT27: 23.27065714 | BU27: 23.27065714 | BV27: =BV26/BV14 -> 23.27065714 | BW27: 23.27065714 | BX27: 23.27065714 | BY27: 23.27065714 | BZ27: 23.27065714 | CA27: 23.27065714 | CB27: 23.27065714 | CC27: 23.27065714 | CD27: 23.27065714 | CE27: 23.27065714 | CF27: 23.27065714 | CG27: 23.27065714 | CH27: 23.27065714 | CI27: 23.27065714 | CJ27: 23.27065714 | CK27: 23.27065714 | CL27: 23.27065714 | CM27: 23.27065714 | CN27: 23.27065714 | CO27: 23.27065714 | CP27: 23.27065714 | CQ27: 23.27065714 | CR27: 23.27065714 | CS27: 23.27065714 | CT27: 23.27065714 | CU27: 23.27065714 | CV27: 23.27065714 | CW27: 23.27065714 | CX27: 23.27065714 | CY27: 23.27065714 | CZ27: 23.27065714 | DA27: 23.27065714 | DB27: 23.27065714 | DC27: 23.27065714 | DD27: 23.27065714 | DE27: 23.27065714 | DF27: 23.27065714 | DG27: 23.27065714 | DH27: 23.27065714 | DI27: 23.27065714 | DJ27: 23.27065714 | DK27: 23.27065714 | DL27: 23.27065714 | DM27: 23.27065714 | DN27: 23.27065714 | DO27: 23.27065714 | DP27: 23.27065714 | DQ27: 23.27065714 | DR27: 23.27065714 | DS27: 23.27065714 | DT27: 23.27065714 | DU27: 23.27065714 | DV27: 23.27065714 | DW27: 23.27065714 | DX27: 23.27065714 | DY27: 23.27065714 | DZ27: 23.27065714 | EA27: 23.27065714 | EB27: 23.27065714 | EC27: 23.27065714 | ED27: 23.27065714 | EE27: 23.27065714 | EF27: 23.27065714 | EG27: 23.27065714 | EH27: =EH26/EH14 -> 23.27065714 | EI27: 23.27065714 | EJ27: 23.27065714 | EK27: 23.27065714 | EL27: 23.27065714 | EM27: 23.27065714 | EN27: 23.27065714 | EO27: 23.27065714 | EP27: 23.27065714 | EQ27: 23.27065714 | ER27: 23.27065714 | ES27: 23.27065714 | ET27: 23.27065714 | EU27: 23.27065714 | EV27: 23.27065714 | EW27: 23.27065714 | EX27: 23.27065714 | EY27: 23.27065714 | EZ27: 23.27065714 | FA27: 23.27065714 | FB27: 23.27065714 | FC27: 23.27065714 | FD27: 23.27065714 | FE27: 23.27065714 | FF27: 23.27065714 | FG27: 23.27065714 | FH27: 23.27065714 | FI27: 23.27065714 | FJ27: 23.27065714 | FK27: 23.27065714 | FL27: 23.27065714 | FM27: 23.27065714 | FN27: 23.27065714 | FO27: 23.27065714 | FP27: 23.27065714 | FQ27: 23.27065714 | FR27: 23.27065714 | FS27: 23.27065714 | FT27: 23.27065714 | FU27: 23.27065714 | FV27: 23.27065714 | FW27: 23.27065714 | FX27: 23.27065714 | FY27: 23.27065714 | FZ27: 23.27065714 | GA27: 23.27065714 | GB27: 23.27065714 | GC27: 23.27065714 | GD27: 23.27065714 | GE27: 23.27065714 | GF27: 23.27065714 | GG27: 23.27065714 | GH27: 23.27065714 | GI27: 23.27065714 | GJ27: 23.27065714 | GK27: 23.27065714 | GL27: 23.27065714 | GM27: 23.27065714 | GN27: 23.27065714 | GO27: 23.27065714 | GP27: 23.27065714 | GQ27: 23.27065714 | GR27: 23.27065714 | GS27: 23.27065714 | GT27: =GT26/GT14 -> 23.27065714 | GU27: 23.27065714 | GV27: 23.27065714 | GW27: 23.27065714 | GX27: 23.27065714 | GY27: 23.27065714 | GZ27: 23.27065714 | HA27: 23.27065714 | HB27: 23.27065714 | HC27: 23.27065714 | HD27: 23.27065714 | HE27: 23.27065714 | HF27: 23.27065714 | HG27: 23.27065714 | HH27: 23.27065714 | HI27: 23.27065714 | HJ27: 23.27065714 | HK27: 23.27065714 | HL27: 23.27065714 | HM27: 23.27065714 | HN27: 23.27065714 | HO27: 23.27065714 | HP27: 23.27065714 | HQ27: 23.27065714 | HR27: 23.27065714 | HS27: 23.27065714 | HT27: 23.27065714 | HU27: 23.27065714 | HV27: 23.27065714 | HW27: 23.27065714 | HX27: 23.27065714 | HY27: 23.27065714 | HZ27: 23.27065714 | IA27: 23.27065714 | IB27: 23.27065714 | IC27: 23.27065714 | ID27: 23.27065714 | IE27: 23.27065714 | IF27: 23.27065714 | IG27: 23.27065714 | IH27: 23.27065714 | II27: 23.27065714 | IJ27: 23.27065714 | IK27: 23.27065714 | IL27: 23.27065714 | IM27: 23.27065714 | IN27: 23.27065714 | IO27: 23.27065714 | IP27: 23.27065714 | IQ27: 23.27065714 | IR27: 23.27065714 | IS27: 23.27065714 | IT27: 23.27065714 | IU27: 23.27065714 | IV27: 23.27065714 | IW27: 23.27065714 | IX27: 23.27065714 | IY27: 23.27065714 | IZ27: 23.27065714 | JA27: 23.27065714 | JB27: 23.27065714 | JC27: 23.27065714 | JD27: 23.27065714 | JE27: 23.27065714 | JF27: =JF26/JF14 -> 23.27065714 | JG27: 23.27065714 | JH27: 23.27065714 | JI27: 23.27065714 | JJ27: 23.27065714 | JK27: 23.27065714 | JL27: 23.27065714 | JM27: 23.27065714 | JN27: 23.27065714 | JO27: 23.27065714 | JP27: 23.27065714 | JQ27: 23.27065714 | JR27: 23.27065714 | JS27: 23.27065714 | JT27: 23.27065714 | JU27: 23.27065714 | JV27: 23.27065714 | JW27: 23.27065714 | JX27: 23.27065714 | JY27: 23.27065714 | JZ27: 23.27065714 | KA27: 23.27065714 | KB27: 23.27065714 | KC27: 23.27065714 | KD27: 23.27065714 | KE27: 23.27065714 | KF27: 23.27065714 | KG27: 23.27065714 | KH27: 23.27065714 | KI27: 23.27065714 | KJ27: 23.27065714 | KK27: 23.27065714 | KL27: 23.27065714 | KM27: 23.27065714 | KN27: 23.27065714 | KO27: 23.27065714 | KP27: 23.27065714 | KQ27: 23.27065714 | KR27: 23.27065714 | KS27: 23.27065714 | KT27: 23.27065714 | KU27: 23.27065714 | KV27: 23.27065714
B28: Required Gas per Hour | E28: MMBTU/h | I28: =I27/24 -> 0.751773 | J28: =J27/24 -> 0.751773 | K28: 0.751773 | L28: 0.751773 | M28: 0.751773 | N28: 0.751773 | O28: 0.751773 | P28: 0.751773 | Q28: 0.751773 | R28: 0.751773 | S28: 0.751773 | T28: 0.751773 | U28: 0.751773 | V28: 0.751773 | W28: 0.751773 | X28: 0.751773 | Y28: 0.751773 | Z28: 0.751773 | AA28: 0.751773 | AB28: 0.751773 | AC28: 0.751773 | AD28: 0.9696107143 | AE28: 0.9696107143 | AF28: 0.9696107143 | AG28: 0.9696107143 | AH28: 0.9696107143 | AI28: 0.9696107143 | AJ28: 0.9696107143 | AK28: 0.9696107143 | AL28: 0.9696107143 | AM28: 0.9696107143 | AN28: 0.9696107143 | AO28: 0.9696107143 | AP28: 0.9696107143 | AQ28: 0.9696107143 | AR28: 0.9696107143 | AS28: 0.9696107143 | AT28: 0.9696107143 | AU28: 0.9696107143 | AV28: 0.9696107143 | AW28: 0.9696107143 | AX28: 0.9696107143 | AY28: 0.9696107143 | AZ28: 0.9696107143 | BA28: 0.9696107143 | BB28: 0.9696107143 | BC28: 0.9696107143 | BD28: 0.9696107143 | BE28: 0.9696107143 | BF28: 0.9696107143 | BG28: 0.9696107143 | BH28: 0.9696107143 | BI28: 0.9696107143 | BJ28: 0.9696107143 | BK28: 0.9696107143 | BL28: 0.9696107143 | BM28: 0.9696107143 | BN28: 0.9696107143 | BO28: 0.9696107143 | BP28: 0.9696107143 | BQ28: 0.9696107143 | BR28: 0.9696107143 | BS28: 0.9696107143 | BT28: 0.9696107143 | BU28: 0.9696107143 | BV28: =BV27/24 -> 0.9696107143 | BW28: 0.9696107143 | BX28: 0.9696107143 | BY28: 0.9696107143 | BZ28: 0.9696107143 | CA28: 0.9696107143 | CB28: 0.9696107143 | CC28: 0.9696107143 | CD28: 0.9696107143 | CE28: 0.9696107143 | CF28: 0.9696107143 | CG28: 0.9696107143 | CH28: 0.9696107143 | CI28: 0.9696107143 | CJ28: 0.9696107143 | CK28: 0.9696107143 | CL28: 0.9696107143 | CM28: 0.9696107143 | CN28: 0.9696107143 | CO28: 0.9696107143 | CP28: 0.9696107143 | CQ28: 0.9696107143 | CR28: 0.9696107143 | CS28: 0.9696107143 | CT28: 0.9696107143 | CU28: 0.9696107143 | CV28: 0.9696107143 | CW28: 0.9696107143 | CX28: 0.9696107143 | CY28: 0.9696107143 | CZ28: 0.9696107143 | DA28: 0.9696107143 | DB28: 0.9696107143 | DC28: 0.9696107143 | DD28: 0.9696107143 | DE28: 0.9696107143 | DF28: 0.9696107143 | DG28: 0.9696107143 | DH28: 0.9696107143 | DI28: 0.9696107143 | DJ28: 0.9696107143 | DK28: 0.9696107143 | DL28: 0.9696107143 | DM28: 0.9696107143 | DN28: 0.9696107143 | DO28: 0.9696107143 | DP28: 0.9696107143 | DQ28: 0.9696107143 | DR28: 0.9696107143 | DS28: 0.9696107143 | DT28: 0.9696107143 | DU28: 0.9696107143 | DV28: 0.9696107143 | DW28: 0.9696107143 | DX28: 0.9696107143 | DY28: 0.9696107143 | DZ28: 0.9696107143 | EA28: 0.9696107143 | EB28: 0.9696107143 | EC28: 0.9696107143 | ED28: 0.9696107143 | EE28: 0.9696107143 | EF28: 0.9696107143 | EG28: 0.9696107143 | EH28: =EH27/24 -> 0.9696107143 | EI28: 0.9696107143 | EJ28: 0.9696107143 | EK28: 0.9696107143 | EL28: 0.9696107143 | EM28: 0.9696107143 | EN28: 0.9696107143 | EO28: 0.9696107143 | EP28: 0.9696107143 | EQ28: 0.9696107143 | ER28: 0.9696107143 | ES28: 0.9696107143 | ET28: 0.9696107143 | EU28: 0.9696107143 | EV28: 0.9696107143 | EW28: 0.9696107143 | EX28: 0.9696107143 | EY28: 0.9696107143 | EZ28: 0.9696107143 | FA28: 0.9696107143 | FB28: 0.9696107143 | FC28: 0.9696107143 | FD28: 0.9696107143 | FE28: 0.9696107143 | FF28: 0.9696107143 | FG28: 0.9696107143 | FH28: 0.9696107143 | FI28: 0.9696107143 | FJ28: 0.9696107143 | FK28: 0.9696107143 | FL28: 0.9696107143 | FM28: 0.9696107143 | FN28: 0.9696107143 | FO28: 0.9696107143 | FP28: 0.9696107143 | FQ28: 0.9696107143 | FR28: 0.9696107143 | FS28: 0.9696107143 | FT28: 0.9696107143 | FU28: 0.9696107143 | FV28: 0.9696107143 | FW28: 0.9696107143 | FX28: 0.9696107143 | FY28: 0.9696107143 | FZ28: 0.9696107143 | GA28: 0.9696107143 | GB28: 0.9696107143 | GC28: 0.9696107143 | GD28: 0.9696107143 | GE28: 0.9696107143 | GF28: 0.9696107143 | GG28: 0.9696107143 | GH28: 0.9696107143 | GI28: 0.9696107143 | GJ28: 0.9696107143 | GK28: 0.9696107143 | GL28: 0.9696107143 | GM28: 0.9696107143 | GN28: 0.9696107143 | GO28: 0.9696107143 | GP28: 0.9696107143 | GQ28: 0.9696107143 | GR28: 0.9696107143 | GS28: 0.9696107143 | GT28: =GT27/24 -> 0.9696107143 | GU28: 0.9696107143 | GV28: 0.9696107143 | GW28: 0.9696107143 | GX28: 0.9696107143 | GY28: 0.9696107143 | GZ28: 0.9696107143 | HA28: 0.9696107143 | HB28: 0.9696107143 | HC28: 0.9696107143 | HD28: 0.9696107143 | HE28: 0.9696107143 | HF28: 0.9696107143 | HG28: 0.9696107143 | HH28: 0.9696107143 | HI28: 0.9696107143 | HJ28: 0.9696107143 | HK28: 0.9696107143 | HL28: 0.9696107143 | HM28: 0.9696107143 | HN28: 0.9696107143 | HO28: 0.9696107143 | HP28: 0.9696107143 | HQ28: 0.9696107143 | HR28: 0.9696107143 | HS28: 0.9696107143 | HT28: 0.9696107143 | HU28: 0.9696107143 | HV28: 0.9696107143 | HW28: 0.9696107143 | HX28: 0.9696107143 | HY28: 0.9696107143 | HZ28: 0.9696107143 | IA28: 0.9696107143 | IB28: 0.9696107143 | IC28: 0.9696107143 | ID28: 0.9696107143 | IE28: 0.9696107143 | IF28: 0.9696107143 | IG28: 0.9696107143 | IH28: 0.9696107143 | II28: 0.9696107143 | IJ28: 0.9696107143 | IK28: 0.9696107143 | IL28: 0.9696107143 | IM28: 0.9696107143 | IN28: 0.9696107143 | IO28: 0.9696107143 | IP28: 0.9696107143 | IQ28: 0.9696107143 | IR28: 0.9696107143 | IS28: 0.9696107143 | IT28: 0.9696107143 | IU28: 0.9696107143 | IV28: 0.9696107143 | IW28: 0.9696107143 | IX28: 0.9696107143 | IY28: 0.9696107143 | IZ28: 0.9696107143 | JA28: 0.9696107143 | JB28: 0.9696107143 | JC28: 0.9696107143 | JD28: 0.9696107143 | JE28: 0.9696107143 | JF28: =JF27/24 -> 0.9696107143 | JG28: 0.9696107143 | JH28: 0.9696107143 | JI28: 0.9696107143 | JJ28: 0.9696107143 | JK28: 0.9696107143 | JL28: 0.9696107143 | JM28: 0.9696107143 | JN28: 0.9696107143 | JO28: 0.9696107143 | JP28: 0.9696107143 | JQ28: 0.9696107143 | JR28: 0.9696107143 | JS28: 0.9696107143 | JT28: 0.9696107143 | JU28: 0.9696107143 | JV28: 0.9696107143 | JW28: 0.9696107143 | JX28: 0.9696107143 | JY28: 0.9696107143 | JZ28: 0.9696107143 | KA28: 0.9696107143 | KB28: 0.9696107143 | KC28: 0.9696107143 | KD28: 0.9696107143 | KE28: 0.9696107143 | KF28: 0.9696107143 | KG28: 0.9696107143 | KH28: 0.9696107143 | KI28: 0.9696107143 | KJ28: 0.9696107143 | KK28: 0.9696107143 | KL28: 0.9696107143 | KM28: 0.9696107143 | KN28: 0.9696107143 | KO28: 0.9696107143 | KP28: 0.9696107143 | KQ28: 0.9696107143 | KR28: 0.9696107143 | KS28: 0.9696107143 | KT28: 0.9696107143 | KU28: 0.9696107143 | KV28: 0.9696107143
A30: PPA Targets
B31: PPA Term | E31: Switch | F31: =Assumptions!F87 -> 2007-11-01 | G31: =Assumptions!H87 -> 2028-11-01 | I31: =AND(I$7>=$F31,I$7<$G31) -> TRUE | J31: =AND(J$7>=$F31,J$7<$G31) -> TRUE | K31: TRUE | L31: TRUE | M31: TRUE | N31: TRUE | O31: TRUE | P31: TRUE | Q31: TRUE | R31: TRUE | S31: TRUE | T31: TRUE | U31: TRUE | V31: TRUE | W31: TRUE | X31: TRUE | Y31: TRUE | Z31: TRUE | AA31: TRUE | AB31: TRUE | AC31: TRUE | AD31: TRUE | AE31: TRUE | AF31: TRUE | AG31: TRUE | AH31: TRUE | AI31: TRUE | AJ31: TRUE | AK31: TRUE | AL31: TRUE | AM31: TRUE | AN31: TRUE | AO31: TRUE | AP31: TRUE | AQ31: TRUE | AR31: TRUE | AS31: TRUE | AT31: TRUE | AU31: TRUE | AV31: TRUE | AW31: TRUE | AX31: TRUE | AY31: TRUE | AZ31: TRUE | BA31: TRUE | BB31: TRUE | BC31: TRUE | BD31: TRUE | BE31: TRUE | BF31: TRUE | BG31: TRUE | BH31: TRUE | BI31: TRUE | BJ31: TRUE | BK31: TRUE | BL31: TRUE | BM31: TRUE | BN31: TRUE | BO31: TRUE | BP31: TRUE | BQ31: TRUE | BR31: TRUE | BS31: TRUE | BT31: TRUE | BU31: TRUE | BV31: =AND(BV$7>=$F31,BV$7<$G31) -> TRUE | BW31: TRUE | BX31: TRUE | BY31: TRUE | BZ31: TRUE | CA31: TRUE | CB31: TRUE | CC31: TRUE | CD31: TRUE | CE31: TRUE | CF31: TRUE | CG31: TRUE | CH31: TRUE | CI31: TRUE | CJ31: TRUE | CK31: TRUE | CL31: TRUE | CM31: TRUE | CN31: TRUE | CO31: TRUE | CP31: TRUE | CQ31: TRUE | CR31: TRUE | CS31: TRUE | CT31: TRUE | CU31: TRUE | CV31: TRUE | CW31: TRUE | CX31: TRUE | CY31: TRUE | CZ31: TRUE | DA31: TRUE | DB31: TRUE | DC31: TRUE | DD31: TRUE | DE31: TRUE | DF31: TRUE | DG31: TRUE | DH31: TRUE | DI31: TRUE | DJ31: TRUE | DK31: TRUE | DL31: TRUE | DM31: TRUE | DN31: TRUE | DO31: TRUE | DP31: TRUE | DQ31: TRUE | DR31: TRUE | DS31: TRUE | DT31: TRUE | DU31: TRUE | DV31: TRUE | DW31: TRUE | DX31: TRUE | DY31: TRUE | DZ31: TRUE | EA31: TRUE | EB31: TRUE | EC31: TRUE | ED31: TRUE | EE31: TRUE | EF31: TRUE | EG31: TRUE | EH31: =AND(EH$7>=$F31,EH$7<$G31) -> TRUE | EI31: TRUE | EJ31: TRUE | EK31: TRUE | EL31: TRUE | EM31: TRUE | EN31: TRUE | EO31: TRUE | EP31: TRUE | EQ31: TRUE | ER31: TRUE | ES31: TRUE | ET31: TRUE | EU31: TRUE | EV31: TRUE | EW31: TRUE | EX31: TRUE | EY31: TRUE | EZ31: TRUE | FA31: TRUE | FB31: TRUE | FC31: TRUE | FD31: TRUE | FE31: TRUE | FF31: TRUE | FG31: FALSE | FH31: FALSE | FI31: FALSE | FJ31: FALSE | FK31: FALSE | FL31: FALSE | FM31: FALSE | FN31: FALSE | FO31: FALSE | FP31: FALSE | FQ31: FALSE | FR31: FALSE | FS31: FALSE | FT31: FALSE | FU31: FALSE | FV31: FALSE | FW31: FALSE | FX31: FALSE | FY31: FALSE | FZ31: FALSE | GA31: FALSE | GB31: FALSE | GC31: FALSE | GD31: FALSE | GE31: FALSE | GF31: FALSE | GG31: FALSE | GH31: FALSE | GI31: FALSE | GJ31: FALSE | GK31: FALSE | GL31: FALSE | GM31: FALSE | GN31: FALSE | GO31: FALSE | GP31: FALSE | GQ31: FALSE | GR31: FALSE | GS31: FALSE | GT31: =AND(GT$7>=$F31,GT$7<$G31) -> FALSE | GU31: FALSE | GV31: FALSE | GW31: FALSE | GX31: FALSE | GY31: FALSE | GZ31: FALSE | HA31: FALSE | HB31: FALSE | HC31: FALSE | HD31: FALSE | HE31: FALSE | HF31: FALSE | HG31: FALSE | HH31: FALSE | HI31: FALSE | HJ31: FALSE | HK31: FALSE | HL31: FALSE | HM31: FALSE | HN31: FALSE | HO31: FALSE | HP31: FALSE | HQ31: FALSE | HR31: FALSE | HS31: FALSE | HT31: FALSE | HU31: FALSE | HV31: FALSE | HW31: FALSE | HX31: FALSE | HY31: FALSE | HZ31: FALSE | IA31: FALSE | IB31: FALSE | IC31: FALSE | ID31: FALSE | IE31: FALSE | IF31: FALSE | IG31: FALSE | IH31: FALSE | II31: FALSE | IJ31: FALSE | IK31: FALSE | IL31: FALSE | IM31: FALSE | IN31: FALSE | IO31: FALSE | IP31: FALSE | IQ31: FALSE | IR31: FALSE | IS31: FALSE | IT31: FALSE | IU31: FALSE | IV31: FALSE | IW31: FALSE | IX31: FALSE | IY31: FALSE | IZ31: FALSE | JA31: FALSE | JB31: FALSE | JC31: FALSE | JD31: FALSE | JE31: FALSE | JF31: =AND(JF$7>=$F31,JF$7<$G31) -> FALSE | JG31: FALSE | JH31: FALSE | JI31: FALSE | JJ31: FALSE | JK31: FALSE | JL31: FALSE | JM31: FALSE | JN31: FALSE | JO31: FALSE | JP31: FALSE | JQ31: FALSE | JR31: FALSE | JS31: FALSE | JT31: FALSE | JU31: FALSE | JV31: FALSE | JW31: FALSE | JX31: FALSE | JY31: FALSE | JZ31: FALSE | KA31: FALSE | KB31: FALSE | KC31: FALSE | KD31: FALSE | KE31: FALSE | KF31: FALSE | KG31: FALSE | KH31: FALSE | KI31: FALSE | KJ31: FALSE | KK31: FALSE | KL31: FALSE | KM31: FALSE | KN31: FALSE | KO31: FALSE | KP31: FALSE | KQ31: FALSE | KR31: FALSE | KS31: FALSE | KT31: FALSE | KU31: FALSE | KV31: FALSE
B32: Target Capacity | E32: MW | I32: =LOOKUP(I7,Assumptions!91:91,Assumptions!92:92) -> 110 | J32: =LOOKUP(J7,Assumptions!91:91,Assumptions!92:92) -> 110 | K32: =LOOKUP(K7,Assumptions!91:91,Assumptions!92:92) -> 110 | L32: =LOOKUP(L7,Assumptions!91:91,Assumptions!92:92) -> 110 | M32: =LOOKUP(M7,Assumptions!91:91,Assumptions!92:92) -> 110 | N32: =LOOKUP(N7,Assumptions!91:91,Assumptions!92:92) -> 110 | O32: =LOOKUP(O7,Assumptions!91:91,Assumptions!92:92) -> 110 | P32: =LOOKUP(P7,Assumptions!91:91,Assumptions!92:92) -> 110 | Q32: =LOOKUP(Q7,Assumptions!91:91,Assumptions!92:92) -> 110 | R32: =LOOKUP(R7,Assumptions!91:91,Assumptions!92:92) -> 110 | S32: =LOOKUP(S7,Assumptions!91:91,Assumptions!92:92) -> 110 | T32: =LOOKUP(T7,Assumptions!91:91,Assumptions!92:92) -> 110 | U32: =LOOKUP(U7,Assumptions!91:91,Assumptions!92:92) -> 110 | V32: =LOOKUP(V7,Assumptions!91:91,Assumptions!92:92) -> 110 | W32: =LOOKUP(W7,Assumptions!91:91,Assumptions!92:92) -> 110 | X32: =LOOKUP(X7,Assumptions!91:91,Assumptions!92:92) -> 110 | Y32: =LOOKUP(Y7,Assumptions!91:91,Assumptions!92:92) -> 110 | Z32: =LOOKUP(Z7,Assumptions!91:91,Assumptions!92:92) -> 110 | AA32: =LOOKUP(AA7,Assumptions!91:91,Assumptions!92:92) -> 110 | AB32: =LOOKUP(AB7,Assumptions!91:91,Assumptions!92:92) -> 110 | AC32: =LOOKUP(AC7,Assumptions!91:91,Assumptions!92:92) -> 110 | AD32: =LOOKUP(AD7,Assumptions!91:91,Assumptions!92:92) -> 150 | AE32: =LOOKUP(AE7,Assumptions!91:91,Assumptions!92:92) -> 150 | AF32: =LOOKUP(AF7,Assumptions!91:91,Assumptions!92:92) -> 150 | AG32: =LOOKUP(AG7,Assumptions!91:91,Assumptions!92:92) -> 150 | AH32: =LOOKUP(AH7,Assumptions!91:91,Assumptions!92:92) -> 150 | AI32: =LOOKUP(AI7,Assumptions!91:91,Assumptions!92:92) -> 150 | AJ32: =LOOKUP(AJ7,Assumptions!91:91,Assumptions!92:92) -> 150 | AK32: =LOOKUP(AK7,Assumptions!91:91,Assumptions!92:92) -> 150 | AL32: =LOOKUP(AL7,Assumptions!91:91,Assumptions!92:92) -> 150 | AM32: =LOOKUP(AM7,Assumptions!91:91,Assumptions!92:92) -> 150 | AN32: =LOOKUP(AN7,Assumptions!91:91,Assumptions!92:92) -> 150 | AO32: =LOOKUP(AO7,Assumptions!91:91,Assumptions!92:92) -> 150 | AP32: =LOOKUP(AP7,Assumptions!91:91,Assumptions!92:92) -> 150 | AQ32: =LOOKUP(AQ7,Assumptions!91:91,Assumptions!92:92) -> 150 | AR32: =LOOKUP(AR7,Assumptions!91:91,Assumptions!92:92) -> 150 | AS32: =LOOKUP(AS7,Assumptions!91:91,Assumptions!92:92) -> 150 | AT32: =LOOKUP(AT7,Assumptions!91:91,Assumptions!92:92) -> 150 | AU32: =LOOKUP(AU7,Assumptions!91:91,Assumptions!92:92) -> 150 | AV32: =LOOKUP(AV7,Assumptions!91:91,Assumptions!92:92) -> 150 | AW32: =LOOKUP(AW7,Assumptions!91:91,Assumptions!92:92) -> 150 | AX32: =LOOKUP(AX7,Assumptions!91:91,Assumptions!92:92) -> 150 | AY32: =LOOKUP(AY7,Assumptions!91:91,Assumptions!92:92) -> 150 | AZ32: =LOOKUP(AZ7,Assumptions!91:91,Assumptions!92:92) -> 150 | BA32: =LOOKUP(BA7,Assumptions!91:91,Assumptions!92:92) -> 150 | BB32: =LOOKUP(BB7,Assumptions!91:91,Assumptions!92:92) -> 150 | BC32: =LOOKUP(BC7,Assumptions!91:91,Assumptions!92:92) -> 150 | BD32: =LOOKUP(BD7,Assumptions!91:91,Assumptions!92:92) -> 150 | BE32: =LOOKUP(BE7,Assumptions!91:91,Assumptions!92:92) -> 150 | BF32: =LOOKUP(BF7,Assumptions!91:91,Assumptions!92:92) -> 150 | BG32: =LOOKUP(BG7,Assumptions!91:91,Assumptions!92:92) -> 150 | BH32: =LOOKUP(BH7,Assumptions!91:91,Assumptions!92:92) -> 150 | BI32: =LOOKUP(BI7,Assumptions!91:91,Assumptions!92:92) -> 150 | BJ32: =LOOKUP(BJ7,Assumptions!91:91,Assumptions!92:92) -> 150 | BK32: =LOOKUP(BK7,Assumptions!91:91,Assumptions!92:92) -> 150 | BL32: =LOOKUP(BL7,Assumptions!91:91,Assumptions!92:92) -> 150 | BM32: =LOOKUP(BM7,Assumptions!91:91,Assumptions!92:92) -> 150 | BN32: =LOOKUP(BN7,Assumptions!91:91,Assumptions!92:92) -> 150 | BO32: =LOOKUP(BO7,Assumptions!91:91,Assumptions!92:92) -> 150 | BP32: =LOOKUP(BP7,Assumptions!91:91,Assumptions!92:92) -> 150 | BQ32: =LOOKUP(BQ7,Assumptions!91:91,Assumptions!92:92) -> 150 | BR32: =LOOKUP(BR7,Assumptions!91:91,Assumptions!92:92) -> 150 | BS32: =LOOKUP(BS7,Assumptions!91:91,Assumptions!92:92) -> 150 | BT32: =LOOKUP(BT7,Assumptions!91:91,Assumptions!92:92) -> 150 | BU32: =LOOKUP(BU7,Assumptions!91:91,Assumptions!92:92) -> 150 | BV32: =LOOKUP(BV7,Assumptions!91:91,Assumptions!92:92) -> 150 | BW32: =LOOKUP(BW7,Assumptions!91:91,Assumptions!92:92) -> 150 | BX32: =LOOKUP(BX7,Assumptions!91:91,Assumptions!92:92) -> 150 | BY32: =LOOKUP(BY7,Assumptions!91:91,Assumptions!92:92) -> 150 | BZ32: =LOOKUP(BZ7,Assumptions!91:91,Assumptions!92:92) -> 150 | CA32: =LOOKUP(CA7,Assumptions!91:91,Assumptions!92:92) -> 150 | CB32: =LOOKUP(CB7,Assumptions!91:91,Assumptions!92:92) -> 150 | CC32: =LOOKUP(CC7,Assumptions!91:91,Assumptions!92:92) -> 150 | CD32: =LOOKUP(CD7,Assumptions!91:91,Assumptions!92:92) -> 150 | CE32: =LOOKUP(CE7,Assumptions!91:91,Assumptions!92:92) -> 150 | CF32: =LOOKUP(CF7,Assumptions!91:91,Assumptions!92:92) -> 150 | CG32: =LOOKUP(CG7,Assumptions!91:91,Assumptions!92:92) -> 150 | CH32: =LOOKUP(CH7,Assumptions!91:91,Assumptions!92:92) -> 150 | CI32: =LOOKUP(CI7,Assumptions!91:91,Assumptions!92:92) -> 150 | CJ32: =LOOKUP(CJ7,Assumptions!91:91,Assumptions!92:92) -> 150 | CK32: =LOOKUP(CK7,Assumptions!91:91,Assumptions!92:92) -> 150 | CL32: =LOOKUP(CL7,Assumptions!91:91,Assumptions!92:92) -> 150 | CM32: =LOOKUP(CM7,Assumptions!91:91,Assumptions!92:92) -> 150 | CN32: =LOOKUP(CN7,Assumptions!91:91,Assumptions!92:92) -> 150 | CO32: =LOOKUP(CO7,Assumptions!91:91,Assumptions!92:92) -> 150 | CP32: =LOOKUP(CP7,Assumptions!91:91,Assumptions!92:92) -> 150 | CQ32: =LOOKUP(CQ7,Assumptions!91:91,Assumptions!92:92) -> 150 | CR32: =LOOKUP(CR7,Assumptions!91:91,Assumptions!92:92) -> 150 | CS32: =LOOKUP(CS7,Assumptions!91:91,Assumptions!92:92) -> 150 | CT32: =LOOKUP(CT7,Assumptions!91:91,Assumptions!92:92) -> 150 | CU32: =LOOKUP(CU7,Assumptions!91:91,Assumptions!92:92) -> 150 | CV32: =LOOKUP(CV7,Assumptions!91:91,Assumptions!92:92) -> 150 | CW32: =LOOKUP(CW7,Assumptions!91:91,Assumptions!92:92) -> 150 | CX32: =LOOKUP(CX7,Assumptions!91:91,Assumptions!92:92) -> 150 | CY32: =LOOKUP(CY7,Assumptions!91:91,Assumptions!92:92) -> 150 | CZ32: =LOOKUP(CZ7,Assumptions!91:91,Assumptions!92:92) -> 150 | DA32: =LOOKUP(DA7,Assumptions!91:91,Assumptions!92:92) -> 150 | DB32: =LOOKUP(DB7,Assumptions!91:91,Assumptions!92:92) -> 150 | DC32: =LOOKUP(DC7,Assumptions!91:91,Assumptions!92:92) -> 150 | DD32: =LOOKUP(DD7,Assumptions!91:91,Assumptions!92:92) -> 150 | DE32: =LOOKUP(DE7,Assumptions!91:91,Assumptions!92:92) -> 150 | DF32: =LOOKUP(DF7,Assumptions!91:91,Assumptions!92:92) -> 150 | DG32: =LOOKUP(DG7,Assumptions!91:91,Assumptions!92:92) -> 150 | DH32: =LOOKUP(DH7,Assumptions!91:91,Assumptions!92:92) -> 150 | DI32: =LOOKUP(DI7,Assumptions!91:91,Assumptions!92:92) -> 150 | DJ32: =LOOKUP(DJ7,Assumptions!91:91,Assumptions!92:92) -> 150 | DK32: =LOOKUP(DK7,Assumptions!91:91,Assumptions!92:92) -> 150 | DL32: =LOOKUP(DL7,Assumptions!91:91,Assumptions!92:92) -> 150 | DM32: =LOOKUP(DM7,Assumptions!91:91,Assumptions!92:92) -> 150 | DN32: =LOOKUP(DN7,Assumptions!91:91,Assumptions!92:92) -> 150 | DO32: =LOOKUP(DO7,Assumptions!91:91,Assumptions!92:92) -> 150 | DP32: =LOOKUP(DP7,Assumptions!91:91,Assumptions!92:92) -> 150 | DQ32: =LOOKUP(DQ7,Assumptions!91:91,Assumptions!92:92) -> 150 | DR32: =LOOKUP(DR7,Assumptions!91:91,Assumptions!92:92) -> 150 | DS32: =LOOKUP(DS7,Assumptions!91:91,Assumptions!92:92) -> 150 | DT32: =LOOKUP(DT7,Assumptions!91:91,Assumptions!92:92) -> 150 | DU32: =LOOKUP(DU7,Assumptions!91:91,Assumptions!92:92) -> 150 | DV32: =LOOKUP(DV7,Assumptions!91:91,Assumptions!92:92) -> 150 | DW32: =LOOKUP(DW7,Assumptions!91:91,Assumptions!92:92) -> 150 | DX32: =LOOKUP(DX7,Assumptions!91:91,Assumptions!92:92) -> 150 | DY32: =LOOKUP(DY7,Assumptions!91:91,Assumptions!92:92) -> 150 | DZ32: =LOOKUP(DZ7,Assumptions!91:91,Assumptions!92:92) -> 150 | EA32: =LOOKUP(EA7,Assumptions!91:91,Assumptions!92:92) -> 150 | EB32: =LOOKUP(EB7,Assumptions!91:91,Assumptions!92:92) -> 150 | EC32: =LOOKUP(EC7,Assumptions!91:91,Assumptions!92:92) -> 150 | ED32: =LOOKUP(ED7,Assumptions!91:91,Assumptions!92:92) -> 150 | EE32: =LOOKUP(EE7,Assumptions!91:91,Assumptions!92:92) -> 150 | EF32: =LOOKUP(EF7,Assumptions!91:91,Assumptions!92:92) -> 150 | EG32: =LOOKUP(EG7,Assumptions!91:91,Assumptions!92:92) -> 150 | EH32: =LOOKUP(EH7,Assumptions!91:91,Assumptions!92:92) -> 150 | EI32: =LOOKUP(EI7,Assumptions!91:91,Assumptions!92:92) -> 150 | EJ32: =LOOKUP(EJ7,Assumptions!91:91,Assumptions!92:92) -> 150 | EK32: =LOOKUP(EK7,Assumptions!91:91,Assumptions!92:92) -> 150 | EL32: =LOOKUP(EL7,Assumptions!91:91,Assumptions!92:92) -> 150 | EM32: =LOOKUP(EM7,Assumptions!91:91,Assumptions!92:92) -> 150 | EN32: =LOOKUP(EN7,Assumptions!91:91,Assumptions!92:92) -> 150 | EO32: =LOOKUP(EO7,Assumptions!91:91,Assumptions!92:92) -> 150 | EP32: =LOOKUP(EP7,Assumptions!91:91,Assumptions!92:92) -> 150 | EQ32: =LOOKUP(EQ7,Assumptions!91:91,Assumptions!92:92) -> 150 | ER32: =LOOKUP(ER7,Assumptions!91:91,Assumptions!92:92) -> 150 | ES32: =LOOKUP(ES7,Assumptions!91:91,Assumptions!92:92) -> 150 | ET32: =LOOKUP(ET7,Assumptions!91:91,Assumptions!92:92) -> 150 | EU32: =LOOKUP(EU7,Assumptions!91:91,Assumptions!92:92) -> 150 | EV32: =LOOKUP(EV7,Assumptions!91:91,Assumptions!92:92) -> 150 | EW32: =LOOKUP(EW7,Assumptions!91:91,Assumptions!92:92) -> 150 | EX32: =LOOKUP(EX7,Assumptions!91:91,Assumptions!92:92) -> 150 | EY32: =LOOKUP(EY7,Assumptions!91:91,Assumptions!92:92) -> 150 | EZ32: =LOOKUP(EZ7,Assumptions!91:91,Assumptions!92:92) -> 150 | FA32: =LOOKUP(FA7,Assumptions!91:91,Assumptions!92:92) -> 150 | FB32: =LOOKUP(FB7,Assumptions!91:91,Assumptions!92:92) -> 150 | FC32: =LOOKUP(FC7,Assumptions!91:91,Assumptions!92:92) -> 150 | FD32: =LOOKUP(FD7,Assumptions!91:91,Assumptions!92:92) -> 150 | FE32: =LOOKUP(FE7,Assumptions!91:91,Assumptions!92:92) -> 150 | FF32: =LOOKUP(FF7,Assumptions!91:91,Assumptions!92:92) -> 150 | FG32: =LOOKUP(FG7,Assumptions!91:91,Assumptions!92:92) -> 150 | FH32: =LOOKUP(FH7,Assumptions!91:91,Assumptions!92:92) -> 150 | FI32: =LOOKUP(FI7,Assumptions!91:91,Assumptions!92:92) -> 150 | FJ32: =LOOKUP(FJ7,Assumptions!91:91,Assumptions!92:92) -> 150 | FK32: =LOOKUP(FK7,Assumptions!91:91,Assumptions!92:92) -> 150 | FL32: =LOOKUP(FL7,Assumptions!91:91,Assumptions!92:92) -> 150 | FM32: =LOOKUP(FM7,Assumptions!91:91,Assumptions!92:92) -> 150 | FN32: =LOOKUP(FN7,Assumptions!91:91,Assumptions!92:92) -> 150 | FO32: =LOOKUP(FO7,Assumptions!91:91,Assumptions!92:92) -> 150 | FP32: =LOOKUP(FP7,Assumptions!91:91,Assumptions!92:92) -> 150 | FQ32: =LOOKUP(FQ7,Assumptions!91:91,Assumptions!92:92) -> 150 | FR32: =LOOKUP(FR7,Assumptions!91:91,Assumptions!92:92) -> 150 | FS32: =LOOKUP(FS7,Assumptions!91:91,Assumptions!92:92) -> 150 | FT32: =LOOKUP(FT7,Assumptions!91:91,Assumptions!92:92) -> 150 | FU32: =LOOKUP(FU7,Assumptions!91:91,Assumptions!92:92) -> 150 | FV32: =LOOKUP(FV7,Assumptions!91:91,Assumptions!92:92) -> 150 | FW32: =LOOKUP(FW7,Assumptions!91:91,Assumptions!92:92) -> 150 | FX32: =LOOKUP(FX7,Assumptions!91:91,Assumptions!92:92) -> 150 | FY32: =LOOKUP(FY7,Assumptions!91:91,Assumptions!92:92) -> 150 | FZ32: =LOOKUP(FZ7,Assumptions!91:91,Assumptions!92:92) -> 150 | GA32: =LOOKUP(GA7,Assumptions!91:91,Assumptions!92:92) -> 150 | GB32: =LOOKUP(GB7,Assumptions!91:91,Assumptions!92:92) -> 150 | GC32: =LOOKUP(GC7,Assumptions!91:91,Assumptions!92:92) -> 150 | GD32: =LOOKUP(GD7,Assumptions!91:91,Assumptions!92:92) -> 150 | GE32: =LOOKUP(GE7,Assumptions!91:91,Assumptions!92:92) -> 150 | GF32: =LOOKUP(GF7,Assumptions!91:91,Assumptions!92:92) -> 150 | GG32: =LOOKUP(GG7,Assumptions!91:91,Assumptions!92:92) -> 150 | GH32: =LOOKUP(GH7,Assumptions!91:91,Assumptions!92:92) -> 150 | GI32: =LOOKUP(GI7,Assumptions!91:91,Assumptions!92:92) -> 150 | GJ32: =LOOKUP(GJ7,Assumptions!91:91,Assumptions!92:92) -> 150 | GK32: =LOOKUP(GK7,Assumptions!91:91,Assumptions!92:92) -> 150 | GL32: =LOOKUP(GL7,Assumptions!91:91,Assumptions!92:92) -> 150 | GM32: =LOOKUP(GM7,Assumptions!91:91,Assumptions!92:92) -> 150 | GN32: =LOOKUP(GN7,Assumptions!91:91,Assumptions!92:92) -> 150 | GO32: =LOOKUP(GO7,Assumptions!91:91,Assumptions!92:92) -> 150 | GP32: =LOOKUP(GP7,Assumptions!91:91,Assumptions!92:92) -> 150 | GQ32: =LOOKUP(GQ7,Assumptions!91:91,Assumptions!92:92) -> 150 | GR32: =LOOKUP(GR7,Assumptions!91:91,Assumptions!92:92) -> 150 | GS32: =LOOKUP(GS7,Assumptions!91:91,Assumptions!92:92) -> 150 | GT32: =LOOKUP(GT7,Assumptions!91:91,Assumptions!92:92) -> 150 | GU32: =LOOKUP(GU7,Assumptions!91:91,Assumptions!92:92) -> 150 | GV32: =LOOKUP(GV7,Assumptions!91:91,Assumptions!92:92) -> 150 | GW32: =LOOKUP(GW7,Assumptions!91:91,Assumptions!92:92) -> 150 | GX32: =LOOKUP(GX7,Assumptions!91:91,Assumptions!92:92) -> 150 | GY32: =LOOKUP(GY7,Assumptions!91:91,Assumptions!92:92) -> 150 | GZ32: =LOOKUP(GZ7,Assumptions!91:91,Assumptions!92:92) -> 150 | HA32: =LOOKUP(HA7,Assumptions!91:91,Assumptions!92:92) -> 150 | HB32: =LOOKUP(HB7,Assumptions!91:91,Assumptions!92:92) -> 150 | HC32: =LOOKUP(HC7,Assumptions!91:91,Assumptions!92:92) -> 150 | HD32: =LOOKUP(HD7,Assumptions!91:91,Assumptions!92:92) -> 150 | HE32: =LOOKUP(HE7,Assumptions!91:91,Assumptions!92:92) -> 150 | HF32: =LOOKUP(HF7,Assumptions!91:91,Assumptions!92:92) -> 150 | HG32: =LOOKUP(HG7,Assumptions!91:91,Assumptions!92:92) -> 150 | HH32: =LOOKUP(HH7,Assumptions!91:91,Assumptions!92:92) -> 150 | HI32: =LOOKUP(HI7,Assumptions!91:91,Assumptions!92:92) -> 150 | HJ32: =LOOKUP(HJ7,Assumptions!91:91,Assumptions!92:92) -> 150 | HK32: =LOOKUP(HK7,Assumptions!91:91,Assumptions!92:92) -> 150 | HL32: =LOOKUP(HL7,Assumptions!91:91,Assumptions!92:92) -> 150 | HM32: =LOOKUP(HM7,Assumptions!91:91,Assumptions!92:92) -> 150 | HN32: =LOOKUP(HN7,Assumptions!91:91,Assumptions!92:92) -> 150 | HO32: =LOOKUP(HO7,Assumptions!91:91,Assumptions!92:92) -> 150 | HP32: =LOOKUP(HP7,Assumptions!91:91,Assumptions!92:92) -> 150 | HQ32: =LOOKUP(HQ7,Assumptions!91:91,Assumptions!92:92) -> 150 | HR32: =LOOKUP(HR7,Assumptions!91:91,Assumptions!92:92) -> 150 | HS32: =LOOKUP(HS7,Assumptions!91:91,Assumptions!92:92) -> 150 | HT32: =LOOKUP(HT7,Assumptions!91:91,Assumptions!92:92) -> 150 | HU32: =LOOKUP(HU7,Assumptions!91:91,Assumptions!92:92) -> 150 | HV32: =LOOKUP(HV7,Assumptions!91:91,Assumptions!92:92) -> 150 | HW32: =LOOKUP(HW7,Assumptions!91:91,Assumptions!92:92) -> 150 | HX32: =LOOKUP(HX7,Assumptions!91:91,Assumptions!92:92) -> 150 | HY32: =LOOKUP(HY7,Assumptions!91:91,Assumptions!92:92) -> 150 | HZ32: =LOOKUP(HZ7,Assumptions!91:91,Assumptions!92:92) -> 150 | IA32: =LOOKUP(IA7,Assumptions!91:91,Assumptions!92:92) -> 150 | IB32: =LOOKUP(IB7,Assumptions!91:91,Assumptions!92:92) -> 150 | IC32: =LOOKUP(IC7,Assumptions!91:91,Assumptions!92:92) -> 150 | ID32: =LOOKUP(ID7,Assumptions!91:91,Assumptions!92:92) -> 150 | IE32: =LOOKUP(IE7,Assumptions!91:91,Assumptions!92:92) -> 150 | IF32: =LOOKUP(IF7,Assumptions!91:91,Assumptions!92:92) -> 150 | IG32: =LOOKUP(IG7,Assumptions!91:91,Assumptions!92:92) -> 150 | IH32: =LOOKUP(IH7,Assumptions!91:91,Assumptions!92:92) -> 150 | II32: =LOOKUP(II7,Assumptions!91:91,Assumptions!92:92) -> 150 | IJ32: =LOOKUP(IJ7,Assumptions!91:91,Assumptions!92:92) -> 150 | IK32: =LOOKUP(IK7,Assumptions!91:91,Assumptions!92:92) -> 150 | IL32: =LOOKUP(IL7,Assumptions!91:91,Assumptions!92:92) -> 150 | IM32: =LOOKUP(IM7,Assumptions!91:91,Assumptions!92:92) -> 150 | IN32: =LOOKUP(IN7,Assumptions!91:91,Assumptions!92:92) -> 150 | IO32: =LOOKUP(IO7,Assumptions!91:91,Assumptions!92:92) -> 150 | IP32: =LOOKUP(IP7,Assumptions!91:91,Assumptions!92:92) -> 150 | IQ32: =LOOKUP(IQ7,Assumptions!91:91,Assumptions!92:92) -> 150 | IR32: =LOOKUP(IR7,Assumptions!91:91,Assumptions!92:92) -> 150 | IS32: =LOOKUP(IS7,Assumptions!91:91,Assumptions!92:92) -> 150 | IT32: =LOOKUP(IT7,Assumptions!91:91,Assumptions!92:92) -> 150 | IU32: =LOOKUP(IU7,Assumptions!91:91,Assumptions!92:92) -> 150 | IV32: =LOOKUP(IV7,Assumptions!91:91,Assumptions!92:92) -> 150 | IW32: =LOOKUP(IW7,Assumptions!91:91,Assumptions!92:92) -> 150 | IX32: =LOOKUP(IX7,Assumptions!91:91,Assumptions!92:92) -> 150 | IY32: =LOOKUP(IY7,Assumptions!91:91,Assumptions!92:92) -> 150 | IZ32: =LOOKUP(IZ7,Assumptions!91:91,Assumptions!92:92) -> 150 | JA32: =LOOKUP(JA7,Assumptions!91:91,Assumptions!92:92) -> 150 | JB32: =LOOKUP(JB7,Assumptions!91:91,Assumptions!92:92) -> 150 | JC32: =LOOKUP(JC7,Assumptions!91:91,Assumptions!92:92) -> 150 | JD32: =LOOKUP(JD7,Assumptions!91:91,Assumptions!92:92) -> 150 | JE32: =LOOKUP(JE7,Assumptions!91:91,Assumptions!92:92) -> 150 | JF32: =LOOKUP(JF7,Assumptions!91:91,Assumptions!92:92) -> 150 | JG32: =LOOKUP(JG7,Assumptions!91:91,Assumptions!92:92) -> 150 | JH32: =LOOKUP(JH7,Assumptions!91:91,Assumptions!92:92) -> 150 | JI32: =LOOKUP(JI7,Assumptions!91:91,Assumptions!92:92) -> 150 | JJ32: =LOOKUP(JJ7,Assumptions!91:91,Assumptions!92:92) -> 150 | JK32: =LOOKUP(JK7,Assumptions!91:91,Assumptions!92:92) -> 150 | JL32: =LOOKUP(JL7,Assumptions!91:91,Assumptions!92:92) -> 150 | JM32: =LOOKUP(JM7,Assumptions!91:91,Assumptions!92:92) -> 150 | JN32: =LOOKUP(JN7,Assumptions!91:91,Assumptions!92:92) -> 150 | JO32: =LOOKUP(JO7,Assumptions!91:91,Assumptions!92:92) -> 150 | JP32: =LOOKUP(JP7,Assumptions!91:91,Assumptions!92:92) -> 150 | JQ32: =LOOKUP(JQ7,Assumptions!91:91,Assumptions!92:92) -> 150 | JR32: =LOOKUP(JR7,Assumptions!91:91,Assumptions!92:92) -> 150 | JS32: =LOOKUP(JS7,Assumptions!91:91,Assumptions!92:92) -> 150 | JT32: =LOOKUP(JT7,Assumptions!91:91,Assumptions!92:92) -> 150 | JU32: =LOOKUP(JU7,Assumptions!91:91,Assumptions!92:92) -> 150 | JV32: =LOOKUP(JV7,Assumptions!91:91,Assumptions!92:92) -> 150 | JW32: =LOOKUP(JW7,Assumptions!91:91,Assumptions!92:92) -> 150 | JX32: =LOOKUP(JX7,Assumptions!91:91,Assumptions!92:92) -> 150 | JY32: =LOOKUP(JY7,Assumptions!91:91,Assumptions!92:92) -> 150 | JZ32: =LOOKUP(JZ7,Assumptions!91:91,Assumptions!92:92) -> 150 | KA32: =LOOKUP(KA7,Assumptions!91:91,Assumptions!92:92) -> 150 | KB32: =LOOKUP(KB7,Assumptions!91:91,Assumptions!92:92) -> 150 | KC32: =LOOKUP(KC7,Assumptions!91:91,Assumptions!92:92) -> 150 | KD32: =LOOKUP(KD7,Assumptions!91:91,Assumptions!92:92) -> 150 | KE32: =LOOKUP(KE7,Assumptions!91:91,Assumptions!92:92) -> 150 | KF32: =LOOKUP(KF7,Assumptions!91:91,Assumptions!92:92) -> 150 | KG32: =LOOKUP(KG7,Assumptions!91:91,Assumptions!92:92) -> 150 | KH32: =LOOKUP(KH7,Assumptions!91:91,Assumptions!92:92) -> 150 | KI32: =LOOKUP(KI7,Assumptions!91:91,Assumptions!92:92) -> 150 | KJ32: =LOOKUP(KJ7,Assumptions!91:91,Assumptions!92:92) -> 150 | KK32: =LOOKUP(KK7,Assumptions!91:91,Assumptions!92:92) -> 150 | KL32: =LOOKUP(KL7,Assumptions!91:91,Assumptions!92:92) -> 150 | KM32: =LOOKUP(KM7,Assumptions!91:91,Assumptions!92:92) -> 150 | KN32: =LOOKUP(KN7,Assumptions!91:91,Assumptions!92:92) -> 150 | KO32: =LOOKUP(KO7,Assumptions!91:91,Assumptions!92:92) -> 150 | KP32: =LOOKUP(KP7,Assumptions!91:91,Assumptions!92:92) -> 150 | KQ32: =LOOKUP(KQ7,Assumptions!91:91,Assumptions!92:92) -> 150 | KR32: =LOOKUP(KR7,Assumptions!91:91,Assumptions!92:92) -> 150 | KS32: =LOOKUP(KS7,Assumptions!91:91,Assumptions!92:92) -> 150 | KT32: =LOOKUP(KT7,Assumptions!91:91,Assumptions!92:92) -> 150 | KU32: =LOOKUP(KU7,Assumptions!91:91,Assumptions!92:92) -> 150 | KV32: =LOOKUP(KV7,Assumptions!91:91,Assumptions!92:92) -> 150
B33: Target Availability | E33: % | F33: =Assumptions!F96 -> 0.85 | I33: =$F$33 -> 0.85 | J33: =$F$33 -> 0.85 | K33: 0.85 | L33: 0.85 | M33: 0.85 | N33: 0.85 | O33: 0.85 | P33: 0.85 | Q33: 0.85 | R33: 0.85 | S33: 0.85 | T33: 0.85 | U33: 0.85 | V33: 0.85 | W33: 0.85 | X33: 0.85 | Y33: 0.85 | Z33: 0.85 | AA33: 0.85 | AB33: 0.85 | AC33: 0.85 | AD33: 0.85 | AE33: 0.85 | AF33: 0.85 | AG33: 0.85 | AH33: 0.85 | AI33: 0.85 | AJ33: 0.85 | AK33: 0.85 | AL33: 0.85 | AM33: 0.85 | AN33: 0.85 | AO33: 0.85 | AP33: 0.85 | AQ33: 0.85 | AR33: 0.85 | AS33: 0.85 | AT33: 0.85 | AU33: 0.85 | AV33: 0.85 | AW33: 0.85 | AX33: 0.85 | AY33: 0.85 | AZ33: 0.85 | BA33: 0.85 | BB33: 0.85 | BC33: 0.85 | BD33: 0.85 | BE33: 0.85 | BF33: 0.85 | BG33: 0.85 | BH33: 0.85 | BI33: 0.85 | BJ33: 0.85 | BK33: 0.85 | BL33: 0.85 | BM33: 0.85 | BN33: 0.85 | BO33: 0.85 | BP33: 0.85 | BQ33: 0.85 | BR33: 0.85 | BS33: 0.85 | BT33: 0.85 | BU33: 0.85 | BV33: =$F$33 -> 0.85 | BW33: 0.85 | BX33: 0.85 | BY33: 0.85 | BZ33: 0.85 | CA33: 0.85 | CB33: 0.85 | CC33: 0.85 | CD33: 0.85 | CE33: 0.85 | CF33: 0.85 | CG33: 0.85 | CH33: 0.85 | CI33: 0.85 | CJ33: 0.85 | CK33: 0.85 | CL33: 0.85 | CM33: 0.85 | CN33: 0.85 | CO33: 0.85 | CP33: 0.85 | CQ33: 0.85 | CR33: 0.85 | CS33: 0.85 | CT33: 0.85 | CU33: 0.85 | CV33: 0.85 | CW33: 0.85 | CX33: 0.85 | CY33: 0.85 | CZ33: 0.85 | DA33: 0.85 | DB33: 0.85 | DC33: 0.85 | DD33: 0.85 | DE33: 0.85 | DF33: 0.85 | DG33: 0.85 | DH33: 0.85 | DI33: 0.85 | DJ33: 0.85 | DK33: 0.85 | DL33: 0.85 | DM33: 0.85 | DN33: 0.85 | DO33: 0.85 | DP33: 0.85 | DQ33: 0.85 | DR33: 0.85 | DS33: 0.85 | DT33: 0.85 | DU33: 0.85 | DV33: 0.85 | DW33: 0.85 | DX33: 0.85 | DY33: 0.85 | DZ33: 0.85 | EA33: 0.85 | EB33: 0.85 | EC33: 0.85 | ED33: 0.85 | EE33: 0.85 | EF33: 0.85 | EG33: 0.85 | EH33: =$F$33 -> 0.85 | EI33: 0.85 | EJ33: 0.85 | EK33: 0.85 | EL33: 0.85 | EM33: 0.85 | EN33: 0.85 | EO33: 0.85 | EP33: 0.85 | EQ33: 0.85 | ER33: 0.85 | ES33: 0.85 | ET33: 0.85 | EU33: 0.85 | EV33: 0.85 | EW33: 0.85 | EX33: 0.85 | EY33: 0.85 | EZ33: 0.85 | FA33: 0.85 | FB33: 0.85 | FC33: 0.85 | FD33: 0.85 | FE33: 0.85 | FF33: 0.85 | FG33: 0.85 | FH33: 0.85 | FI33: 0.85 | FJ33: 0.85 | FK33: 0.85 | FL33: 0.85 | FM33: 0.85 | FN33: 0.85 | FO33: 0.85 | FP33: 0.85 | FQ33: 0.85 | FR33: 0.85 | FS33: 0.85 | FT33: 0.85 | FU33: 0.85 | FV33: 0.85 | FW33: 0.85 | FX33: 0.85 | FY33: 0.85 | FZ33: 0.85 | GA33: 0.85 | GB33: 0.85 | GC33: 0.85 | GD33: 0.85 | GE33: 0.85 | GF33: 0.85 | GG33: 0.85 | GH33: 0.85 | GI33: 0.85 | GJ33: 0.85 | GK33: 0.85 | GL33: 0.85 | GM33: 0.85 | GN33: 0.85 | GO33: 0.85 | GP33: 0.85 | GQ33: 0.85 | GR33: 0.85 | GS33: 0.85 | GT33: =$F$33 -> 0.85 | GU33: 0.85 | GV33: 0.85 | GW33: 0.85 | GX33: 0.85 | GY33: 0.85 | GZ33: 0.85 | HA33: 0.85 | HB33: 0.85 | HC33: 0.85 | HD33: 0.85 | HE33: 0.85 | HF33: 0.85 | HG33: 0.85 | HH33: 0.85 | HI33: 0.85 | HJ33: 0.85 | HK33: 0.85 | HL33: 0.85 | HM33: 0.85 | HN33: 0.85 | HO33: 0.85 | HP33: 0.85 | HQ33: 0.85 | HR33: 0.85 | HS33: 0.85 | HT33: 0.85 | HU33: 0.85 | HV33: 0.85 | HW33: 0.85 | HX33: 0.85 | HY33: 0.85 | HZ33: 0.85 | IA33: 0.85 | IB33: 0.85 | IC33: 0.85 | ID33: 0.85 | IE33: 0.85 | IF33: 0.85 | IG33: 0.85 | IH33: 0.85 | II33: 0.85 | IJ33: 0.85 | IK33: 0.85 | IL33: 0.85 | IM33: 0.85 | IN33: 0.85 | IO33: 0.85 | IP33: 0.85 | IQ33: 0.85 | IR33: 0.85 | IS33: 0.85 | IT33: 0.85 | IU33: 0.85 | IV33: 0.85 | IW33: 0.85 | IX33: 0.85 | IY33: 0.85 | IZ33: 0.85 | JA33: 0.85 | JB33: 0.85 | JC33: 0.85 | JD33: 0.85 | JE33: 0.85 | JF33: =$F$33 -> 0.85 | JG33: 0.85 | JH33: 0.85 | JI33: 0.85 | JJ33: 0.85 | JK33: 0.85 | JL33: 0.85 | JM33: 0.85 | JN33: 0.85 | JO33: 0.85 | JP33: 0.85 | JQ33: 0.85 | JR33: 0.85 | JS33: 0.85 | JT33: 0.85 | JU33: 0.85 | JV33: 0.85 | JW33: 0.85 | JX33: 0.85 | JY33: 0.85 | JZ33: 0.85 | KA33: 0.85 | KB33: 0.85 | KC33: 0.85 | KD33: 0.85 | KE33: 0.85 | KF33: 0.85 | KG33: 0.85 | KH33: 0.85 | KI33: 0.85 | KJ33: 0.85 | KK33: 0.85 | KL33: 0.85 | KM33: 0.85 | KN33: 0.85 | KO33: 0.85 | KP33: 0.85 | KQ33: 0.85 | KR33: 0.85 | KS33: 0.85 | KT33: 0.85 | KU33: 0.85 | KV33: 0.85
B34: Target Availabile Hours | E34: MWH | I34: =I33*I32*I15 -> 69564 | J34: =J33*J32*J15 -> 65076 | K34: 69564 | L34: 67320 | M34: 69564 | N34: 67320 | O34: 69564 | P34: 69564 | Q34: 67320 | R34: 69564 | S34: 67320 | T34: 69564 | U34: 69564 | V34: 62832 | W34: 69564 | X34: 67320 | Y34: 69564 | Z34: 67320 | AA34: 69564 | AB34: 69564 | AC34: 67320 | AD34: 94860 | AE34: 91800 | AF34: 94860 | AG34: 94860 | AH34: 85680 | AI34: 94860 | AJ34: 91800 | AK34: 94860 | AL34: 91800 | AM34: 94860 | AN34: 94860 | AO34: 91800 | AP34: 94860 | AQ34: 91800 | AR34: 94860 | AS34: 94860 | AT34: 85680 | AU34: 94860 | AV34: 91800 | AW34: 94860 | AX34: 91800 | AY34: 94860 | AZ34: 94860 | BA34: 91800 | BB34: 94860 | BC34: 91800 | BD34: 94860 | BE34: 94860 | BF34: 88740 | BG34: 94860 | BH34: 91800 | BI34: 94860 | BJ34: 91800 | BK34: 94860 | BL34: 94860 | BM34: 91800 | BN34: 94860 | BO34: 91800 | BP34: 94860 | BQ34: 94860 | BR34: 85680 | BS34: 94860 | BT34: 91800 | BU34: 94860 | BV34: =BV33*BV32*BV15 -> 91800 | BW34: 94860 | BX34: 94860 | BY34: 91800 | BZ34: 94860 | CA34: 91800 | CB34: 94860 | CC34: 94860 | CD34: 85680 | CE34: 94860 | CF34: 91800 | CG34: 94860 | CH34: 91800 | CI34: 94860 | CJ34: 94860 | CK34: 91800 | CL34: 94860 | CM34: 91800 | CN34: 94860 | CO34: 94860 | CP34: 85680 | CQ34: 94860 | CR34: 91800 | CS34: 94860 | CT34: 91800 | CU34: 94860 | CV34: 94860 | CW34: 91800 | CX34: 94860 | CY34: 91800 | CZ34: 94860 | DA34: 94860 | DB34: 88740 | DC34: 94860 | DD34: 91800 | DE34: 94860 | DF34: 91800 | DG34: 94860 | DH34: 94860 | DI34: 91800 | DJ34: 94860 | DK34: 91800 | DL34: 94860 | DM34: 94860 | DN34: 85680 | DO34: 94860 | DP34: 91800 | DQ34: 94860 | DR34: 91800 | DS34: 94860 | DT34: 94860 | DU34: 91800 | DV34: 94860 | DW34: 91800 | DX34: 94860 | DY34: 94860 | DZ34: 85680 | EA34: 94860 | EB34: 91800 | EC34: 94860 | ED34: 91800 | EE34: 94860 | EF34: 94860 | EG34: 91800 | EH34: =EH33*EH32*EH15 -> 94860 | EI34: 91800 | EJ34: 94860 | EK34: 94860 | EL34: 85680 | EM34: 94860 | EN34: 91800 | EO34: 94860 | EP34: 91800 | EQ34: 94860 | ER34: 94860 | ES34: 91800 | ET34: 94860 | EU34: 91800 | EV34: 94860 | EW34: 94860 | EX34: 88740 | EY34: 94860 | EZ34: 91800 | FA34: 94860 | FB34: 91800 | FC34: 94860 | FD34: 94860 | FE34: 91800 | FF34: 94860 | FG34: 91800 | FH34: 94860 | FI34: 94860 | FJ34: 85680 | FK34: 94860 | FL34: 91800 | FM34: 94860 | FN34: 91800 | FO34: 94860 | FP34: 94860 | FQ34: 91800 | FR34: 94860 | FS34: 91800 | FT34: 94860 | FU34: 94860 | FV34: 85680 | FW34: 94860 | FX34: 91800 | FY34: 94860 | FZ34: 91800 | GA34: 94860 | GB34: 94860 | GC34: 91800 | GD34: 94860 | GE34: 91800 | GF34: 94860 | GG34: 94860 | GH34: 85680 | GI34: 94860 | GJ34: 91800 | GK34: 94860 | GL34: 91800 | GM34: 94860 | GN34: 94860 | GO34: 91800 | GP34: 94860 | GQ34: 91800 | GR34: 94860 | GS34: 94860 | GT34: =GT33*GT32*GT15 -> 88740 | GU34: 94860 | GV34: 91800 | GW34: 94860 | GX34: 91800 | GY34: 94860 | GZ34: 94860 | HA34: 91800 | HB34: 94860 | HC34: 91800 | HD34: 94860 | HE34: 94860 | HF34: 85680 | HG34: 94860 | HH34: 91800 | HI34: 94860 | HJ34: 91800 | HK34: 94860 | HL34: 94860 | HM34: 91800 | HN34: 94860 | HO34: 91800 | HP34: 94860 | HQ34: 94860 | HR34: 85680 | HS34: 94860 | HT34: 91800 | HU34: 94860 | HV34: 91800 | HW34: 94860 | HX34: 94860 | HY34: 91800 | HZ34: 94860 | IA34: 91800 | IB34: 94860 | IC34: 94860 | ID34: 85680 | IE34: 94860 | IF34: 91800 | IG34: 94860 | IH34: 91800 | II34: 94860 | IJ34: 94860 | IK34: 91800 | IL34: 94860 | IM34: 91800 | IN34: 94860 | IO34: 94860 | IP34: 88740 | IQ34: 94860 | IR34: 91800 | IS34: 94860 | IT34: 91800 | IU34: 94860 | IV34: 94860 | IW34: 91800 | IX34: 94860 | IY34: 91800 | IZ34: 94860 | JA34: 94860 | JB34: 85680 | JC34: 94860 | JD34: 91800 | JE34: 94860 | JF34: =JF33*JF32*JF15 -> 91800 | JG34: 94860 | JH34: 94860 | JI34: 91800 | JJ34: 94860 | JK34: 91800 | JL34: 94860 | JM34: 94860 | JN34: 85680 | JO34: 94860 | JP34: 91800 | JQ34: 94860 | JR34: 91800 | JS34: 94860 | JT34: 94860 | JU34: 91800 | JV34: 94860 | JW34: 91800 | JX34: 94860 | JY34: 94860 | JZ34: 85680 | KA34: 94860 | KB34: 91800 | KC34: 94860 | KD34: 91800 | KE34: 94860 | KF34: 94860 | KG34: 91800 | KH34: 94860 | KI34: 91800 | KJ34: 94860 | KK34: 94860 | KL34: 88740 | KM34: 94860 | KN34: 91800 | KO34: 94860 | KP34: 91800 | KQ34: 94860 | KR34: 94860 | KS34: 91800 | KT34: 94860 | KU34: 91800 | KV34: 94860
B36: Actual MWH - Target MWH | E36: MWH | I36: =I22-I34 -> -3478.2 | J36: =J22-J34 -> -3253.8 | K36: -3478.2 | L36: -3366 | M36: -3478.2 | N36: -3366 | O36: -3478.2 | P36: -3478.2 | Q36: -3366 | R36: -3478.2 | S36: -3366 | T36: -3478.2 | U36: -3478.2 | V36: -3141.6 | W36: -3478.2 | X36: -3366 | Y36: -3478.2 | Z36: -3366 | AA36: -3478.2 | AB36: -3478.2 | AC36: -3366 | AD36: -4743 | AE36: -4590 | AF36: -4743 | AG36: -4743 | AH36: -4284 | AI36: -4743 | AJ36: -4590 | AK36: -4743 | AL36: -4590 | AM36: -4743 | AN36: -4743 | AO36: -4590 | AP36: -4743 | AQ36: -4590 | AR36: -4743 | AS36: -4743 | AT36: -4284 | AU36: -4743 | AV36: -4590 | AW36: -4743 | AX36: -4590 | AY36: -4743 | AZ36: -4743 | BA36: -4590 | BB36: -4743 | BC36: -4590 | BD36: -4743 | BE36: -4743 | BF36: -4437 | BG36: -4743 | BH36: -4590 | BI36: -4743 | BJ36: -4590 | BK36: -4743 | BL36: -4743 | BM36: -4590 | BN36: -4743 | BO36: -4590 | BP36: -4743 | BQ36: -4743 | BR36: -4284 | BS36: -4743 | BT36: -4590 | BU36: -4743 | BV36: =BV22-BV34 -> -4590 | BW36: -4743 | BX36: -4743 | BY36: -4590 | BZ36: -4743 | CA36: -4590 | CB36: -4743 | CC36: -4743 | CD36: -4284 | CE36: -4743 | CF36: -4590 | CG36: -4743 | CH36: -4590 | CI36: -4743 | CJ36: -4743 | CK36: -4590 | CL36: -4743 | CM36: -4590 | CN36: -4743 | CO36: -4743 | CP36: -4284 | CQ36: -4743 | CR36: -4590 | CS36: -4743 | CT36: -4590 | CU36: -4743 | CV36: -4743 | CW36: -4590 | CX36: -4743 | CY36: -4590 | CZ36: -4743 | DA36: -4743 | DB36: -4437 | DC36: -4743 | DD36: -4590 | DE36: -4743 | DF36: -4590 | DG36: -4743 | DH36: -4743 | DI36: -4590 | DJ36: -4743 | DK36: -4590 | DL36: -4743 | DM36: -4743 | DN36: -4284 | DO36: -4743 | DP36: -4590 | DQ36: -4743 | DR36: -4590 | DS36: -4743 | DT36: -4743 | DU36: -4590 | DV36: -4743 | DW36: -4590 | DX36: -4743 | DY36: -4743 | DZ36: -4284 | EA36: -4743 | EB36: -4590 | EC36: -4743 | ED36: -4590 | EE36: -4743 | EF36: -4743 | EG36: -4590 | EH36: =EH22-EH34 -> -4743 | EI36: -4590 | EJ36: -4743 | EK36: -4743 | EL36: -4284 | EM36: -4743 | EN36: -4590 | EO36: -4743 | EP36: -4590 | EQ36: -4743 | ER36: -4743 | ES36: -4590 | ET36: -4743 | EU36: -4590 | EV36: -4743 | EW36: -4743 | EX36: -4437 | EY36: -4743 | EZ36: -4590 | FA36: -4743 | FB36: -4590 | FC36: -4743 | FD36: -4743 | FE36: -4590 | FF36: -4743 | FG36: -4590 | FH36: -4743 | FI36: -4743 | FJ36: -4284 | FK36: -4743 | FL36: -4590 | FM36: -4743 | FN36: -4590 | FO36: -4743 | FP36: -4743 | FQ36: -4590 | FR36: -4743 | FS36: -4590 | FT36: -4743 | FU36: -4743 | FV36: -4284 | FW36: -4743 | FX36: -4590 | FY36: -4743 | FZ36: -4590 | GA36: -4743 | GB36: -4743 | GC36: -4590 | GD36: -4743 | GE36: -4590 | GF36: -4743 | GG36: -4743 | GH36: -4284 | GI36: -4743 | GJ36: -4590 | GK36: -4743 | GL36: -4590 | GM36: -4743 | GN36: -4743 | GO36: -4590 | GP36: -4743 | GQ36: -4590 | GR36: -4743 | GS36: -4743 | GT36: =GT22-GT34 -> -4437 | GU36: -4743 | GV36: -4590 | GW36: -4743 | GX36: -4590 | GY36: -4743 | GZ36: -4743 | HA36: -4590 | HB36: -4743 | HC36: -4590 | HD36: -4743 | HE36: -4743 | HF36: -4284 | HG36: -4743 | HH36: -4590 | HI36: -4743 | HJ36: -4590 | HK36: -4743 | HL36: -4743 | HM36: -4590 | HN36: -4743 | HO36: -4590 | HP36: -4743 | HQ36: -4743 | HR36: -4284 | HS36: -4743 | HT36: -4590 | HU36: -4743 | HV36: -4590 | HW36: -4743 | HX36: -4743 | HY36: -4590 | HZ36: -4743 | IA36: -4590 | IB36: -4743 | IC36: -4743 | ID36: -4284 | IE36: -4743 | IF36: -4590 | IG36: -4743 | IH36: -4590 | II36: -4743 | IJ36: -4743 | IK36: -4590 | IL36: -4743 | IM36: -4590 | IN36: -4743 | IO36: -4743 | IP36: -4437 | IQ36: -4743 | IR36: -4590 | IS36: -4743 | IT36: -4590 | IU36: -4743 | IV36: -4743 | IW36: -4590 | IX36: -4743 | IY36: -4590 | IZ36: -4743 | JA36: -4743 | JB36: -4284 | JC36: -4743 | JD36: -4590 | JE36: -4743 | JF36: =JF22-JF34 -> -4590 | JG36: -4743 | JH36: -4743 | JI36: -4590 | JJ36: -4743 | JK36: -4590 | JL36: -4743 | JM36: -4743 | JN36: -4284 | JO36: -4743 | JP36: -4590 | JQ36: -4743 | JR36: -4590 | JS36: -4743 | JT36: -4743 | JU36: -4590 | JV36: -4743 | JW36: -4590 | JX36: -4743 | JY36: -4743 | JZ36: -4284 | KA36: -4743 | KB36: -4590 | KC36: -4743 | KD36: -4590 | KE36: -4743 | KF36: -4743 | KG36: -4590 | KH36: -4743 | KI36: -4590 | KJ36: -4743 | KK36: -4743 | KL36: -4437 | KM36: -4743 | KN36: -4590 | KO36: -4743 | KP36: -4590 | KQ36: -4743 | KR36: -4743 | KS36: -4590 | KT36: -4743 | KU36: -4590 | KV36: -4743
B37: Bonus MWH (MAX Function) | E37: MWH | F37: =Assumptions!F97 -> 0.5 | I37: =MAX(I36,0)*F37 -> 0 | J37: =MAX(J36,0)*G37 -> 0 | K37: =MAX(K36,0)*H37 -> 0 | L37: =MAX(L36,0)*I37 -> 0 | M37: 0 | N37: 0 | O37: 0 | P37: 0 | Q37: 0 | R37: 0 | S37: 0 | T37: 0 | U37: 0 | V37: 0 | W37: 0 | X37: 0 | Y37: 0 | Z37: 0 | AA37: 0 | AB37: 0 | AC37: 0 | AD37: 0 | AE37: 0 | AF37: 0 | AG37: 0 | AH37: 0 | AI37: 0 | AJ37: 0 | AK37: 0 | AL37: 0 | AM37: 0 | AN37: 0 | AO37: 0 | AP37: 0 | AQ37: 0 | AR37: 0 | AS37: 0 | AT37: 0 | AU37: 0 | AV37: 0 | AW37: 0 | AX37: 0 | AY37: 0 | AZ37: 0 | BA37: 0 | BB37: 0 | BC37: 0 | BD37: 0 | BE37: 0 | BF37: 0 | BG37: 0 | BH37: 0 | BI37: 0 | BJ37: 0 | BK37: 0 | BL37: 0 | BM37: 0 | BN37: 0 | BO37: 0 | BP37: 0 | BQ37: 0 | BR37: 0 | BS37: 0 | BT37: 0 | BU37: 0 | BV37: =MAX(BV36,0)*BS37 -> 0 | BW37: 0 | BX37: 0 | BY37: 0 | BZ37: 0 | CA37: 0 | CB37: 0 | CC37: 0 | CD37: 0 | CE37: 0 | CF37: 0 | CG37: 0 | CH37: 0 | CI37: 0 | CJ37: 0 | CK37: 0 | CL37: 0 | CM37: 0 | CN37: 0 | CO37: 0 | CP37: 0 | CQ37: 0 | CR37: 0 | CS37: 0 | CT37: 0 | CU37: 0 | CV37: 0 | CW37: 0 | CX37: 0 | CY37: 0 | CZ37: 0 | DA37: 0 | DB37: 0 | DC37: 0 | DD37: 0 | DE37: 0 | DF37: 0 | DG37: 0 | DH37: 0 | DI37: 0 | DJ37: 0 | DK37: 0 | DL37: 0 | DM37: 0 | DN37: 0 | DO37: 0 | DP37: 0 | DQ37: 0 | DR37: 0 | DS37: 0 | DT37: 0 | DU37: 0 | DV37: 0 | DW37: 0 | DX37: 0 | DY37: 0 | DZ37: 0 | EA37: 0 | EB37: 0 | EC37: 0 | ED37: 0 | EE37: 0 | EF37: 0 | EG37: 0 | EH37: =MAX(EH36,0)*EE37 -> 0 | EI37: 0 | EJ37: 0 | EK37: 0 | EL37: 0 | EM37: 0 | EN37: 0 | EO37: 0 | EP37: 0 | EQ37: 0 | ER37: 0 | ES37: 0 | ET37: 0 | EU37: 0 | EV37: 0 | EW37: 0 | EX37: 0 | EY37: 0 | EZ37: 0 | FA37: 0 | FB37: 0 | FC37: 0 | FD37: 0 | FE37: 0 | FF37: 0 | FG37: 0 | FH37: 0 | FI37: 0 | FJ37: 0 | FK37: 0 | FL37: 0 | FM37: 0 | FN37: 0 | FO37: 0 | FP37: 0 | FQ37: 0 | FR37: 0 | FS37: 0 | FT37: 0 | FU37: 0 | FV37: 0 | FW37: 0 | FX37: 0 | FY37: 0 | FZ37: 0 | GA37: 0 | GB37: 0 | GC37: 0 | GD37: 0 | GE37: 0 | GF37: 0 | GG37: 0 | GH37: 0 | GI37: 0 | GJ37: 0 | GK37: 0 | GL37: 0 | GM37: 0 | GN37: 0 | GO37: 0 | GP37: 0 | GQ37: 0 | GR37: 0 | GS37: 0 | GT37: =MAX(GT36,0)*GQ37 -> 0 | GU37: 0 | GV37: 0 | GW37: 0 | GX37: 0 | GY37: 0 | GZ37: 0 | HA37: 0 | HB37: 0 | HC37: 0 | HD37: 0 | HE37: 0 | HF37: 0 | HG37: 0 | HH37: 0 | HI37: 0 | HJ37: 0 | HK37: 0 | HL37: 0 | HM37: 0 | HN37: 0 | HO37: 0 | HP37: 0 | HQ37: 0 | HR37: 0 | HS37: 0 | HT37: 0 | HU37: 0 | HV37: 0 | HW37: 0 | HX37: 0 | HY37: 0 | HZ37: 0 | IA37: 0 | IB37: 0 | IC37: 0 | ID37: 0 | IE37: 0 | IF37: 0 | IG37: 0 | IH37: 0 | II37: 0 | IJ37: 0 | IK37: 0 | IL37: 0 | IM37: 0 | IN37: 0 | IO37: 0 | IP37: 0 | IQ37: 0 | IR37: 0 | IS37: 0 | IT37: 0 | IU37: 0 | IV37: 0 | IW37: 0 | IX37: 0 | IY37: 0 | IZ37: 0 | JA37: 0 | JB37: 0 | JC37: 0 | JD37: 0 | JE37: 0 | JF37: =MAX(JF36,0)*JC37 -> 0 | JG37: 0 | JH37: 0 | JI37: 0 | JJ37: 0 | JK37: 0 | JL37: 0 | JM37: 0 | JN37: 0 | JO37: 0 | JP37: 0 | JQ37: 0 | JR37: 0 | JS37: 0 | JT37: 0 | JU37: 0 | JV37: 0 | JW37: 0 | JX37: 0 | JY37: 0 | JZ37: 0 | KA37: 0 | KB37: 0 | KC37: 0 | KD37: 0 | KE37: 0 | KF37: 0 | KG37: 0 | KH37: 0 | KI37: 0 | KJ37: 0 | KK37: 0 | KL37: 0 | KM37: 0 | KN37: 0 | KO37: 0 | KP37: 0 | KQ37: 0 | KR37: 0 | KS37: 0 | KT37: 0 | KU37: 0 | KV37: 0
B38: Availability Penalty MWH | E38: MWH | F38: =Assumptions!F98 -> 1 | I38: =MAX(-I36,0)*$F$38 -> 3478.2 | J38: =MAX(-J36,0)*$F$38 -> 3253.8 | K38: 3478.2 | L38: 3366 | M38: 3478.2 | N38: 3366 | O38: 3478.2 | P38: 3478.2 | Q38: 3366 | R38: 3478.2 | S38: 3366 | T38: 3478.2 | U38: 3478.2 | V38: 3141.6 | W38: 3478.2 | X38: 3366 | Y38: 3478.2 | Z38: 3366 | AA38: 3478.2 | AB38: 3478.2 | AC38: 3366 | AD38: 4743 | AE38: 4590 | AF38: 4743 | AG38: 4743 | AH38: 4284 | AI38: 4743 | AJ38: 4590 | AK38: 4743 | AL38: 4590 | AM38: 4743 | AN38: 4743 | AO38: 4590 | AP38: 4743 | AQ38: 4590 | AR38: 4743 | AS38: 4743 | AT38: 4284 | AU38: 4743 | AV38: 4590 | AW38: 4743 | AX38: 4590 | AY38: 4743 | AZ38: 4743 | BA38: 4590 | BB38: 4743 | BC38: 4590 | BD38: 4743 | BE38: 4743 | BF38: 4437 | BG38: 4743 | BH38: 4590 | BI38: 4743 | BJ38: 4590 | BK38: 4743 | BL38: 4743 | BM38: 4590 | BN38: 4743 | BO38: 4590 | BP38: 4743 | BQ38: 4743 | BR38: 4284 | BS38: 4743 | BT38: 4590 | BU38: 4743 | BV38: =MAX(-BV36,0)*$F$38 -> 4590 | BW38: 4743 | BX38: 4743 | BY38: 4590 | BZ38: 4743 | CA38: 4590 | CB38: 4743 | CC38: 4743 | CD38: 4284 | CE38: 4743 | CF38: 4590 | CG38: 4743 | CH38: 4590 | CI38: 4743 | CJ38: 4743 | CK38: 4590 | CL38: 4743 | CM38: 4590 | CN38: 4743 | CO38: 4743 | CP38: 4284 | CQ38: 4743 | CR38: 4590 | CS38: 4743 | CT38: 4590 | CU38: 4743 | CV38: 4743 | CW38: 4590 | CX38: 4743 | CY38: 4590 | CZ38: 4743 | DA38: 4743 | DB38: 4437 | DC38: 4743 | DD38: 4590 | DE38: 4743 | DF38: 4590 | DG38: 4743 | DH38: 4743 | DI38: 4590 | DJ38: 4743 | DK38: 4590 | DL38: 4743 | DM38: 4743 | DN38: 4284 | DO38: 4743 | DP38: 4590 | DQ38: 4743 | DR38: 4590 | DS38: 4743 | DT38: 4743 | DU38: 4590 | DV38: 4743 | DW38: 4590 | DX38: 4743 | DY38: 4743 | DZ38: 4284 | EA38: 4743 | EB38: 4590 | EC38: 4743 | ED38: 4590 | EE38: 4743 | EF38: 4743 | EG38: 4590 | EH38: =MAX(-EH36,0)*$F$38 -> 4743 | EI38: 4590 | EJ38: 4743 | EK38: 4743 | EL38: 4284 | EM38: 4743 | EN38: 4590 | EO38: 4743 | EP38: 4590 | EQ38: 4743 | ER38: 4743 | ES38: 4590 | ET38: 4743 | EU38: 4590 | EV38: 4743 | EW38: 4743 | EX38: 4437 | EY38: 4743 | EZ38: 4590 | FA38: 4743 | FB38: 4590 | FC38: 4743 | FD38: 4743 | FE38: 4590 | FF38: 4743 | FG38: 4590 | FH38: 4743 | FI38: 4743 | FJ38: 4284 | FK38: 4743 | FL38: 4590 | FM38: 4743 | FN38: 4590 | FO38: 4743 | FP38: 4743 | FQ38: 4590 | FR38: 4743 | FS38: 4590 | FT38: 4743 | FU38: 4743 | FV38: 4284 | FW38: 4743 | FX38: 4590 | FY38: 4743 | FZ38: 4590 | GA38: 4743 | GB38: 4743 | GC38: 4590 | GD38: 4743 | GE38: 4590 | GF38: 4743 | GG38: 4743 | GH38: 4284 | GI38: 4743 | GJ38: 4590 | GK38: 4743 | GL38: 4590 | GM38: 4743 | GN38: 4743 | GO38: 4590 | GP38: 4743 | GQ38: 4590 | GR38: 4743 | GS38: 4743 | GT38: =MAX(-GT36,0)*$F$38 -> 4437 | GU38: 4743 | GV38: 4590 | GW38: 4743 | GX38: 4590 | GY38: 4743 | GZ38: 4743 | HA38: 4590 | HB38: 4743 | HC38: 4590 | HD38: 4743 | HE38: 4743 | HF38: 4284 | HG38: 4743 | HH38: 4590 | HI38: 4743 | HJ38: 4590 | HK38: 4743 | HL38: 4743 | HM38: 4590 | HN38: 4743 | HO38: 4590 | HP38: 4743 | HQ38: 4743 | HR38: 4284 | HS38: 4743 | HT38: 4590 | HU38: 4743 | HV38: 4590 | HW38: 4743 | HX38: 4743 | HY38: 4590 | HZ38: 4743 | IA38: 4590 | IB38: 4743 | IC38: 4743 | ID38: 4284 | IE38: 4743 | IF38: 4590 | IG38: 4743 | IH38: 4590 | II38: 4743 | IJ38: 4743 | IK38: 4590 | IL38: 4743 | IM38: 4590 | IN38: 4743 | IO38: 4743 | IP38: 4437 | IQ38: 4743 | IR38: 4590 | IS38: 4743 | IT38: 4590 | IU38: 4743 | IV38: 4743 | IW38: 4590 | IX38: 4743 | IY38: 4590 | IZ38: 4743 | JA38: 4743 | JB38: 4284 | JC38: 4743 | JD38: 4590 | JE38: 4743 | JF38: =MAX(-JF36,0)*$F$38 -> 4590 | JG38: 4743 | JH38: 4743 | JI38: 4590 | JJ38: 4743 | JK38: 4590 | JL38: 4743 | JM38: 4743 | JN38: 4284 | JO38: 4743 | JP38: 4590 | JQ38: 4743 | JR38: 4590 | JS38: 4743 | JT38: 4743 | JU38: 4590 | JV38: 4743 | JW38: 4590 | JX38: 4743 | JY38: 4743 | JZ38: 4284 | KA38: 4743 | KB38: 4590 | KC38: 4743 | KD38: 4590 | KE38: 4743 | KF38: 4743 | KG38: 4590 | KH38: 4743 | KI38: 4590 | KJ38: 4743 | KK38: 4743 | KL38: 4437 | KM38: 4743 | KN38: 4590 | KO38: 4743 | KP38: 4590 | KQ38: 4743 | KR38: 4743 | KS38: 4590 | KT38: 4743 | KU38: 4590 | KV38: 4743
C39: Net Available Hours | E39: MWH | I39: =I34+I37-I38 -> 66085.8 | J39: =J34+J37-J38 -> 61822.2 | K39: 66085.8 | L39: 63954 | M39: 66085.8 | N39: 63954 | O39: 66085.8 | P39: 66085.8 | Q39: 63954 | R39: 66085.8 | S39: 63954 | T39: 66085.8 | U39: 66085.8 | V39: 59690.4 | W39: 66085.8 | X39: 63954 | Y39: 66085.8 | Z39: 63954 | AA39: 66085.8 | AB39: 66085.8 | AC39: 63954 | AD39: 90117 | AE39: 87210 | AF39: 90117 | AG39: 90117 | AH39: 81396 | AI39: 90117 | AJ39: 87210 | AK39: 90117 | AL39: 87210 | AM39: 90117 | AN39: 90117 | AO39: 87210 | AP39: 90117 | AQ39: 87210 | AR39: 90117 | AS39: 90117 | AT39: 81396 | AU39: 90117 | AV39: 87210 | AW39: 90117 | AX39: 87210 | AY39: 90117 | AZ39: 90117 | BA39: 87210 | BB39: 90117 | BC39: 87210 | BD39: 90117 | BE39: 90117 | BF39: 84303 | BG39: 90117 | BH39: 87210 | BI39: 90117 | BJ39: 87210 | BK39: 90117 | BL39: 90117 | BM39: 87210 | BN39: 90117 | BO39: 87210 | BP39: 90117 | BQ39: 90117 | BR39: 81396 | BS39: 90117 | BT39: 87210 | BU39: 90117 | BV39: =BV34+BV37-BV38 -> 87210 | BW39: 90117 | BX39: 90117 | BY39: 87210 | BZ39: 90117 | CA39: 87210 | CB39: 90117 | CC39: 90117 | CD39: 81396 | CE39: 90117 | CF39: 87210 | CG39: 90117 | CH39: 87210 | CI39: 90117 | CJ39: 90117 | CK39: 87210 | CL39: 90117 | CM39: 87210 | CN39: 90117 | CO39: 90117 | CP39: 81396 | CQ39: 90117 | CR39: 87210 | CS39: 90117 | CT39: 87210 | CU39: 90117 | CV39: 90117 | CW39: 87210 | CX39: 90117 | CY39: 87210 | CZ39: 90117 | DA39: 90117 | DB39: 84303 | DC39: 90117 | DD39: 87210 | DE39: 90117 | DF39: 87210 | DG39: 90117 | DH39: 90117 | DI39: 87210 | DJ39: 90117 | DK39: 87210 | DL39: 90117 | DM39: 90117 | DN39: 81396 | DO39: 90117 | DP39: 87210 | DQ39: 90117 | DR39: 87210 | DS39: 90117 | DT39: 90117 | DU39: 87210 | DV39: 90117 | DW39: 87210 | DX39: 90117 | DY39: 90117 | DZ39: 81396 | EA39: 90117 | EB39: 87210 | EC39: 90117 | ED39: 87210 | EE39: 90117 | EF39: 90117 | EG39: 87210 | EH39: =EH34+EH37-EH38 -> 90117 | EI39: 87210 | EJ39: 90117 | EK39: 90117 | EL39: 81396 | EM39: 90117 | EN39: 87210 | EO39: 90117 | EP39: 87210 | EQ39: 90117 | ER39: 90117 | ES39: 87210 | ET39: 90117 | EU39: 87210 | EV39: 90117 | EW39: 90117 | EX39: 84303 | EY39: 90117 | EZ39: 87210 | FA39: 90117 | FB39: 87210 | FC39: 90117 | FD39: 90117 | FE39: 87210 | FF39: 90117 | FG39: 87210 | FH39: 90117 | FI39: 90117 | FJ39: 81396 | FK39: 90117 | FL39: 87210 | FM39: 90117 | FN39: 87210 | FO39: 90117 | FP39: 90117 | FQ39: 87210 | FR39: 90117 | FS39: 87210 | FT39: 90117 | FU39: 90117 | FV39: 81396 | FW39: 90117 | FX39: 87210 | FY39: 90117 | FZ39: 87210 | GA39: 90117 | GB39: 90117 | GC39: 87210 | GD39: 90117 | GE39: 87210 | GF39: 90117 | GG39: 90117 | GH39: 81396 | GI39: 90117 | GJ39: 87210 | GK39: 90117 | GL39: 87210 | GM39: 90117 | GN39: 90117 | GO39: 87210 | GP39: 90117 | GQ39: 87210 | GR39: 90117 | GS39: 90117 | GT39: =GT34+GT37-GT38 -> 84303 | GU39: 90117 | GV39: 87210 | GW39: 90117 | GX39: 87210 | GY39: 90117 | GZ39: 90117 | HA39: 87210 | HB39: 90117 | HC39: 87210 | HD39: 90117 | HE39: 90117 | HF39: 81396 | HG39: 90117 | HH39: 87210 | HI39: 90117 | HJ39: 87210 | HK39: 90117 | HL39: 90117 | HM39: 87210 | HN39: 90117 | HO39: 87210 | HP39: 90117 | HQ39: 90117 | HR39: 81396 | HS39: 90117 | HT39: 87210 | HU39: 90117 | HV39: 87210 | HW39: 90117 | HX39: 90117 | HY39: 87210 | HZ39: 90117 | IA39: 87210 | IB39: 90117 | IC39: 90117 | ID39: 81396 | IE39: 90117 | IF39: 87210 | IG39: 90117 | IH39: 87210 | II39: 90117 | IJ39: 90117 | IK39: 87210 | IL39: 90117 | IM39: 87210 | IN39: 90117 | IO39: 90117 | IP39: 84303 | IQ39: 90117 | IR39: 87210 | IS39: 90117 | IT39: 87210 | IU39: 90117 | IV39: 90117 | IW39: 87210 | IX39: 90117 | IY39: 87210 | IZ39: 90117 | JA39: 90117 | JB39: 81396 | JC39: 90117 | JD39: 87210 | JE39: 90117 | JF39: =JF34+JF37-JF38 -> 87210 | JG39: 90117 | JH39: 90117 | JI39: 87210 | JJ39: 90117 | JK39: 87210 | JL39: 90117 | JM39: 90117 | JN39: 81396 | JO39: 90117 | JP39: 87210 | JQ39: 90117 | JR39: 87210 | JS39: 90117 | JT39: 90117 | JU39: 87210 | JV39: 90117 | JW39: 87210 | JX39: 90117 | JY39: 90117 | JZ39: 81396 | KA39: 90117 | KB39: 87210 | KC39: 90117 | KD39: 87210 | KE39: 90117 | KF39: 90117 | KG39: 87210 | KH39: 90117 | KI39: 87210 | KJ39: 90117 | KK39: 90117 | KL39: 84303 | KM39: 90117 | KN39: 87210 | KO39: 90117 | KP39: 87210 | KQ39: 90117 | KR39: 90117 | KS39: 87210 | KT39: 90117 | KU39: 87210 | KV39: 90117
B41: Sent MWH | E41: MWH | I41: =I23 -> 62198.4 | J41: =J23 -> 58185.6 | K41: 62198.4 | L41: 60192 | M41: 62198.4 | N41: 60192 | O41: 62198.4 | P41: 62198.4 | Q41: 60192 | R41: 62198.4 | S41: 60192 | T41: 62198.4 | U41: 62198.4 | V41: 56179.2 | W41: 62198.4 | X41: 60192 | Y41: 62198.4 | Z41: 60192 | AA41: 62198.4 | AB41: 62198.4 | AC41: 60192 | AD41: 84816 | AE41: 82080 | AF41: 84816 | AG41: 84816 | AH41: 76608 | AI41: 84816 | AJ41: 82080 | AK41: 84816 | AL41: 82080 | AM41: 84816 | AN41: 84816 | AO41: 82080 | AP41: 84816 | AQ41: 82080 | AR41: 84816 | AS41: 84816 | AT41: 76608 | AU41: 84816 | AV41: 82080 | AW41: 84816 | AX41: 82080 | AY41: 84816 | AZ41: 84816 | BA41: 82080 | BB41: 84816 | BC41: 82080 | BD41: 84816 | BE41: 84816 | BF41: 79344 | BG41: 84816 | BH41: 82080 | BI41: 84816 | BJ41: 82080 | BK41: 84816 | BL41: 84816 | BM41: 82080 | BN41: 84816 | BO41: 82080 | BP41: 84816 | BQ41: 84816 | BR41: 76608 | BS41: 84816 | BT41: 82080 | BU41: 84816 | BV41: =BV23 -> 82080 | BW41: 84816 | BX41: 84816 | BY41: 82080 | BZ41: 84816 | CA41: 82080 | CB41: 84816 | CC41: 84816 | CD41: 76608 | CE41: 84816 | CF41: 82080 | CG41: 84816 | CH41: 82080 | CI41: 84816 | CJ41: 84816 | CK41: 82080 | CL41: 84816 | CM41: 82080 | CN41: 84816 | CO41: 84816 | CP41: 76608 | CQ41: 84816 | CR41: 82080 | CS41: 84816 | CT41: 82080 | CU41: 84816 | CV41: 84816 | CW41: 82080 | CX41: 84816 | CY41: 82080 | CZ41: 84816 | DA41: 84816 | DB41: 79344 | DC41: 84816 | DD41: 82080 | DE41: 84816 | DF41: 82080 | DG41: 84816 | DH41: 84816 | DI41: 82080 | DJ41: 84816 | DK41: 82080 | DL41: 84816 | DM41: 84816 | DN41: 76608 | DO41: 84816 | DP41: 82080 | DQ41: 84816 | DR41: 82080 | DS41: 84816 | DT41: 84816 | DU41: 82080 | DV41: 84816 | DW41: 82080 | DX41: 84816 | DY41: 84816 | DZ41: 76608 | EA41: 84816 | EB41: 82080 | EC41: 84816 | ED41: 82080 | EE41: 84816 | EF41: 84816 | EG41: 82080 | EH41: =EH23 -> 84816 | EI41: 82080 | EJ41: 84816 | EK41: 84816 | EL41: 76608 | EM41: 84816 | EN41: 82080 | EO41: 84816 | EP41: 82080 | EQ41: 84816 | ER41: 84816 | ES41: 82080 | ET41: 84816 | EU41: 82080 | EV41: 84816 | EW41: 84816 | EX41: 79344 | EY41: 84816 | EZ41: 82080 | FA41: 84816 | FB41: 82080 | FC41: 84816 | FD41: 84816 | FE41: 82080 | FF41: 84816 | FG41: 82080 | FH41: 84816 | FI41: 84816 | FJ41: 76608 | FK41: 84816 | FL41: 82080 | FM41: 84816 | FN41: 82080 | FO41: 84816 | FP41: 84816 | FQ41: 82080 | FR41: 84816 | FS41: 82080 | FT41: 84816 | FU41: 84816 | FV41: 76608 | FW41: 84816 | FX41: 82080 | FY41: 84816 | FZ41: 82080 | GA41: 84816 | GB41: 84816 | GC41: 82080 | GD41: 84816 | GE41: 82080 | GF41: 84816 | GG41: 84816 | GH41: 76608 | GI41: 84816 | GJ41: 82080 | GK41: 84816 | GL41: 82080 | GM41: 84816 | GN41: 84816 | GO41: 82080 | GP41: 84816 | GQ41: 82080 | GR41: 84816 | GS41: 84816 | GT41: =GT23 -> 79344 | GU41: 84816 | GV41: 82080 | GW41: 84816 | GX41: 82080 | GY41: 84816 | GZ41: 84816 | HA41: 82080 | HB41: 84816 | HC41: 82080 | HD41: 84816 | HE41: 84816 | HF41: 76608 | HG41: 84816 | HH41: 82080 | HI41: 84816 | HJ41: 82080 | HK41: 84816 | HL41: 84816 | HM41: 82080 | HN41: 84816 | HO41: 82080 | HP41: 84816 | HQ41: 84816 | HR41: 76608 | HS41: 84816 | HT41: 82080 | HU41: 84816 | HV41: 82080 | HW41: 84816 | HX41: 84816 | HY41: 82080 | HZ41: 84816 | IA41: 82080 | IB41: 84816 | IC41: 84816 | ID41: 76608 | IE41: 84816 | IF41: 82080 | IG41: 84816 | IH41: 82080 | II41: 84816 | IJ41: 84816 | IK41: 82080 | IL41: 84816 | IM41: 82080 | IN41: 84816 | IO41: 84816 | IP41: 79344 | IQ41: 84816 | IR41: 82080 | IS41: 84816 | IT41: 82080 | IU41: 84816 | IV41: 84816 | IW41: 82080 | IX41: 84816 | IY41: 82080 | IZ41: 84816 | JA41: 84816 | JB41: 76608 | JC41: 84816 | JD41: 82080 | JE41: 84816 | JF41: =JF23 -> 82080 | JG41: 84816 | JH41: 84816 | JI41: 82080 | JJ41: 84816 | JK41: 82080 | JL41: 84816 | JM41: 84816 | JN41: 76608 | JO41: 84816 | JP41: 82080 | JQ41: 84816 | JR41: 82080 | JS41: 84816 | JT41: 84816 | JU41: 82080 | JV41: 84816 | JW41: 82080 | JX41: 84816 | JY41: 84816 | JZ41: 76608 | KA41: 84816 | KB41: 82080 | KC41: 84816 | KD41: 82080 | KE41: 84816 | KF41: 84816 | KG41: 82080 | KH41: 84816 | KI41: 82080 | KJ41: 84816 | KK41: 84816 | KL41: 79344 | KM41: 84816 | KN41: 82080 | KO41: 84816 | KP41: 82080 | KQ41: 84816 | KR41: 84816 | KS41: 82080 | KT41: 84816 | KU41: 82080 | KV41: 84816
B42: Target Heat Rate (Lookup) | E42: BTU/MWH | I42: =LOOKUP(I7,Assumptions!91:91,Assumptions!93:93) -> 8175 | J42: =LOOKUP(J7,Assumptions!91:91,Assumptions!93:93) -> 8175 | K42: =LOOKUP(K7,Assumptions!91:91,Assumptions!93:93) -> 8175 | L42: =LOOKUP(L7,Assumptions!91:91,Assumptions!93:93) -> 8175 | M42: =LOOKUP(M7,Assumptions!91:91,Assumptions!93:93) -> 8175 | N42: =LOOKUP(N7,Assumptions!91:91,Assumptions!93:93) -> 8175 | O42: =LOOKUP(O7,Assumptions!91:91,Assumptions!93:93) -> 8175 | P42: =LOOKUP(P7,Assumptions!91:91,Assumptions!93:93) -> 8175 | Q42: =LOOKUP(Q7,Assumptions!91:91,Assumptions!93:93) -> 8175 | R42: =LOOKUP(R7,Assumptions!91:91,Assumptions!93:93) -> 8175 | S42: =LOOKUP(S7,Assumptions!91:91,Assumptions!93:93) -> 8175 | T42: =LOOKUP(T7,Assumptions!91:91,Assumptions!93:93) -> 8175 | U42: =LOOKUP(U7,Assumptions!91:91,Assumptions!93:93) -> 8175 | V42: =LOOKUP(V7,Assumptions!91:91,Assumptions!93:93) -> 8175 | W42: =LOOKUP(W7,Assumptions!91:91,Assumptions!93:93) -> 8175 | X42: =LOOKUP(X7,Assumptions!91:91,Assumptions!93:93) -> 8175 | Y42: =LOOKUP(Y7,Assumptions!91:91,Assumptions!93:93) -> 8175 | Z42: =LOOKUP(Z7,Assumptions!91:91,Assumptions!93:93) -> 8175 | AA42: =LOOKUP(AA7,Assumptions!91:91,Assumptions!93:93) -> 8175 | AB42: =LOOKUP(AB7,Assumptions!91:91,Assumptions!93:93) -> 8175 | AC42: =LOOKUP(AC7,Assumptions!91:91,Assumptions!93:93) -> 8175 | AD42: =LOOKUP(AD7,Assumptions!91:91,Assumptions!93:93) -> 7732.142857 | AE42: =LOOKUP(AE7,Assumptions!91:91,Assumptions!93:93) -> 7732.142857 | AF42: =LOOKUP(AF7,Assumptions!91:91,Assumptions!93:93) -> 7732.142857 | AG42: =LOOKUP(AG7,Assumptions!91:91,Assumptions!93:93) -> 7732.142857 | AH42: =LOOKUP(AH7,Assumptions!91:91,Assumptions!93:93) -> 7732.142857 | AI42: =LOOKUP(AI7,Assumptions!91:91,Assumptions!93:93) -> 7732.142857 | AJ42: =LOOKUP(AJ7,Assumptions!91:91,Assumptions!93:93) -> 7732.142857 | AK42: =LOOKUP(AK7,Assumptions!91:91,Assumptions!93:93) -> 7732.142857 | AL42: =LOOKUP(AL7,Assumptions!91:91,Assumptions!93:93) -> 7732.142857 | AM42: =LOOKUP(AM7,Assumptions!91:91,Assumptions!93:93) -> 7732.142857 | AN42: =LOOKUP(AN7,Assumptions!91:91,Assumptions!93:93) -> 7732.142857 | AO42: =LOOKUP(AO7,Assumptions!91:91,Assumptions!93:93) -> 7732.142857 | AP42: =LOOKUP(AP7,Assumptions!91:91,Assumptions!93:93) -> 7732.142857 | AQ42: =LOOKUP(AQ7,Assumptions!91:91,Assumptions!93:93) -> 7732.142857 | AR42: =LOOKUP(AR7,Assumptions!91:91,Assumptions!93:93) -> 7732.142857 | AS42: =LOOKUP(AS7,Assumptions!91:91,Assumptions!93:93) -> 7732.142857 | AT42: =LOOKUP(AT7,Assumptions!91:91,Assumptions!93:93) -> 7732.142857 | AU42: =LOOKUP(AU7,Assumptions!91:91,Assumptions!93:93) -> 7732.142857 | AV42: =LOOKUP(AV7,Assumptions!91:91,Assumptions!93:93) -> 7732.142857 | AW42: =LOOKUP(AW7,Assumptions!91:91,Assumptions!93:93) -> 7732.142857 | AX42: =LOOKUP(AX7,Assumptions!91:91,Assumptions!93:93) -> 7732.142857 | AY42: =LOOKUP(AY7,Assumptions!91:91,Assumptions!93:93) -> 7732.142857 | AZ42: =LOOKUP(AZ7,Assumptions!91:91,Assumptions!93:93) -> 7732.142857 | BA42: =LOOKUP(BA7,Assumptions!91:91,Assumptions!93:93) -> 7732.142857 | BB42: =LOOKUP(BB7,Assumptions!91:91,Assumptions!93:93) -> 7732.142857 | BC42: =LOOKUP(BC7,Assumptions!91:91,Assumptions!93:93) -> 7732.142857 | BD42: =LOOKUP(BD7,Assumptions!91:91,Assumptions!93:93) -> 7732.142857 | BE42: =LOOKUP(BE7,Assumptions!91:91,Assumptions!93:93) -> 7732.142857 | BF42: =LOOKUP(BF7,Assumptions!91:91,Assumptions!93:93) -> 7732.142857 | BG42: =LOOKUP(BG7,Assumptions!91:91,Assumptions!93:93) -> 7732.142857 | BH42: =LOOKUP(BH7,Assumptions!91:91,Assumptions!93:93) -> 7732.142857 | BI42: =LOOKUP(BI7,Assumptions!91:91,Assumptions!93:93) -> 7732.142857 | BJ42: =LOOKUP(BJ7,Assumptions!91:91,Assumptions!93:93) -> 7732.142857 | BK42: =LOOKUP(BK7,Assumptions!91:91,Assumptions!93:93) -> 7732.142857 | BL42: =LOOKUP(BL7,Assumptions!91:91,Assumptions!93:93) -> 7732.142857 | BM42: =LOOKUP(BM7,Assumptions!91:91,Assumptions!93:93) -> 7732.142857 | BN42: =LOOKUP(BN7,Assumptions!91:91,Assumptions!93:93) -> 7732.142857 | BO42: =LOOKUP(BO7,Assumptions!91:91,Assumptions!93:93) -> 7732.142857 | BP42: =LOOKUP(BP7,Assumptions!91:91,Assumptions!93:93) -> 7732.142857 | BQ42: =LOOKUP(BQ7,Assumptions!91:91,Assumptions!93:93) -> 7732.142857 | BR42: =LOOKUP(BR7,Assumptions!91:91,Assumptions!93:93) -> 7732.142857 | BS42: =LOOKUP(BS7,Assumptions!91:91,Assumptions!93:93) -> 7732.142857 | BT42: =LOOKUP(BT7,Assumptions!91:91,Assumptions!93:93) -> 7732.142857 | BU42: =LOOKUP(BU7,Assumptions!91:91,Assumptions!93:93) -> 7732.142857 | BV42: =LOOKUP(BV7,Assumptions!91:91,Assumptions!93:93) -> 7732.142857 | BW42: =LOOKUP(BW7,Assumptions!91:91,Assumptions!93:93) -> 7732.142857 | BX42: =LOOKUP(BX7,Assumptions!91:91,Assumptions!93:93) -> 7732.142857 | BY42: =LOOKUP(BY7,Assumptions!91:91,Assumptions!93:93) -> 7732.142857 | BZ42: =LOOKUP(BZ7,Assumptions!91:91,Assumptions!93:93) -> 7732.142857 | CA42: =LOOKUP(CA7,Assumptions!91:91,Assumptions!93:93) -> 7732.142857 | CB42: =LOOKUP(CB7,Assumptions!91:91,Assumptions!93:93) -> 7732.142857 | CC42: =LOOKUP(CC7,Assumptions!91:91,Assumptions!93:93) -> 7732.142857 | CD42: =LOOKUP(CD7,Assumptions!91:91,Assumptions!93:93) -> 7732.142857 | CE42: =LOOKUP(CE7,Assumptions!91:91,Assumptions!93:93) -> 7732.142857 | CF42: =LOOKUP(CF7,Assumptions!91:91,Assumptions!93:93) -> 7732.142857 | CG42: =LOOKUP(CG7,Assumptions!91:91,Assumptions!93:93) -> 7732.142857 | CH42: =LOOKUP(CH7,Assumptions!91:91,Assumptions!93:93) -> 7732.142857 | CI42: =LOOKUP(CI7,Assumptions!91:91,Assumptions!93:93) -> 7732.142857 | CJ42: =LOOKUP(CJ7,Assumptions!91:91,Assumptions!93:93) -> 7732.142857 | CK42: =LOOKUP(CK7,Assumptions!91:91,Assumptions!93:93) -> 7732.142857 | CL42: =LOOKUP(CL7,Assumptions!91:91,Assumptions!93:93) -> 7732.142857 | CM42: =LOOKUP(CM7,Assumptions!91:91,Assumptions!93:93) -> 7732.142857 | CN42: =LOOKUP(CN7,Assumptions!91:91,Assumptions!93:93) -> 7732.142857 | CO42: =LOOKUP(CO7,Assumptions!91:91,Assumptions!93:93) -> 7732.142857 | CP42: =LOOKUP(CP7,Assumptions!91:91,Assumptions!93:93) -> 7732.142857 | CQ42: =LOOKUP(CQ7,Assumptions!91:91,Assumptions!93:93) -> 7732.142857 | CR42: =LOOKUP(CR7,Assumptions!91:91,Assumptions!93:93) -> 7732.142857 | CS42: =LOOKUP(CS7,Assumptions!91:91,Assumptions!93:93) -> 7732.142857 | CT42: =LOOKUP(CT7,Assumptions!91:91,Assumptions!93:93) -> 7732.142857 | CU42: =LOOKUP(CU7,Assumptions!91:91,Assumptions!93:93) -> 7732.142857 | CV42: =LOOKUP(CV7,Assumptions!91:91,Assumptions!93:93) -> 7732.142857 | CW42: =LOOKUP(CW7,Assumptions!91:91,Assumptions!93:93) -> 7732.142857 | CX42: =LOOKUP(CX7,Assumptions!91:91,Assumptions!93:93) -> 7732.142857 | CY42: =LOOKUP(CY7,Assumptions!91:91,Assumptions!93:93) -> 7732.142857 | CZ42: =LOOKUP(CZ7,Assumptions!91:91,Assumptions!93:93) -> 7732.142857 | DA42: =LOOKUP(DA7,Assumptions!91:91,Assumptions!93:93) -> 7732.142857 | DB42: =LOOKUP(DB7,Assumptions!91:91,Assumptions!93:93) -> 7732.142857 | DC42: =LOOKUP(DC7,Assumptions!91:91,Assumptions!93:93) -> 7732.142857 | DD42: =LOOKUP(DD7,Assumptions!91:91,Assumptions!93:93) -> 7732.142857 | DE42: =LOOKUP(DE7,Assumptions!91:91,Assumptions!93:93) -> 7732.142857 | DF42: =LOOKUP(DF7,Assumptions!91:91,Assumptions!93:93) -> 7732.142857 | DG42: =LOOKUP(DG7,Assumptions!91:91,Assumptions!93:93) -> 7732.142857 | DH42: =LOOKUP(DH7,Assumptions!91:91,Assumptions!93:93) -> 7732.142857 | DI42: =LOOKUP(DI7,Assumptions!91:91,Assumptions!93:93) -> 7732.142857 | DJ42: =LOOKUP(DJ7,Assumptions!91:91,Assumptions!93:93) -> 7732.142857 | DK42: =LOOKUP(DK7,Assumptions!91:91,Assumptions!93:93) -> 7732.142857 | DL42: =LOOKUP(DL7,Assumptions!91:91,Assumptions!93:93) -> 7732.142857 | DM42: =LOOKUP(DM7,Assumptions!91:91,Assumptions!93:93) -> 7732.142857 | DN42: =LOOKUP(DN7,Assumptions!91:91,Assumptions!93:93) -> 7732.142857 | DO42: =LOOKUP(DO7,Assumptions!91:91,Assumptions!93:93) -> 7732.142857 | DP42: =LOOKUP(DP7,Assumptions!91:91,Assumptions!93:93) -> 7732.142857 | DQ42: =LOOKUP(DQ7,Assumptions!91:91,Assumptions!93:93) -> 7732.142857 | DR42: =LOOKUP(DR7,Assumptions!91:91,Assumptions!93:93) -> 7732.142857 | DS42: =LOOKUP(DS7,Assumptions!91:91,Assumptions!93:93) -> 7732.142857 | DT42: =LOOKUP(DT7,Assumptions!91:91,Assumptions!93:93) -> 7732.142857 | DU42: =LOOKUP(DU7,Assumptions!91:91,Assumptions!93:93) -> 7732.142857 | DV42: =LOOKUP(DV7,Assumptions!91:91,Assumptions!93:93) -> 7732.142857 | DW42: =LOOKUP(DW7,Assumptions!91:91,Assumptions!93:93) -> 7732.142857 | DX42: =LOOKUP(DX7,Assumptions!91:91,Assumptions!93:93) -> 7732.142857 | DY42: =LOOKUP(DY7,Assumptions!91:91,Assumptions!93:93) -> 7732.142857 | DZ42: =LOOKUP(DZ7,Assumptions!91:91,Assumptions!93:93) -> 7732.142857 | EA42: =LOOKUP(EA7,Assumptions!91:91,Assumptions!93:93) -> 7732.142857 | EB42: =LOOKUP(EB7,Assumptions!91:91,Assumptions!93:93) -> 7732.142857 | EC42: =LOOKUP(EC7,Assumptions!91:91,Assumptions!93:93) -> 7732.142857 | ED42: =LOOKUP(ED7,Assumptions!91:91,Assumptions!93:93) -> 7732.142857 | EE42: =LOOKUP(EE7,Assumptions!91:91,Assumptions!93:93) -> 7732.142857 | EF42: =LOOKUP(EF7,Assumptions!91:91,Assumptions!93:93) -> 7732.142857 | EG42: =LOOKUP(EG7,Assumptions!91:91,Assumptions!93:93) -> 7732.142857 | EH42: =LOOKUP(EH7,Assumptions!91:91,Assumptions!93:93) -> 7732.142857 | EI42: =LOOKUP(EI7,Assumptions!91:91,Assumptions!93:93) -> 7732.142857 | EJ42: =LOOKUP(EJ7,Assumptions!91:91,Assumptions!93:93) -> 7732.142857 | EK42: =LOOKUP(EK7,Assumptions!91:91,Assumptions!93:93) -> 7732.142857 | EL42: =LOOKUP(EL7,Assumptions!91:91,Assumptions!93:93) -> 7732.142857 | EM42: =LOOKUP(EM7,Assumptions!91:91,Assumptions!93:93) -> 7732.142857 | EN42: =LOOKUP(EN7,Assumptions!91:91,Assumptions!93:93) -> 7732.142857 | EO42: =LOOKUP(EO7,Assumptions!91:91,Assumptions!93:93) -> 7732.142857 | EP42: =LOOKUP(EP7,Assumptions!91:91,Assumptions!93:93) -> 7732.142857 | EQ42: =LOOKUP(EQ7,Assumptions!91:91,Assumptions!93:93) -> 7732.142857 | ER42: =LOOKUP(ER7,Assumptions!91:91,Assumptions!93:93) -> 7732.142857 | ES42: =LOOKUP(ES7,Assumptions!91:91,Assumptions!93:93) -> 7732.142857 | ET42: =LOOKUP(ET7,Assumptions!91:91,Assumptions!93:93) -> 7732.142857 | EU42: =LOOKUP(EU7,Assumptions!91:91,Assumptions!93:93) -> 7732.142857 | EV42: =LOOKUP(EV7,Assumptions!91:91,Assumptions!93:93) -> 7732.142857 | EW42: =LOOKUP(EW7,Assumptions!91:91,Assumptions!93:93) -> 7732.142857 | EX42: =LOOKUP(EX7,Assumptions!91:91,Assumptions!93:93) -> 7732.142857 | EY42: =LOOKUP(EY7,Assumptions!91:91,Assumptions!93:93) -> 7732.142857 | EZ42: =LOOKUP(EZ7,Assumptions!91:91,Assumptions!93:93) -> 7732.142857 | FA42: =LOOKUP(FA7,Assumptions!91:91,Assumptions!93:93) -> 7732.142857 | FB42: =LOOKUP(FB7,Assumptions!91:91,Assumptions!93:93) -> 7732.142857 | FC42: =LOOKUP(FC7,Assumptions!91:91,Assumptions!93:93) -> 7732.142857 | FD42: =LOOKUP(FD7,Assumptions!91:91,Assumptions!93:93) -> 7732.142857 | FE42: =LOOKUP(FE7,Assumptions!91:91,Assumptions!93:93) -> 7732.142857 | FF42: =LOOKUP(FF7,Assumptions!91:91,Assumptions!93:93) -> 7732.142857 | FG42: =LOOKUP(FG7,Assumptions!91:91,Assumptions!93:93) -> 7732.142857 | FH42: =LOOKUP(FH7,Assumptions!91:91,Assumptions!93:93) -> 7732.142857 | FI42: =LOOKUP(FI7,Assumptions!91:91,Assumptions!93:93) -> 7732.142857 | FJ42: =LOOKUP(FJ7,Assumptions!91:91,Assumptions!93:93) -> 7732.142857 | FK42: =LOOKUP(FK7,Assumptions!91:91,Assumptions!93:93) -> 7732.142857 | FL42: =LOOKUP(FL7,Assumptions!91:91,Assumptions!93:93) -> 7732.142857 | FM42: =LOOKUP(FM7,Assumptions!91:91,Assumptions!93:93) -> 7732.142857 | FN42: =LOOKUP(FN7,Assumptions!91:91,Assumptions!93:93) -> 7732.142857 | FO42: =LOOKUP(FO7,Assumptions!91:91,Assumptions!93:93) -> 7732.142857 | FP42: =LOOKUP(FP7,Assumptions!91:91,Assumptions!93:93) -> 7732.142857 | FQ42: =LOOKUP(FQ7,Assumptions!91:91,Assumptions!93:93) -> 7732.142857 | FR42: =LOOKUP(FR7,Assumptions!91:91,Assumptions!93:93) -> 7732.142857 | FS42: =LOOKUP(FS7,Assumptions!91:91,Assumptions!93:93) -> 7732.142857 | FT42: =LOOKUP(FT7,Assumptions!91:91,Assumptions!93:93) -> 7732.142857 | FU42: =LOOKUP(FU7,Assumptions!91:91,Assumptions!93:93) -> 7732.142857 | FV42: =LOOKUP(FV7,Assumptions!91:91,Assumptions!93:93) -> 7732.142857 | FW42: =LOOKUP(FW7,Assumptions!91:91,Assumptions!93:93) -> 7732.142857 | FX42: =LOOKUP(FX7,Assumptions!91:91,Assumptions!93:93) -> 7732.142857 | FY42: =LOOKUP(FY7,Assumptions!91:91,Assumptions!93:93) -> 7732.142857 | FZ42: =LOOKUP(FZ7,Assumptions!91:91,Assumptions!93:93) -> 7732.142857 | GA42: =LOOKUP(GA7,Assumptions!91:91,Assumptions!93:93) -> 7732.142857 | GB42: =LOOKUP(GB7,Assumptions!91:91,Assumptions!93:93) -> 7732.142857 | GC42: =LOOKUP(GC7,Assumptions!91:91,Assumptions!93:93) -> 7732.142857 | GD42: =LOOKUP(GD7,Assumptions!91:91,Assumptions!93:93) -> 7732.142857 | GE42: =LOOKUP(GE7,Assumptions!91:91,Assumptions!93:93) -> 7732.142857 | GF42: =LOOKUP(GF7,Assumptions!91:91,Assumptions!93:93) -> 7732.142857 | GG42: =LOOKUP(GG7,Assumptions!91:91,Assumptions!93:93) -> 7732.142857 | GH42: =LOOKUP(GH7,Assumptions!91:91,Assumptions!93:93) -> 7732.142857 | GI42: =LOOKUP(GI7,Assumptions!91:91,Assumptions!93:93) -> 7732.142857 | GJ42: =LOOKUP(GJ7,Assumptions!91:91,Assumptions!93:93) -> 7732.142857 | GK42: =LOOKUP(GK7,Assumptions!91:91,Assumptions!93:93) -> 7732.142857 | GL42: =LOOKUP(GL7,Assumptions!91:91,Assumptions!93:93) -> 7732.142857 | GM42: =LOOKUP(GM7,Assumptions!91:91,Assumptions!93:93) -> 7732.142857 | GN42: =LOOKUP(GN7,Assumptions!91:91,Assumptions!93:93) -> 7732.142857 | GO42: =LOOKUP(GO7,Assumptions!91:91,Assumptions!93:93) -> 7732.142857 | GP42: =LOOKUP(GP7,Assumptions!91:91,Assumptions!93:93) -> 7732.142857 | GQ42: =LOOKUP(GQ7,Assumptions!91:91,Assumptions!93:93) -> 7732.142857 | GR42: =LOOKUP(GR7,Assumptions!91:91,Assumptions!93:93) -> 7732.142857 | GS42: =LOOKUP(GS7,Assumptions!91:91,Assumptions!93:93) -> 7732.142857 | GT42: =LOOKUP(GT7,Assumptions!91:91,Assumptions!93:93) -> 7732.142857 | GU42: =LOOKUP(GU7,Assumptions!91:91,Assumptions!93:93) -> 7732.142857 | GV42: =LOOKUP(GV7,Assumptions!91:91,Assumptions!93:93) -> 7732.142857 | GW42: =LOOKUP(GW7,Assumptions!91:91,Assumptions!93:93) -> 7732.142857 | GX42: =LOOKUP(GX7,Assumptions!91:91,Assumptions!93:93) -> 7732.142857 | GY42: =LOOKUP(GY7,Assumptions!91:91,Assumptions!93:93) -> 7732.142857 | GZ42: =LOOKUP(GZ7,Assumptions!91:91,Assumptions!93:93) -> 7732.142857 | HA42: =LOOKUP(HA7,Assumptions!91:91,Assumptions!93:93) -> 7732.142857 | HB42: =LOOKUP(HB7,Assumptions!91:91,Assumptions!93:93) -> 7732.142857 | HC42: =LOOKUP(HC7,Assumptions!91:91,Assumptions!93:93) -> 7732.142857 | HD42: =LOOKUP(HD7,Assumptions!91:91,Assumptions!93:93) -> 7732.142857 | HE42: =LOOKUP(HE7,Assumptions!91:91,Assumptions!93:93) -> 7732.142857 | HF42: =LOOKUP(HF7,Assumptions!91:91,Assumptions!93:93) -> 7732.142857 | HG42: =LOOKUP(HG7,Assumptions!91:91,Assumptions!93:93) -> 7732.142857 | HH42: =LOOKUP(HH7,Assumptions!91:91,Assumptions!93:93) -> 7732.142857 | HI42: =LOOKUP(HI7,Assumptions!91:91,Assumptions!93:93) -> 7732.142857 | HJ42: =LOOKUP(HJ7,Assumptions!91:91,Assumptions!93:93) -> 7732.142857 | HK42: =LOOKUP(HK7,Assumptions!91:91,Assumptions!93:93) -> 7732.142857 | HL42: =LOOKUP(HL7,Assumptions!91:91,Assumptions!93:93) -> 7732.142857 | HM42: =LOOKUP(HM7,Assumptions!91:91,Assumptions!93:93) -> 7732.142857 | HN42: =LOOKUP(HN7,Assumptions!91:91,Assumptions!93:93) -> 7732.142857 | HO42: =LOOKUP(HO7,Assumptions!91:91,Assumptions!93:93) -> 7732.142857 | HP42: =LOOKUP(HP7,Assumptions!91:91,Assumptions!93:93) -> 7732.142857 | HQ42: =LOOKUP(HQ7,Assumptions!91:91,Assumptions!93:93) -> 7732.142857 | HR42: =LOOKUP(HR7,Assumptions!91:91,Assumptions!93:93) -> 7732.142857 | HS42: =LOOKUP(HS7,Assumptions!91:91,Assumptions!93:93) -> 7732.142857 | HT42: =LOOKUP(HT7,Assumptions!91:91,Assumptions!93:93) -> 7732.142857 | HU42: =LOOKUP(HU7,Assumptions!91:91,Assumptions!93:93) -> 7732.142857 | HV42: =LOOKUP(HV7,Assumptions!91:91,Assumptions!93:93) -> 7732.142857 | HW42: =LOOKUP(HW7,Assumptions!91:91,Assumptions!93:93) -> 7732.142857 | HX42: =LOOKUP(HX7,Assumptions!91:91,Assumptions!93:93) -> 7732.142857 | HY42: =LOOKUP(HY7,Assumptions!91:91,Assumptions!93:93) -> 7732.142857 | HZ42: =LOOKUP(HZ7,Assumptions!91:91,Assumptions!93:93) -> 7732.142857 | IA42: =LOOKUP(IA7,Assumptions!91:91,Assumptions!93:93) -> 7732.142857 | IB42: =LOOKUP(IB7,Assumptions!91:91,Assumptions!93:93) -> 7732.142857 | IC42: =LOOKUP(IC7,Assumptions!91:91,Assumptions!93:93) -> 7732.142857 | ID42: =LOOKUP(ID7,Assumptions!91:91,Assumptions!93:93) -> 7732.142857 | IE42: =LOOKUP(IE7,Assumptions!91:91,Assumptions!93:93) -> 7732.142857 | IF42: =LOOKUP(IF7,Assumptions!91:91,Assumptions!93:93) -> 7732.142857 | IG42: =LOOKUP(IG7,Assumptions!91:91,Assumptions!93:93) -> 7732.142857 | IH42: =LOOKUP(IH7,Assumptions!91:91,Assumptions!93:93) -> 7732.142857 | II42: =LOOKUP(II7,Assumptions!91:91,Assumptions!93:93) -> 7732.142857 | IJ42: =LOOKUP(IJ7,Assumptions!91:91,Assumptions!93:93) -> 7732.142857 | IK42: =LOOKUP(IK7,Assumptions!91:91,Assumptions!93:93) -> 7732.142857 | IL42: =LOOKUP(IL7,Assumptions!91:91,Assumptions!93:93) -> 7732.142857 | IM42: =LOOKUP(IM7,Assumptions!91:91,Assumptions!93:93) -> 7732.142857 | IN42: =LOOKUP(IN7,Assumptions!91:91,Assumptions!93:93) -> 7732.142857 | IO42: =LOOKUP(IO7,Assumptions!91:91,Assumptions!93:93) -> 7732.142857 | IP42: =LOOKUP(IP7,Assumptions!91:91,Assumptions!93:93) -> 7732.142857 | IQ42: =LOOKUP(IQ7,Assumptions!91:91,Assumptions!93:93) -> 7732.142857 | IR42: =LOOKUP(IR7,Assumptions!91:91,Assumptions!93:93) -> 7732.142857 | IS42: =LOOKUP(IS7,Assumptions!91:91,Assumptions!93:93) -> 7732.142857 | IT42: =LOOKUP(IT7,Assumptions!91:91,Assumptions!93:93) -> 7732.142857 | IU42: =LOOKUP(IU7,Assumptions!91:91,Assumptions!93:93) -> 7732.142857 | IV42: =LOOKUP(IV7,Assumptions!91:91,Assumptions!93:93) -> 7732.142857 | IW42: =LOOKUP(IW7,Assumptions!91:91,Assumptions!93:93) -> 7732.142857 | IX42: =LOOKUP(IX7,Assumptions!91:91,Assumptions!93:93) -> 7732.142857 | IY42: =LOOKUP(IY7,Assumptions!91:91,Assumptions!93:93) -> 7732.142857 | IZ42: =LOOKUP(IZ7,Assumptions!91:91,Assumptions!93:93) -> 7732.142857 | JA42: =LOOKUP(JA7,Assumptions!91:91,Assumptions!93:93) -> 7732.142857 | JB42: =LOOKUP(JB7,Assumptions!91:91,Assumptions!93:93) -> 7732.142857 | JC42: =LOOKUP(JC7,Assumptions!91:91,Assumptions!93:93) -> 7732.142857 | JD42: =LOOKUP(JD7,Assumptions!91:91,Assumptions!93:93) -> 7732.142857 | JE42: =LOOKUP(JE7,Assumptions!91:91,Assumptions!93:93) -> 7732.142857 | JF42: =LOOKUP(JF7,Assumptions!91:91,Assumptions!93:93) -> 7732.142857 | JG42: =LOOKUP(JG7,Assumptions!91:91,Assumptions!93:93) -> 7732.142857 | JH42: =LOOKUP(JH7,Assumptions!91:91,Assumptions!93:93) -> 7732.142857 | JI42: =LOOKUP(JI7,Assumptions!91:91,Assumptions!93:93) -> 7732.142857 | JJ42: =LOOKUP(JJ7,Assumptions!91:91,Assumptions!93:93) -> 7732.142857 | JK42: =LOOKUP(JK7,Assumptions!91:91,Assumptions!93:93) -> 7732.142857 | JL42: =LOOKUP(JL7,Assumptions!91:91,Assumptions!93:93) -> 7732.142857 | JM42: =LOOKUP(JM7,Assumptions!91:91,Assumptions!93:93) -> 7732.142857 | JN42: =LOOKUP(JN7,Assumptions!91:91,Assumptions!93:93) -> 7732.142857 | JO42: =LOOKUP(JO7,Assumptions!91:91,Assumptions!93:93) -> 7732.142857 | JP42: =LOOKUP(JP7,Assumptions!91:91,Assumptions!93:93) -> 7732.142857 | JQ42: =LOOKUP(JQ7,Assumptions!91:91,Assumptions!93:93) -> 7732.142857 | JR42: =LOOKUP(JR7,Assumptions!91:91,Assumptions!93:93) -> 7732.142857 | JS42: =LOOKUP(JS7,Assumptions!91:91,Assumptions!93:93) -> 7732.142857 | JT42: =LOOKUP(JT7,Assumptions!91:91,Assumptions!93:93) -> 7732.142857 | JU42: =LOOKUP(JU7,Assumptions!91:91,Assumptions!93:93) -> 7732.142857 | JV42: =LOOKUP(JV7,Assumptions!91:91,Assumptions!93:93) -> 7732.142857 | JW42: =LOOKUP(JW7,Assumptions!91:91,Assumptions!93:93) -> 7732.142857 | JX42: =LOOKUP(JX7,Assumptions!91:91,Assumptions!93:93) -> 7732.142857 | JY42: =LOOKUP(JY7,Assumptions!91:91,Assumptions!93:93) -> 7732.142857 | JZ42: =LOOKUP(JZ7,Assumptions!91:91,Assumptions!93:93) -> 7732.142857 | KA42: =LOOKUP(KA7,Assumptions!91:91,Assumptions!93:93) -> 7732.142857 | KB42: =LOOKUP(KB7,Assumptions!91:91,Assumptions!93:93) -> 7732.142857 | KC42: =LOOKUP(KC7,Assumptions!91:91,Assumptions!93:93) -> 7732.142857 | KD42: =LOOKUP(KD7,Assumptions!91:91,Assumptions!93:93) -> 7732.142857 | KE42: =LOOKUP(KE7,Assumptions!91:91,Assumptions!93:93) -> 7732.142857 | KF42: =LOOKUP(KF7,Assumptions!91:91,Assumptions!93:93) -> 7732.142857 | KG42: =LOOKUP(KG7,Assumptions!91:91,Assumptions!93:93) -> 7732.142857 | KH42: =LOOKUP(KH7,Assumptions!91:91,Assumptions!93:93) -> 7732.142857 | KI42: =LOOKUP(KI7,Assumptions!91:91,Assumptions!93:93) -> 7732.142857 | KJ42: =LOOKUP(KJ7,Assumptions!91:91,Assumptions!93:93) -> 7732.142857 | KK42: =LOOKUP(KK7,Assumptions!91:91,Assumptions!93:93) -> 7732.142857 | KL42: =LOOKUP(KL7,Assumptions!91:91,Assumptions!93:93) -> 7732.142857 | KM42: =LOOKUP(KM7,Assumptions!91:91,Assumptions!93:93) -> 7732.142857 | KN42: =LOOKUP(KN7,Assumptions!91:91,Assumptions!93:93) -> 7732.142857 | KO42: =LOOKUP(KO7,Assumptions!91:91,Assumptions!93:93) -> 7732.142857 | KP42: =LOOKUP(KP7,Assumptions!91:91,Assumptions!93:93) -> 7732.142857 | KQ42: =LOOKUP(KQ7,Assumptions!91:91,Assumptions!93:93) -> 7732.142857 | KR42: =LOOKUP(KR7,Assumptions!91:91,Assumptions!93:93) -> 7732.142857 | KS42: =LOOKUP(KS7,Assumptions!91:91,Assumptions!93:93) -> 7732.142857 | KT42: =LOOKUP(KT7,Assumptions!91:91,Assumptions!93:93) -> 7732.142857 | KU42: =LOOKUP(KU7,Assumptions!91:91,Assumptions!93:93) -> 7732.142857 | KV42: =LOOKUP(KV7,Assumptions!91:91,Assumptions!93:93) -> 7732.142857
B43: Energy for Energy Charge | E43: MMBTU | I43: =I41*I42/1000000 -> 508.47192 | J43: =J41*J42/1000000 -> 475.66728 | K43: 508.47192 | L43: 492.0696 | M43: 508.47192 | N43: 492.0696 | O43: 508.47192 | P43: 508.47192 | Q43: 492.0696 | R43: 508.47192 | S43: 492.0696 | T43: 508.47192 | U43: 508.47192 | V43: 459.26496 | W43: 508.47192 | X43: 492.0696 | Y43: 508.47192 | Z43: 492.0696 | AA43: 508.47192 | AB43: 508.47192 | AC43: 492.0696 | AD43: 655.8094286 | AE43: 634.6542857 | AF43: 655.8094286 | AG43: 655.8094286 | AH43: 592.344 | AI43: 655.8094286 | AJ43: 634.6542857 | AK43: 655.8094286 | AL43: 634.6542857 | AM43: 655.8094286 | AN43: 655.8094286 | AO43: 634.6542857 | AP43: 655.8094286 | AQ43: 634.6542857 | AR43: 655.8094286 | AS43: 655.8094286 | AT43: 592.344 | AU43: 655.8094286 | AV43: 634.6542857 | AW43: 655.8094286 | AX43: 634.6542857 | AY43: 655.8094286 | AZ43: 655.8094286 | BA43: 634.6542857 | BB43: 655.8094286 | BC43: 634.6542857 | BD43: 655.8094286 | BE43: 655.8094286 | BF43: 613.4991429 | BG43: 655.8094286 | BH43: 634.6542857 | BI43: 655.8094286 | BJ43: 634.6542857 | BK43: 655.8094286 | BL43: 655.8094286 | BM43: 634.6542857 | BN43: 655.8094286 | BO43: 634.6542857 | BP43: 655.8094286 | BQ43: 655.8094286 | BR43: 592.344 | BS43: 655.8094286 | BT43: 634.6542857 | BU43: 655.8094286 | BV43: =BV41*BV42/1000000 -> 634.6542857 | BW43: 655.8094286 | BX43: 655.8094286 | BY43: 634.6542857 | BZ43: 655.8094286 | CA43: 634.6542857 | CB43: 655.8094286 | CC43: 655.8094286 | CD43: 592.344 | CE43: 655.8094286 | CF43: 634.6542857 | CG43: 655.8094286 | CH43: 634.6542857 | CI43: 655.8094286 | CJ43: 655.8094286 | CK43: 634.6542857 | CL43: 655.8094286 | CM43: 634.6542857 | CN43: 655.8094286 | CO43: 655.8094286 | CP43: 592.344 | CQ43: 655.8094286 | CR43: 634.6542857 | CS43: 655.8094286 | CT43: 634.6542857 | CU43: 655.8094286 | CV43: 655.8094286 | CW43: 634.6542857 | CX43: 655.8094286 | CY43: 634.6542857 | CZ43: 655.8094286 | DA43: 655.8094286 | DB43: 613.4991429 | DC43: 655.8094286 | DD43: 634.6542857 | DE43: 655.8094286 | DF43: 634.6542857 | DG43: 655.8094286 | DH43: 655.8094286 | DI43: 634.6542857 | DJ43: 655.8094286 | DK43: 634.6542857 | DL43: 655.8094286 | DM43: 655.8094286 | DN43: 592.344 | DO43: 655.8094286 | DP43: 634.6542857 | DQ43: 655.8094286 | DR43: 634.6542857 | DS43: 655.8094286 | DT43: 655.8094286 | DU43: 634.6542857 | DV43: 655.8094286 | DW43: 634.6542857 | DX43: 655.8094286 | DY43: 655.8094286 | DZ43: 592.344 | EA43: 655.8094286 | EB43: 634.6542857 | EC43: 655.8094286 | ED43: 634.6542857 | EE43: 655.8094286 | EF43: 655.8094286 | EG43: 634.6542857 | EH43: =EH41*EH42/1000000 -> 655.8094286 | EI43: 634.6542857 | EJ43: 655.8094286 | EK43: 655.8094286 | EL43: 592.344 | EM43: 655.8094286 | EN43: 634.6542857 | EO43: 655.8094286 | EP43: 634.6542857 | EQ43: 655.8094286 | ER43: 655.8094286 | ES43: 634.6542857 | ET43: 655.8094286 | EU43: 634.6542857 | EV43: 655.8094286 | EW43: 655.8094286 | EX43: 613.4991429 | EY43: 655.8094286 | EZ43: 634.6542857 | FA43: 655.8094286 | FB43: 634.6542857 | FC43: 655.8094286 | FD43: 655.8094286 | FE43: 634.6542857 | FF43: 655.8094286 | FG43: 634.6542857 | FH43: 655.8094286 | FI43: 655.8094286 | FJ43: 592.344 | FK43: 655.8094286 | FL43: 634.6542857 | FM43: 655.8094286 | FN43: 634.6542857 | FO43: 655.8094286 | FP43: 655.8094286 | FQ43: 634.6542857 | FR43: 655.8094286 | FS43: 634.6542857 | FT43: 655.8094286 | FU43: 655.8094286 | FV43: 592.344 | FW43: 655.8094286 | FX43: 634.6542857 | FY43: 655.8094286 | FZ43: 634.6542857 | GA43: 655.8094286 | GB43: 655.8094286 | GC43: 634.6542857 | GD43: 655.8094286 | GE43: 634.6542857 | GF43: 655.8094286 | GG43: 655.8094286 | GH43: 592.344 | GI43: 655.8094286 | GJ43: 634.6542857 | GK43: 655.8094286 | GL43: 634.6542857 | GM43: 655.8094286 | GN43: 655.8094286 | GO43: 634.6542857 | GP43: 655.8094286 | GQ43: 634.6542857 | GR43: 655.8094286 | GS43: 655.8094286 | GT43: =GT41*GT42/1000000 -> 613.4991429 | GU43: 655.8094286 | GV43: 634.6542857 | GW43: 655.8094286 | GX43: 634.6542857 | GY43: 655.8094286 | GZ43: 655.8094286 | HA43: 634.6542857 | HB43: 655.8094286 | HC43: 634.6542857 | HD43: 655.8094286 | HE43: 655.8094286 | HF43: 592.344 | HG43: 655.8094286 | HH43: 634.6542857 | HI43: 655.8094286 | HJ43: 634.6542857 | HK43: 655.8094286 | HL43: 655.8094286 | HM43: 634.6542857 | HN43: 655.8094286 | HO43: 634.6542857 | HP43: 655.8094286 | HQ43: 655.8094286 | HR43: 592.344 | HS43: 655.8094286 | HT43: 634.6542857 | HU43: 655.8094286 | HV43: 634.6542857 | HW43: 655.8094286 | HX43: 655.8094286 | HY43: 634.6542857 | HZ43: 655.8094286 | IA43: 634.6542857 | IB43: 655.8094286 | IC43: 655.8094286 | ID43: 592.344 | IE43: 655.8094286 | IF43: 634.6542857 | IG43: 655.8094286 | IH43: 634.6542857 | II43: 655.8094286 | IJ43: 655.8094286 | IK43: 634.6542857 | IL43: 655.8094286 | IM43: 634.6542857 | IN43: 655.8094286 | IO43: 655.8094286 | IP43: 613.4991429 | IQ43: 655.8094286 | IR43: 634.6542857 | IS43: 655.8094286 | IT43: 634.6542857 | IU43: 655.8094286 | IV43: 655.8094286 | IW43: 634.6542857 | IX43: 655.8094286 | IY43: 634.6542857 | IZ43: 655.8094286 | JA43: 655.8094286 | JB43: 592.344 | JC43: 655.8094286 | JD43: 634.6542857 | JE43: 655.8094286 | JF43: =JF41*JF42/1000000 -> 634.6542857 | JG43: 655.8094286 | JH43: 655.8094286 | JI43: 634.6542857 | JJ43: 655.8094286 | JK43: 634.6542857 | JL43: 655.8094286 | JM43: 655.8094286 | JN43: 592.344 | JO43: 655.8094286 | JP43: 634.6542857 | JQ43: 655.8094286 | JR43: 634.6542857 | JS43: 655.8094286 | JT43: 655.8094286 | JU43: 634.6542857 | JV43: 655.8094286 | JW43: 634.6542857 | JX43: 655.8094286 | JY43: 655.8094286 | JZ43: 592.344 | KA43: 655.8094286 | KB43: 634.6542857 | KC43: 655.8094286 | KD43: 634.6542857 | KE43: 655.8094286 | KF43: 655.8094286 | KG43: 634.6542857 | KH43: 655.8094286 | KI43: 634.6542857 | KJ43: 655.8094286 | KK43: 655.8094286 | KL43: 613.4991429 | KM43: 655.8094286 | KN43: 634.6542857 | KO43: 655.8094286 | KP43: 634.6542857 | KQ43: 655.8094286 | KR43: 655.8094286 | KS43: 634.6542857 | KT43: 655.8094286 | KU43: 634.6542857 | KV43: 655.8094286
B44: Actual Energy | E44: MMBTU | I44: =I26 -> 559.319112 | J44: =J26 -> 523.234008 | K44: 559.319112 | L44: 541.27656 | M44: 559.319112 | N44: 541.27656 | O44: 559.319112 | P44: 559.319112 | Q44: 541.27656 | R44: 559.319112 | S44: 541.27656 | T44: 559.319112 | U44: 559.319112 | V44: 505.191456 | W44: 559.319112 | X44: 541.27656 | Y44: 559.319112 | Z44: 541.27656 | AA44: 559.319112 | AB44: 559.319112 | AC44: 541.27656 | AD44: 721.3903714 | AE44: 698.1197143 | AF44: 721.3903714 | AG44: 721.3903714 | AH44: 651.5784 | AI44: 721.3903714 | AJ44: 698.1197143 | AK44: 721.3903714 | AL44: 698.1197143 | AM44: 721.3903714 | AN44: 721.3903714 | AO44: 698.1197143 | AP44: 721.3903714 | AQ44: 698.1197143 | AR44: 721.3903714 | AS44: 721.3903714 | AT44: 651.5784 | AU44: 721.3903714 | AV44: 698.1197143 | AW44: 721.3903714 | AX44: 698.1197143 | AY44: 721.3903714 | AZ44: 721.3903714 | BA44: 698.1197143 | BB44: 721.3903714 | BC44: 698.1197143 | BD44: 721.3903714 | BE44: 721.3903714 | BF44: 674.8490571 | BG44: 721.3903714 | BH44: 698.1197143 | BI44: 721.3903714 | BJ44: 698.1197143 | BK44: 721.3903714 | BL44: 721.3903714 | BM44: 698.1197143 | BN44: 721.3903714 | BO44: 698.1197143 | BP44: 721.3903714 | BQ44: 721.3903714 | BR44: 651.5784 | BS44: 721.3903714 | BT44: 698.1197143 | BU44: 721.3903714 | BV44: =BV26 -> 698.1197143 | BW44: 721.3903714 | BX44: 721.3903714 | BY44: 698.1197143 | BZ44: 721.3903714 | CA44: 698.1197143 | CB44: 721.3903714 | CC44: 721.3903714 | CD44: 651.5784 | CE44: 721.3903714 | CF44: 698.1197143 | CG44: 721.3903714 | CH44: 698.1197143 | CI44: 721.3903714 | CJ44: 721.3903714 | CK44: 698.1197143 | CL44: 721.3903714 | CM44: 698.1197143 | CN44: 721.3903714 | CO44: 721.3903714 | CP44: 651.5784 | CQ44: 721.3903714 | CR44: 698.1197143 | CS44: 721.3903714 | CT44: 698.1197143 | CU44: 721.3903714 | CV44: 721.3903714 | CW44: 698.1197143 | CX44: 721.3903714 | CY44: 698.1197143 | CZ44: 721.3903714 | DA44: 721.3903714 | DB44: 674.8490571 | DC44: 721.3903714 | DD44: 698.1197143 | DE44: 721.3903714 | DF44: 698.1197143 | DG44: 721.3903714 | DH44: 721.3903714 | DI44: 698.1197143 | DJ44: 721.3903714 | DK44: 698.1197143 | DL44: 721.3903714 | DM44: 721.3903714 | DN44: 651.5784 | DO44: 721.3903714 | DP44: 698.1197143 | DQ44: 721.3903714 | DR44: 698.1197143 | DS44: 721.3903714 | DT44: 721.3903714 | DU44: 698.1197143 | DV44: 721.3903714 | DW44: 698.1197143 | DX44: 721.3903714 | DY44: 721.3903714 | DZ44: 651.5784 | EA44: 721.3903714 | EB44: 698.1197143 | EC44: 721.3903714 | ED44: 698.1197143 | EE44: 721.3903714 | EF44: 721.3903714 | EG44: 698.1197143 | EH44: =EH26 -> 721.3903714 | EI44: 698.1197143 | EJ44: 721.3903714 | EK44: 721.3903714 | EL44: 651.5784 | EM44: 721.3903714 | EN44: 698.1197143 | EO44: 721.3903714 | EP44: 698.1197143 | EQ44: 721.3903714 | ER44: 721.3903714 | ES44: 698.1197143 | ET44: 721.3903714 | EU44: 698.1197143 | EV44: 721.3903714 | EW44: 721.3903714 | EX44: 674.8490571 | EY44: 721.3903714 | EZ44: 698.1197143 | FA44: 721.3903714 | FB44: 698.1197143 | FC44: 721.3903714 | FD44: 721.3903714 | FE44: 698.1197143 | FF44: 721.3903714 | FG44: 698.1197143 | FH44: 721.3903714 | FI44: 721.3903714 | FJ44: 651.5784 | FK44: 721.3903714 | FL44: 698.1197143 | FM44: 721.3903714 | FN44: 698.1197143 | FO44: 721.3903714 | FP44: 721.3903714 | FQ44: 698.1197143 | FR44: 721.3903714 | FS44: 698.1197143 | FT44: 721.3903714 | FU44: 721.3903714 | FV44: 651.5784 | FW44: 721.3903714 | FX44: 698.1197143 | FY44: 721.3903714 | FZ44: 698.1197143 | GA44: 721.3903714 | GB44: 721.3903714 | GC44: 698.1197143 | GD44: 721.3903714 | GE44: 698.1197143 | GF44: 721.3903714 | GG44: 721.3903714 | GH44: 651.5784 | GI44: 721.3903714 | GJ44: 698.1197143 | GK44: 721.3903714 | GL44: 698.1197143 | GM44: 721.3903714 | GN44: 721.3903714 | GO44: 698.1197143 | GP44: 721.3903714 | GQ44: 698.1197143 | GR44: 721.3903714 | GS44: 721.3903714 | GT44: =GT26 -> 674.8490571 | GU44: 721.3903714 | GV44: 698.1197143 | GW44: 721.3903714 | GX44: 698.1197143 | GY44: 721.3903714 | GZ44: 721.3903714 | HA44: 698.1197143 | HB44: 721.3903714 | HC44: 698.1197143 | HD44: 721.3903714 | HE44: 721.3903714 | HF44: 651.5784 | HG44: 721.3903714 | HH44: 698.1197143 | HI44: 721.3903714 | HJ44: 698.1197143 | HK44: 721.3903714 | HL44: 721.3903714 | HM44: 698.1197143 | HN44: 721.3903714 | HO44: 698.1197143 | HP44: 721.3903714 | HQ44: 721.3903714 | HR44: 651.5784 | HS44: 721.3903714 | HT44: 698.1197143 | HU44: 721.3903714 | HV44: 698.1197143 | HW44: 721.3903714 | HX44: 721.3903714 | HY44: 698.1197143 | HZ44: 721.3903714 | IA44: 698.1197143 | IB44: 721.3903714 | IC44: 721.3903714 | ID44: 651.5784 | IE44: 721.3903714 | IF44: 698.1197143 | IG44: 721.3903714 | IH44: 698.1197143 | II44: 721.3903714 | IJ44: 721.3903714 | IK44: 698.1197143 | IL44: 721.3903714 | IM44: 698.1197143 | IN44: 721.3903714 | IO44: 721.3903714 | IP44: 674.8490571 | IQ44: 721.3903714 | IR44: 698.1197143 | IS44: 721.3903714 | IT44: 698.1197143 | IU44: 721.3903714 | IV44: 721.3903714 | IW44: 698.1197143 | IX44: 721.3903714 | IY44: 698.1197143 | IZ44: 721.3903714 | JA44: 721.3903714 | JB44: 651.5784 | JC44: 721.3903714 | JD44: 698.1197143 | JE44: 721.3903714 | JF44: =JF26 -> 698.1197143 | JG44: 721.3903714 | JH44: 721.3903714 | JI44: 698.1197143 | JJ44: 721.3903714 | JK44: 698.1197143 | JL44: 721.3903714 | JM44: 721.3903714 | JN44: 651.5784 | JO44: 721.3903714 | JP44: 698.1197143 | JQ44: 721.3903714 | JR44: 698.1197143 | JS44: 721.3903714 | JT44: 721.3903714 | JU44: 698.1197143 | JV44: 721.3903714 | JW44: 698.1197143 | JX44: 721.3903714 | JY44: 721.3903714 | JZ44: 651.5784 | KA44: 721.3903714 | KB44: 698.1197143 | KC44: 721.3903714 | KD44: 698.1197143 | KE44: 721.3903714 | KF44: 721.3903714 | KG44: 698.1197143 | KH44: 721.3903714 | KI44: 698.1197143 | KJ44: 721.3903714 | KK44: 721.3903714 | KL44: 674.8490571 | KM44: 721.3903714 | KN44: 698.1197143 | KO44: 721.3903714 | KP44: 698.1197143 | KQ44: 721.3903714 | KR44: 721.3903714 | KS44: 698.1197143 | KT44: 721.3903714 | KU44: 698.1197143 | KV44: 721.3903714
B46: Actual - Target Energy | E46: MMBTU | I46: =I43-I44 -> -50.847192 | J46: =J43-J44 -> -47.566728 | K46: -50.847192 | L46: -49.20696 | M46: -50.847192 | N46: -49.20696 | O46: -50.847192 | P46: -50.847192 | Q46: -49.20696 | R46: -50.847192 | S46: -49.20696 | T46: -50.847192 | U46: -50.847192 | V46: -45.926496 | W46: -50.847192 | X46: -49.20696 | Y46: -50.847192 | Z46: -49.20696 | AA46: -50.847192 | AB46: -50.847192 | AC46: -49.20696 | AD46: -65.58094286 | AE46: -63.46542857 | AF46: -65.58094286 | AG46: -65.58094286 | AH46: -59.2344 | AI46: -65.58094286 | AJ46: -63.46542857 | AK46: -65.58094286 | AL46: -63.46542857 | AM46: -65.58094286 | AN46: -65.58094286 | AO46: -63.46542857 | AP46: -65.58094286 | AQ46: -63.46542857 | AR46: -65.58094286 | AS46: -65.58094286 | AT46: -59.2344 | AU46: -65.58094286 | AV46: -63.46542857 | AW46: -65.58094286 | AX46: -63.46542857 | AY46: -65.58094286 | AZ46: -65.58094286 | BA46: -63.46542857 | BB46: -65.58094286 | BC46: -63.46542857 | BD46: -65.58094286 | BE46: -65.58094286 | BF46: -61.34991429 | BG46: -65.58094286 | BH46: -63.46542857 | BI46: -65.58094286 | BJ46: -63.46542857 | BK46: -65.58094286 | BL46: -65.58094286 | BM46: -63.46542857 | BN46: -65.58094286 | BO46: -63.46542857 | BP46: -65.58094286 | BQ46: -65.58094286 | BR46: -59.2344 | BS46: -65.58094286 | BT46: -63.46542857 | BU46: -65.58094286 | BV46: =BV43-BV44 -> -63.46542857 | BW46: -65.58094286 | BX46: -65.58094286 | BY46: -63.46542857 | BZ46: -65.58094286 | CA46: -63.46542857 | CB46: -65.58094286 | CC46: -65.58094286 | CD46: -59.2344 | CE46: -65.58094286 | CF46: -63.46542857 | CG46: -65.58094286 | CH46: -63.46542857 | CI46: -65.58094286 | CJ46: -65.58094286 | CK46: -63.46542857 | CL46: -65.58094286 | CM46: -63.46542857 | CN46: -65.58094286 | CO46: -65.58094286 | CP46: -59.2344 | CQ46: -65.58094286 | CR46: -63.46542857 | CS46: -65.58094286 | CT46: -63.46542857 | CU46: -65.58094286 | CV46: -65.58094286 | CW46: -63.46542857 | CX46: -65.58094286 | CY46: -63.46542857 | CZ46: -65.58094286 | DA46: -65.58094286 | DB46: -61.34991429 | DC46: -65.58094286 | DD46: -63.46542857 | DE46: -65.58094286 | DF46: -63.46542857 | DG46: -65.58094286 | DH46: -65.58094286 | DI46: -63.46542857 | DJ46: -65.58094286 | DK46: -63.46542857 | DL46: -65.58094286 | DM46: -65.58094286 | DN46: -59.2344 | DO46: -65.58094286 | DP46: -63.46542857 | DQ46: -65.58094286 | DR46: -63.46542857 | DS46: -65.58094286 | DT46: -65.58094286 | DU46: -63.46542857 | DV46: -65.58094286 | DW46: -63.46542857 | DX46: -65.58094286 | DY46: -65.58094286 | DZ46: -59.2344 | EA46: -65.58094286 | EB46: -63.46542857 | EC46: -65.58094286 | ED46: -63.46542857 | EE46: -65.58094286 | EF46: -65.58094286 | EG46: -63.46542857 | EH46: =EH43-EH44 -> -65.58094286 | EI46: -63.46542857 | EJ46: -65.58094286 | EK46: -65.58094286 | EL46: -59.2344 | EM46: -65.58094286 | EN46: -63.46542857 | EO46: -65.58094286 | EP46: -63.46542857 | EQ46: -65.58094286 | ER46: -65.58094286 | ES46: -63.46542857 | ET46: -65.58094286 | EU46: -63.46542857 | EV46: -65.58094286 | EW46: -65.58094286 | EX46: -61.34991429 | EY46: -65.58094286 | EZ46: -63.46542857 | FA46: -65.58094286 | FB46: -63.46542857 | FC46: -65.58094286 | FD46: -65.58094286 | FE46: -63.46542857 | FF46: -65.58094286 | FG46: -63.46542857 | FH46: -65.58094286 | FI46: -65.58094286 | FJ46: -59.2344 | FK46: -65.58094286 | FL46: -63.46542857 | FM46: -65.58094286 | FN46: -63.46542857 | FO46: -65.58094286 | FP46: -65.58094286 | FQ46: -63.46542857 | FR46: -65.58094286 | FS46: -63.46542857 | FT46: -65.58094286 | FU46: -65.58094286 | FV46: -59.2344 | FW46: -65.58094286 | FX46: -63.46542857 | FY46: -65.58094286 | FZ46: -63.46542857 | GA46: -65.58094286 | GB46: -65.58094286 | GC46: -63.46542857 | GD46: -65.58094286 | GE46: -63.46542857 | GF46: -65.58094286 | GG46: -65.58094286 | GH46: -59.2344 | GI46: -65.58094286 | GJ46: -63.46542857 | GK46: -65.58094286 | GL46: -63.46542857 | GM46: -65.58094286 | GN46: -65.58094286 | GO46: -63.46542857 | GP46: -65.58094286 | GQ46: -63.46542857 | GR46: -65.58094286 | GS46: -65.58094286 | GT46: =GT43-GT44 -> -61.34991429 | GU46: -65.58094286 | GV46: -63.46542857 | GW46: -65.58094286 | GX46: -63.46542857 | GY46: -65.58094286 | GZ46: -65.58094286 | HA46: -63.46542857 | HB46: -65.58094286 | HC46: -63.46542857 | HD46: -65.58094286 | HE46: -65.58094286 | HF46: -59.2344 | HG46: -65.58094286 | HH46: -63.46542857 | HI46: -65.58094286 | HJ46: -63.46542857 | HK46: -65.58094286 | HL46: -65.58094286 | HM46: -63.46542857 | HN46: -65.58094286 | HO46: -63.46542857 | HP46: -65.58094286 | HQ46: -65.58094286 | HR46: -59.2344 | HS46: -65.58094286 | HT46: -63.46542857 | HU46: -65.58094286 | HV46: -63.46542857 | HW46: -65.58094286 | HX46: -65.58094286 | HY46: -63.46542857 | HZ46: -65.58094286 | IA46: -63.46542857 | IB46: -65.58094286 | IC46: -65.58094286 | ID46: -59.2344 | IE46: -65.58094286 | IF46: -63.46542857 | IG46: -65.58094286 | IH46: -63.46542857 | II46: -65.58094286 | IJ46: -65.58094286 | IK46: -63.46542857 | IL46: -65.58094286 | IM46: -63.46542857 | IN46: -65.58094286 | IO46: -65.58094286 | IP46: -61.34991429 | IQ46: -65.58094286 | IR46: -63.46542857 | IS46: -65.58094286 | IT46: -63.46542857 | IU46: -65.58094286 | IV46: -65.58094286 | IW46: -63.46542857 | IX46: -65.58094286 | IY46: -63.46542857 | IZ46: -65.58094286 | JA46: -65.58094286 | JB46: -59.2344 | JC46: -65.58094286 | JD46: -63.46542857 | JE46: -65.58094286 | JF46: =JF43-JF44 -> -63.46542857 | JG46: -65.58094286 | JH46: -65.58094286 | JI46: -63.46542857 | JJ46: -65.58094286 | JK46: -63.46542857 | JL46: -65.58094286 | JM46: -65.58094286 | JN46: -59.2344 | JO46: -65.58094286 | JP46: -63.46542857 | JQ46: -65.58094286 | JR46: -63.46542857 | JS46: -65.58094286 | JT46: -65.58094286 | JU46: -63.46542857 | JV46: -65.58094286 | JW46: -63.46542857 | JX46: -65.58094286 | JY46: -65.58094286 | JZ46: -59.2344 | KA46: -65.58094286 | KB46: -63.46542857 | KC46: -65.58094286 | KD46: -63.46542857 | KE46: -65.58094286 | KF46: -65.58094286 | KG46: -63.46542857 | KH46: -65.58094286 | KI46: -63.46542857 | KJ46: -65.58094286 | KK46: -65.58094286 | KL46: -61.34991429 | KM46: -65.58094286 | KN46: -63.46542857 | KO46: -65.58094286 | KP46: -63.46542857 | KQ46: -65.58094286 | KR46: -65.58094286 | KS46: -63.46542857 | KT46: -65.58094286 | KU46: -63.46542857 | KV46: -65.58094286
B47: Penalty Energy | E47: MMBTU | I47: =MAX(-I46,0) -> 50.847192 | J47: =MAX(-J46,0) -> 47.566728 | K47: 50.847192 | L47: 49.20696 | M47: 50.847192 | N47: 49.20696 | O47: 50.847192 | P47: 50.847192 | Q47: 49.20696 | R47: 50.847192 | S47: 49.20696 | T47: 50.847192 | U47: 50.847192 | V47: 45.926496 | W47: 50.847192 | X47: 49.20696 | Y47: 50.847192 | Z47: 49.20696 | AA47: 50.847192 | AB47: 50.847192 | AC47: 49.20696 | AD47: 65.58094286 | AE47: 63.46542857 | AF47: 65.58094286 | AG47: 65.58094286 | AH47: 59.2344 | AI47: 65.58094286 | AJ47: 63.46542857 | AK47: 65.58094286 | AL47: 63.46542857 | AM47: 65.58094286 | AN47: 65.58094286 | AO47: 63.46542857 | AP47: 65.58094286 | AQ47: 63.46542857 | AR47: 65.58094286 | AS47: 65.58094286 | AT47: 59.2344 | AU47: 65.58094286 | AV47: 63.46542857 | AW47: 65.58094286 | AX47: 63.46542857 | AY47: 65.58094286 | AZ47: 65.58094286 | BA47: 63.46542857 | BB47: 65.58094286 | BC47: 63.46542857 | BD47: 65.58094286 | BE47: 65.58094286 | BF47: 61.34991429 | BG47: 65.58094286 | BH47: 63.46542857 | BI47: 65.58094286 | BJ47: 63.46542857 | BK47: 65.58094286 | BL47: 65.58094286 | BM47: 63.46542857 | BN47: 65.58094286 | BO47: 63.46542857 | BP47: 65.58094286 | BQ47: 65.58094286 | BR47: 59.2344 | BS47: 65.58094286 | BT47: 63.46542857 | BU47: 65.58094286 | BV47: =MAX(-BV46,0) -> 63.46542857 | BW47: 65.58094286 | BX47: 65.58094286 | BY47: 63.46542857 | BZ47: 65.58094286 | CA47: 63.46542857 | CB47: 65.58094286 | CC47: 65.58094286 | CD47: 59.2344 | CE47: 65.58094286 | CF47: 63.46542857 | CG47: 65.58094286 | CH47: 63.46542857 | CI47: 65.58094286 | CJ47: 65.58094286 | CK47: 63.46542857 | CL47: 65.58094286 | CM47: 63.46542857 | CN47: 65.58094286 | CO47: 65.58094286 | CP47: 59.2344 | CQ47: 65.58094286 | CR47: 63.46542857 | CS47: 65.58094286 | CT47: 63.46542857 | CU47: 65.58094286 | CV47: 65.58094286 | CW47: 63.46542857 | CX47: 65.58094286 | CY47: 63.46542857 | CZ47: 65.58094286 | DA47: 65.58094286 | DB47: 61.34991429 | DC47: 65.58094286 | DD47: 63.46542857 | DE47: 65.58094286 | DF47: 63.46542857 | DG47: 65.58094286 | DH47: 65.58094286 | DI47: 63.46542857 | DJ47: 65.58094286 | DK47: 63.46542857 | DL47: 65.58094286 | DM47: 65.58094286 | DN47: 59.2344 | DO47: 65.58094286 | DP47: 63.46542857 | DQ47: 65.58094286 | DR47: 63.46542857 | DS47: 65.58094286 | DT47: 65.58094286 | DU47: 63.46542857 | DV47: 65.58094286 | DW47: 63.46542857 | DX47: 65.58094286 | DY47: 65.58094286 | DZ47: 59.2344 | EA47: 65.58094286 | EB47: 63.46542857 | EC47: 65.58094286 | ED47: 63.46542857 | EE47: 65.58094286 | EF47: 65.58094286 | EG47: 63.46542857 | EH47: =MAX(-EH46,0) -> 65.58094286 | EI47: 63.46542857 | EJ47: 65.58094286 | EK47: 65.58094286 | EL47: 59.2344 | EM47: 65.58094286 | EN47: 63.46542857 | EO47: 65.58094286 | EP47: 63.46542857 | EQ47: 65.58094286 | ER47: 65.58094286 | ES47: 63.46542857 | ET47: 65.58094286 | EU47: 63.46542857 | EV47: 65.58094286 | EW47: 65.58094286 | EX47: 61.34991429 | EY47: 65.58094286 | EZ47: 63.46542857 | FA47: 65.58094286 | FB47: 63.46542857 | FC47: 65.58094286 | FD47: 65.58094286 | FE47: 63.46542857 | FF47: 65.58094286 | FG47: 63.46542857 | FH47: 65.58094286 | FI47: 65.58094286 | FJ47: 59.2344 | FK47: 65.58094286 | FL47: 63.46542857 | FM47: 65.58094286 | FN47: 63.46542857 | FO47: 65.58094286 | FP47: 65.58094286 | FQ47: 63.46542857 | FR47: 65.58094286 | FS47: 63.46542857 | FT47: 65.58094286 | FU47: 65.58094286 | FV47: 59.2344 | FW47: 65.58094286 | FX47: 63.46542857 | FY47: 65.58094286 | FZ47: 63.46542857 | GA47: 65.58094286 | GB47: 65.58094286 | GC47: 63.46542857 | GD47: 65.58094286 | GE47: 63.46542857 | GF47: 65.58094286 | GG47: 65.58094286 | GH47: 59.2344 | GI47: 65.58094286 | GJ47: 63.46542857 | GK47: 65.58094286 | GL47: 63.46542857 | GM47: 65.58094286 | GN47: 65.58094286 | GO47: 63.46542857 | GP47: 65.58094286 | GQ47: 63.46542857 | GR47: 65.58094286 | GS47: 65.58094286 | GT47: =MAX(-GT46,0) -> 61.34991429 | GU47: 65.58094286 | GV47: 63.46542857 | GW47: 65.58094286 | GX47: 63.46542857 | GY47: 65.58094286 | GZ47: 65.58094286 | HA47: 63.46542857 | HB47: 65.58094286 | HC47: 63.46542857 | HD47: 65.58094286 | HE47: 65.58094286 | HF47: 59.2344 | HG47: 65.58094286 | HH47: 63.46542857 | HI47: 65.58094286 | HJ47: 63.46542857 | HK47: 65.58094286 | HL47: 65.58094286 | HM47: 63.46542857 | HN47: 65.58094286 | HO47: 63.46542857 | HP47: 65.58094286 | HQ47: 65.58094286 | HR47: 59.2344 | HS47: 65.58094286 | HT47: 63.46542857 | HU47: 65.58094286 | HV47: 63.46542857 | HW47: 65.58094286 | HX47: 65.58094286 | HY47: 63.46542857 | HZ47: 65.58094286 | IA47: 63.46542857 | IB47: 65.58094286 | IC47: 65.58094286 | ID47: 59.2344 | IE47: 65.58094286 | IF47: 63.46542857 | IG47: 65.58094286 | IH47: 63.46542857 | II47: 65.58094286 | IJ47: 65.58094286 | IK47: 63.46542857 | IL47: 65.58094286 | IM47: 63.46542857 | IN47: 65.58094286 | IO47: 65.58094286 | IP47: 61.34991429 | IQ47: 65.58094286 | IR47: 63.46542857 | IS47: 65.58094286 | IT47: 63.46542857 | IU47: 65.58094286 | IV47: 65.58094286 | IW47: 63.46542857 | IX47: 65.58094286 | IY47: 63.46542857 | IZ47: 65.58094286 | JA47: 65.58094286 | JB47: 59.2344 | JC47: 65.58094286 | JD47: 63.46542857 | JE47: 65.58094286 | JF47: =MAX(-JF46,0) -> 63.46542857 | JG47: 65.58094286 | JH47: 65.58094286 | JI47: 63.46542857 | JJ47: 65.58094286 | JK47: 63.46542857 | JL47: 65.58094286 | JM47: 65.58094286 | JN47: 59.2344 | JO47: 65.58094286 | JP47: 63.46542857 | JQ47: 65.58094286 | JR47: 63.46542857 | JS47: 65.58094286 | JT47: 65.58094286 | JU47: 63.46542857 | JV47: 65.58094286 | JW47: 63.46542857 | JX47: 65.58094286 | JY47: 65.58094286 | JZ47: 59.2344 | KA47: 65.58094286 | KB47: 63.46542857 | KC47: 65.58094286 | KD47: 63.46542857 | KE47: 65.58094286 | KF47: 65.58094286 | KG47: 63.46542857 | KH47: 65.58094286 | KI47: 63.46542857 | KJ47: 65.58094286 | KK47: 65.58094286 | KL47: 61.34991429 | KM47: 65.58094286 | KN47: 63.46542857 | KO47: 65.58094286 | KP47: 63.46542857 | KQ47: 65.58094286 | KR47: 65.58094286 | KS47: 63.46542857 | KT47: 65.58094286 | KU47: 63.46542857 | KV47: 65.58094286
B48: Bonus Energy | E48: MMBTU | I48: =MAX(I46,0) -> 0 | J48: =MAX(J46,0) -> 0 | K48: 0 | L48: 0 | M48: 0 | N48: 0 | O48: 0 | P48: 0 | Q48: 0 | R48: 0 | S48: 0 | T48: 0 | U48: 0 | V48: 0 | W48: 0 | X48: 0 | Y48: 0 | Z48: 0 | AA48: 0 | AB48: 0 | AC48: 0 | AD48: 0 | AE48: 0 | AF48: 0 | AG48: 0 | AH48: 0 | AI48: 0 | AJ48: 0 | AK48: 0 | AL48: 0 | AM48: 0 | AN48: 0 | AO48: 0 | AP48: 0 | AQ48: 0 | AR48: 0 | AS48: 0 | AT48: 0 | AU48: 0 | AV48: 0 | AW48: 0 | AX48: 0 | AY48: 0 | AZ48: 0 | BA48: 0 | BB48: 0 | BC48: 0 | BD48: 0 | BE48: 0 | BF48: 0 | BG48: 0 | BH48: 0 | BI48: 0 | BJ48: 0 | BK48: 0 | BL48: 0 | BM48: 0 | BN48: 0 | BO48: 0 | BP48: 0 | BQ48: 0 | BR48: 0 | BS48: 0 | BT48: 0 | BU48: 0 | BV48: =MAX(BV46,0) -> 0 | BW48: 0 | BX48: 0 | BY48: 0 | BZ48: 0 | CA48: 0 | CB48: 0 | CC48: 0 | CD48: 0 | CE48: 0 | CF48: 0 | CG48: 0 | CH48: 0 | CI48: 0 | CJ48: 0 | CK48: 0 | CL48: 0 | CM48: 0 | CN48: 0 | CO48: 0 | CP48: 0 | CQ48: 0 | CR48: 0 | CS48: 0 | CT48: 0 | CU48: 0 | CV48: 0 | CW48: 0 | CX48: 0 | CY48: 0 | CZ48: 0 | DA48: 0 | DB48: 0 | DC48: 0 | DD48: 0 | DE48: 0 | DF48: 0 | DG48: 0 | DH48: 0 | DI48: 0 | DJ48: 0 | DK48: 0 | DL48: 0 | DM48: 0 | DN48: 0 | DO48: 0 | DP48: 0 | DQ48: 0 | DR48: 0 | DS48: 0 | DT48: 0 | DU48: 0 | DV48: 0 | DW48: 0 | DX48: 0 | DY48: 0 | DZ48: 0 | EA48: 0 | EB48: 0 | EC48: 0 | ED48: 0 | EE48: 0 | EF48: 0 | EG48: 0 | EH48: =MAX(EH46,0) -> 0 | EI48: 0 | EJ48: 0 | EK48: 0 | EL48: 0 | EM48: 0 | EN48: 0 | EO48: 0 | EP48: 0 | EQ48: 0 | ER48: 0 | ES48: 0 | ET48: 0 | EU48: 0 | EV48: 0 | EW48: 0 | EX48: 0 | EY48: 0 | EZ48: 0 | FA48: 0 | FB48: 0 | FC48: 0 | FD48: 0 | FE48: 0 | FF48: 0 | FG48: 0 | FH48: 0 | FI48: 0 | FJ48: 0 | FK48: 0 | FL48: 0 | FM48: 0 | FN48: 0 | FO48: 0 | FP48: 0 | FQ48: 0 | FR48: 0 | FS48: 0 | FT48: 0 | FU48: 0 | FV48: 0 | FW48: 0 | FX48: 0 | FY48: 0 | FZ48: 0 | GA48: 0 | GB48: 0 | GC48: 0 | GD48: 0 | GE48: 0 | GF48: 0 | GG48: 0 | GH48: 0 | GI48: 0 | GJ48: 0 | GK48: 0 | GL48: 0 | GM48: 0 | GN48: 0 | GO48: 0 | GP48: 0 | GQ48: 0 | GR48: 0 | GS48: 0 | GT48: =MAX(GT46,0) -> 0 | GU48: 0 | GV48: 0 | GW48: 0 | GX48: 0 | GY48: 0 | GZ48: 0 | HA48: 0 | HB48: 0 | HC48: 0 | HD48: 0 | HE48: 0 | HF48: 0 | HG48: 0 | HH48: 0 | HI48: 0 | HJ48: 0 | HK48: 0 | HL48: 0 | HM48: 0 | HN48: 0 | HO48: 0 | HP48: 0 | HQ48: 0 | HR48: 0 | HS48: 0 | HT48: 0 | HU48: 0 | HV48: 0 | HW48: 0 | HX48: 0 | HY48: 0 | HZ48: 0 | IA48: 0 | IB48: 0 | IC48: 0 | ID48: 0 | IE48: 0 | IF48: 0 | IG48: 0 | IH48: 0 | II48: 0 | IJ48: 0 | IK48: 0 | IL48: 0 | IM48: 0 | IN48: 0 | IO48: 0 | IP48: 0 | IQ48: 0 | IR48: 0 | IS48: 0 | IT48: 0 | IU48: 0 | IV48: 0 | IW48: 0 | IX48: 0 | IY48: 0 | IZ48: 0 | JA48: 0 | JB48: 0 | JC48: 0 | JD48: 0 | JE48: 0 | JF48: =MAX(JF46,0) -> 0 | JG48: 0 | JH48: 0 | JI48: 0 | JJ48: 0 | JK48: 0 | JL48: 0 | JM48: 0 | JN48: 0 | JO48: 0 | JP48: 0 | JQ48: 0 | JR48: 0 | JS48: 0 | JT48: 0 | JU48: 0 | JV48: 0 | JW48: 0 | JX48: 0 | JY48: 0 | JZ48: 0 | KA48: 0 | KB48: 0 | KC48: 0 | KD48: 0 | KE48: 0 | KF48: 0 | KG48: 0 | KH48: 0 | KI48: 0 | KJ48: 0 | KK48: 0 | KL48: 0 | KM48: 0 | KN48: 0 | KO48: 0 | KP48: 0 | KQ48: 0 | KR48: 0 | KS48: 0 | KT48: 0 | KU48: 0 | KV48: 0
A50: Gas Supply and O&M Contract Quantities
B51: Gas Supply Contract | E51: Switch | F51: =F7 -> 2016-01-01 | G51: =Assumptions!F151 -> 2028-01-01 | I51: =AND(I$7>=$F51,I$7<$G51) -> TRUE | J51: =AND(J$7>=$F51,J$7<$G51) -> TRUE | K51: TRUE | L51: TRUE | M51: TRUE | N51: TRUE | O51: TRUE | P51: TRUE | Q51: TRUE | R51: TRUE | S51: TRUE | T51: TRUE | U51: TRUE | V51: TRUE | W51: TRUE | X51: TRUE | Y51: TRUE | Z51: TRUE | AA51: TRUE | AB51: TRUE | AC51: TRUE | AD51: TRUE | AE51: TRUE | AF51: TRUE | AG51: TRUE | AH51: TRUE | AI51: TRUE | AJ51: TRUE | AK51: TRUE | AL51: TRUE | AM51: TRUE | AN51: TRUE | AO51: TRUE | AP51: TRUE | AQ51: TRUE | AR51: TRUE | AS51: TRUE | AT51: TRUE | AU51: TRUE | AV51: TRUE | AW51: TRUE | AX51: TRUE | AY51: TRUE | AZ51: TRUE | BA51: TRUE | BB51: TRUE | BC51: TRUE | BD51: TRUE | BE51: TRUE | BF51: TRUE | BG51: TRUE | BH51: TRUE | BI51: TRUE | BJ51: TRUE | BK51: TRUE | BL51: TRUE | BM51: TRUE | BN51: TRUE | BO51: TRUE | BP51: TRUE | BQ51: TRUE | BR51: TRUE | BS51: TRUE | BT51: TRUE | BU51: TRUE | BV51: =AND(BV$7>=$F51,BV$7<$G51) -> TRUE | BW51: TRUE | BX51: TRUE | BY51: TRUE | BZ51: TRUE | CA51: TRUE | CB51: TRUE | CC51: TRUE | CD51: TRUE | CE51: TRUE | CF51: TRUE | CG51: TRUE | CH51: TRUE | CI51: TRUE | CJ51: TRUE | CK51: TRUE | CL51: TRUE | CM51: TRUE | CN51: TRUE | CO51: TRUE | CP51: TRUE | CQ51: TRUE | CR51: TRUE | CS51: TRUE | CT51: TRUE | CU51: TRUE | CV51: TRUE | CW51: TRUE | CX51: TRUE | CY51: TRUE | CZ51: TRUE | DA51: TRUE | DB51: TRUE | DC51: TRUE | DD51: TRUE | DE51: TRUE | DF51: TRUE | DG51: TRUE | DH51: TRUE | DI51: TRUE | DJ51: TRUE | DK51: TRUE | DL51: TRUE | DM51: TRUE | DN51: TRUE | DO51: TRUE | DP51: TRUE | DQ51: TRUE | DR51: TRUE | DS51: TRUE | DT51: TRUE | DU51: TRUE | DV51: TRUE | DW51: TRUE | DX51: TRUE | DY51: TRUE | DZ51: TRUE | EA51: TRUE | EB51: TRUE | EC51: TRUE | ED51: TRUE | EE51: TRUE | EF51: TRUE | EG51: TRUE | EH51: =AND(EH$7>=$F51,EH$7<$G51) -> TRUE | EI51: TRUE | EJ51: TRUE | EK51: TRUE | EL51: TRUE | EM51: TRUE | EN51: TRUE | EO51: TRUE | EP51: TRUE | EQ51: TRUE | ER51: TRUE | ES51: TRUE | ET51: TRUE | EU51: TRUE | EV51: TRUE | EW51: FALSE | EX51: FALSE | EY51: FALSE | EZ51: FALSE | FA51: FALSE | FB51: FALSE | FC51: FALSE | FD51: FALSE | FE51: FALSE | FF51: FALSE | FG51: FALSE | FH51: FALSE | FI51: FALSE | FJ51: FALSE | FK51: FALSE | FL51: FALSE | FM51: FALSE | FN51: FALSE | FO51: FALSE | FP51: FALSE | FQ51: FALSE | FR51: FALSE | FS51: FALSE | FT51: FALSE | FU51: FALSE | FV51: FALSE | FW51: FALSE | FX51: FALSE | FY51: FALSE | FZ51: FALSE | GA51: FALSE | GB51: FALSE | GC51: FALSE | GD51: FALSE | GE51: FALSE | GF51: FALSE | GG51: FALSE | GH51: FALSE | GI51: FALSE | GJ51: FALSE | GK51: FALSE | GL51: FALSE | GM51: FALSE | GN51: FALSE | GO51: FALSE | GP51: FALSE | GQ51: FALSE | GR51: FALSE | GS51: FALSE | GT51: =AND(GT$7>=$F51,GT$7<$G51) -> FALSE | GU51: FALSE | GV51: FALSE | GW51: FALSE | GX51: FALSE | GY51: FALSE | GZ51: FALSE | HA51: FALSE | HB51: FALSE | HC51: FALSE | HD51: FALSE | HE51: FALSE | HF51: FALSE | HG51: FALSE | HH51: FALSE | HI51: FALSE | HJ51: FALSE | HK51: FALSE | HL51: FALSE | HM51: FALSE | HN51: FALSE | HO51: FALSE | HP51: FALSE | HQ51: FALSE | HR51: FALSE | HS51: FALSE | HT51: FALSE | HU51: FALSE | HV51: FALSE | HW51: FALSE | HX51: FALSE | HY51: FALSE | HZ51: FALSE | IA51: FALSE | IB51: FALSE | IC51: FALSE | ID51: FALSE | IE51: FALSE | IF51: FALSE | IG51: FALSE | IH51: FALSE | II51: FALSE | IJ51: FALSE | IK51: FALSE | IL51: FALSE | IM51: FALSE | IN51: FALSE | IO51: FALSE | IP51: FALSE | IQ51: FALSE | IR51: FALSE | IS51: FALSE | IT51: FALSE | IU51: FALSE | IV51: FALSE | IW51: FALSE | IX51: FALSE | IY51: FALSE | IZ51: FALSE | JA51: FALSE | JB51: FALSE | JC51: FALSE | JD51: FALSE | JE51: FALSE | JF51: =AND(JF$7>=$F51,JF$7<$G51) -> FALSE | JG51: FALSE | JH51: FALSE | JI51: FALSE | JJ51: FALSE | JK51: FALSE | JL51: FALSE | JM51: FALSE | JN51: FALSE | JO51: FALSE | JP51: FALSE | JQ51: FALSE | JR51: FALSE | JS51: FALSE | JT51: FALSE | JU51: FALSE | JV51: FALSE | JW51: FALSE | JX51: FALSE | JY51: FALSE | JZ51: FALSE | KA51: FALSE | KB51: FALSE | KC51: FALSE | KD51: FALSE | KE51: FALSE | KF51: FALSE | KG51: FALSE | KH51: FALSE | KI51: FALSE | KJ51: FALSE | KK51: FALSE | KL51: FALSE | KM51: FALSE | KN51: FALSE | KO51: FALSE | KP51: FALSE | KQ51: FALSE | KR51: FALSE | KS51: FALSE | KT51: FALSE | KU51: FALSE | KV51: FALSE
B52: O&M Contract | E52: Switch | F52: =F51 -> 2016-01-01 | G52: =Assumptions!G134 -> 2020-01-01 | I52: =AND(I$7>=$F52,I$7<$G52) -> TRUE | J52: TRUE | K52: TRUE | L52: TRUE | M52: TRUE | N52: TRUE | O52: TRUE | P52: TRUE | Q52: TRUE | R52: TRUE | S52: TRUE | T52: TRUE | U52: TRUE | V52: TRUE | W52: TRUE | X52: TRUE | Y52: TRUE | Z52: TRUE | AA52: TRUE | AB52: TRUE | AC52: TRUE | AD52: TRUE | AE52: TRUE | AF52: TRUE | AG52: TRUE | AH52: TRUE | AI52: TRUE | AJ52: TRUE | AK52: TRUE | AL52: TRUE | AM52: TRUE | AN52: TRUE | AO52: TRUE | AP52: TRUE | AQ52: TRUE | AR52: TRUE | AS52: TRUE | AT52: TRUE | AU52: TRUE | AV52: TRUE | AW52: TRUE | AX52: TRUE | AY52: TRUE | AZ52: TRUE | BA52: TRUE | BB52: TRUE | BC52: TRUE | BD52: TRUE | BE52: FALSE | BF52: FALSE | BG52: FALSE | BH52: FALSE | BI52: FALSE | BJ52: FALSE | BK52: FALSE | BL52: FALSE | BM52: FALSE | BN52: FALSE | BO52: FALSE | BP52: FALSE | BQ52: FALSE | BR52: FALSE | BS52: FALSE | BT52: FALSE | BU52: FALSE | BV52: FALSE | BW52: FALSE | BX52: FALSE | BY52: FALSE | BZ52: FALSE | CA52: FALSE | CB52: FALSE | CC52: FALSE | CD52: FALSE | CE52: FALSE | CF52: FALSE | CG52: FALSE | CH52: FALSE | CI52: FALSE | CJ52: FALSE | CK52: FALSE | CL52: FALSE | CM52: FALSE | CN52: FALSE | CO52: FALSE | CP52: FALSE | CQ52: FALSE | CR52: FALSE | CS52: FALSE | CT52: FALSE | CU52: FALSE | CV52: FALSE | CW52: FALSE | CX52: FALSE | CY52: FALSE | CZ52: FALSE | DA52: FALSE | DB52: FALSE | DC52: FALSE | DD52: FALSE | DE52: FALSE | DF52: FALSE | DG52: FALSE | DH52: FALSE | DI52: FALSE | DJ52: FALSE | DK52: FALSE | DL52: FALSE | DM52: FALSE | DN52: FALSE | DO52: FALSE | DP52: FALSE | DQ52: FALSE | DR52: FALSE | DS52: FALSE | DT52: FALSE | DU52: FALSE | DV52: FALSE | DW52: FALSE | DX52: FALSE | DY52: FALSE | DZ52: FALSE | EA52: FALSE | EB52: FALSE | EC52: FALSE | ED52: FALSE | EE52: FALSE | EF52: FALSE | EG52: FALSE | EH52: FALSE | EI52: FALSE | EJ52: FALSE | EK52: FALSE | EL52: FALSE | EM52: FALSE | EN52: FALSE | EO52: FALSE | EP52: FALSE | EQ52: FALSE | ER52: FALSE | ES52: FALSE | ET52: FALSE | EU52: FALSE | EV52: FALSE | EW52: FALSE | EX52: FALSE | EY52: FALSE | EZ52: FALSE | FA52: FALSE | FB52: FALSE | FC52: FALSE | FD52: FALSE | FE52: FALSE | FF52: FALSE | FG52: FALSE | FH52: FALSE | FI52: FALSE | FJ52: FALSE | FK52: FALSE | FL52: FALSE | FM52: FALSE | FN52: FALSE | FO52: FALSE | FP52: FALSE | FQ52: FALSE | FR52: FALSE | FS52: FALSE | FT52: FALSE | FU52: FALSE | FV52: FALSE | FW52: FALSE | FX52: FALSE | FY52: FALSE | FZ52: FALSE | GA52: FALSE | GB52: FALSE | GC52: FALSE | GD52: FALSE | GE52: FALSE | GF52: FALSE | GG52: FALSE | GH52: FALSE | GI52: FALSE | GJ52: FALSE | GK52: FALSE | GL52: FALSE | GM52: FALSE | GN52: FALSE | GO52: FALSE | GP52: FALSE | GQ52: FALSE | GR52: FALSE | GS52: FALSE | GT52: FALSE | GU52: FALSE | GV52: FALSE | GW52: FALSE | GX52: FALSE | GY52: FALSE | GZ52: FALSE | HA52: FALSE | HB52: FALSE | HC52: FALSE | HD52: FALSE | HE52: FALSE | HF52: FALSE | HG52: FALSE | HH52: FALSE | HI52: FALSE | HJ52: FALSE | HK52: FALSE | HL52: FALSE | HM52: FALSE | HN52: FALSE | HO52: FALSE | HP52: FALSE | HQ52: FALSE | HR52: FALSE | HS52: FALSE | HT52: FALSE | HU52: FALSE | HV52: FALSE | HW52: FALSE | HX52: FALSE | HY52: FALSE | HZ52: FALSE | IA52: FALSE | IB52: FALSE | IC52: FALSE | ID52: FALSE | IE52: FALSE | IF52: FALSE | IG52: FALSE | IH52: FALSE | II52: FALSE | IJ52: FALSE | IK52: FALSE | IL52: FALSE | IM52: FALSE | IN52: FALSE | IO52: FALSE | IP52: FALSE | IQ52: FALSE | IR52: FALSE | IS52: FALSE | IT52: FALSE | IU52: FALSE | IV52: FALSE | IW52: FALSE | IX52: FALSE | IY52: FALSE | IZ52: FALSE | JA52: FALSE | JB52: FALSE | JC52: FALSE | JD52: FALSE | JE52: FALSE | JF52: FALSE | JG52: FALSE | JH52: FALSE | JI52: FALSE | JJ52: FALSE | JK52: FALSE | JL52: FALSE | JM52: FALSE | JN52: FALSE | JO52: FALSE | JP52: FALSE | JQ52: FALSE | JR52: FALSE | JS52: FALSE | JT52: FALSE | JU52: FALSE | JV52: FALSE | JW52: FALSE | JX52: FALSE | JY52: FALSE | JZ52: FALSE | KA52: FALSE | KB52: FALSE | KC52: FALSE | KD52: FALSE | KE52: FALSE | KF52: FALSE | KG52: FALSE | KH52: FALSE | KI52: FALSE | KJ52: FALSE | KK52: FALSE | KL52: FALSE | KM52: FALSE | KN52: FALSE | KO52: FALSE | KP52: FALSE | KQ52: FALSE | KR52: FALSE | KS52: FALSE | KT52: FALSE | KU52: FALSE | KV52: FALSE
